{"text_format":"1","workbook":"xlsx","n_sheets":14,"sheets":["Stavba","300 3380300 KL","300 3380300 Rek","300 3380300 Pol","310 3380310 KL","310 3380310 Rek","310 3380310 Pol","320 3380320 KL","320 3380320 Rek","320 3380320 Pol","400 3380400 KL","400 3380400 Rek","400 3380400 Pol","OaVNS"],"not_rendered":{"charts":0,"images":0,"macros":0,"external_links":0,"defined_names":63,"comments":0,"pivot_tables":0},"unopened":[],"bounds":{"document_bytes":16777216,"sheet_cells":100000,"rows_first":2000,"rows_last":500,"rows_between":2000,"halvings":0,"cell_chars":16384,"cell_head_chars":4096},"cells_cut":0,"cells_raw":0,"read":"whole","date_system":"1900"}

{"sheet":"Stavba","index":0,"n_rows":43,"n_cols":10,"rows_kept":43,"cut":false,"hidden":false,"merged":[[17,8,17,9],[18,8,18,9],[19,8,19,9],[20,8,20,9],[21,8,21,9]]}
[]
[null,null,"Položkový rozpočet stavby",null,null,null,null,"Datum: ",{"$f":"TODAY()","v":"2025-01-27"}]
[null,null,null," "]
[]
[null,null,"Stavba :","3380","Lomnice n/P. - Prodloužení sítí technické infrastruktury"]
[null,null,null,null,"pro budoucí rozvojovou lokalitu BM 8 "]
[null,null,"Objednatel : ","Město Lomnice nad Popelkou",null,null,null,"IČO :","00275905"]
[null,null,null,"Husovo náměstí 6",null,null,null,"DIČ :","CZ00275905"]
[null,null,"51251","Lomnice nad Popelkou"]
[]
[null,null,"Zhotovitel : ",".",null,null,null,"IČO :"]
[null,null,null,null,null,null,null,"DIČ :"]
[null,null,"Za zhotovitele :",null,null,null,null,"Za objednatele :"]
[]
[null,null,"_______________",null,null,null,null,"_______________"]
[]
[null,null,null,null,null,null,null,null,null,"Rozpočtové náklady"]
[null,"Základ pro DPH",null,12,"%",null,null,null,{"$f":"ROUND(G34,0)","v":0}]
[null,"DPH ",null,{"$f":"SazbaDPH1","v":12},"%",null,null,null,{"$f":"ROUND(I18*D19/100,0)","v":0}]
[null,"Základ pro DPH",null,21,"%",null,null,null,{"$f":"ROUND(H34,0)","v":250000}]
[null,"DPH ",null,{"$f":"SazbaDPH2","v":21},"%",null,null,null,{"$f":"ROUND(I20*D20/100,0)","v":52500}]
[null,"Cena celkem za stavbu",null,null,null,null,null,null,{"$f":"SUM(I18:I21)","v":302500}]
[]
[]
[null,"Rekapitulace stavebních objektů a provozních souborů"]
[]
[null,"Číslo a název objektu / provozního souboru",null,null,null,"Cena celkem",{"$f":"CONCATENATE(\"Základ DPH \",SazbaDPH1,\" %\")","v":"Základ DPH 12 %"},{"$f":"CONCATENATE(\"Základ DPH \",SazbaDPH2,\" %\")","v":"Základ DPH 21 %"},"DPH celkem","%"]
[null,"300","Prodloužení vodovodního řadu",null,null,{"$f":"G28+H28+I28","v":0},0,{"$f":"SUM(H39)","v":0},{"$f":"(G28*SazbaDPH1)/100+(H28*SazbaDPH2)/100","v":0},{"$f":"IF(CelkemObjekty=0,\"\",F28/CelkemObjekty*100)","v":0}]
[null,"310","Prodloužení splaškové kanalizace",null,null,{"$f":"G29+H29+I29","v":0},0,{"$f":"SUM(H40)","v":0},0,0]
[null,"320","Dešťová kanalizace",null,null,0,0,{"$f":"SUM(H41)","v":0},0,0]
[null,"400","Prodloužení plynovodního řadu",null,null,0,0,{"$f":"SUM(H42)","v":0},0,0]
[null,"PR","Povinná rezerva díla",null,null,250000,0,{"$f":"F32","v":250000},{"$f":"(G32*SazbaDPH1)/100+(H32*SazbaDPH2)/100","v":52500},{"$f":"IF(CelkemObjekty=0,\"\",F32/CelkemObjekty*100)","v":100}]
[null,"OaVNS","Ostatní a vedlejší náklady stavby",null,null,0,0,{"$f":"SUM(OaVNS!G30)","v":0},0,0]
[null,"Celkem za stavbu",null,null,null,{"$f":"SUM(F28:F33)","v":250000},{"$f":"SUM(G28:G33)","v":0},{"$f":"SUM(H28:H33)","v":250000},{"$f":"SUM(I28:I31)","v":0},{"$f":"IF(CelkemObjekty=0,\"\",F34/CelkemObjekty*100)","v":100}]
[]
[null,"Rekapitulace stavebních rozpočtů"]
[]
[null,"Číslo objektu","Číslo a název rozpočtu",null,null,"Cena celkem",{"$f":"CONCATENATE(\"Základ DPH \",SazbaDPH1,\" %\")","v":"Základ DPH 12 %"},{"$f":"CONCATENATE(\"Základ DPH \",SazbaDPH2,\" %\")","v":"Základ DPH 21 %"},"DPH celkem","%"]
[null,"300","3380/300 Prodloužení vodovodního řadu",null,null,{"$f":"G39+H39+I39","v":0},0,{"$f":"SUM('300 3380300 KL'!C23)","v":0},{"$f":"(G39*SazbaDPH1)/100+(H39*SazbaDPH2)/100","v":0},{"$f":"IF(CelkemObjekty=0,\"\",F39/CelkemObjekty*100)","v":0}]
[null,"310","3380/310 Prodloužení splaškové kanalizace",null,null,{"$f":"G40+H40+I40","v":0},0,{"$f":"SUM('310 3380310 KL'!C23)","v":0},0,0]
[null,"320","3380/320 Dešťová kanalizace",null,null,0,0,{"$f":"SUM('320 3380320 KL'!C23)","v":0},0,0]
[null,"400","3380/400 Prodloužení plynovodního řadu",null,null,0,0,{"$f":"SUM('400 3380400 KL'!C23)","v":0},0,0]
[null,"Celkem za stavbu",null,null,null,{"$f":"SUM(F39:F42)","v":0},{"$f":"SUM(G39:G42)","v":0},{"$f":"SUM(H39:H42)","v":0},{"$f":"SUM(I39:I42)","v":0},{"$f":"IF(CelkemObjekty=0,\"\",F43/CelkemObjekty*100)","v":0}]

{"sheet":"300 3380300 KL","index":1,"n_rows":45,"n_cols":8,"rows_kept":45,"cut":false,"hidden":false,"merged":[[50,1,50,6],[29,5,29,6],[30,5,30,6],[31,5,31,6],[32,5,32,6],[33,5,33,6],[36,1,44,6],[45,1,45,6],[46,1,46,6],[47,1,47,6],[48,1,48,6],[49,1,49,6],[22,0,22,1],[7,2,7,4],[8,2,8,4],[9,2,9,4],[10,2,10,4],[11,2,11,4]]}
["POLOŽKOVÝ ROZPOČET"]
["Rozpočet",null,"3380/300","Prodloužení vodovodního řadu",null,"JKSO ","827.11.A2"]
[]
["Objekt",null,null,null,null,"SKP "]
["300",null,"Prodloužení vodovodního řadu",null,null,"Měrná jednotka","m"]
["Stavba",null,null,null,null,"Počet jednotek",0]
["3380",null,"Lomnice n/P. Prodloužení sítí technické infrastruk",null,null,"Náklady na m.j.",{"$f":"IF(G6=0,,ROUND((F30+F32)/G6,1))","v":0}]
["Projektant",null,"PVK Projekt s.r.o.",null,null,"Typ rozpočtu"]
["Zpracovatel projektu"]
["Objednatel",null,"Město Lomnice nad Popelkou"]
["Dodavatel",null,".",null,null,"Zakázkové číslo "]
["Rozpočtoval",null,null,null,null,"Počet listů"]
["ROZPOČTOVÉ NÁKLADY"]
["Základní rozpočtové náklady"]
[null,"HSV celkem",{"$f":"'300 3380300 Rek'!E13","v":0}]
["Z","PSV celkem",{"$f":"'300 3380300 Rek'!F13","v":0}]
["R","M práce celkem",{"$f":"'300 3380300 Rek'!H13","v":0}]
["N","M dodávky celkem",{"$f":"'300 3380300 Rek'!G13","v":0}]
["ZRN celkem",null,{"$f":"SUM(C15:C18)","v":0}]
[]
["HZS",null,{"$f":"'300 3380300 Rek'!I13","v":0}]
["ZRN+HZS",null,{"$f":"C19+C21","v":0}]
["ZRN+ost.náklady+HZS",null,{"$f":"C22+G23","v":0}]
["Vypracoval",null,null,"Za zhotovitele",null,"Za objednatele"]
["Jméno :",null,null,"Jméno :",null,"Jméno :"]
["Datum :",null,null,"Datum :",null,"Datum :"]
[]
["Podpis :",null,null,"Podpis:",null,"Podpis:"]
[]
["Základ pro DPH",null,21,"%  ",null,{"$f":"C23-F32","v":0}]
["DPH",null,{"$f":"C30","v":21},"% ",null,{"$f":"ROUND(PRODUCT(F30,C31/100),0)","v":0}]
["Základ pro DPH",null,0,"% ",null,0]
["DPH",null,{"$f":"C32","v":0},"% ",null,{"$f":"ROUND(PRODUCT(F32,C33/100),0)","v":0}]
["CENA ZA OBJEKT CELKEM",null,null,null,null,{"$f":"ROUND(SUM(F30:F33),0)","v":0}]
[]
["Poznámka :",null,null,null,null,null,null," "]
[null,null,null,null,null,null,null," "]
[null,null,null,null,null,null,null," "]
[null,null,null,null,null,null,null," "]
[null,null,null,null,null,null,null," "]
[null,null,null,null,null,null,null," "]
[null,null,null,null,null,null,null," "]
[null,null,null,null,null,null,null," "]
[null,null,null,null,null,null,null," "]
[null,null,null,null,null,null,null," "]

{"sheet":"300 3380300 Rek","index":2,"n_rows":13,"n_cols":9,"rows_kept":13,"cut":false,"hidden":false,"merged":[[0,0,0,1],[1,0,1,1],[1,6,1,8]]}
["Stavba :",null,"3380 Lomnice n/P. Prodloužení sítí technické infrastruk",null,null,null,"Rozpočet :","3380/300"]
["Objekt :",null,"300 Prodloužení vodovodního řadu",null,null,null,"Prodloužení vodovodního řadu"]
[]
["REKAPITULACE  STAVEBNÍCH  DÍLŮ"]
[]
[null,"Stavební díl",null,null,"HSV","PSV","Dodávka","Montáž","HZS"]
[{"$f":"'300 3380300 Pol'!B7","v":"1"},{"$f":"'300 3380300 Pol'!C7","v":"Zemní práce"},null,null,{"$f":"'300 3380300 Pol'!BA156","v":0},{"$f":"'300 3380300 Pol'!BB156","v":0},{"$f":"'300 3380300 Pol'!BC156","v":0},{"$f":"'300 3380300 Pol'!BD156","v":0},{"$f":"'300 3380300 Pol'!BE156","v":0}]
[{"$f":"'300 3380300 Pol'!B157","v":"45"},{"$f":"'300 3380300 Pol'!C157","v":"Podkladní a vedlejší konstrukce"},null,null,{"$f":"'300 3380300 Pol'!BA167","v":0},{"$f":"'300 3380300 Pol'!BB167","v":0},{"$f":"'300 3380300 Pol'!BC167","v":0},{"$f":"'300 3380300 Pol'!BD167","v":0},{"$f":"'300 3380300 Pol'!BE167","v":0}]
[{"$f":"'300 3380300 Pol'!B168","v":"5"},{"$f":"'300 3380300 Pol'!C168","v":"Komunikace"},null,null,{"$f":"'300 3380300 Pol'!BA179","v":0},{"$f":"'300 3380300 Pol'!BB179","v":0},{"$f":"'300 3380300 Pol'!BC179","v":0},{"$f":"'300 3380300 Pol'!BD179","v":0},{"$f":"'300 3380300 Pol'!BE179","v":0}]
[{"$f":"'300 3380300 Pol'!B180","v":"8"},{"$f":"'300 3380300 Pol'!C180","v":"Trubní vedení"},null,null,{"$f":"'300 3380300 Pol'!BA638","v":0},{"$f":"'300 3380300 Pol'!BB638","v":0},{"$f":"'300 3380300 Pol'!BC638","v":0},{"$f":"'300 3380300 Pol'!BD638","v":0},{"$f":"'300 3380300 Pol'!BE638","v":0}]
[{"$f":"'300 3380300 Pol'!B639","v":"93"},{"$f":"'300 3380300 Pol'!C639","v":"Dokončovací práce inženýrských staveb"},null,null,{"$f":"'300 3380300 Pol'!BA704","v":0},{"$f":"'300 3380300 Pol'!BB704","v":0},{"$f":"'300 3380300 Pol'!BC704","v":0},{"$f":"'300 3380300 Pol'!BD704","v":0},{"$f":"'300 3380300 Pol'!BE704","v":0}]
[{"$f":"'300 3380300 Pol'!B705","v":"99"},{"$f":"'300 3380300 Pol'!C705","v":"Staveništní přesun hmot"},null,null,{"$f":"'300 3380300 Pol'!BA707","v":0},{"$f":"'300 3380300 Pol'!BB707","v":0},{"$f":"'300 3380300 Pol'!BC707","v":0},{"$f":"'300 3380300 Pol'!BD707","v":0},{"$f":"'300 3380300 Pol'!BE707","v":0}]
[null,"CELKEM  OBJEKT",null,null,{"$f":"SUM(E7:E12)","v":0},{"$f":"SUM(F7:F12)","v":0},{"$f":"SUM(G7:G12)","v":0},{"$f":"SUM(H7:H12)","v":0},{"$f":"SUM(I7:I12)","v":0}]

{"sheet":"300 3380300 Pol","index":3,"n_rows":707,"n_cols":80,"rows_kept":707,"cut":false,"hidden":false,"merged":[[698,2,698,6],[699,2,699,6],[700,2,700,3],[701,2,701,3],[702,2,702,3],[691,2,691,3],[692,2,692,3],[693,2,693,3],[695,2,695,6],[696,2,696,6],[697,2,697,6],[685,2,685,6],[686,2,686,6],[687,2,687,6],[688,2,688,6],[689,2,689,6],[690,2,690,3],[678,2,678,6],[679,2,679,6],[680,2,680,6],[681,2,681,3],[682,2,682,3],[683,2,683,3],[671,2,671,6],[672,2,672,3],[673,2,673,3],[674,2,674,3],[676,2,676,6],[677,2,677,6],[665,2,665,6],[666,2,666,6],[667,2,667,6],[668,2,668,6],[669,2,669,6],[670,2,670,6],[659,2,659,6],[660,2,660,6],[661,2,661,6],[662,2,662,6],[663,2,663,6],[664,2,664,6],[652,2,652,6],[653,2,653,3],[654,2,654,3],[655,2,655,3],[656,2,656,3],[657,2,657,3],[646,2,646,6],[647,2,647,6],[648,2,648,6],[649,2,649,6],[650,2,650,6],[651,2,651,6],[635,2,635,3],[636,2,636,3],[640,2,640,6],[641,2,641,6],[642,2,642,6],[643,2,643,6],[644,2,644,6],[645,2,645,6],[627,2,627,3],[628,2,628,3],[630,2,630,3],[631,2,631,3],[632,2,632,3],[634,2,634,3],[619,2,619,3],[620,2,620,3],[622,2,622,3],[623,2,623,3],[624,2,624,3],[626,2,626,3],[612,2,612,3],[613,2,613,3],[614,2,614,3],[616,2,616,3],[617,2,617,3],[618,2,618,3],[604,2,604,3],[606,2,606,3],[607,2,607,3],[608,2,608,3],[610,2,610,3],[611,2,611,3],[596,2,596,3],[598,2,598,3],[599,2,599,3],[600,2,600,3],[602,2,602,3],[603,2,603,3],[588,2,588,3],[589,2,589,3],[591,2,591,3],[592,2,592,3],[593,2,593,3],[595,2,595,3],[580,2,580,3],[581,2,581,3],[583,2,583,3],[584,2,584,3],[585,2,585,3],[587,2,587,3],[572,2,572,3],[573,2,573,3],[575,2,575,3],[576,2,576,3],[577,2,577,3],[579,2,579,3],[565,2,565,3],[566,2,566,3],[567,2,567,3],[569,2,569,3],[570,2,570,3],[571,2,571,3],[557,2,557,3],[558,2,558,3],[559,2,559,3],[561,2,561,3],[562,2,562,3],[563,2,563,3],[550,2,550,6],[551,2,551,6],[552,2,552,3],[553,2,553,3],[554,2,554,3],[555,2,555,3],[543,2,543,6],[544,2,544,3],[545,2,545,3],[547,2,547,6],[548,2,548,6],[549,2,549,6],[536,2,536,3],[537,2,537,3],[539,2,539,6],[540,2,540,6],[541,2,541,6],[542,2,542,6],[529,2,529,3],[531,2,531,6],[532,2,532,6],[533,2,533,6],[534,2,534,6],[535,2,535,6],[522,2,522,6],[523,2,523,3],[524,2,524,3],[525,2,525,3],[527,2,527,3],[528,2,528,3],[516,2,516,6],[517,2,517,6],[518,2,518,6],[519,2,519,6],[520,2,520,6],[521,2,521,6],[510,2,510,6],[511,2,511,6],[512,2,512,6],[513,2,513,6],[514,2,514,6],[515,2,515,6],[503,2,503,6],[504,2,504,6],[505,2,505,3],[506,2,506,3],[507,2,507,3],[509,2,509,6],[497,2,497,6],[498,2,498,6],[499,2,499,6],[500,2,500,6],[501,2,501,6],[502,2,502,6],[491,2,491,6],[492,2,492,6],[493,2,493,6],[494,2,494,6],[495,2,495,6],[496,2,496,6],[483,2,483,3],[484,2,484,3],[485,2,485,3],[487,2,487,3],[488,2,488,3],[489,2,489,3],[475,2,475,3],[476,2,476,3],[477,2,477,3],[479,2,479,3],[480,2,480,3],[481,2,481,3],[469,2,469,6],[470,2,470,6],[471,2,471,6],[472,2,472,6],[473,2,473,3],[474,2,474,3],[462,2,462,3],[463,2,463,3],[464,2,464,3],[465,2,465,3],[467,2,467,6],[468,2,468,6],[456,2,456,6],[457,2,457,6],[458,2,458,6],[459,2,459,6],[460,2,460,6],[461,2,461,3],[448,2,448,3],[450,2,450,3],[451,2,451,3],[452,2,452,3],[453,2,453,3],[455,2,455,6],[444,2,444,3],[446,2,446,3],[447,2,447,3],[437,2,437,3],[438,2,438,3],[440,2,440,6],[441,2,441,6],[442,2,442,3],[443,2,443,3],[430,2,430,3],[431,2,431,3],[432,2,432,3],[434,2,434,6],[435,2,435,6],[436,2,436,3],[422,2,422,3],[424,2,424,6],[425,2,425,3],[426,2,426,3],[427,2,427,3],[429,2,429,6],[414,2,414,3],[415,2,415,3],[417,2,417,3],[418,2,418,3],[420,2,420,3],[421,2,421,3],[406,2,406,3],[407,2,407,3],[409,2,409,3],[410,2,410,3],[411,2,411,3],[413,2,413,3],[399,2,399,3],[401,2,401,6],[402,2,402,6],[403,2,403,6],[404,2,404,6],[405,2,405,6],[393,2,393,3],[394,2,394,3],[395,2,395,3],[396,2,396,3],[397,2,397,3],[398,2,398,3],[387,2,387,3],[388,2,388,3],[389,2,389,3],[390,2,390,3],[391,2,391,3],[392,2,392,3],[380,2,380,3],[381,2,381,3],[382,2,382,3],[383,2,383,3],[385,2,385,6],[386,2,386,3],[373,2,373,3],[374,2,374,3],[375,2,375,3],[377,2,377,3],[378,2,378,3],[379,2,379,3],[366,2,366,3],[368,2,368,6],[369,2,369,3],[370,2,370,3],[371,2,371,3],[372,2,372,3],[360,2,360,6],[361,2,361,6],[362,2,362,6],[363,2,363,6],[364,2,364,6],[365,2,365,3],[353,2,353,3],[354,2,354,3],[355,2,355,3],[357,2,357,6],[358,2,358,6],[359,2,359,6],[346,2,346,3],[347,2,347,3],[348,2,348,3],[349,2,349,3],[351,2,351,6],[352,2,352,3],[339,2,339,6],[340,2,340,3],[341,2,341,3],[342,2,342,3],[343,2,343,3],[345,2,345,6],[331,2,331,3],[332,2,332,3],[333,2,333,3],[335,2,335,6],[336,2,336,3],[337,2,337,3],[323,2,323,3],[324,2,324,3],[326,2,326,3],[327,2,327,3],[328,2,328,3],[330,2,330,6],[316,2,316,3],[317,2,317,3],[318,2,318,3],[320,2,320,6],[321,2,321,6],[322,2,322,3],[309,2,309,6],[310,2,310,3],[311,2,311,3],[312,2,312,3],[314,2,314,6],[315,2,315,6],[302,2,302,6],[303,2,303,3],[304,2,304,3],[305,2,305,3],[307,2,307,6],[308,2,308,6],[295,2,295,6],[296,2,296,6],[297,2,297,3],[298,2,298,3],[299,2,299,3],[301,2,301,6],[287,2,287,3],[289,2,289,6],[290,2,290,6],[291,2,291,3],[292,2,292,3],[293,2,293,3],[280,2,280,3],[281,2,281,3],[283,2,283,6],[284,2,284,6],[285,2,285,3],[286,2,286,3],[273,2,273,3],[274,2,274,3],[275,2,275,3],[277,2,277,6],[278,2,278,6],[279,2,279,3],[265,2,265,3],[266,2,266,3],[268,2,268,6],[269,2,269,3],[270,2,270,3],[272,2,272,3],[258,2,258,3],[259,2,259,3],[260,2,260,3],[261,2,261,3],[263,2,263,6],[264,2,264,3],[251,2,251,3],[252,2,252,3],[254,2,254,6],[255,2,255,3],[256,2,256,3],[257,2,257,3],[245,2,245,3],[246,2,246,3],[247,2,247,3],[248,2,248,3],[249,2,249,3],[250,2,250,3],[238,2,238,3],[240,2,240,6],[241,2,241,3],[242,2,242,3],[243,2,243,3],[244,2,244,3],[232,2,232,3],[233,2,233,3],[234,2,234,3],[235,2,235,3],[236,2,236,3],[237,2,237,3],[225,2,225,3],[226,2,226,3],[227,2,227,3],[228,2,228,3],[229,2,229,3],[231,2,231,6],[219,2,219,6],[220,2,220,3],[221,2,221,3],[222,2,222,3],[223,2,223,3],[224,2,224,3],[211,2,211,3],[212,2,212,3],[214,2,214,3],[215,2,215,3],[216,2,216,3],[217,2,217,3],[201,2,201,3],[203,2,203,3],[204,2,204,3],[206,2,206,6],[208,2,208,3],[209,2,209,3],[195,2,195,6],[196,2,196,6],[197,2,197,6],[198,2,198,6],[199,2,199,6],[200,2,200,3],[188,2,188,6],[189,2,189,3],[190,2,190,3],[192,2,192,6],[193,2,193,6],[194,2,194,6],[177,2,177,3],[181,2,181,6],[182,2,182,6],[183,2,183,6],[184,2,184,6],[185,2,185,6],[186,2,186,6],[187,2,187,6],[169,2,169,3],[170,2,170,3],[171,2,171,3],[172,2,172,3],[173,2,173,3],[174,2,174,3],[175,2,175,3],[176,2,176,3],[158,2,158,3],[159,2,159,3],[160,2,160,3],[161,2,161,3],[162,2,162,3],[163,2,163,3],[164,2,164,3],[150,2,150,3],[151,2,151,3],[152,2,152,3],[153,2,153,3],[154,2,154,3],[144,2,144,3],[145,2,145,3],[146,2,146,3],[147,2,147,3],[148,2,148,3],[149,2,149,3],[137,2,137,3],[138,2,138,3],[140,2,140,3],[141,2,141,3],[142,2,142,3],[143,2,143,3],[130,2,130,6],[132,2,132,3],[133,2,133,3],[134,2,134,3],[135,2,135,3],[136,2,136,3],[121,2,121,3],[122,2,122,3],[123,2,123,3],[124,2,124,3],[125,2,125,3],[126,2,126,3],[113,2,113,3],[115,2,115,3],[116,2,116,3],[117,2,117,3],[119,2,119,3],[120,2,120,3],[107,2,107,3],[108,2,108,3],[109,2,109,3],[110,2,110,3],[111,2,111,3],[112,2,112,3],[100,2,100,3],[101,2,101,3],[102,2,102,3],[103,2,103,3],[104,2,104,3],[105,2,105,3],[94,2,94,3],[95,2,95,3],[96,2,96,3],[97,2,97,3],[98,2,98,3],[99,2,99,3],[87,2,87,3],[89,2,89,6],[90,2,90,6],[91,2,91,3],[92,2,92,3],[93,2,93,3],[80,2,80,3],[81,2,81,3],[82,2,82,3],[83,2,83,3],[85,2,85,3],[86,2,86,3],[74,2,74,3],[75,2,75,3],[76,2,76,3],[77,2,77,3],[78,2,78,3],[79,2,79,3],[67,2,67,3],[68,2,68,3],[69,2,69,3],[70,2,70,3],[71,2,71,3],[72,2,72,3],[60,2,60,3],[61,2,61,3],[63,2,63,3],[64,2,64,3],[65,2,65,3],[66,2,66,3],[52,2,52,3],[54,2,54,6],[55,2,55,3],[56,2,56,3],[57,2,57,3],[59,2,59,3],[45,2,45,3],[46,2,46,3],[47,2,47,3],[48,2,48,3],[50,2,50,3],[51,2,51,3],[39,2,39,3],[40,2,40,3],[41,2,41,3],[42,2,42,3],[43,2,43,3],[44,2,44,3],[33,2,33,3],[34,2,34,3],[35,2,35,3],[36,2,36,3],[37,2,37,3],[38,2,38,3],[26,2,26,6],[27,2,27,6],[28,2,28,3],[29,2,29,3],[30,2,30,3],[32,2,32,6],[19,2,19,3],[20,2,20,3],[21,2,21,3],[22,2,22,3],[23,2,23,3],[24,2,24,3],[12,2,12,3],[13,2,13,3],[14,2,14,3],[15,2,15,3],[17,2,17,3],[18,2,18,3],[0,0,0,6],[2,0,2,1],[3,0,3,1],[3,4,3,6],[8,2,8,3],[9,2,9,3],[10,2,10,3],[11,2,11,3]]}
["Položkový rozpočet "]
[]
["Stavba :",null,"3380 Lomnice n/P. Prodloužení sítí technické infrastruk",null,"Rozpočet:",{"$f":"'300 3380300 Rek'!H1","v":"3380/300"}]
["Objekt :",null,"300 Prodloužení vodovodního řadu",null,{"$f":"'300 3380300 Rek'!G2","v":"Prodloužení vodovodního řadu"}]
[]
["P.č.","Číslo položky","Název položky","MJ","množství","cena / MJ","celkem (Kč)","Jednotková hmotnost","Celková hmotnost","Jednotková dem.hmot.","Celková dem.hmot."]
["Díl:","1","Zemní práce",null,null,null,null,null,null,null,null,null,null,null,1]
[1,"113107625R00","Odstranění podkladu nad 50 m2,kam.drcené tl.25 cm ","m2",94.47,null,{"$f":"E8*F8","v":0},0,{"$f":"E8*H8","v":0},-0.55000000000000004,{"$f":"E8*J8","v":-51.958500000000001},null,null,null,2,null,null,null,null,null,null,null,null,null,null,null,1,1,1,null,null,null,null,null,null,null,null,null,null,null,null,null,null,null,null,null,null,null,null,null,null,1,{"$f":"IF(AZ8=1,G8,0)","v":0},{"$f":"IF(AZ8=2,G8,0)","v":0},{"$f":"IF(AZ8=3,G8,0)","v":0},{"$f":"IF(AZ8=4,G8,0)","v":0},{"$f":"IF(AZ8=5,G8,0)","v":0},null,null,null,null,null,null,null,null,null,null,null,null,null,null,null,null,null,null,null,null,null,1,1]
[null,null,"Řad TLT DN150 a PE D 90x8,2 mm:",null,0,null,null,null,null,null,null,null,"Řad TLT DN150 a PE D 90x8,2 mm:"]
[null,null,"Propoj do AŠ TLT DN80:7,20*0,80",null,5.76,null,null,null,null,null,null,null,"Propoj do AŠ TLT DN80:7,20*0,80"]
[null,null,"Propoj do AŠ TLT DN100:(4,50+6,00)*0,80",null,8.4,null,null,null,null,null,null,null,"Propoj do AŠ TLT DN100:(4,50+6,00)*0,80"]
[null,null,"Řad TLT DN150 :46,10*0,80",null,36.880000000000003,null,null,null,null,null,null,null,"Řad TLT DN150 :46,10*0,80"]
[null,null,"Propoj na TLT DN150:10,00*0,80",null,8,null,null,null,null,null,null,null,"Propoj na TLT DN150:10,00*0,80"]
[null,null,"Propoj do AŠ TLT DN150:10,00*0,80",null,8,null,null,null,null,null,null,null,"Propoj do AŠ TLT DN150:10,00*0,80"]
[null,null,"Prodloužení řadu PE D 90x8,2 mm:18,70*0,80",null,14.96,null,null,null,null,null,null,null,"Prodloužení řadu PE D 90x8,2 mm:18,70*0,80"]
[null,null,"AŠ:4,30*2,90",null,12.47,null,null,null,null,null,null,null,"AŠ:4,30*2,90"]
[2,"113108415R00","Odstranění asfaltové vrstvy pl.nad 50 m2, tl.15 cm ","m2",94.47,null,{"$f":"E17*F17","v":0},0,{"$f":"E17*H17","v":0},-0.33,{"$f":"E17*J17","v":-31.1751},null,null,null,2,null,null,null,null,null,null,null,null,null,null,null,1,1,1,null,null,null,null,null,null,null,null,null,null,null,null,null,null,null,null,null,null,null,null,null,null,1,{"$f":"IF(AZ17=1,G17,0)","v":0},{"$f":"IF(AZ17=2,G17,0)","v":0},{"$f":"IF(AZ17=3,G17,0)","v":0},{"$f":"IF(AZ17=4,G17,0)","v":0},{"$f":"IF(AZ17=5,G17,0)","v":0},null,null,null,null,null,null,null,null,null,null,null,null,null,null,null,null,null,null,null,null,null,1,1]
[null,null,"Řad TLT DN150 a PE D 90x8,2 mm:",null,0,null,null,null,null,null,null,null,"Řad TLT DN150 a PE D 90x8,2 mm:"]
[null,null,"Propoj do AŠ TLT DN80:7,20*0,80",null,5.76,null,null,null,null,null,null,null,"Propoj do AŠ TLT DN80:7,20*0,80"]
[null,null,"Propoj do AŠ TLT DN100:(4,50+6,00)*0,80",null,8.4,null,null,null,null,null,null,null,"Propoj do AŠ TLT DN100:(4,50+6,00)*0,80"]
[null,null,"Řad TLT DN150 :46,10*0,80",null,36.880000000000003,null,null,null,null,null,null,null,"Řad TLT DN150 :46,10*0,80"]
[null,null,"Propoj na TLT DN150:10,00*0,80",null,8,null,null,null,null,null,null,null,"Propoj na TLT DN150:10,00*0,80"]
[null,null,"Propoj do AŠ TLT DN150:10,00*0,80",null,8,null,null,null,null,null,null,null,"Propoj do AŠ TLT DN150:10,00*0,80"]
[null,null,"Prodloužení řadu PE D 90x8,2 mm:18,70*0,80",null,14.96,null,null,null,null,null,null,null,"Prodloužení řadu PE D 90x8,2 mm:18,70*0,80"]
[null,null,"AŠ:4,30*2,90",null,12.47,null,null,null,null,null,null,null,"AŠ:4,30*2,90"]
[3,"130001101RRX","Příplatek za ztížené hloubení v blízkosti vedení ","m3",33.994700000000002,null,{"$f":"E26*F26","v":0},0,{"$f":"E26*H26","v":0},0,{"$f":"E26*J26","v":0},null,null,null,2,null,null,null,null,null,null,null,null,null,null,null,1,1,1,null,null,null,null,null,null,null,null,null,null,null,null,null,null,null,null,null,null,null,null,null,null,1,{"$f":"IF(AZ26=1,G26,0)","v":0},{"$f":"IF(AZ26=2,G26,0)","v":0},{"$f":"IF(AZ26=3,G26,0)","v":0},{"$f":"IF(AZ26=4,G26,0)","v":0},{"$f":"IF(AZ26=5,G26,0)","v":0},null,null,null,null,null,null,null,null,null,null,null,null,null,null,null,null,null,null,null,null,null,1,1]
[null,null,"Včetně případných nutných dokopávem a ručního výkopu podél sousedících inženýrských sítí včetně vyvěšení a zajištění sítí.",null,null,null,null,null,null,null,null,"Včetně případných nutných dokopávem a ručního výkopu podél sousedících inženýrských sítí včetně vyvěšení a zajištění sítí.",null,null,3]
[null,null,"Součástí položky jsou i nutné ruční kopané sondy předepsané projektovou dokumentací pro upřesnění směrového a výškového umístění sousedních vedení inženýrských sítí.",null,null,null,null,null,null,null,null,"Součástí položky jsou i nutné ruční kopané sondy předepsané projektovou dokumentací pro upřesnění směrového a výškového umístění sousedních vedení inženýrských sítí.",null,null,3]
[null,null,"Řad TLT DN150 a PE D 90x8,2 mm:",null,0,null,null,null,null,null,null,null,"Řad TLT DN150 a PE D 90x8,2 mm:"]
[null,null,"Výkopy:",null,0,null,null,null,null,null,null,null,"Výkopy:"]
[null,null,"V hornině tř. 3 - 4 - 24%:141,6445*0,24",null,33.994700000000002,null,null,null,null,null,null,null,"V hornině tř. 3 - 4 - 24%:141,6445*0,24"]
[4,"132201212R00","Hloubení rýh š.do 200 cm hor.3 do 1000m3,STROJNĚ ","m3",70.822199999999995,null,{"$f":"E32*F32","v":0},0,{"$f":"E32*H32","v":0},0,{"$f":"E32*J32","v":0},null,null,null,2,null,null,null,null,null,null,null,null,null,null,null,1,1,1,null,null,null,null,null,null,null,null,null,null,null,null,null,null,null,null,null,null,null,null,null,null,1,{"$f":"IF(AZ32=1,G32,0)","v":0},{"$f":"IF(AZ32=2,G32,0)","v":0},{"$f":"IF(AZ32=3,G32,0)","v":0},{"$f":"IF(AZ32=4,G32,0)","v":0},{"$f":"IF(AZ32=5,G32,0)","v":0},null,null,null,null,null,null,null,null,null,null,null,null,null,null,null,null,null,null,null,null,null,1,1]
[null,null,"Položka obsahuje hloubení rýh traktorbagrem, naložení výkopku na dopravní prostředek pro svislé, nebo vodorovné přemístění, popř. přemístění výkopku do 3 m (po povrchu území), případné zajištění rypadel polštáři, udržování pracoviště a ochranu výkopiště proti stékání srážkové vody z okolního terénu i s jejím odvodněním, nebo odvedením, přesekání a odstranění kořenů ve výkopišti, odstranění napadávek, urovnání dna výkopu.",null,null,null,null,null,null,null,null,"Položka obsahuje hloubení rýh traktorbagrem, naložení výkopku na dopravní prostředek pro svislé, nebo vodorovné přemístění, popř. přemístění výkopku do 3 m (po povrchu území), případné zajištění rypadel polštáři, udržování pracoviště a ochranu výkopiště proti stékání srážkové vody z okolního terénu i s jejím odvodněním, nebo odvedením, přesekání a odstranění kořenů ve výkopišti, odstranění napadávek, urovnání dna výkopu.",null,null,3]
[null,null,"Řad TLT DN150 a PE D 90x8,2 mm:",null,0,null,null,null,null,null,null,null,"Řad TLT DN150 a PE D 90x8,2 mm:"]
[null,null,"Výkopy:",null,0,null,null,null,null,null,null,null,"Výkopy:"]
[null,null,"Začátek provozního součtu",null,0,null,null,null,null,null,null,null,"Začátek provozního součtu"]
[null,null,"Řady a propoje - Průměrná hloubka výkopů - 1,77 m:",null,0,null,null,null,null,null,null,null,"Řady a propoje - Průměrná hloubka výkopů - 1,77 m:"]
[null,null,"Propoj do AŠ TLT DN80:7,20*0,80*1,77",null,10.1952,null,null,null,null,null,null,null,"Propoj do AŠ TLT DN80:7,20*0,80*1,77"]
[null,null,"Propoj do AŠ TLT DN100:(4,50+6,00)*0,80*1,77",null,14.868,null,null,null,null,null,null,null,"Propoj do AŠ TLT DN100:(4,50+6,00)*0,80*1,77"]
[null,null,"Řad TLT DN150 :46,10*0,80*1,77",null,65.277600000000007,null,null,null,null,null,null,null,"Řad TLT DN150 :46,10*0,80*1,77"]
[null,null,"Propoj na TLT DN150:10,00*0,80*1,77",null,14.16,null,null,null,null,null,null,null,"Propoj na TLT DN150:10,00*0,80*1,77"]
[null,null,"Propoj do AŠ TLT DN150:10,00*0,80*1,77",null,14.16,null,null,null,null,null,null,null,"Propoj do AŠ TLT DN150:10,00*0,80*1,77"]
[null,null,"Prodloužení řadu PE D 90x8,2 mm:18,70*0,80*1,77",null,26.479199999999999,null,null,null,null,null,null,null,"Prodloužení řadu PE D 90x8,2 mm:18,70*0,80*1,77"]
[null,null,"AŠ:4,30*2,90*2,75",null,34.292499999999997,null,null,null,null,null,null,null,"AŠ:4,30*2,90*2,75"]
[null,null,"Odpočet objemu konstrukcí komunikací:",null,0,null,null,null,null,null,null,null,"Odpočet objemu konstrukcí komunikací:"]
[null,null,"Řady a propoje:-(7,20+4,50+6,00+46,10+10,00+10,00+18,70)*0,80*0,40",null,-32.799999999999997,null,null,null,null,null,null,null,"Řady a propoje:-(7,20+4,50+6,00+46,10+10,00+10,00+18,70)*0,80*0,40"]
[null,null,"AŠ:-4,30*2,90*0,40",null,-4.9880000000000004,null,null,null,null,null,null,null,"AŠ:-4,30*2,90*0,40"]
[null,null,"Konec provozního součtu",null,141.64449999999999,null,null,null,null,null,null,null,"Konec provozního součtu"]
[null,null,"V hornině tř. 3 - 50%:141,6445*0,5",null,70.822199999999995,null,null,null,null,null,null,null,"V hornině tř. 3 - 50%:141,6445*0,5"]
[5,"132201219R00","Přípl.za lepivost,hloubení rýh 200cm,hor.3,STROJNĚ ","m3",35.411099999999998,null,{"$f":"E50*F50","v":0},0,{"$f":"E50*H50","v":0},0,{"$f":"E50*J50","v":0},null,null,null,2,null,null,null,null,null,null,null,null,null,null,null,1,1,1,null,null,null,null,null,null,null,null,null,null,null,null,null,null,null,null,null,null,null,null,null,null,1,{"$f":"IF(AZ50=1,G50,0)","v":0},{"$f":"IF(AZ50=2,G50,0)","v":0},{"$f":"IF(AZ50=3,G50,0)","v":0},{"$f":"IF(AZ50=4,G50,0)","v":0},{"$f":"IF(AZ50=5,G50,0)","v":0},null,null,null,null,null,null,null,null,null,null,null,null,null,null,null,null,null,null,null,null,null,1,1]
[null,null,"Řad TLT DN150 a PE D 90x8,2 mm:",null,0,null,null,null,null,null,null,null,"Řad TLT DN150 a PE D 90x8,2 mm:"]
[null,null,"Výkopy:",null,0,null,null,null,null,null,null,null,"Výkopy:"]
[null,null,"V hornině tř. 3 - 50%:141,6445*0,5*0,5",null,35.411099999999998,null,null,null,null,null,null,null,"V hornině tř. 3 - 50%:141,6445*0,5*0,5"]
[6,"132301212R00","Hloubení rýh š.do 200 cm hor.4 do 1000 m3, STROJNĚ ","m3",70.822199999999995,null,{"$f":"E54*F54","v":0},0,{"$f":"E54*H54","v":0},0,{"$f":"E54*J54","v":0},null,null,null,2,null,null,null,null,null,null,null,null,null,null,null,1,1,1,null,null,null,null,null,null,null,null,null,null,null,null,null,null,null,null,null,null,null,null,null,null,1,{"$f":"IF(AZ54=1,G54,0)","v":0},{"$f":"IF(AZ54=2,G54,0)","v":0},{"$f":"IF(AZ54=3,G54,0)","v":0},{"$f":"IF(AZ54=4,G54,0)","v":0},{"$f":"IF(AZ54=5,G54,0)","v":0},null,null,null,null,null,null,null,null,null,null,null,null,null,null,null,null,null,null,null,null,null,1,1]
[null,null,"Položka obsahuje hloubení rýh traktorbagrem, naložení výkopku na dopravní prostředek pro svislé, nebo vodorovné přemístění, popř. přemístění výkopku do 3 m (po povrchu území), případné zajištění rypadel polštáři, udržování pracoviště a ochranu výkopiště proti stékání srážkové vody z okolního terénu i s jejím odvodněním, nebo odvedením, přesekání a odstranění kořenů ve výkopišti, odstranění napadávek, urovnání dna výkopu.",null,null,null,null,null,null,null,null,"Položka obsahuje hloubení rýh traktorbagrem, naložení výkopku na dopravní prostředek pro svislé, nebo vodorovné přemístění, popř. přemístění výkopku do 3 m (po povrchu území), případné zajištění rypadel polštáři, udržování pracoviště a ochranu výkopiště proti stékání srážkové vody z okolního terénu i s jejím odvodněním, nebo odvedením, přesekání a odstranění kořenů ve výkopišti, odstranění napadávek, urovnání dna výkopu.",null,null,3]
[null,null,"Řad TLT DN150 a PE D 90x8,2 mm:",null,0,null,null,null,null,null,null,null,"Řad TLT DN150 a PE D 90x8,2 mm:"]
[null,null,"Výkopy:",null,0,null,null,null,null,null,null,null,"Výkopy:"]
[null,null,"V hornině tř. 4 - 50%:141,6445*0,5",null,70.822199999999995,null,null,null,null,null,null,null,"V hornině tř. 4 - 50%:141,6445*0,5"]
[7,"132301219R00","Přípl.za lepivost,hloubení rýh 200cm,hor.4,STROJNĚ ","m3",35.411099999999998,null,{"$f":"E59*F59","v":0},0,{"$f":"E59*H59","v":0},0,{"$f":"E59*J59","v":0},null,null,null,2,null,null,null,null,null,null,null,null,null,null,null,1,1,1,null,null,null,null,null,null,null,null,null,null,null,null,null,null,null,null,null,null,null,null,null,null,1,{"$f":"IF(AZ59=1,G59,0)","v":0},{"$f":"IF(AZ59=2,G59,0)","v":0},{"$f":"IF(AZ59=3,G59,0)","v":0},{"$f":"IF(AZ59=4,G59,0)","v":0},{"$f":"IF(AZ59=5,G59,0)","v":0},null,null,null,null,null,null,null,null,null,null,null,null,null,null,null,null,null,null,null,null,null,1,1]
[null,null,"Řad TLT DN150 a PE D 90x8,2 mm:",null,0,null,null,null,null,null,null,null,"Řad TLT DN150 a PE D 90x8,2 mm:"]
[null,null,"Výkopy:",null,0,null,null,null,null,null,null,null,"Výkopy:"]
[null,null,"V hornině tř. 4 - 50%:141,6445*0,5*0,5",null,35.411099999999998,null,null,null,null,null,null,null,"V hornině tř. 4 - 50%:141,6445*0,5*0,5"]
[8,"151101101R00","Pažení a rozepření stěn rýh - příložné - hl.do 2 m ","m2",386.5,null,{"$f":"E63*F63","v":0},9.8999999999999999E-4,{"$f":"E63*H63","v":0.382635},0,{"$f":"E63*J63","v":0},null,null,null,2,null,null,null,null,null,null,null,null,null,null,null,1,1,1,null,null,null,null,null,null,null,null,null,null,null,null,null,null,null,null,null,null,null,null,null,null,1,{"$f":"IF(AZ63=1,G63,0)","v":0},{"$f":"IF(AZ63=2,G63,0)","v":0},{"$f":"IF(AZ63=3,G63,0)","v":0},{"$f":"IF(AZ63=4,G63,0)","v":0},{"$f":"IF(AZ63=5,G63,0)","v":0},null,null,null,null,null,null,null,null,null,null,null,null,null,null,null,null,null,null,null,null,null,1,1]
[null,null,"Řad TLT DN150 a PE D 90x8,2 mm:",null,0,null,null,null,null,null,null,null,"Řad TLT DN150 a PE D 90x8,2 mm:"]
[null,null,"Výkopy:",null,0,null,null,null,null,null,null,null,"Výkopy:"]
[null,null,"Řady a propoje - Průměrná hloubka výkopů - 1,77 m:",null,0,null,null,null,null,null,null,null,"Řady a propoje - Průměrná hloubka výkopů - 1,77 m:"]
[null,null,"Propoj do AŠ TLT DN80:7,20*1,77*2",null,25.488,null,null,null,null,null,null,null,"Propoj do AŠ TLT DN80:7,20*1,77*2"]
[null,null,"Propoj do AŠ TLT DN100:(4,50+6,00)*1,77*2",null,37.17,null,null,null,null,null,null,null,"Propoj do AŠ TLT DN100:(4,50+6,00)*1,77*2"]
[null,null,"Řad TLT DN150 :46,10*1,77*2",null,163.19399999999999,null,null,null,null,null,null,null,"Řad TLT DN150 :46,10*1,77*2"]
[null,null,"Propoj na TLT DN150:10,00*1,77*2",null,35.4,null,null,null,null,null,null,null,"Propoj na TLT DN150:10,00*1,77*2"]
[null,null,"Propoj do AŠ TLT DN150:10,00*1,77*2",null,35.4,null,null,null,null,null,null,null,"Propoj do AŠ TLT DN150:10,00*1,77*2"]
[null,null,"Prodloužení řadu PE D 90x8,2 mm:18,70*1,77*2",null,66.197999999999993,null,null,null,null,null,null,null,"Prodloužení řadu PE D 90x8,2 mm:18,70*1,77*2"]
[null,null,"AŠ:4,30*2,75*2",null,23.65,null,null,null,null,null,null,null,"AŠ:4,30*2,75*2"]
[9,"151101111R00","Odstranění pažení stěn rýh - příložné - hl. do 2 m ","m2",386.5,null,{"$f":"E74*F74","v":0},0,{"$f":"E74*H74","v":0},0,{"$f":"E74*J74","v":0},null,null,null,2,null,null,null,null,null,null,null,null,null,null,null,1,1,1,null,null,null,null,null,null,null,null,null,null,null,null,null,null,null,null,null,null,null,null,null,null,1,{"$f":"IF(AZ74=1,G74,0)","v":0},{"$f":"IF(AZ74=2,G74,0)","v":0},{"$f":"IF(AZ74=3,G74,0)","v":0},{"$f":"IF(AZ74=4,G74,0)","v":0},{"$f":"IF(AZ74=5,G74,0)","v":0},null,null,null,null,null,null,null,null,null,null,null,null,null,null,null,null,null,null,null,null,null,1,1]
[null,null,"Řad TLT DN150 a PE D 90x8,2 mm:",null,0,null,null,null,null,null,null,null,"Řad TLT DN150 a PE D 90x8,2 mm:"]
[null,null,"Výkopy:",null,0,null,null,null,null,null,null,null,"Výkopy:"]
[null,null,"Řady a propoje - Průměrná hloubka výkopů - 1,77 m:",null,0,null,null,null,null,null,null,null,"Řady a propoje - Průměrná hloubka výkopů - 1,77 m:"]
[null,null,"Propoj do AŠ TLT DN80:7,20*1,77*2",null,25.488,null,null,null,null,null,null,null,"Propoj do AŠ TLT DN80:7,20*1,77*2"]
[null,null,"Propoj do AŠ TLT DN100:(4,50+6,00)*1,77*2",null,37.17,null,null,null,null,null,null,null,"Propoj do AŠ TLT DN100:(4,50+6,00)*1,77*2"]
[null,null,"Řad TLT DN150 :46,10*1,77*2",null,163.19399999999999,null,null,null,null,null,null,null,"Řad TLT DN150 :46,10*1,77*2"]
[null,null,"Propoj na TLT DN150:10,00*1,77*2",null,35.4,null,null,null,null,null,null,null,"Propoj na TLT DN150:10,00*1,77*2"]
[null,null,"Propoj do AŠ TLT DN150:10,00*1,77*2",null,35.4,null,null,null,null,null,null,null,"Propoj do AŠ TLT DN150:10,00*1,77*2"]
[null,null,"Prodloužení řadu PE D 90x8,2 mm:18,70*1,77*2",null,66.197999999999993,null,null,null,null,null,null,null,"Prodloužení řadu PE D 90x8,2 mm:18,70*1,77*2"]
[null,null,"AŠ:4,30*2,75*2",null,23.65,null,null,null,null,null,null,null,"AŠ:4,30*2,75*2"]
[10,"162701105RSZ","Vodorovné přemístění výkopku z hor.1-7 na skládku zhotovitele","m3",141.64449999999999,null,{"$f":"E85*F85","v":0},0,{"$f":"E85*H85","v":0},0,{"$f":"E85*J85","v":0},null,null,null,2,null,null,null,null,null,null,null,null,null,null,null,1,1,1,null,null,null,null,null,null,null,null,null,null,null,null,null,null,null,null,null,null,null,null,null,null,1,{"$f":"IF(AZ85=1,G85,0)","v":0},{"$f":"IF(AZ85=2,G85,0)","v":0},{"$f":"IF(AZ85=3,G85,0)","v":0},{"$f":"IF(AZ85=4,G85,0)","v":0},{"$f":"IF(AZ85=5,G85,0)","v":0},null,null,null,null,null,null,null,null,null,null,null,null,null,null,null,null,null,null,null,null,null,1,1]
[null,null,"Řad TLT DN150 a PE D 90x8,2 mm:",null,0,null,null,null,null,null,null,null,"Řad TLT DN150 a PE D 90x8,2 mm:"]
[null,null,"Výkopy:",null,0,null,null,null,null,null,null,null,"Výkopy:"]
[null,null,"V hornině tř. 3 - 4:141,6445",null,141.64449999999999,null,null,null,null,null,null,null,"V hornině tř. 3 - 4:141,6445"]
[11,"174101101R00","Zásyp jam, rýh, šachet se zhutněním ","m3",80.135400000000004,null,{"$f":"E89*F89","v":0},0,{"$f":"E89*H89","v":0},0,{"$f":"E89*J89","v":0},null,null,null,2,null,null,null,null,null,null,null,null,null,null,null,1,1,1,null,null,null,null,null,null,null,null,null,null,null,null,null,null,null,null,null,null,null,null,null,null,1,{"$f":"IF(AZ89=1,G89,0)","v":0},{"$f":"IF(AZ89=2,G89,0)","v":0},{"$f":"IF(AZ89=3,G89,0)","v":0},{"$f":"IF(AZ89=4,G89,0)","v":0},{"$f":"IF(AZ89=5,G89,0)","v":0},null,null,null,null,null,null,null,null,null,null,null,null,null,null,null,null,null,null,null,null,null,1,1]
[null,null,"Položka obsahuje strojní přemístění materiálu pro zásyp ze vzdálenosti do 10 m od okraje zásypu.",null,null,null,null,null,null,null,null,"Položka obsahuje strojní přemístění materiálu pro zásyp ze vzdálenosti do 10 m od okraje zásypu.",null,null,3]
[null,null,null,null,null,null,null,null,null,null,null,null,null,null,3]
[null,null,"Zásypy ŠD fr. 0-63 mm:80,1354",null,80.135400000000004,null,null,null,null,null,null,null,"Zásypy ŠD fr. 0-63 mm:80,1354"]
[null,null,"Začátek provozního součtu",null,0,null,null,null,null,null,null,null,"Začátek provozního součtu"]
[null,null,"Řad TLT DN150 a PE D 90x8,2 mm:",null,0,null,null,null,null,null,null,null,"Řad TLT DN150 a PE D 90x8,2 mm:"]
[null,null,"Výkopy:",null,0,null,null,null,null,null,null,null,"Výkopy:"]
[null,null,"V hornině tř. 3 - 4:141,6445",null,141.64449999999999,null,null,null,null,null,null,null,"V hornině tř. 3 - 4:141,6445"]
[null,null,"Odpočet lože, potrubí a obsypů:",null,0,null,null,null,null,null,null,null,"Odpočet lože, potrubí a obsypů:"]
[null,null,"Řad TLT DN150 a PE D 90x8,2 mm:",null,0,null,null,null,null,null,null,null,"Řad TLT DN150 a PE D 90x8,2 mm:"]
[null,null,"Propoj do AŠ TLT DN80:-7,20*0,80*(0,15+0,08+0,30)",null,-3.0528,null,null,null,null,null,null,null,"Propoj do AŠ TLT DN80:-7,20*0,80*(0,15+0,08+0,30)"]
[null,null,"Propoj do AŠ TLT DN100:-(4,50+6,00)*0,80*(0,15+0,10+0,30)",null,-4.62,null,null,null,null,null,null,null,"Propoj do AŠ TLT DN100:-(4,50+6,00)*0,80*(0,15+0,10+0,30)"]
[null,null,"Řad TLT DN150 :-46,10*0,80*(0,15+0,15+0,30)",null,-22.128,null,null,null,null,null,null,null,"Řad TLT DN150 :-46,10*0,80*(0,15+0,15+0,30)"]
[null,null,"Propoj na TLT DN150:-10,00*0,80*(0,15+0,15+0,30)",null,-4.8,null,null,null,null,null,null,null,"Propoj na TLT DN150:-10,00*0,80*(0,15+0,15+0,30)"]
[null,null,"Propoj do AŠ TLT DN150:-10,00*0,80*(0,15+0,15+0,30)",null,-4.8,null,null,null,null,null,null,null,"Propoj do AŠ TLT DN150:-10,00*0,80*(0,15+0,15+0,30)"]
[null,null,"Prodloužení řadu PE D 90x8,2 mm:-18,70*0,80*(0,15+0,09+0,30)",null,-8.0784000000000002,null,null,null,null,null,null,null,"Prodloužení řadu PE D 90x8,2 mm:-18,70*0,80*(0,15+0,09+0,30)"]
[null,null,"AŠ:-4,30*2,90*0,15-3,30*1,90*1,92-1,10*1,10*0,10",null,-14.0299,null,null,null,null,null,null,null,"AŠ:-4,30*2,90*0,15-3,30*1,90*1,92-1,10*1,10*0,10"]
[null,null,"Konec provozního součtu",null,80.135400000000004,null,null,null,null,null,null,null,"Konec provozního součtu"]
[12,"175101101R00","Obsyp potrubí bez prohození sypaniny ","m3",33.773499999999999,null,{"$f":"E107*F107","v":0},0,{"$f":"E107*H107","v":0},0,{"$f":"E107*J107","v":0},null,null,null,2,null,null,null,null,null,null,null,null,null,null,null,1,1,1,null,null,null,null,null,null,null,null,null,null,null,null,null,null,null,null,null,null,null,null,null,null,1,{"$f":"IF(AZ107=1,G107,0)","v":0},{"$f":"IF(AZ107=2,G107,0)","v":0},{"$f":"IF(AZ107=3,G107,0)","v":0},{"$f":"IF(AZ107=4,G107,0)","v":0},{"$f":"IF(AZ107=5,G107,0)","v":0},null,null,null,null,null,null,null,null,null,null,null,null,null,null,null,null,null,null,null,null,null,1,1]
[null,null,"Řad TLT DN150 a PE D 90x8,2 mm:",null,0,null,null,null,null,null,null,null,"Řad TLT DN150 a PE D 90x8,2 mm:"]
[null,null,"Propoj do AŠ TLT DN80:7,20*(0,80*(0,08+0,30)-0,04^2*Pi)",null,2.1526000000000001,null,null,null,null,null,null,null,"Propoj do AŠ TLT DN80:7,20*(0,80*(0,08+0,30)-0,04^2*Pi)"]
[null,null,"Propoj do AŠ TLT DN100:(4,50+6,00)*(0,80*(0,10+0,30)-0,05^2*Pi)",null,3.2774999999999999,null,null,null,null,null,null,null,"Propoj do AŠ TLT DN100:(4,50+6,00)*(0,80*(0,10+0,30)-0,05^2*Pi)"]
[null,null,"Řad TLT DN150 :46,10*(0,80*(0,15+0,30)-0,075^2*Pi)",null,15.7813,null,null,null,null,null,null,null,"Řad TLT DN150 :46,10*(0,80*(0,15+0,30)-0,075^2*Pi)"]
[null,null,"Propoj na TLT DN150:10,00*(0,80*(0,15+0,30)-0,075^2*Pi)",null,3.4232999999999998,null,null,null,null,null,null,null,"Propoj na TLT DN150:10,00*(0,80*(0,15+0,30)-0,075^2*Pi)"]
[null,null,"Propoj do AŠ TLT DN150:10,00*(0,80*(0,15+0,30)-0,075^2*Pi)",null,3.4232999999999998,null,null,null,null,null,null,null,"Propoj do AŠ TLT DN150:10,00*(0,80*(0,15+0,30)-0,075^2*Pi)"]
[null,null,"Prodloužení řadu PE D 90x8,2 mm:18,70*(0,80*(0,09+0,30)-0,045^2*Pi)",null,5.7153999999999998,null,null,null,null,null,null,null,"Prodloužení řadu PE D 90x8,2 mm:18,70*(0,80*(0,09+0,30)-0,045^2*Pi)"]
[13,"199000002R00","Poplatek za skládku horniny 1- 7 č. dle katal. odpadů 17 05 04","m3",141.64449999999999,null,{"$f":"E115*F115","v":0},0,{"$f":"E115*H115","v":0},0,{"$f":"E115*J115","v":0},null,null,null,2,null,null,null,null,null,null,null,null,null,null,null,1,1,1,null,null,null,null,null,null,null,null,null,null,null,null,null,null,null,null,null,null,null,null,null,null,1,{"$f":"IF(AZ115=1,G115,0)","v":0},{"$f":"IF(AZ115=2,G115,0)","v":0},{"$f":"IF(AZ115=3,G115,0)","v":0},{"$f":"IF(AZ115=4,G115,0)","v":0},{"$f":"IF(AZ115=5,G115,0)","v":0},null,null,null,null,null,null,null,null,null,null,null,null,null,null,null,null,null,null,null,null,null,1,1]
[null,null,"Řad TLT DN150 a PE D 90x8,2 mm:",null,0,null,null,null,null,null,null,null,"Řad TLT DN150 a PE D 90x8,2 mm:"]
[null,null,"Výkopy:",null,0,null,null,null,null,null,null,null,"Výkopy:"]
[null,null,"V hornině tř. 3 - 4:141,6445",null,141.64449999999999,null,null,null,null,null,null,null,"V hornině tř. 3 - 4:141,6445"]
[14,"919735113R00","Řezání stávajícího živičného krytu tl. 10 - 15 cm ","m",224.2,null,{"$f":"E119*F119","v":0},0,{"$f":"E119*H119","v":0},0,{"$f":"E119*J119","v":0},null,null,null,2,null,null,null,null,null,null,null,null,null,null,null,1,1,1,null,null,null,null,null,null,null,null,null,null,null,null,null,null,null,null,null,null,null,null,null,null,1,{"$f":"IF(AZ119=1,G119,0)","v":0},{"$f":"IF(AZ119=2,G119,0)","v":0},{"$f":"IF(AZ119=3,G119,0)","v":0},{"$f":"IF(AZ119=4,G119,0)","v":0},{"$f":"IF(AZ119=5,G119,0)","v":0},null,null,null,null,null,null,null,null,null,null,null,null,null,null,null,null,null,null,null,null,null,1,1]
[null,null,"Řad TLT DN150 a PE D 90x8,2 mm:",null,0,null,null,null,null,null,null,null,"Řad TLT DN150 a PE D 90x8,2 mm:"]
[null,null,"Propoj do AŠ TLT DN80:7,20*2+0,80",null,15.2,null,null,null,null,null,null,null,"Propoj do AŠ TLT DN80:7,20*2+0,80"]
[null,null,"Propoj do AŠ TLT DN100:(4,50+6,00)*2+0,80*2",null,22.6,null,null,null,null,null,null,null,"Propoj do AŠ TLT DN100:(4,50+6,00)*2+0,80*2"]
[null,null,"Řad TLT DN150 :46,10*2",null,92.2,null,null,null,null,null,null,null,"Řad TLT DN150 :46,10*2"]
[null,null,"Propoj na TLT DN150:10,00*2+0,80",null,20.8,null,null,null,null,null,null,null,"Propoj na TLT DN150:10,00*2+0,80"]
[null,null,"Propoj do AŠ TLT DN150:10,00*2+0,80",null,20.8,null,null,null,null,null,null,null,"Propoj do AŠ TLT DN150:10,00*2+0,80"]
[null,null,"AŠ:(4,30+2,90)*2",null,14.4,null,null,null,null,null,null,null,"AŠ:(4,30+2,90)*2"]
[null,null,"Prodloužení řadu PE D 90x8,2 mm:18,70*2+0,80",null,38.200000000000003,null,null,null,null,null,null,null,"Prodloužení řadu PE D 90x8,2 mm:18,70*2+0,80"]
[15,"979082113RSZ","Vodorovná doprava suti po suchu na skládku zhotovitele","t",83.133600000000001,null,{"$f":"E128*F128","v":0},0,{"$f":"E128*H128","v":0},0,{"$f":"E128*J128","v":0},null,null,null,2,null,null,null,null,null,null,null,null,null,null,null,1,1,1,null,null,null,null,null,null,null,null,null,null,null,null,null,null,null,null,null,null,null,null,null,null,1,{"$f":"IF(AZ128=1,G128,0)","v":0},{"$f":"IF(AZ128=2,G128,0)","v":0},{"$f":"IF(AZ128=3,G128,0)","v":0},{"$f":"IF(AZ128=4,G128,0)","v":0},{"$f":"IF(AZ128=5,G128,0)","v":0},null,null,null,null,null,null,null,null,null,null,null,null,null,null,null,null,null,null,null,null,null,1,1]
[16,"979089001R00","Poplatek za skládku stavební suti štěrky z komunikací, skupina odpadu 010408","t",51.958500000000001,null,{"$f":"E129*F129","v":0},0,{"$f":"E129*H129","v":0},0,{"$f":"E129*J129","v":0},null,null,null,2,null,null,null,null,null,null,null,null,null,null,null,1,1,1,null,null,null,null,null,null,null,null,null,null,null,null,null,null,null,null,null,null,null,null,null,null,1,{"$f":"IF(AZ129=1,G129,0)","v":0},{"$f":"IF(AZ129=2,G129,0)","v":0},{"$f":"IF(AZ129=3,G129,0)","v":0},{"$f":"IF(AZ129=4,G129,0)","v":0},{"$f":"IF(AZ129=5,G129,0)","v":0},null,null,null,null,null,null,null,null,null,null,null,null,null,null,null,null,null,null,null,null,null,1,1]
[17,"979999995R00","Poplatek za reciklaci asfaltu, kusovost do 1600cm2 skupina 170302","t",31.1751,null,{"$f":"E130*F130","v":0},0,{"$f":"E130*H130","v":0},0,{"$f":"E130*J130","v":0},null,null,null,2,null,null,null,null,null,null,null,null,null,null,null,1,1,1,null,null,null,null,null,null,null,null,null,null,null,null,null,null,null,null,null,null,null,null,null,null,1,{"$f":"IF(AZ130=1,G130,0)","v":0},{"$f":"IF(AZ130=2,G130,0)","v":0},{"$f":"IF(AZ130=3,G130,0)","v":0},{"$f":"IF(AZ130=4,G130,0)","v":0},{"$f":"IF(AZ130=5,G130,0)","v":0},null,null,null,null,null,null,null,null,null,null,null,null,null,null,null,null,null,null,null,null,null,1,1]
[null,null,"Položka je určena pro suť o velikosti kusu do 30x30 cm (technologický materiál určený k recyklaci).",null,null,null,null,null,null,null,null,"Položka je určena pro suť o velikosti kusu do 30x30 cm (technologický materiál určený k recyklaci).",null,null,3]
[18,"58337308.R","Štěrkopísek frakce 0-2 tř.B","t",67.301500000000004,null,{"$f":"E132*F132","v":0},1,{"$f":"E132*H132","v":67.301500000000004},null,{"$f":"E132*J132","v":0},null,null,null,2,null,null,null,null,null,null,null,null,null,null,null,3,1,"58337308.R",null,null,null,null,null,null,null,null,null,null,null,null,null,null,null,null,null,null,null,null,null,null,1,{"$f":"IF(AZ132=1,G132,0)","v":0},{"$f":"IF(AZ132=2,G132,0)","v":0},{"$f":"IF(AZ132=3,G132,0)","v":0},{"$f":"IF(AZ132=4,G132,0)","v":0},{"$f":"IF(AZ132=5,G132,0)","v":0},null,null,null,null,null,null,null,null,null,null,null,null,null,null,null,null,null,null,null,null,null,3,1]
[null,null,"Řad TLT DN150 a PE D 90x8,2 mm:",null,0,null,null,null,null,null,null,null,"Řad TLT DN150 a PE D 90x8,2 mm:"]
[null,null,"Propoj do AŠ TLT DN80:7,20*(0,80*(0,08+0,30)-0,04^2*Pi)*1,973*1,01",null,4.2896000000000001,null,null,null,null,null,null,null,"Propoj do AŠ TLT DN80:7,20*(0,80*(0,08+0,30)-0,04^2*Pi)*1,973*1,01"]
[null,null,"Propoj do AŠ TLT DN100:(4,50+6,00)*(0,80*(0,10+0,30)-0,05^2*Pi)*1,973*1,01",null,6.5312000000000001,null,null,null,null,null,null,null,"Propoj do AŠ TLT DN100:(4,50+6,00)*(0,80*(0,10+0,30)-0,05^2*Pi)*1,973*1,01"]
[null,null,"Řad TLT DN150 :46,10*(0,80*(0,15+0,30)-0,075^2*Pi)*1,973*1,01",null,31.448,null,null,null,null,null,null,null,"Řad TLT DN150 :46,10*(0,80*(0,15+0,30)-0,075^2*Pi)*1,973*1,01"]
[null,null,"Propoj na TLT DN150:10,00*(0,80*(0,15+0,30)-0,075^2*Pi)*1,973*1,01",null,6.8216999999999999,null,null,null,null,null,null,null,"Propoj na TLT DN150:10,00*(0,80*(0,15+0,30)-0,075^2*Pi)*1,973*1,01"]
[null,null,"Propoj do AŠ TLT DN150:10,00*(0,80*(0,15+0,30)-0,075^2*Pi)*1,973*1,01",null,6.8216999999999999,null,null,null,null,null,null,null,"Propoj do AŠ TLT DN150:10,00*(0,80*(0,15+0,30)-0,075^2*Pi)*1,973*1,01"]
[null,null,"Prodloužení řadu PE D 90x8,2 mm:18,70*(0,80*(0,09+0,30)-0,045^2*Pi)*1,973*1,01",null,11.3893,null,null,null,null,null,null,null,"Prodloužení řadu PE D 90x8,2 mm:18,70*(0,80*(0,09+0,30)-0,045^2*Pi)*1,973*1,01"]
[19,"58344197R","Štěrkodrtě frakce 0-63 A","t",151.59450000000001,null,{"$f":"E140*F140","v":0},1,{"$f":"E140*H140","v":151.59450000000001},null,{"$f":"E140*J140","v":0},null,null,null,2,null,null,null,null,null,null,null,null,null,null,null,3,1,"58344197R",null,null,null,null,null,null,null,null,null,null,null,null,null,null,null,null,null,null,null,null,null,null,1,{"$f":"IF(AZ140=1,G140,0)","v":0},{"$f":"IF(AZ140=2,G140,0)","v":0},{"$f":"IF(AZ140=3,G140,0)","v":0},{"$f":"IF(AZ140=4,G140,0)","v":0},{"$f":"IF(AZ140=5,G140,0)","v":0},null,null,null,null,null,null,null,null,null,null,null,null,null,null,null,null,null,null,null,null,null,3,1]
[null,null,"Zásypy ŠD fr. 0-63 mm:80,1354*1,873*1,01",null,151.59450000000001,null,null,null,null,null,null,null,"Zásypy ŠD fr. 0-63 mm:80,1354*1,873*1,01"]
[null,null,"Začátek provozního součtu",null,0,null,null,null,null,null,null,null,"Začátek provozního součtu"]
[null,null,"Řad TLT DN150 a PE D 90x8,2 mm:",null,0,null,null,null,null,null,null,null,"Řad TLT DN150 a PE D 90x8,2 mm:"]
[null,null,"Výkopy:",null,0,null,null,null,null,null,null,null,"Výkopy:"]
[null,null,"V hornině tř. 3 - 4:141,6445",null,141.64449999999999,null,null,null,null,null,null,null,"V hornině tř. 3 - 4:141,6445"]
[null,null,"Odpočet lože, potrubí a obsypů:",null,0,null,null,null,null,null,null,null,"Odpočet lože, potrubí a obsypů:"]
[null,null,"Řad TLT DN150 a PE D 90x8,2 mm:",null,0,null,null,null,null,null,null,null,"Řad TLT DN150 a PE D 90x8,2 mm:"]
[null,null,"Propoj do AŠ TLT DN80:-7,20*0,80*(0,15+0,08+0,30)",null,-3.0528,null,null,null,null,null,null,null,"Propoj do AŠ TLT DN80:-7,20*0,80*(0,15+0,08+0,30)"]
[null,null,"Propoj do AŠ TLT DN100:-(4,50+6,00)*0,80*(0,15+0,10+0,30)",null,-4.62,null,null,null,null,null,null,null,"Propoj do AŠ TLT DN100:-(4,50+6,00)*0,80*(0,15+0,10+0,30)"]
[null,null,"Řad TLT DN150 :-46,10*0,80*(0,15+0,15+0,30)",null,-22.128,null,null,null,null,null,null,null,"Řad TLT DN150 :-46,10*0,80*(0,15+0,15+0,30)"]
[null,null,"Propoj na TLT DN150:-10,00*0,80*(0,15+0,15+0,30)",null,-4.8,null,null,null,null,null,null,null,"Propoj na TLT DN150:-10,00*0,80*(0,15+0,15+0,30)"]
[null,null,"Propoj do AŠ TLT DN150:-10,00*0,80*(0,15+0,15+0,30)",null,-4.8,null,null,null,null,null,null,null,"Propoj do AŠ TLT DN150:-10,00*0,80*(0,15+0,15+0,30)"]
[null,null,"Prodloužení řadu PE D 90x8,2 mm:-18,70*0,80*(0,15+0,09+0,30)",null,-8.0784000000000002,null,null,null,null,null,null,null,"Prodloužení řadu PE D 90x8,2 mm:-18,70*0,80*(0,15+0,09+0,30)"]
[null,null,"AŠ:-4,30*2,90*0,15-3,30*1,90*1,92-1,10*1,10*0,10",null,-14.0299,null,null,null,null,null,null,null,"AŠ:-4,30*2,90*0,15-3,30*1,90*1,92-1,10*1,10*0,10"]
[null,null,"Konec provozního součtu",null,80.135400000000004,null,null,null,null,null,null,null,"Konec provozního součtu"]
[null,"Celkem za","1 Zemní práce",null,null,null,{"$f":"SUM(G7:G155)","v":0},null,{"$f":"SUM(I7:I155)","v":219.27863500000001},null,{"$f":"SUM(K7:K155)","v":-83.133600000000001},null,null,null,4,null,null,null,null,null,null,null,null,null,null,null,null,null,null,null,null,null,null,null,null,null,null,null,null,null,null,null,null,null,null,null,null,null,null,null,null,null,{"$f":"SUM(BA7:BA155)","v":0},{"$f":"SUM(BB7:BB155)","v":0},{"$f":"SUM(BC7:BC155)","v":0},{"$f":"SUM(BD7:BD155)","v":0},{"$f":"SUM(BE7:BE155)","v":0}]
["Díl:","45","Podkladní a vedlejší konstrukce",null,null,null,null,null,null,null,null,null,null,null,1]
[20,"451572111R00","Lože pod potrubí z kameniva těženého 0 - 4 mm ","m3",12.3,null,{"$f":"E158*F158","v":0},0.43051,{"$f":"E158*H158","v":5.2952730000000008},0,{"$f":"E158*J158","v":0},null,null,null,2,null,null,null,null,null,null,null,null,null,null,null,1,1,1,null,null,null,null,null,null,null,null,null,null,null,null,null,null,null,null,null,null,null,null,null,null,1,{"$f":"IF(AZ158=1,G158,0)","v":0},{"$f":"IF(AZ158=2,G158,0)","v":0},{"$f":"IF(AZ158=3,G158,0)","v":0},{"$f":"IF(AZ158=4,G158,0)","v":0},{"$f":"IF(AZ158=5,G158,0)","v":0},null,null,null,null,null,null,null,null,null,null,null,null,null,null,null,null,null,null,null,null,null,1,1]
[null,null,"Řad TLT DN150 a PE D 90x8,2 mm:",null,0,null,null,null,null,null,null,null,"Řad TLT DN150 a PE D 90x8,2 mm:"]
[null,null,"Propoj do AŠ TLT DN80:7,20*0,80*0,15",null,0.86399999999999999,null,null,null,null,null,null,null,"Propoj do AŠ TLT DN80:7,20*0,80*0,15"]
[null,null,"Propoj do AŠ TLT DN100:(4,50+6,00)*0,80*0,15",null,1.26,null,null,null,null,null,null,null,"Propoj do AŠ TLT DN100:(4,50+6,00)*0,80*0,15"]
[null,null,"Řad TLT DN150 :46,10*0,80*0,15",null,5.532,null,null,null,null,null,null,null,"Řad TLT DN150 :46,10*0,80*0,15"]
[null,null,"Propoj na TLT DN150:10,00*0,80*0,15",null,1.2,null,null,null,null,null,null,null,"Propoj na TLT DN150:10,00*0,80*0,15"]
[null,null,"Propoj do AŠ TLT DN150:10,00*0,80*0,15",null,1.2,null,null,null,null,null,null,null,"Propoj do AŠ TLT DN150:10,00*0,80*0,15"]
[null,null,"Prodloužení řadu PE D 90x8,2 mm:18,70*0,80*0,15",null,2.2440000000000002,null,null,null,null,null,null,null,"Prodloužení řadu PE D 90x8,2 mm:18,70*0,80*0,15"]
[21,"452313141R00","Bloky pro potrubí z betonu C 16/20 vč. bednění ","m3",1.6579999999999999,null,{"$f":"E166*F166","v":0},2.5,{"$f":"E166*H166","v":4.1449999999999996},0,{"$f":"E166*J166","v":0},null,null,null,2,null,null,null,null,null,null,null,null,null,null,null,1,1,1,null,null,null,null,null,null,null,null,null,null,null,null,null,null,null,null,null,null,null,null,null,null,1,{"$f":"IF(AZ166=1,G166,0)","v":0},{"$f":"IF(AZ166=2,G166,0)","v":0},{"$f":"IF(AZ166=3,G166,0)","v":0},{"$f":"IF(AZ166=4,G166,0)","v":0},{"$f":"IF(AZ166=5,G166,0)","v":0},null,null,null,null,null,null,null,null,null,null,null,null,null,null,null,null,null,null,null,null,null,1,1]
[null,"Celkem za","45 Podkladní a vedlejší konstrukce",null,null,null,{"$f":"SUM(G157:G166)","v":0},null,{"$f":"SUM(I157:I166)","v":9.4402730000000012},null,{"$f":"SUM(K157:K166)","v":0},null,null,null,4,null,null,null,null,null,null,null,null,null,null,null,null,null,null,null,null,null,null,null,null,null,null,null,null,null,null,null,null,null,null,null,null,null,null,null,null,null,{"$f":"SUM(BA157:BA166)","v":0},{"$f":"SUM(BB157:BB166)","v":0},{"$f":"SUM(BC157:BC166)","v":0},{"$f":"SUM(BD157:BD166)","v":0},{"$f":"SUM(BE157:BE166)","v":0}]
["Díl:","5","Komunikace",null,null,null,null,null,null,null,null,null,null,null,1]
[22,"566903111R00","Vyspravení podkladu po překopech kam.hrubě drceným ","t",69.278499999999994,null,{"$f":"E169*F169","v":0},1.1000000000000001,{"$f":"E169*H169","v":76.20635},0,{"$f":"E169*J169","v":0},null,null,null,2,null,null,null,null,null,null,null,null,null,null,null,1,1,1,null,null,null,null,null,null,null,null,null,null,null,null,null,null,null,null,null,null,null,null,null,null,1,{"$f":"IF(AZ169=1,G169,0)","v":0},{"$f":"IF(AZ169=2,G169,0)","v":0},{"$f":"IF(AZ169=3,G169,0)","v":0},{"$f":"IF(AZ169=4,G169,0)","v":0},{"$f":"IF(AZ169=5,G169,0)","v":0},null,null,null,null,null,null,null,null,null,null,null,null,null,null,null,null,null,null,null,null,null,1,1]
[null,null,"Řad TLT DN150 a PE D 90x8,2 mm:",null,0,null,null,null,null,null,null,null,"Řad TLT DN150 a PE D 90x8,2 mm:"]
[null,null,"Propoj do AŠ TLT DN80:7,20*0,80*0,40*1,873",null,4.3154000000000003,null,null,null,null,null,null,null,"Propoj do AŠ TLT DN80:7,20*0,80*0,40*1,873"]
[null,null,"Propoj do AŠ TLT DN100:(4,50+6,00)*0,80*0,40*1,873",null,6.2933000000000003,null,null,null,null,null,null,null,"Propoj do AŠ TLT DN100:(4,50+6,00)*0,80*0,40*1,873"]
[null,null,"Řad TLT DN150 :46,10*0,80*0,40*1,873",null,27.630500000000001,null,null,null,null,null,null,null,"Řad TLT DN150 :46,10*0,80*0,40*1,873"]
[null,null,"Propoj na TLT DN150:10,00*0,80*0,40*1,873",null,5.9935999999999998,null,null,null,null,null,null,null,"Propoj na TLT DN150:10,00*0,80*0,40*1,873"]
[null,null,"Propoj do AŠ TLT DN150:10,00*0,80*0,40*1,873",null,5.9935999999999998,null,null,null,null,null,null,null,"Propoj do AŠ TLT DN150:10,00*0,80*0,40*1,873"]
[null,null,"Prodloužení řadu PE D 90x8,2 mm:18,70*0,80*0,40*1,873",null,11.208,null,null,null,null,null,null,null,"Prodloužení řadu PE D 90x8,2 mm:18,70*0,80*0,40*1,873"]
[null,null,"AŠ:4,30*2,90*0,40*1,873",null,9.3424999999999994,null,null,null,null,null,null,null,"AŠ:4,30*2,90*0,40*1,873"]
[null,null,"Odpočet podílu panelové plochy parkoviště (manipulace s panely počítána v SO320):-5,00*0,80*0,20*1,873",null,-1.4984,null,null,null,null,null,null,null,"Odpočet podílu panelové plochy parkoviště (manipulace s panely počítána v SO320):-5,00*0,80*0,20*1,873"]
[null,"Celkem za","5 Komunikace",null,null,null,{"$f":"SUM(G168:G178)","v":0},null,{"$f":"SUM(I168:I178)","v":76.20635},null,{"$f":"SUM(K168:K178)","v":0},null,null,null,4,null,null,null,null,null,null,null,null,null,null,null,null,null,null,null,null,null,null,null,null,null,null,null,null,null,null,null,null,null,null,null,null,null,null,null,null,null,{"$f":"SUM(BA168:BA178)","v":0},{"$f":"SUM(BB168:BB178)","v":0},{"$f":"SUM(BC168:BC178)","v":0},{"$f":"SUM(BD168:BD178)","v":0},{"$f":"SUM(BE168:BE178)","v":0}]
["Díl:","8","Trubní vedení",null,null,null,null,null,null,null,null,null,null,null,1]
[23,"850245121R00","Výřez nebo výsek na potrubí litinovém DN 80 ","kus",1,null,{"$f":"E181*F181","v":0},0,{"$f":"E181*H181","v":0},0,{"$f":"E181*J181","v":0},null,null,null,2,null,null,null,null,null,null,null,null,null,null,null,1,1,1,null,null,null,null,null,null,null,null,null,null,null,null,null,null,null,null,null,null,null,null,null,null,1,{"$f":"IF(AZ181=1,G181,0)","v":0},{"$f":"IF(AZ181=2,G181,0)","v":0},{"$f":"IF(AZ181=3,G181,0)","v":0},{"$f":"IF(AZ181=4,G181,0)","v":0},{"$f":"IF(AZ181=5,G181,0)","v":0},null,null,null,null,null,null,null,null,null,null,null,null,null,null,null,null,null,null,null,null,null,1,1]
[null,null,"Položky výřezu nebo výseku na potrubí z trub litinových tlakových jsou určeny pro dva řezy nebo seky prováděné na potrubí dodatečně. V položkách jsou zakalkulovány náklady na",null,null,null,null,null,null,null,null,"Položky výřezu nebo výseku na potrubí z trub litinových tlakových jsou určeny pro dva řezy nebo seky prováděné na potrubí dodatečně. V položkách jsou zakalkulovány náklady na",null,null,3]
[null,null,"- ohlášení uzavírání vody",null,null,null,null,null,null,null,null,"- ohlášení uzavírání vody",null,null,3]
[null,null,"- uzavření a otevření šoupat",null,null,null,null,null,null,null,null,"- uzavření a otevření šoupat",null,null,3]
[null,null,"- vypuštění a napuštění vody",null,null,null,null,null,null,null,null,"- vypuštění a napuštění vody",null,null,3]
[null,null,"- odvzdušnění potrubí",null,null,null,null,null,null,null,null,"- odvzdušnění potrubí",null,null,3]
[null,null,"- strojní nebo ruční výřez potrubí",null,null,null,null,null,null,null,null,"- strojní nebo ruční výřez potrubí",null,null,3]
[null,null,"- nutné úpravy výkopu v prostoru provádění",null,null,null,null,null,null,null,null,"- nutné úpravy výkopu v prostoru provádění",null,null,3]
[null,null,"- montáž tvarovky",null,null,null,null,null,null,null,null,"- montáž tvarovky",null,null,3]
[null,null,"Řad TLT DN150 a PE D 90x8,2 mm:",null,0,null,null,null,null,null,null,null,"Řad TLT DN150 a PE D 90x8,2 mm:"]
[null,null,"Výřez na TLT DN80:1",null,1,null,null,null,null,null,null,null,"Výřez na TLT DN80:1"]
[24,"850265121R00","Výřez nebo výsek na potrubí litinovém DN 100 ","kus",2,null,{"$f":"E192*F192","v":0},0,{"$f":"E192*H192","v":0},0,{"$f":"E192*J192","v":0},null,null,null,2,null,null,null,null,null,null,null,null,null,null,null,1,1,1,null,null,null,null,null,null,null,null,null,null,null,null,null,null,null,null,null,null,null,null,null,null,1,{"$f":"IF(AZ192=1,G192,0)","v":0},{"$f":"IF(AZ192=2,G192,0)","v":0},{"$f":"IF(AZ192=3,G192,0)","v":0},{"$f":"IF(AZ192=4,G192,0)","v":0},{"$f":"IF(AZ192=5,G192,0)","v":0},null,null,null,null,null,null,null,null,null,null,null,null,null,null,null,null,null,null,null,null,null,1,1]
[null,null,"Položky výřezu nebo výseku na potrubí z trub litinových tlakových jsou určeny pro dva řezy nebo seky prováděné na potrubí dodatečně. V položkách jsou zakalkulovány náklady na",null,null,null,null,null,null,null,null,"Položky výřezu nebo výseku na potrubí z trub litinových tlakových jsou určeny pro dva řezy nebo seky prováděné na potrubí dodatečně. V položkách jsou zakalkulovány náklady na",null,null,3]
[null,null,"- ohlášení uzavírání vody",null,null,null,null,null,null,null,null,"- ohlášení uzavírání vody",null,null,3]
[null,null,"- uzavření a otevření šoupat",null,null,null,null,null,null,null,null,"- uzavření a otevření šoupat",null,null,3]
[null,null,"- vypuštění a napuštění vody",null,null,null,null,null,null,null,null,"- vypuštění a napuštění vody",null,null,3]
[null,null,"- odvzdušnění potrubí",null,null,null,null,null,null,null,null,"- odvzdušnění potrubí",null,null,3]
[null,null,"- strojní nebo ruční výřez potrubí",null,null,null,null,null,null,null,null,"- strojní nebo ruční výřez potrubí",null,null,3]
[null,null,"- nutné úpravy výkopu v prostoru provádění",null,null,null,null,null,null,null,null,"- nutné úpravy výkopu v prostoru provádění",null,null,3]
[null,null,"- montáž tvarovky",null,null,null,null,null,null,null,null,"- montáž tvarovky",null,null,3]
[null,null,"Řad TLT DN150 a PE D 90x8,2 mm:",null,0,null,null,null,null,null,null,null,"Řad TLT DN150 a PE D 90x8,2 mm:"]
[null,null,"Výřez na TLT DN100:2",null,2,null,null,null,null,null,null,null,"Výřez na TLT DN100:2"]
[25,"850315121R00","Výřez nebo výsek na potrubí litinovém DN 150 ","kus",2,null,{"$f":"E203*F203","v":0},0,{"$f":"E203*H203","v":0},0,{"$f":"E203*J203","v":0},null,null,null,2,null,null,null,null,null,null,null,null,null,null,null,1,1,1,null,null,null,null,null,null,null,null,null,null,null,null,null,null,null,null,null,null,null,null,null,null,1,{"$f":"IF(AZ203=1,G203,0)","v":0},{"$f":"IF(AZ203=2,G203,0)","v":0},{"$f":"IF(AZ203=3,G203,0)","v":0},{"$f":"IF(AZ203=4,G203,0)","v":0},{"$f":"IF(AZ203=5,G203,0)","v":0},null,null,null,null,null,null,null,null,null,null,null,null,null,null,null,null,null,null,null,null,null,1,1]
[null,null,"Řad TLT DN150 a PE D 90x8,2 mm:",null,0,null,null,null,null,null,null,null,"Řad TLT DN150 a PE D 90x8,2 mm:"]
[null,null,"Výřez na TLT DN150:2",null,2,null,null,null,null,null,null,null,"Výřez na TLT DN150:2"]
[26,"850446191RRX","Odstavení stávajícího řadu na potrubí DN 80-150 ","kus",2,null,{"$f":"E206*F206","v":0},0,{"$f":"E206*H206","v":0},0,{"$f":"E206*J206","v":0},null,null,null,2,null,null,null,null,null,null,null,null,null,null,null,1,1,1,null,null,null,null,null,null,null,null,null,null,null,null,null,null,null,null,null,null,null,null,null,null,1,{"$f":"IF(AZ206=1,G206,0)","v":0},{"$f":"IF(AZ206=2,G206,0)","v":0},{"$f":"IF(AZ206=3,G206,0)","v":0},{"$f":"IF(AZ206=4,G206,0)","v":0},{"$f":"IF(AZ206=5,G206,0)","v":0},null,null,null,null,null,null,null,null,null,null,null,null,null,null,null,null,null,null,null,null,null,1,1]
[null,null,"Součástí položky jsou i potředné zemní práce, přerušení stávajícího potrubí a jeho zaslepení a zajištění ze dvou stran včetně dodávky zaslepovacích tvarovek.",null,null,null,null,null,null,null,null,"Součástí položky jsou i potředné zemní práce, přerušení stávajícího potrubí a jeho zaslepení a zajištění ze dvou stran včetně dodávky zaslepovacích tvarovek.",null,null,3]
[27,"851601101RT1","Montáž potrubí tlakového tvárná litina DN 80 hrdlové, pružný spoj, ve výkopu","m",7.2,null,{"$f":"E208*F208","v":0},0,{"$f":"E208*H208","v":0},0,{"$f":"E208*J208","v":0},null,null,null,2,null,null,null,null,null,null,null,null,null,null,null,1,1,1,null,null,null,null,null,null,null,null,null,null,null,null,null,null,null,null,null,null,null,null,null,null,1,{"$f":"IF(AZ208=1,G208,0)","v":0},{"$f":"IF(AZ208=2,G208,0)","v":0},{"$f":"IF(AZ208=3,G208,0)","v":0},{"$f":"IF(AZ208=4,G208,0)","v":0},{"$f":"IF(AZ208=5,G208,0)","v":0},null,null,null,null,null,null,null,null,null,null,null,null,null,null,null,null,null,null,null,null,null,1,1]
[null,null,"Řad TLT DN150 a PE D 90x8,2 mm:",null,0,null,null,null,null,null,null,null,"Řad TLT DN150 a PE D 90x8,2 mm:"]
[null,null,"Propoj do AŠ TLT DN80:7,20",null,7.2,null,null,null,null,null,null,null,"Propoj do AŠ TLT DN80:7,20"]
[28,"851601102RT1","Montáž potrubí tlakového, tvárná litina DN 100 hrdlové, pružný spoj, ve výkopu","m",10.5,null,{"$f":"E211*F211","v":0},0,{"$f":"E211*H211","v":0},0,{"$f":"E211*J211","v":0},null,null,null,2,null,null,null,null,null,null,null,null,null,null,null,1,1,1,null,null,null,null,null,null,null,null,null,null,null,null,null,null,null,null,null,null,null,null,null,null,1,{"$f":"IF(AZ211=1,G211,0)","v":0},{"$f":"IF(AZ211=2,G211,0)","v":0},{"$f":"IF(AZ211=3,G211,0)","v":0},{"$f":"IF(AZ211=4,G211,0)","v":0},{"$f":"IF(AZ211=5,G211,0)","v":0},null,null,null,null,null,null,null,null,null,null,null,null,null,null,null,null,null,null,null,null,null,1,1]
[null,null,"Řad TLT DN150 a PE D 90x8,2 mm:",null,0,null,null,null,null,null,null,null,"Řad TLT DN150 a PE D 90x8,2 mm:"]
[null,null,"Propoj do AŠ TLT DN100:4,50+6,00",null,10.5,null,null,null,null,null,null,null,"Propoj do AŠ TLT DN100:4,50+6,00"]
[29,"851601104RT1","Montáž potrubí tlakového, tvárná litina DN 150 hrdlové, pružný spoj, ve výkopu","m",66.099999999999994,null,{"$f":"E214*F214","v":0},0,{"$f":"E214*H214","v":0},0,{"$f":"E214*J214","v":0},null,null,null,2,null,null,null,null,null,null,null,null,null,null,null,1,1,1,null,null,null,null,null,null,null,null,null,null,null,null,null,null,null,null,null,null,null,null,null,null,1,{"$f":"IF(AZ214=1,G214,0)","v":0},{"$f":"IF(AZ214=2,G214,0)","v":0},{"$f":"IF(AZ214=3,G214,0)","v":0},{"$f":"IF(AZ214=4,G214,0)","v":0},{"$f":"IF(AZ214=5,G214,0)","v":0},null,null,null,null,null,null,null,null,null,null,null,null,null,null,null,null,null,null,null,null,null,1,1]
[null,null,"Řad TLT DN150 a PE D 90x8,2 mm:",null,0,null,null,null,null,null,null,null,"Řad TLT DN150 a PE D 90x8,2 mm:"]
[null,null,"Řad TLT DN150 :46,10",null,46.1,null,null,null,null,null,null,null,"Řad TLT DN150 :46,10"]
[null,null,"Propoj na TLT DN150:10,00",null,10,null,null,null,null,null,null,null,"Propoj na TLT DN150:10,00"]
[null,null,"Propoj do AŠ TLT DN150:10,00",null,10,null,null,null,null,null,null,null,"Propoj do AŠ TLT DN150:10,00"]
[30,"857242121R00","Montáž tvarovek litin. jednoos.přír. výkop DN 80 včetně nerezových spoj. prvků a obandážování spoje","kus",10,null,{"$f":"E219*F219","v":0},2.2000000000000001E-4,{"$f":"E219*H219","v":2.2000000000000001E-3},0,{"$f":"E219*J219","v":0},null,null,null,2,null,null,null,null,null,null,null,null,null,null,null,1,1,1,null,null,null,null,null,null,null,null,null,null,null,null,null,null,null,null,null,null,null,null,null,null,1,{"$f":"IF(AZ219=1,G219,0)","v":0},{"$f":"IF(AZ219=2,G219,0)","v":0},{"$f":"IF(AZ219=3,G219,0)","v":0},{"$f":"IF(AZ219=4,G219,0)","v":0},{"$f":"IF(AZ219=5,G219,0)","v":0},null,null,null,null,null,null,null,null,null,null,null,null,null,null,null,null,null,null,null,null,null,1,1]
[null,null,"Položka je určena pro montáž litinových tvarovek na potrubí litinovém tlakovém přírubovém jednoosých v otevřeném výkopu, v otevřeném kanálu nebo v šachtě.",null,null,null,null,null,null,null,null,"Položka je určena pro montáž litinových tvarovek na potrubí litinovém tlakovém přírubovém jednoosých v otevřeném výkopu, v otevřeném kanálu nebo v šachtě.",null,null,3]
[null,null,"Řad TLT DN150 a PE D 90x8,2 mm:",null,0,null,null,null,null,null,null,null,"Řad TLT DN150 a PE D 90x8,2 mm:"]
[null,null,"Řady a propoje:",null,0,null,null,null,null,null,null,null,"Řady a propoje:"]
[null,null,"Synoflex s přírubou DN80:1",null,1,null,null,null,null,null,null,null,"Synoflex s přírubou DN80:1"]
[null,null,"FF DN80/600:1",null,1,null,null,null,null,null,null,null,"FF DN80/600:1"]
[null,null,"EU DN80:1",null,1,null,null,null,null,null,null,null,"EU DN80:1"]
[null,null,"F DN80:2",null,2,null,null,null,null,null,null,null,"F DN80:2"]
[null,null,"PPL DN80:2",null,2,null,null,null,null,null,null,null,"PPL DN80:2"]
[null,null,"LN + TP D90/DN80:2",null,2,null,null,null,null,null,null,null,"LN + TP D90/DN80:2"]
[null,null,"AŠ:",null,0,null,null,null,null,null,null,null,"AŠ:"]
[null,null,"XG DN80/2\":1",null,1,null,null,null,null,null,null,null,"XG DN80/2\":1"]
[31,"857262121R00","Montáž tvarovek litin. jednoos. přír. výkop DN 100 včetně nerezových spoj. prvků a obandážování spoje","kus",8,null,{"$f":"E231*F231","v":0},4.0999999999999999E-4,{"$f":"E231*H231","v":3.2799999999999999E-3},0,{"$f":"E231*J231","v":0},null,null,null,2,null,null,null,null,null,null,null,null,null,null,null,1,1,1,null,null,null,null,null,null,null,null,null,null,null,null,null,null,null,null,null,null,null,null,null,null,1,{"$f":"IF(AZ231=1,G231,0)","v":0},{"$f":"IF(AZ231=2,G231,0)","v":0},{"$f":"IF(AZ231=3,G231,0)","v":0},{"$f":"IF(AZ231=4,G231,0)","v":0},{"$f":"IF(AZ231=5,G231,0)","v":0},null,null,null,null,null,null,null,null,null,null,null,null,null,null,null,null,null,null,null,null,null,1,1]
[null,null,"Položka je určena pro montáž litinových tvarovek na potrubí litinovém tlakovém přírubovém jednoosých v otevřeném výkopu, v otevřeném kanálu nebo v šachtě.",null,null,null,null,null,null,null,null,"Položka je určena pro montáž litinových tvarovek na potrubí litinovém tlakovém přírubovém jednoosých v otevřeném výkopu, v otevřeném kanálu nebo v šachtě.",null,null,3]
[null,null,"Řad TLT DN150 a PE D 90x8,2 mm:",null,0,null,null,null,null,null,null,null,"Řad TLT DN150 a PE D 90x8,2 mm:"]
[null,null,"Řady a propoje:",null,0,null,null,null,null,null,null,null,"Řady a propoje:"]
[null,null,"Synoflex s přírubou DN100:2",null,2,null,null,null,null,null,null,null,"Synoflex s přírubou DN100:2"]
[null,null,"EU DN100:2",null,2,null,null,null,null,null,null,null,"EU DN100:2"]
[null,null,"F DN100:2",null,2,null,null,null,null,null,null,null,"F DN100:2"]
[null,null,"FF DN100/400:1",null,1,null,null,null,null,null,null,null,"FF DN100/400:1"]
[null,null,"FF DN100/600:1",null,1,null,null,null,null,null,null,null,"FF DN100/600:1"]
[32,"857312121R00","Montáž tvarovek litin. jednoos. přír. výkop DN 150 včetně nerezových spoj. prvků a obandážování spoje","kus",17,null,{"$f":"E240*F240","v":0},2.7799999999999999E-3,{"$f":"E240*H240","v":4.7259999999999996E-2},0,{"$f":"E240*J240","v":0},null,null,null,2,null,null,null,null,null,null,null,null,null,null,null,1,1,1,null,null,null,null,null,null,null,null,null,null,null,null,null,null,null,null,null,null,null,null,null,null,1,{"$f":"IF(AZ240=1,G240,0)","v":0},{"$f":"IF(AZ240=2,G240,0)","v":0},{"$f":"IF(AZ240=3,G240,0)","v":0},{"$f":"IF(AZ240=4,G240,0)","v":0},{"$f":"IF(AZ240=5,G240,0)","v":0},null,null,null,null,null,null,null,null,null,null,null,null,null,null,null,null,null,null,null,null,null,1,1]
[null,null,"Položka je určena pro montáž litinových tvarovek na potrubí litinovém tlakovém přírubovém jednoosých v otevřeném výkopu, v otevřeném kanálu nebo v šachtě.",null,null,null,null,null,null,null,null,"Položka je určena pro montáž litinových tvarovek na potrubí litinovém tlakovém přírubovém jednoosých v otevřeném výkopu, v otevřeném kanálu nebo v šachtě.",null,null,3]
[null,null,"Řad TLT DN150 a PE D 90x8,2 mm:",null,0,null,null,null,null,null,null,null,"Řad TLT DN150 a PE D 90x8,2 mm:"]
[null,null,"Řady a propoje:",null,0,null,null,null,null,null,null,null,"Řady a propoje:"]
[null,null,"Synoflex s přírubou DN150:2",null,2,null,null,null,null,null,null,null,"Synoflex s přírubou DN150:2"]
[null,null,"FF DN150/600:1",null,1,null,null,null,null,null,null,null,"FF DN150/600:1"]
[null,null,"EU DN150:2",null,2,null,null,null,null,null,null,null,"EU DN150:2"]
[null,null,"F DN150:5",null,5,null,null,null,null,null,null,null,"F DN150:5"]
[null,null,"FFR DN150/80:1",null,1,null,null,null,null,null,null,null,"FFR DN150/80:1"]
[null,null,"Q DN150:1",null,1,null,null,null,null,null,null,null,"Q DN150:1"]
[null,null,"AŠ:",null,0,null,null,null,null,null,null,null,"AŠ:"]
[null,null,"FFR DN150/100:2",null,2,null,null,null,null,null,null,null,"FFR DN150/100:2"]
[null,null,"Q DN150:2",null,2,null,null,null,null,null,null,null,"Q DN150:2"]
[null,null,"FF DN150/600:1",null,1,null,null,null,null,null,null,null,"FF DN150/600:1"]
[33,"857314121R00","Montáž tvarovek litin. odboč. přír. výkop DN 150 včetně nerezových spoj. prvků a obandážování spoje","kus",5,null,{"$f":"E254*F254","v":0},2.98E-3,{"$f":"E254*H254","v":1.49E-2},0,{"$f":"E254*J254","v":0},null,null,null,2,null,null,null,null,null,null,null,null,null,null,null,1,1,1,null,null,null,null,null,null,null,null,null,null,null,null,null,null,null,null,null,null,null,null,null,null,1,{"$f":"IF(AZ254=1,G254,0)","v":0},{"$f":"IF(AZ254=2,G254,0)","v":0},{"$f":"IF(AZ254=3,G254,0)","v":0},{"$f":"IF(AZ254=4,G254,0)","v":0},{"$f":"IF(AZ254=5,G254,0)","v":0},null,null,null,null,null,null,null,null,null,null,null,null,null,null,null,null,null,null,null,null,null,1,1]
[null,null,"Položka je určena pro montáž litinových tvarovek na potrubí litinovém tlakovém přírubovém odbočných v otevřeném výkopu, v otevřeném kanálu nebo v šachtě.",null,null,null,null,null,null,null,null,"Položka je určena pro montáž litinových tvarovek na potrubí litinovém tlakovém přírubovém odbočných v otevřeném výkopu, v otevřeném kanálu nebo v šachtě.",null,null,3]
[null,null,"Řad TLT DN150 a PE D 90x8,2 mm:",null,0,null,null,null,null,null,null,null,"Řad TLT DN150 a PE D 90x8,2 mm:"]
[null,null,"Řady a propoje:",null,0,null,null,null,null,null,null,null,"Řady a propoje:"]
[null,null,"T DN150/150:1",null,1,null,null,null,null,null,null,null,"T DN150/150:1"]
[null,null,"T DN150/80:1",null,1,null,null,null,null,null,null,null,"T DN150/80:1"]
[null,null,"AŠ:",null,0,null,null,null,null,null,null,null,"AŠ:"]
[null,null,"T DN150/80:2",null,2,null,null,null,null,null,null,null,"T DN150/80:2"]
[null,null,"TT DN150:1",null,1,null,null,null,null,null,null,null,"TT DN150:1"]
[34,"857601104R00","Montáž tvarovek jednoosých, tvárná litina DN 150 ","kus",2,null,{"$f":"E263*F263","v":0},0,{"$f":"E263*H263","v":0},0,{"$f":"E263*J263","v":0},null,null,null,2,null,null,null,null,null,null,null,null,null,null,null,1,1,1,null,null,null,null,null,null,null,null,null,null,null,null,null,null,null,null,null,null,null,null,null,null,1,{"$f":"IF(AZ263=1,G263,0)","v":0},{"$f":"IF(AZ263=2,G263,0)","v":0},{"$f":"IF(AZ263=3,G263,0)","v":0},{"$f":"IF(AZ263=4,G263,0)","v":0},{"$f":"IF(AZ263=5,G263,0)","v":0},null,null,null,null,null,null,null,null,null,null,null,null,null,null,null,null,null,null,null,null,null,1,1]
[null,null,"Položka je určena pro montáž tvarovek jednoosých s pružnými spoji ve výkopu.",null,null,null,null,null,null,null,null,"Položka je určena pro montáž tvarovek jednoosých s pružnými spoji ve výkopu.",null,null,3]
[null,null,"Řad TLT DN150 a PE D 90x8,2 mm:",null,0,null,null,null,null,null,null,null,"Řad TLT DN150 a PE D 90x8,2 mm:"]
[null,null,"Řady a propoje:",null,0,null,null,null,null,null,null,null,"Řady a propoje:"]
[null,null,"MMK DN150/30°:2",null,2,null,null,null,null,null,null,null,"MMK DN150/30°:2"]
[35,"871241121R00","Montáž potrubí polyetylenového ve výkopu d 90 mm ","m",18.7,null,{"$f":"E268*F268","v":0},0,{"$f":"E268*H268","v":0},0,{"$f":"E268*J268","v":0},null,null,null,2,null,null,null,null,null,null,null,null,null,null,null,1,1,1,null,null,null,null,null,null,null,null,null,null,null,null,null,null,null,null,null,null,null,null,null,null,1,{"$f":"IF(AZ268=1,G268,0)","v":0},{"$f":"IF(AZ268=2,G268,0)","v":0},{"$f":"IF(AZ268=3,G268,0)","v":0},{"$f":"IF(AZ268=4,G268,0)","v":0},{"$f":"IF(AZ268=5,G268,0)","v":0},null,null,null,null,null,null,null,null,null,null,null,null,null,null,null,null,null,null,null,null,null,1,1]
[null,null,"V položce je uvažováno s jedním spojem na 6 m potrubí.",null,null,null,null,null,null,null,null,"V položce je uvažováno s jedním spojem na 6 m potrubí.",null,null,3]
[null,null,"Řad TLT DN150 a PE D 90x8,2 mm:",null,0,null,null,null,null,null,null,null,"Řad TLT DN150 a PE D 90x8,2 mm:"]
[null,null,"Prodloužení řadu PE D 90x8,2 mm:18,70",null,18.7,null,null,null,null,null,null,null,"Prodloužení řadu PE D 90x8,2 mm:18,70"]
[36,"877242121R00","Přirážka za 1 spoj elektrotvarovky d 90 mm ","kus",10,null,{"$f":"E272*F272","v":0},0,{"$f":"E272*H272","v":0},0,{"$f":"E272*J272","v":0},null,null,null,2,null,null,null,null,null,null,null,null,null,null,null,1,1,1,null,null,null,null,null,null,null,null,null,null,null,null,null,null,null,null,null,null,null,null,null,null,1,{"$f":"IF(AZ272=1,G272,0)","v":0},{"$f":"IF(AZ272=2,G272,0)","v":0},{"$f":"IF(AZ272=3,G272,0)","v":0},{"$f":"IF(AZ272=4,G272,0)","v":0},{"$f":"IF(AZ272=5,G272,0)","v":0},null,null,null,null,null,null,null,null,null,null,null,null,null,null,null,null,null,null,null,null,null,1,1]
[null,null,"Řad TLT DN150 a PE D 90x8,2 mm:",null,0,null,null,null,null,null,null,null,"Řad TLT DN150 a PE D 90x8,2 mm:"]
[null,null,"Prodloužení řadu PE D 90x8,2 mm:",null,0,null,null,null,null,null,null,null,"Prodloužení řadu PE D 90x8,2 mm:"]
[null,null,"Elektrospojka D 90:8",null,8,null,null,null,null,null,null,null,"Elektrospojka D 90:8"]
[null,null,"Oblouk D 90/30°:2",null,2,null,null,null,null,null,null,null,"Oblouk D 90/30°:2"]
[37,"891163111R00","Montáž ventilů hlavních pro přípojky DN 25 ","kus",1,null,{"$f":"E277*F277","v":0},2.0000000000000002E-5,{"$f":"E277*H277","v":2.0000000000000002E-5},0,{"$f":"E277*J277","v":0},null,null,null,2,null,null,null,null,null,null,null,null,null,null,null,1,1,1,null,null,null,null,null,null,null,null,null,null,null,null,null,null,null,null,null,null,null,null,null,null,1,{"$f":"IF(AZ277=1,G277,0)","v":0},{"$f":"IF(AZ277=2,G277,0)","v":0},{"$f":"IF(AZ277=3,G277,0)","v":0},{"$f":"IF(AZ277=4,G277,0)","v":0},{"$f":"IF(AZ277=5,G277,0)","v":0},null,null,null,null,null,null,null,null,null,null,null,null,null,null,null,null,null,null,null,null,null,1,1]
[null,null,"Položka je určena pro montáž ventilů hlavních pro přípojky.",null,null,null,null,null,null,null,null,"Položka je určena pro montáž ventilů hlavních pro přípojky.",null,null,3]
[null,null,"V položce jsou zakalkulovány i náklady na osazení zemních souprav. ",null,null,null,null,null,null,null,null,"V položce jsou zakalkulovány i náklady na osazení zemních souprav. ",null,null,3]
[null,null,"Řad TLT DN150 a PE D 90x8,2 mm:",null,0,null,null,null,null,null,null,null,"Řad TLT DN150 a PE D 90x8,2 mm:"]
[null,null,"Řady a propoje:",null,0,null,null,null,null,null,null,null,"Řady a propoje:"]
[null,null,"Ventil pro Přepojení VP D 32x3,0 mm:1",null,1,null,null,null,null,null,null,null,"Ventil pro Přepojení VP D 32x3,0 mm:1"]
[38,"891183439RX2","Přepojení potrubí PE na přípojkách D 32 včetně dodávky přepojovací tvarovky","kus",1,null,{"$f":"E283*F283","v":0},4.6000000000000001E-4,{"$f":"E283*H283","v":4.6000000000000001E-4},0,{"$f":"E283*J283","v":0},null,null,null,2,null,null,null,null,null,null,null,null,null,null,null,1,1,1,null,null,null,null,null,null,null,null,null,null,null,null,null,null,null,null,null,null,null,null,null,null,1,{"$f":"IF(AZ283=1,G283,0)","v":0},{"$f":"IF(AZ283=2,G283,0)","v":0},{"$f":"IF(AZ283=3,G283,0)","v":0},{"$f":"IF(AZ283=4,G283,0)","v":0},{"$f":"IF(AZ283=5,G283,0)","v":0},null,null,null,null,null,null,null,null,null,null,null,null,null,null,null,null,null,null,null,null,null,1,1]
[null,null,"Položka obsahuje přerušení stávajícího potrubí, montáž a dodávku příslušné tvarovky pro propojení stávajícího potrubí (PE, ocel a pod.)  s novým potrubím (PE D 32x3,0 mm) přípojky  D 32 u objektu nebo ve stávající vodoměrné šachtě včetně úpravy prostupu konstrukcí.",null,null,null,null,null,null,null,null,"Položka obsahuje přerušení stávajícího potrubí, montáž a dodávku příslušné tvarovky pro propojení stávajícího potrubí (PE, ocel a pod.)  s novým potrubím (PE D 32x3,0 mm) přípojky  D 32 u objektu nebo ve stávající vodoměrné šachtě včetně úpravy prostupu konstrukcí.",null,null,3]
[null,null,"Součástí položky je i propojovací elektrospojka D32 a dodávka potrubí PE RC2 d32x3,0 (max. 2,0m) pro úpravu dékly VP.",null,null,null,null,null,null,null,null,"Součástí položky je i propojovací elektrospojka D32 a dodávka potrubí PE RC2 d32x3,0 (max. 2,0m) pro úpravu dékly VP.",null,null,3]
[null,null,"Řad TLT DN150 a PE D 90x8,2 mm:",null,0,null,null,null,null,null,null,null,"Řad TLT DN150 a PE D 90x8,2 mm:"]
[null,null,"Řady a propoje:",null,0,null,null,null,null,null,null,null,"Řady a propoje:"]
[null,null,"Přepojení VP D 32x3,0 mm:1",null,1,null,null,null,null,null,null,null,"Přepojení VP D 32x3,0 mm:1"]
[39,"891241111R00","Montáž vodovodních šoupátek ve výkopu DN 80 včetně nerezových spoj. prvků a obandážování spoje","kus",2,null,{"$f":"E289*F289","v":0},2.2000000000000001E-4,{"$f":"E289*H289","v":4.4000000000000002E-4},0,{"$f":"E289*J289","v":0},null,null,null,2,null,null,null,null,null,null,null,null,null,null,null,1,1,1,null,null,null,null,null,null,null,null,null,null,null,null,null,null,null,null,null,null,null,null,null,null,1,{"$f":"IF(AZ289=1,G289,0)","v":0},{"$f":"IF(AZ289=2,G289,0)","v":0},{"$f":"IF(AZ289=3,G289,0)","v":0},{"$f":"IF(AZ289=4,G289,0)","v":0},{"$f":"IF(AZ289=5,G289,0)","v":0},null,null,null,null,null,null,null,null,null,null,null,null,null,null,null,null,null,null,null,null,null,1,1]
[null,null,"Položka je určena pro montáž vodovodních šoupátek v otevřeném výkopu nebo v šachtách s osazením zemní soupravy (bez poklopů). V položce jsou zakalkulovány i náklady na vytvoření otvorů ve stropech šachet pro prostup zemních souprav šoupátek.",null,null,null,null,null,null,null,null,"Položka je určena pro montáž vodovodních šoupátek v otevřeném výkopu nebo v šachtách s osazením zemní soupravy (bez poklopů). V položce jsou zakalkulovány i náklady na vytvoření otvorů ve stropech šachet pro prostup zemních souprav šoupátek.",null,null,3]
[null,null,"Součástí položky je i dodávka nerezových spojovacích prvků (šrouby, podložky, matky) a kompletního obandážování spojů. ",null,null,null,null,null,null,null,null,"Součástí položky je i dodávka nerezových spojovacích prvků (šrouby, podložky, matky) a kompletního obandážování spojů. ",null,null,3]
[null,null,"Řad TLT DN150 a PE D 90x8,2 mm:",null,0,null,null,null,null,null,null,null,"Řad TLT DN150 a PE D 90x8,2 mm:"]
[null,null,"Řady a propoje:",null,0,null,null,null,null,null,null,null,"Řady a propoje:"]
[null,null,"Šoupě DN80:2",null,2,null,null,null,null,null,null,null,"Šoupě DN80:2"]
[40,"891241221R00","Montáž vodovod. šoupátek šacht. kolečko DN 80 včetně nerezových spoj. prvků a obandážování spoje","kus",1,null,{"$f":"E295*F295","v":0},2.2000000000000001E-4,{"$f":"E295*H295","v":2.2000000000000001E-4},0,{"$f":"E295*J295","v":0},null,null,null,2,null,null,null,null,null,null,null,null,null,null,null,1,1,1,null,null,null,null,null,null,null,null,null,null,null,null,null,null,null,null,null,null,null,null,null,null,1,{"$f":"IF(AZ295=1,G295,0)","v":0},{"$f":"IF(AZ295=2,G295,0)","v":0},{"$f":"IF(AZ295=3,G295,0)","v":0},{"$f":"IF(AZ295=4,G295,0)","v":0},{"$f":"IF(AZ295=5,G295,0)","v":0},null,null,null,null,null,null,null,null,null,null,null,null,null,null,null,null,null,null,null,null,null,1,1]
[null,null,"Položka je určena pro montáž vodovodních šoupátek v šachtách s ručním kolečkem. ",null,null,null,null,null,null,null,null,"Položka je určena pro montáž vodovodních šoupátek v šachtách s ručním kolečkem. ",null,null,3]
[null,null,"Součástí položky je i dodávka nerezových spojovacích prvků (šrouby, podložky, matky) a kompletního obandážování spojů. ",null,null,null,null,null,null,null,null,"Součástí položky je i dodávka nerezových spojovacích prvků (šrouby, podložky, matky) a kompletního obandážování spojů. ",null,null,3]
[null,null,"Řad TLT DN150 a PE D 90x8,2 mm:",null,0,null,null,null,null,null,null,null,"Řad TLT DN150 a PE D 90x8,2 mm:"]
[null,null,"AŠ:",null,0,null,null,null,null,null,null,null,"AŠ:"]
[null,null,"Šoupě DN80:1",null,1,null,null,null,null,null,null,null,"Šoupě DN80:1"]
[41,"891247111R00","Montáž hydrantů podzemních DN 80 včetně nerezových spoj. prvků a obandážování spoje","kus",1,null,{"$f":"E301*F301","v":0},1.1E-4,{"$f":"E301*H301","v":1.1E-4},0,{"$f":"E301*J301","v":0},null,null,null,2,null,null,null,null,null,null,null,null,null,null,null,1,1,1,null,null,null,null,null,null,null,null,null,null,null,null,null,null,null,null,null,null,null,null,null,null,1,{"$f":"IF(AZ301=1,G301,0)","v":0},{"$f":"IF(AZ301=2,G301,0)","v":0},{"$f":"IF(AZ301=3,G301,0)","v":0},{"$f":"IF(AZ301=4,G301,0)","v":0},{"$f":"IF(AZ301=5,G301,0)","v":0},null,null,null,null,null,null,null,null,null,null,null,null,null,null,null,null,null,null,null,null,null,1,1]
[null,null,"Položka je určena pro montáž hydrantů podzemních (bez osazení poklopů) na potrubí včetně drenážního obalu.",null,null,null,null,null,null,null,null,"Položka je určena pro montáž hydrantů podzemních (bez osazení poklopů) na potrubí včetně drenážního obalu.",null,null,3]
[null,null,"Součástí položky je i dodávka nerezových spojovacích prvků (šrouby, podložky, matky) a kompletního obandážování spojů. ",null,null,null,null,null,null,null,null,"Součástí položky je i dodávka nerezových spojovacích prvků (šrouby, podložky, matky) a kompletního obandážování spojů. ",null,null,3]
[null,null,"Řad TLT DN150 a PE D 90x8,2 mm:",null,0,null,null,null,null,null,null,null,"Řad TLT DN150 a PE D 90x8,2 mm:"]
[null,null,"Řady a propoje:",null,0,null,null,null,null,null,null,null,"Řady a propoje:"]
[null,null,"Hp DN80/1,5:1",null,1,null,null,null,null,null,null,null,"Hp DN80/1,5:1"]
[42,"891247211R00","Montáž hydrantů nadzemních DN 80 včetně nerezových spoj. prvků a obandážování spoje","kus",1,null,{"$f":"E307*F307","v":0},2.7699999999999999E-3,{"$f":"E307*H307","v":2.7699999999999999E-3},0,{"$f":"E307*J307","v":0},null,null,null,2,null,null,null,null,null,null,null,null,null,null,null,1,1,1,null,null,null,null,null,null,null,null,null,null,null,null,null,null,null,null,null,null,null,null,null,null,1,{"$f":"IF(AZ307=1,G307,0)","v":0},{"$f":"IF(AZ307=2,G307,0)","v":0},{"$f":"IF(AZ307=3,G307,0)","v":0},{"$f":"IF(AZ307=4,G307,0)","v":0},{"$f":"IF(AZ307=5,G307,0)","v":0},null,null,null,null,null,null,null,null,null,null,null,null,null,null,null,null,null,null,null,null,null,1,1]
[null,null,"Položka je určena pro montáž hydrantů nadzemních na potrubí.",null,null,null,null,null,null,null,null,"Položka je určena pro montáž hydrantů nadzemních na potrubí.",null,null,3]
[null,null,"V položce jsou zakalkulovány i náklady na postavení, udržování a odstranění pomocného lešení o výšce podlahy do 1,9 m a pro zatížení do 1,5 kPa.",null,null,null,null,null,null,null,null,"V položce jsou zakalkulovány i náklady na postavení, udržování a odstranění pomocného lešení o výšce podlahy do 1,9 m a pro zatížení do 1,5 kPa.",null,null,3]
[null,null,"Součástí položky je i dodávka nerezových spojovacích prvků (šrouby, podložky, matky) a kompletního obandážování spojů. ",null,null,null,null,null,null,null,null,"Součástí položky je i dodávka nerezových spojovacích prvků (šrouby, podložky, matky) a kompletního obandážování spojů. ",null,null,3]
[null,null,"Řad TLT DN150 a PE D 90x8,2 mm:",null,0,null,null,null,null,null,null,null,"Řad TLT DN150 a PE D 90x8,2 mm:"]
[null,null,"Řady a propoje:",null,0,null,null,null,null,null,null,null,"Řady a propoje:"]
[null,null,"HN DN80/1,5:1",null,1,null,null,null,null,null,null,null,"HN DN80/1,5:1"]
[43,"891311111R00","Montáž vodovodních šoupátek ve výkopu DN 150 včetně nerezových spoj. prvků a obandážování spoje","kus",2,null,{"$f":"E314*F314","v":0},2.7799999999999999E-3,{"$f":"E314*H314","v":5.5599999999999998E-3},0,{"$f":"E314*J314","v":0},null,null,null,2,null,null,null,null,null,null,null,null,null,null,null,1,1,1,null,null,null,null,null,null,null,null,null,null,null,null,null,null,null,null,null,null,null,null,null,null,1,{"$f":"IF(AZ314=1,G314,0)","v":0},{"$f":"IF(AZ314=2,G314,0)","v":0},{"$f":"IF(AZ314=3,G314,0)","v":0},{"$f":"IF(AZ314=4,G314,0)","v":0},{"$f":"IF(AZ314=5,G314,0)","v":0},null,null,null,null,null,null,null,null,null,null,null,null,null,null,null,null,null,null,null,null,null,1,1]
[null,null,"Položka je určena pro montáž vodovodních šoupátek v otevřeném výkopu nebo v šachtách s osazením zemní soupravy (bez poklopů). V položce jsou zakalkulovány i náklady na vytvoření otvorů ve stropech šachet pro prostup zemních souprav šoupátek.",null,null,null,null,null,null,null,null,"Položka je určena pro montáž vodovodních šoupátek v otevřeném výkopu nebo v šachtách s osazením zemní soupravy (bez poklopů). V položce jsou zakalkulovány i náklady na vytvoření otvorů ve stropech šachet pro prostup zemních souprav šoupátek.",null,null,3]
[null,null,"Součástí položky je i dodávka nerezových spojovacích prvků (šrouby, podložky, matky) a kompletního obandážování spojů. ",null,null,null,null,null,null,null,null,"Součástí položky je i dodávka nerezových spojovacích prvků (šrouby, podložky, matky) a kompletního obandážování spojů. ",null,null,3]
[null,null,"Řad TLT DN150 a PE D 90x8,2 mm:",null,0,null,null,null,null,null,null,null,"Řad TLT DN150 a PE D 90x8,2 mm:"]
[null,null,"Řady a propoje:",null,0,null,null,null,null,null,null,null,"Řady a propoje:"]
[null,null,"Šoupě DN150:2",null,2,null,null,null,null,null,null,null,"Šoupě DN150:2"]
[44,"891311221R00","Montáž vodovod. šoupátek šacht. kolečko DN 150 včetně nerezových spoj. prvků a obandážování spoje","kus",6,null,{"$f":"E320*F320","v":0},2.7799999999999999E-3,{"$f":"E320*H320","v":1.668E-2},0,{"$f":"E320*J320","v":0},null,null,null,2,null,null,null,null,null,null,null,null,null,null,null,1,1,1,null,null,null,null,null,null,null,null,null,null,null,null,null,null,null,null,null,null,null,null,null,null,1,{"$f":"IF(AZ320=1,G320,0)","v":0},{"$f":"IF(AZ320=2,G320,0)","v":0},{"$f":"IF(AZ320=3,G320,0)","v":0},{"$f":"IF(AZ320=4,G320,0)","v":0},{"$f":"IF(AZ320=5,G320,0)","v":0},null,null,null,null,null,null,null,null,null,null,null,null,null,null,null,null,null,null,null,null,null,1,1]
[null,null,"Položka je určena pro montáž vodovodních šoupátek v šachtách s ručním kolečkem. ",null,null,null,null,null,null,null,null,"Položka je určena pro montáž vodovodních šoupátek v šachtách s ručním kolečkem. ",null,null,3]
[null,null,"Součástí položky je i dodávka nerezových spojovacích prvků (šrouby, podložky, matky) a kompletního obandážování spojů. ",null,null,null,null,null,null,null,null,"Součástí položky je i dodávka nerezových spojovacích prvků (šrouby, podložky, matky) a kompletního obandážování spojů. ",null,null,3]
[null,null,"Řad TLT DN150 a PE D 90x8,2 mm:",null,0,null,null,null,null,null,null,null,"Řad TLT DN150 a PE D 90x8,2 mm:"]
[null,null,"AŠ:",null,0,null,null,null,null,null,null,null,"AŠ:"]
[null,null,"Šoupě DN150:6",null,6,null,null,null,null,null,null,null,"Šoupě DN150:6"]
[45,"891319111R00","Montáž navrtávacích pasů DN 150 ","kus",1,null,{"$f":"E326*F326","v":0},0,{"$f":"E326*H326","v":0},0,{"$f":"E326*J326","v":0},null,null,null,2,null,null,null,null,null,null,null,null,null,null,null,1,1,1,null,null,null,null,null,null,null,null,null,null,null,null,null,null,null,null,null,null,null,null,null,null,1,{"$f":"IF(AZ326=1,G326,0)","v":0},{"$f":"IF(AZ326=2,G326,0)","v":0},{"$f":"IF(AZ326=3,G326,0)","v":0},{"$f":"IF(AZ326=4,G326,0)","v":0},{"$f":"IF(AZ326=5,G326,0)","v":0},null,null,null,null,null,null,null,null,null,null,null,null,null,null,null,null,null,null,null,null,null,1,1]
[null,null,"Řad TLT DN150 a PE D 90x8,2 mm:",null,0,null,null,null,null,null,null,null,"Řad TLT DN150 a PE D 90x8,2 mm:"]
[null,null,"Řady a propoje:",null,0,null,null,null,null,null,null,null,"Řady a propoje:"]
[null,null,"NP pro Přepojení VP D 32x3,0 mm:1",null,1,null,null,null,null,null,null,null,"NP pro Přepojení VP D 32x3,0 mm:1"]
[46,"892241111R00","Tlaková zkouška vodovodního potrubí DN 80 včetně zajištění konců potrubí","m",25.9,null,{"$f":"E330*F330","v":0},0,{"$f":"E330*H330","v":0},0,{"$f":"E330*J330","v":0},null,null,null,2,null,null,null,null,null,null,null,null,null,null,null,1,1,1,null,null,null,null,null,null,null,null,null,null,null,null,null,null,null,null,null,null,null,null,null,null,1,{"$f":"IF(AZ330=1,G330,0)","v":0},{"$f":"IF(AZ330=2,G330,0)","v":0},{"$f":"IF(AZ330=3,G330,0)","v":0},{"$f":"IF(AZ330=4,G330,0)","v":0},{"$f":"IF(AZ330=5,G330,0)","v":0},null,null,null,null,null,null,null,null,null,null,null,null,null,null,null,null,null,null,null,null,null,1,1]
[null,null,"V položce jsou započteny náklady na přísun, montáž, demontáž a odsun zkoušecího čerpadla, napuštění tlakovou vodou a dodání vody pro tlakovou zkoušku.",null,null,null,null,null,null,null,null,"V položce jsou započteny náklady na přísun, montáž, demontáž a odsun zkoušecího čerpadla, napuštění tlakovou vodou a dodání vody pro tlakovou zkoušku.",null,null,3]
[null,null,"Řad TLT DN150 a PE D 90x8,2 mm:",null,0,null,null,null,null,null,null,null,"Řad TLT DN150 a PE D 90x8,2 mm:"]
[null,null,"Propoj do AŠ TLT DN80:7,20",null,7.2,null,null,null,null,null,null,null,"Propoj do AŠ TLT DN80:7,20"]
[null,null,"Prodloužení řadu PE D 90x8,2 mm:18,70",null,18.7,null,null,null,null,null,null,null,"Prodloužení řadu PE D 90x8,2 mm:18,70"]
[47,"892271111R00","Tlaková zkouška vodovodního potrubí DN 125 včetně zajištění konců potrubí","m",10.5,null,{"$f":"E335*F335","v":0},0,{"$f":"E335*H335","v":0},0,{"$f":"E335*J335","v":0},null,null,null,2,null,null,null,null,null,null,null,null,null,null,null,1,1,1,null,null,null,null,null,null,null,null,null,null,null,null,null,null,null,null,null,null,null,null,null,null,1,{"$f":"IF(AZ335=1,G335,0)","v":0},{"$f":"IF(AZ335=2,G335,0)","v":0},{"$f":"IF(AZ335=3,G335,0)","v":0},{"$f":"IF(AZ335=4,G335,0)","v":0},{"$f":"IF(AZ335=5,G335,0)","v":0},null,null,null,null,null,null,null,null,null,null,null,null,null,null,null,null,null,null,null,null,null,1,1]
[null,null,"V položce jsou započteny náklady na přísun, montáž, demontáž a odsun zkoušecího čerpadla, napuštění tlakovou vodou a dodání vody pro tlakovou zkoušku.",null,null,null,null,null,null,null,null,"V položce jsou započteny náklady na přísun, montáž, demontáž a odsun zkoušecího čerpadla, napuštění tlakovou vodou a dodání vody pro tlakovou zkoušku.",null,null,3]
[null,null,"Řad TLT DN150 a PE D 90x8,2 mm:",null,0,null,null,null,null,null,null,null,"Řad TLT DN150 a PE D 90x8,2 mm:"]
[null,null,"Propoj do AŠ TLT DN100:4,50+6,00",null,10.5,null,null,null,null,null,null,null,"Propoj do AŠ TLT DN100:4,50+6,00"]
[48,"892273111R00","Desinfekce vodovodního potrubí DN 125 ","m",36.4,null,{"$f":"E339*F339","v":0},0,{"$f":"E339*H339","v":0},0,{"$f":"E339*J339","v":0},null,null,null,2,null,null,null,null,null,null,null,null,null,null,null,1,1,1,null,null,null,null,null,null,null,null,null,null,null,null,null,null,null,null,null,null,null,null,null,null,1,{"$f":"IF(AZ339=1,G339,0)","v":0},{"$f":"IF(AZ339=2,G339,0)","v":0},{"$f":"IF(AZ339=3,G339,0)","v":0},{"$f":"IF(AZ339=4,G339,0)","v":0},{"$f":"IF(AZ339=5,G339,0)","v":0},null,null,null,null,null,null,null,null,null,null,null,null,null,null,null,null,null,null,null,null,null,1,1]
[null,null,"V položce jsou zakalkulovány náklady na napuštění a vypuštění vody, dodání vody a desinfekčního prostředku a na bakteriologický rozbor vody.",null,null,null,null,null,null,null,null,"V položce jsou zakalkulovány náklady na napuštění a vypuštění vody, dodání vody a desinfekčního prostředku a na bakteriologický rozbor vody.",null,null,3]
[null,null,"Řad TLT DN150 a PE D 90x8,2 mm:",null,0,null,null,null,null,null,null,null,"Řad TLT DN150 a PE D 90x8,2 mm:"]
[null,null,"Propoj do AŠ TLT DN80:7,20",null,7.2,null,null,null,null,null,null,null,"Propoj do AŠ TLT DN80:7,20"]
[null,null,"Propoj do AŠ TLT DN100:4,50+6,00",null,10.5,null,null,null,null,null,null,null,"Propoj do AŠ TLT DN100:4,50+6,00"]
[null,null,"Prodloužení řadu PE D 90x8,2 mm:18,70",null,18.7,null,null,null,null,null,null,null,"Prodloužení řadu PE D 90x8,2 mm:18,70"]
[49,"892351111R00","Tlaková zkouška vodovodního potrubí DN 200 včetně zajištění konců potrubí","m",66.099999999999994,null,{"$f":"E345*F345","v":0},0,{"$f":"E345*H345","v":0},0,{"$f":"E345*J345","v":0},null,null,null,2,null,null,null,null,null,null,null,null,null,null,null,1,1,1,null,null,null,null,null,null,null,null,null,null,null,null,null,null,null,null,null,null,null,null,null,null,1,{"$f":"IF(AZ345=1,G345,0)","v":0},{"$f":"IF(AZ345=2,G345,0)","v":0},{"$f":"IF(AZ345=3,G345,0)","v":0},{"$f":"IF(AZ345=4,G345,0)","v":0},{"$f":"IF(AZ345=5,G345,0)","v":0},null,null,null,null,null,null,null,null,null,null,null,null,null,null,null,null,null,null,null,null,null,1,1]
[null,null,"V položce jsou započteny náklady na přísun, montáž, demontáž a odsun zkoušecího čerpadla, napuštění tlakovou vodou a dodání vody pro tlakovou zkoušku.",null,null,null,null,null,null,null,null,"V položce jsou započteny náklady na přísun, montáž, demontáž a odsun zkoušecího čerpadla, napuštění tlakovou vodou a dodání vody pro tlakovou zkoušku.",null,null,3]
[null,null,"Řad TLT DN150 a PE D 90x8,2 mm:",null,0,null,null,null,null,null,null,null,"Řad TLT DN150 a PE D 90x8,2 mm:"]
[null,null,"Řad TLT DN150 :46,10",null,46.1,null,null,null,null,null,null,null,"Řad TLT DN150 :46,10"]
[null,null,"Propoj na TLT DN150:10,00",null,10,null,null,null,null,null,null,null,"Propoj na TLT DN150:10,00"]
[null,null,"Propoj do AŠ TLT DN150:10,00",null,10,null,null,null,null,null,null,null,"Propoj do AŠ TLT DN150:10,00"]
[50,"892353111R00","Desinfekce vodovodního potrubí DN 200 ","m",66.099999999999994,null,{"$f":"E351*F351","v":0},0,{"$f":"E351*H351","v":0},0,{"$f":"E351*J351","v":0},null,null,null,2,null,null,null,null,null,null,null,null,null,null,null,1,1,1,null,null,null,null,null,null,null,null,null,null,null,null,null,null,null,null,null,null,null,null,null,null,1,{"$f":"IF(AZ351=1,G351,0)","v":0},{"$f":"IF(AZ351=2,G351,0)","v":0},{"$f":"IF(AZ351=3,G351,0)","v":0},{"$f":"IF(AZ351=4,G351,0)","v":0},{"$f":"IF(AZ351=5,G351,0)","v":0},null,null,null,null,null,null,null,null,null,null,null,null,null,null,null,null,null,null,null,null,null,1,1]
[null,null,"V položce jsou zakalkulovány náklady na napuštění a vypuštění vody, dodání vody a desinfekčního prostředku a na bakteriologický rozbor vody.",null,null,null,null,null,null,null,null,"V položce jsou zakalkulovány náklady na napuštění a vypuštění vody, dodání vody a desinfekčního prostředku a na bakteriologický rozbor vody.",null,null,3]
[null,null,"Řad TLT DN150 a PE D 90x8,2 mm:",null,0,null,null,null,null,null,null,null,"Řad TLT DN150 a PE D 90x8,2 mm:"]
[null,null,"Řad TLT DN150 :46,10",null,46.1,null,null,null,null,null,null,null,"Řad TLT DN150 :46,10"]
[null,null,"Propoj na TLT DN150:10,00",null,10,null,null,null,null,null,null,null,"Propoj na TLT DN150:10,00"]
[null,null,"Propoj do AŠ TLT DN150:10,00",null,10,null,null,null,null,null,null,null,"Propoj do AŠ TLT DN150:10,00"]
[51,"899000051RRX","Armaturní šachta železobetonová nebo prefa ","m3 OP",12.6434,null,{"$f":"E357*F357","v":0},1.6167899999999999,{"$f":"E357*H357","v":20.441722685999999},0,{"$f":"E357*J357","v":0},null,null,null,2,null,null,null,null,null,null,null,null,null,null,null,1,1,1,null,null,null,null,null,null,null,null,null,null,null,null,null,null,null,null,null,null,null,null,null,null,1,{"$f":"IF(AZ357=1,G357,0)","v":0},{"$f":"IF(AZ357=2,G357,0)","v":0},{"$f":"IF(AZ357=3,G357,0)","v":0},{"$f":"IF(AZ357=4,G357,0)","v":0},{"$f":"IF(AZ357=5,G357,0)","v":0},null,null,null,null,null,null,null,null,null,null,null,null,null,null,null,null,null,null,null,null,null,1,1]
[null,null,"Součástí položky je:",null,null,null,null,null,null,null,null,"Součástí položky je:",null,null,3]
[null,null,"- D+M železobetonové konstrukce AŠ včetně vstupů pro montáž TLT potrubí DN80-150.",null,null,null,null,null,null,null,null,"- D+M železobetonové konstrukce AŠ včetně vstupů pro montáž TLT potrubí DN80-150.",null,null,3]
[null,null,"- Prostupy - jejich utěsnění po osazení technologie.",null,null,null,null,null,null,null,null,"- Prostupy - jejich utěsnění po osazení technologie.",null,null,3]
[null,null,"- Podkladní betonové bloky technologie AŠ.",null,null,null,null,null,null,null,null,"- Podkladní betonové bloky technologie AŠ.",null,null,3]
[null,null,"- D+M vstupního litinového poklopu 800x800 mm D400 (vodotěsný, uzamikatelný).",null,null,null,null,null,null,null,null,"- D+M vstupního litinového poklopu 800x800 mm D400 (vodotěsný, uzamikatelný).",null,null,3]
[null,null,"- Hydroizolace konstrukce AŠ.",null,null,null,null,null,null,null,null,"- Hydroizolace konstrukce AŠ.",null,null,3]
[null,null,"- D+M odvodnění v provedení dle PD včetně zpětné a protizápachové klapky WATSTOP a napojení do RŠ splaškové kanalizace. ",null,null,null,null,null,null,null,null,"- D+M odvodnění v provedení dle PD včetně zpětné a protizápachové klapky WATSTOP a napojení do RŠ splaškové kanalizace. ",null,null,3]
[null,null,"- Štěrkopískový podsyp tl. 150 mm",null,null,null,null,null,null,null,null,"- Štěrkopískový podsyp tl. 150 mm",null,null,3]
[null,null,"Řad TLT DN150 a PE D 90x8,2 mm:",null,0,null,null,null,null,null,null,null,"Řad TLT DN150 a PE D 90x8,2 mm:"]
[null,null,"Armaturní šachta dle v.č. D.8:3,30*1,90*1,92+1,10*1,10*0,50",null,12.6434,null,null,null,null,null,null,null,"Armaturní šachta dle v.č. D.8:3,30*1,90*1,92+1,10*1,10*0,50"]
[52,"899713111RRX","Orientační tabulky na sloupku ocelovém, betonovém ","kus",7,null,{"$f":"E368*F368","v":0},2.4000000000000001E-4,{"$f":"E368*H368","v":1.6800000000000001E-3},0,{"$f":"E368*J368","v":0},null,null,null,2,null,null,null,null,null,null,null,null,null,null,null,1,1,1,null,null,null,null,null,null,null,null,null,null,null,null,null,null,null,null,null,null,null,null,null,null,1,{"$f":"IF(AZ368=1,G368,0)","v":0},{"$f":"IF(AZ368=2,G368,0)","v":0},{"$f":"IF(AZ368=3,G368,0)","v":0},{"$f":"IF(AZ368=4,G368,0)","v":0},{"$f":"IF(AZ368=5,G368,0)","v":0},null,null,null,null,null,null,null,null,null,null,null,null,null,null,null,null,null,null,null,null,null,1,1]
[null,null,"Položka platí pro orientační tabulky na vodovodních a kanalizačních řadech. V položce jsou zakalkulovány náklady na dodání a připevnění tabulky a na osazení sloupku. V položce jsou zakalkulovány náklady na zemní práce a na dodání sloupků (betonových nebo ocelových s betonovými patkami)",null,null,null,null,null,null,null,null,"Položka platí pro orientační tabulky na vodovodních a kanalizačních řadech. V položce jsou zakalkulovány náklady na dodání a připevnění tabulky a na osazení sloupku. V položce jsou zakalkulovány náklady na zemní práce a na dodání sloupků (betonových nebo ocelových s betonovými patkami)",null,null,3]
[null,null,"Řad TLT DN150 a PE D 90x8,2 mm:",null,0,null,null,null,null,null,null,null,"Řad TLT DN150 a PE D 90x8,2 mm:"]
[null,null,"Řady a propoje:",null,0,null,null,null,null,null,null,null,"Řady a propoje:"]
[null,null,"Pro Šoupě DN80:2",null,2,null,null,null,null,null,null,null,"Pro Šoupě DN80:2"]
[null,null,"Pro Šoupě DN150:2",null,2,null,null,null,null,null,null,null,"Pro Šoupě DN150:2"]
[null,null,"Pro Hp DN80/1,5:1",null,1,null,null,null,null,null,null,null,"Pro Hp DN80/1,5:1"]
[null,null,"Pro AŠ:1",null,1,null,null,null,null,null,null,null,"Pro AŠ:1"]
[null,null,"Pro VP:1",null,1,null,null,null,null,null,null,null,"Pro VP:1"]
[53,"899721112R00","Fólie výstražná z PVC bílá, šířka 30 cm ","m",102.5,null,{"$f":"E377*F377","v":0},0,{"$f":"E377*H377","v":0},0,{"$f":"E377*J377","v":0},null,null,null,2,null,null,null,null,null,null,null,null,null,null,null,1,1,1,null,null,null,null,null,null,null,null,null,null,null,null,null,null,null,null,null,null,null,null,null,null,1,{"$f":"IF(AZ377=1,G377,0)","v":0},{"$f":"IF(AZ377=2,G377,0)","v":0},{"$f":"IF(AZ377=3,G377,0)","v":0},{"$f":"IF(AZ377=4,G377,0)","v":0},{"$f":"IF(AZ377=5,G377,0)","v":0},null,null,null,null,null,null,null,null,null,null,null,null,null,null,null,null,null,null,null,null,null,1,1]
[null,null,"Řad TLT DN150 a PE D 90x8,2 mm:",null,0,null,null,null,null,null,null,null,"Řad TLT DN150 a PE D 90x8,2 mm:"]
[null,null,"Propoj do AŠ TLT DN80:7,20",null,7.2,null,null,null,null,null,null,null,"Propoj do AŠ TLT DN80:7,20"]
[null,null,"Propoj do AŠ TLT DN100:4,50+6,00",null,10.5,null,null,null,null,null,null,null,"Propoj do AŠ TLT DN100:4,50+6,00"]
[null,null,"Řad TLT DN150 :46,10",null,46.1,null,null,null,null,null,null,null,"Řad TLT DN150 :46,10"]
[null,null,"Propoj na TLT DN150:10,00",null,10,null,null,null,null,null,null,null,"Propoj na TLT DN150:10,00"]
[null,null,"Propoj do AŠ TLT DN150:10,00",null,10,null,null,null,null,null,null,null,"Propoj do AŠ TLT DN150:10,00"]
[null,null,"Prodloužení řadu PE D 90x8,2 mm:18,70",null,18.7,null,null,null,null,null,null,null,"Prodloužení řadu PE D 90x8,2 mm:18,70"]
[54,"899731114R00","Vodič signalizační CYY 6 mm2 ","m",129.5,null,{"$f":"E385*F385","v":0},8.0000000000000007E-5,{"$f":"E385*H385","v":1.0360000000000001E-2},0,{"$f":"E385*J385","v":0},null,null,null,2,null,null,null,null,null,null,null,null,null,null,null,1,1,1,null,null,null,null,null,null,null,null,null,null,null,null,null,null,null,null,null,null,null,null,null,null,1,{"$f":"IF(AZ385=1,G385,0)","v":0},{"$f":"IF(AZ385=2,G385,0)","v":0},{"$f":"IF(AZ385=3,G385,0)","v":0},{"$f":"IF(AZ385=4,G385,0)","v":0},{"$f":"IF(AZ385=5,G385,0)","v":0},null,null,null,null,null,null,null,null,null,null,null,null,null,null,null,null,null,null,null,null,null,1,1]
[null,null,"Součástí položky je zajištění proměření vodiče a výchozí zevize.",null,null,null,null,null,null,null,null,"Součástí položky je zajištění proměření vodiče a výchozí zevize.",null,null,3]
[null,null,"Řad TLT DN150 a PE D 90x8,2 mm:",null,0,null,null,null,null,null,null,null,"Řad TLT DN150 a PE D 90x8,2 mm:"]
[null,null,"Propoj do AŠ TLT DN80:7,20",null,7.2,null,null,null,null,null,null,null,"Propoj do AŠ TLT DN80:7,20"]
[null,null,"Propoj do AŠ TLT DN100:4,50+6,00",null,10.5,null,null,null,null,null,null,null,"Propoj do AŠ TLT DN100:4,50+6,00"]
[null,null,"Řad TLT DN150 :46,10",null,46.1,null,null,null,null,null,null,null,"Řad TLT DN150 :46,10"]
[null,null,"Propoj na TLT DN150:10,00",null,10,null,null,null,null,null,null,null,"Propoj na TLT DN150:10,00"]
[null,null,"Propoj do AŠ TLT DN150:10,00",null,10,null,null,null,null,null,null,null,"Propoj do AŠ TLT DN150:10,00"]
[null,null,"Prodloužení řadu PE D 90x8,2 mm:18,70",null,18.7,null,null,null,null,null,null,null,"Prodloužení řadu PE D 90x8,2 mm:18,70"]
[null,null,"Vyvedení:",null,0,null,null,null,null,null,null,null,"Vyvedení:"]
[null,null,"Řady a propoje:",null,0,null,null,null,null,null,null,null,"Řady a propoje:"]
[null,null,"Pro Šoupě DN80:2,00*2*2",null,8,null,null,null,null,null,null,null,"Pro Šoupě DN80:2,00*2*2"]
[null,null,"Pro Šoupě DN150:2,00*2*2",null,8,null,null,null,null,null,null,null,"Pro Šoupě DN150:2,00*2*2"]
[null,null,"Pro Hp DN80/1,5:2,00*1*1",null,2,null,null,null,null,null,null,null,"Pro Hp DN80/1,5:2,00*1*1"]
[null,null,"Pro AŠ:1,00*5",null,5,null,null,null,null,null,null,null,"Pro AŠ:1,00*5"]
[null,null,"Pro VP:2,00*2*1",null,4,null,null,null,null,null,null,null,"Pro VP:2,00*2*1"]
[55,"286134214.R","Trubka tlaková AQUALINE RC2 PE100 90x8,2 mm PN16 tyče L=12 m","m",18.980499999999999,null,{"$f":"E401*F401","v":0},2.1199999999999999E-3,{"$f":"E401*H401","v":4.0238659999999996E-2},null,{"$f":"E401*J401","v":0},null,null,null,2,null,null,null,null,null,null,null,null,null,null,null,3,1,"286134214.R",null,null,null,null,null,null,null,null,null,null,null,null,null,null,null,null,null,null,null,null,null,null,1,{"$f":"IF(AZ401=1,G401,0)","v":0},{"$f":"IF(AZ401=2,G401,0)","v":0},{"$f":"IF(AZ401=3,G401,0)","v":0},{"$f":"IF(AZ401=4,G401,0)","v":0},{"$f":"IF(AZ401=5,G401,0)","v":0},null,null,null,null,null,null,null,null,null,null,null,null,null,null,null,null,null,null,null,null,null,3,1]
[null,null,"Vodovodní PE tlaková trubka AQUALINE RC2 dle normy EN 12 201-2",null,null,null,null,null,null,null,null,"Vodovodní PE tlaková trubka AQUALINE RC2 dle normy EN 12 201-2",null,null,3]
[null,null,"(doprava pitné a užitkové vody)",null,null,null,null,null,null,null,null,"(doprava pitné a užitkové vody)",null,null,3]
[null,null,"Dvouvrstvá - vnější vrstva PE 100RC modrá (10 % tloušťky)",null,null,null,null,null,null,null,null,"Dvouvrstvá - vnější vrstva PE 100RC modrá (10 % tloušťky)",null,null,3]
[null,null,"                       vnitřní vrstva PE 100RC černá (90 % tloušťky)",null,null,null,null,null,null,null,null,"                       vnitřní vrstva PE 100RC černá (90 % tloušťky)",null,null,3]
[null,null,"Lepší detekce poškození oproti typu RC1",null,null,null,null,null,null,null,null,"Lepší detekce poškození oproti typu RC1",null,null,3]
[null,null,"Řad TLT DN150 a PE D 90x8,2 mm:",null,0,null,null,null,null,null,null,null,"Řad TLT DN150 a PE D 90x8,2 mm:"]
[null,null,"Prodloužení řadu PE D 90x8,2 mm:18,70*1,015",null,18.980499999999999,null,null,null,null,null,null,null,"Prodloužení řadu PE D 90x8,2 mm:18,70*1,015"]
[56,"28653080.10.R","Elektrospojka d 90 mm PE 100 SDR11","kus",8.1199999999999992,null,{"$f":"E409*F409","v":0},1.2999999999999999E-3,{"$f":"E409*H409","v":1.0555999999999998E-2},null,{"$f":"E409*J409","v":0},null,null,null,2,null,null,null,null,null,null,null,null,null,null,null,3,1,"28653080.10.R",null,null,null,null,null,null,null,null,null,null,null,null,null,null,null,null,null,null,null,null,null,null,1,{"$f":"IF(AZ409=1,G409,0)","v":0},{"$f":"IF(AZ409=2,G409,0)","v":0},{"$f":"IF(AZ409=3,G409,0)","v":0},{"$f":"IF(AZ409=4,G409,0)","v":0},{"$f":"IF(AZ409=5,G409,0)","v":0},null,null,null,null,null,null,null,null,null,null,null,null,null,null,null,null,null,null,null,null,null,3,1]
[null,null,"Řad TLT DN150 a PE D 90x8,2 mm:",null,0,null,null,null,null,null,null,null,"Řad TLT DN150 a PE D 90x8,2 mm:"]
[null,null,"Prodloužení řadu PE D 90x8,2 mm:",null,0,null,null,null,null,null,null,null,"Prodloužení řadu PE D 90x8,2 mm:"]
[null,null,"Elektrospojka D 90:8*1,015",null,8.1199999999999992,null,null,null,null,null,null,null,"Elektrospojka D 90:8*1,015"]
[57,"28653436.A.R","Oblouk 30° PE d 90 mm PE100 SDR11","kus",2.0299999999999998,null,{"$f":"E413*F413","v":0},1.0499999999999999E-3,{"$f":"E413*H413","v":2.1314999999999997E-3},null,{"$f":"E413*J413","v":0},null,null,null,2,null,null,null,null,null,null,null,null,null,null,null,3,1,"28653436.A.R",null,null,null,null,null,null,null,null,null,null,null,null,null,null,null,null,null,null,null,null,null,null,1,{"$f":"IF(AZ413=1,G413,0)","v":0},{"$f":"IF(AZ413=2,G413,0)","v":0},{"$f":"IF(AZ413=3,G413,0)","v":0},{"$f":"IF(AZ413=4,G413,0)","v":0},{"$f":"IF(AZ413=5,G413,0)","v":0},null,null,null,null,null,null,null,null,null,null,null,null,null,null,null,null,null,null,null,null,null,3,1]
[null,null,"Řad TLT DN150 a PE D 90x8,2 mm:",null,0,null,null,null,null,null,null,null,"Řad TLT DN150 a PE D 90x8,2 mm:"]
[null,null,"Prodloužení řadu PE D 90x8,2 mm:",null,0,null,null,null,null,null,null,null,"Prodloužení řadu PE D 90x8,2 mm:"]
[null,null,"Oblouk D 90/30°:2*1,015",null,2.0299999999999998,null,null,null,null,null,null,null,"Oblouk D 90/30°:2*1,015"]
[58,"28653764.R","LN s prodlouženou přírubou D90/DN80 PE100 SDR11 PN16","kus",2.0299999999999998,null,{"$f":"E417*F417","v":0},3.5E-4,{"$f":"E417*H417","v":7.1049999999999998E-4},null,{"$f":"E417*J417","v":0},null,null,null,2,null,null,null,null,null,null,null,null,null,null,null,3,1,"28653764.R",null,null,null,null,null,null,null,null,null,null,null,null,null,null,null,null,null,null,null,null,null,null,1,{"$f":"IF(AZ417=1,G417,0)","v":0},{"$f":"IF(AZ417=2,G417,0)","v":0},{"$f":"IF(AZ417=3,G417,0)","v":0},{"$f":"IF(AZ417=4,G417,0)","v":0},{"$f":"IF(AZ417=5,G417,0)","v":0},null,null,null,null,null,null,null,null,null,null,null,null,null,null,null,null,null,null,null,null,null,3,1]
[null,null,"Řad TLT DN150 a PE D 90x8,2 mm:",null,0,null,null,null,null,null,null,null,"Řad TLT DN150 a PE D 90x8,2 mm:"]
[null,null,"LN + TP D90/DN80:2*1,015",null,2.0299999999999998,null,null,null,null,null,null,null,"LN + TP D90/DN80:2*1,015"]
[59,"42200230.03.R","Hydrant DUO nadzemní objezdový 2B 80/1,50","kus",1,null,{"$f":"E420*F420","v":0},1.8499999999999999E-2,{"$f":"E420*H420","v":1.8499999999999999E-2},null,{"$f":"E420*J420","v":0},null,null,null,2,null,null,null,null,null,null,null,null,null,null,null,3,1,"42200230.03.R",null,null,null,null,null,null,null,null,null,null,null,null,null,null,null,null,null,null,null,null,null,null,1,{"$f":"IF(AZ420=1,G420,0)","v":0},{"$f":"IF(AZ420=2,G420,0)","v":0},{"$f":"IF(AZ420=3,G420,0)","v":0},{"$f":"IF(AZ420=4,G420,0)","v":0},{"$f":"IF(AZ420=5,G420,0)","v":0},null,null,null,null,null,null,null,null,null,null,null,null,null,null,null,null,null,null,null,null,null,3,1]
[null,null,"Řad TLT DN150 a PE D 90x8,2 mm:",null,0,null,null,null,null,null,null,null,"Řad TLT DN150 a PE D 90x8,2 mm:"]
[null,null,"Řady a propoje:",null,0,null,null,null,null,null,null,null,"Řady a propoje:"]
[null,null,"HN DN80/1,5:1",null,1,null,null,null,null,null,null,null,"HN DN80/1,5:1"]
[60,"42202681.R","Navrtávací ISO šoupátko č. 2681 DN 2 - 6/4\"","kus",1,null,{"$f":"E424*F424","v":0},2.5999999999999999E-3,{"$f":"E424*H424","v":2.5999999999999999E-3},null,{"$f":"E424*J424","v":0},null,null,null,2,null,null,null,null,null,null,null,null,null,null,null,3,1,"42202681.R",null,null,null,null,null,null,null,null,null,null,null,null,null,null,null,null,null,null,null,null,null,null,1,{"$f":"IF(AZ424=1,G424,0)","v":0},{"$f":"IF(AZ424=2,G424,0)","v":0},{"$f":"IF(AZ424=3,G424,0)","v":0},{"$f":"IF(AZ424=4,G424,0)","v":0},{"$f":"IF(AZ424=5,G424,0)","v":0},null,null,null,null,null,null,null,null,null,null,null,null,null,null,null,null,null,null,null,null,null,3,1]
[null,null,null,null,null,null,null,null,null,null,null,null,null,null,3]
[null,null,"Řad TLT DN150 a PE D 90x8,2 mm:",null,0,null,null,null,null,null,null,null,"Řad TLT DN150 a PE D 90x8,2 mm:"]
[null,null,"Řady a propoje:",null,0,null,null,null,null,null,null,null,"Řady a propoje:"]
[null,null,"Pro NP pro Přepojení VP D 32x3,0 mm:1",null,1,null,null,null,null,null,null,null,"Pro NP pro Přepojení VP D 32x3,0 mm:1"]
[61,"42203350.05.R","Navrtávací pas HACOM č.3350 150-2\"","kus",1,null,{"$f":"E429*F429","v":0},2.7000000000000001E-3,{"$f":"E429*H429","v":2.7000000000000001E-3},null,{"$f":"E429*J429","v":0},null,null,null,2,null,null,null,null,null,null,null,null,null,null,null,3,1,"42203350.05.R",null,null,null,null,null,null,null,null,null,null,null,null,null,null,null,null,null,null,null,null,null,null,1,{"$f":"IF(AZ429=1,G429,0)","v":0},{"$f":"IF(AZ429=2,G429,0)","v":0},{"$f":"IF(AZ429=3,G429,0)","v":0},{"$f":"IF(AZ429=4,G429,0)","v":0},{"$f":"IF(AZ429=5,G429,0)","v":0},null,null,null,null,null,null,null,null,null,null,null,null,null,null,null,null,null,null,null,null,null,3,1]
[null,null,null,null,null,null,null,null,null,null,null,null,null,null,3]
[null,null,"Řad TLT DN150 a PE D 90x8,2 mm:",null,0,null,null,null,null,null,null,null,"Řad TLT DN150 a PE D 90x8,2 mm:"]
[null,null,"Řady a propoje:",null,0,null,null,null,null,null,null,null,"Řady a propoje:"]
[null,null,"NP pro Přepojení VP D 32x3,0 mm:1",null,1,null,null,null,null,null,null,null,"NP pro Přepojení VP D 32x3,0 mm:1"]
[62,"42207800.01.R","Ruční kolo pro šoupátko DN 65-80","kus",1,null,{"$f":"E434*F434","v":0},6.1999999999999998E-3,{"$f":"E434*H434","v":6.1999999999999998E-3},null,{"$f":"E434*J434","v":0},null,null,null,2,null,null,null,null,null,null,null,null,null,null,null,3,1,"42207800.01.R",null,null,null,null,null,null,null,null,null,null,null,null,null,null,null,null,null,null,null,null,null,null,1,{"$f":"IF(AZ434=1,G434,0)","v":0},{"$f":"IF(AZ434=2,G434,0)","v":0},{"$f":"IF(AZ434=3,G434,0)","v":0},{"$f":"IF(AZ434=4,G434,0)","v":0},{"$f":"IF(AZ434=5,G434,0)","v":0},null,null,null,null,null,null,null,null,null,null,null,null,null,null,null,null,null,null,null,null,null,3,1]
[null,null,"Ruční kolo uzavírací pro šoupátka z šsdé litiny GG 250 s epoxidovou ochrannou vrstvou.",null,null,null,null,null,null,null,null,"Ruční kolo uzavírací pro šoupátka z šsdé litiny GG 250 s epoxidovou ochrannou vrstvou.",null,null,3]
[null,null,"Pro Š DN65-80.",null,null,null,null,null,null,null,null,"Pro Š DN65-80.",null,null,3]
[null,null,"Řad TLT DN150 a PE D 90x8,2 mm:",null,0,null,null,null,null,null,null,null,"Řad TLT DN150 a PE D 90x8,2 mm:"]
[null,null,"AŠ:",null,0,null,null,null,null,null,null,null,"AŠ:"]
[null,null,"Pro Šoupě DN80:1",null,1,null,null,null,null,null,null,null,"Pro Šoupě DN80:1"]
[63,"42207800.04.R","Ruční kolo pro šoupátko DN125-150","kus",6,null,{"$f":"E440*F440","v":0},6.1999999999999998E-3,{"$f":"E440*H440","v":3.7199999999999997E-2},null,{"$f":"E440*J440","v":0},null,null,null,2,null,null,null,null,null,null,null,null,null,null,null,3,1,"42207800.04.R",null,null,null,null,null,null,null,null,null,null,null,null,null,null,null,null,null,null,null,null,null,null,1,{"$f":"IF(AZ440=1,G440,0)","v":0},{"$f":"IF(AZ440=2,G440,0)","v":0},{"$f":"IF(AZ440=3,G440,0)","v":0},{"$f":"IF(AZ440=4,G440,0)","v":0},{"$f":"IF(AZ440=5,G440,0)","v":0},null,null,null,null,null,null,null,null,null,null,null,null,null,null,null,null,null,null,null,null,null,3,1]
[null,null,"Ruční kolo uzavírací pro šoupátka z šsdé litiny GG 250 s epoxidovou ochrannou vrstvou.",null,null,null,null,null,null,null,null,"Ruční kolo uzavírací pro šoupátka z šsdé litiny GG 250 s epoxidovou ochrannou vrstvou.",null,null,3]
[null,null,"Pro Š DN125-150.",null,null,null,null,null,null,null,null,"Pro Š DN125-150.",null,null,3]
[null,null,"Řad TLT DN150 a PE D 90x8,2 mm:",null,0,null,null,null,null,null,null,null,"Řad TLT DN150 a PE D 90x8,2 mm:"]
[null,null,"AŠ:",null,0,null,null,null,null,null,null,null,"AŠ:"]
[null,null,"Pro Šoupě DN150:6",null,6,null,null,null,null,null,null,null,"Pro Šoupě DN150:6"]
[64,"42209601.R","Zemní souprava tel. (1,3 - 1,8 m) č.9601 3/4-2\"","kus",1,null,{"$f":"E446*F446","v":0},2.5000000000000001E-3,{"$f":"E446*H446","v":2.5000000000000001E-3},null,{"$f":"E446*J446","v":0},null,null,null,2,null,null,null,null,null,null,null,null,null,null,null,3,1,"42209601.R",null,null,null,null,null,null,null,null,null,null,null,null,null,null,null,null,null,null,null,null,null,null,1,{"$f":"IF(AZ446=1,G446,0)","v":0},{"$f":"IF(AZ446=2,G446,0)","v":0},{"$f":"IF(AZ446=3,G446,0)","v":0},{"$f":"IF(AZ446=4,G446,0)","v":0},{"$f":"IF(AZ446=5,G446,0)","v":0},null,null,null,null,null,null,null,null,null,null,null,null,null,null,null,null,null,null,null,null,null,3,1]
[null,null,"Řad TLT DN150 a PE D 90x8,2 mm:",null,0,null,null,null,null,null,null,null,"Řad TLT DN150 a PE D 90x8,2 mm:"]
[null,null,"Řady a propoje:",null,0,null,null,null,null,null,null,null,"Řady a propoje:"]
[null,null,"Pro NP pro Přepojení VP D 32x3,0 mm:1",null,1,null,null,null,null,null,null,null,"Pro NP pro Přepojení VP D 32x3,0 mm:1"]
[65,"42209999.R","Drenážní obal","kus",2,null,{"$f":"E450*F450","v":0},4.7999999999999996E-3,{"$f":"E450*H450","v":9.5999999999999992E-3},null,{"$f":"E450*J450","v":0},null,null,null,2,null,null,null,null,null,null,null,null,null,null,null,3,1,"42209999.R",null,null,null,null,null,null,null,null,null,null,null,null,null,null,null,null,null,null,null,null,null,null,1,{"$f":"IF(AZ450=1,G450,0)","v":0},{"$f":"IF(AZ450=2,G450,0)","v":0},{"$f":"IF(AZ450=3,G450,0)","v":0},{"$f":"IF(AZ450=4,G450,0)","v":0},{"$f":"IF(AZ450=5,G450,0)","v":0},null,null,null,null,null,null,null,null,null,null,null,null,null,null,null,null,null,null,null,null,null,3,1]
[null,null,"Řad TLT DN150 a PE D 90x8,2 mm:",null,0,null,null,null,null,null,null,null,"Řad TLT DN150 a PE D 90x8,2 mm:"]
[null,null,"Řady a propoje:",null,0,null,null,null,null,null,null,null,"Řady a propoje:"]
[null,null,"Pro Hp DN80/1,5:1",null,1,null,null,null,null,null,null,null,"Pro Hp DN80/1,5:1"]
[null,null,"Pro HN DN80/1,5:1",null,1,null,null,null,null,null,null,null,"Pro HN DN80/1,5:1"]
[66,"42228310.R","Šoupátko 4000E2 DN 80 přírubové, voda PN16","kus",3,null,{"$f":"E455*F455","v":0},1.6500000000000001E-2,{"$f":"E455*H455","v":4.9500000000000002E-2},null,{"$f":"E455*J455","v":0},null,null,null,2,null,null,null,null,null,null,null,null,null,null,null,3,1,"42228310.R",null,null,null,null,null,null,null,null,null,null,null,null,null,null,null,null,null,null,null,null,null,null,1,{"$f":"IF(AZ455=1,G455,0)","v":0},{"$f":"IF(AZ455=2,G455,0)","v":0},{"$f":"IF(AZ455=3,G455,0)","v":0},{"$f":"IF(AZ455=4,G455,0)","v":0},{"$f":"IF(AZ455=5,G455,0)","v":0},null,null,null,null,null,null,null,null,null,null,null,null,null,null,null,null,null,null,null,null,null,3,1]
[null,null,"Šoupátko přírubové krkové - měkcetěsnící klínové šoupátko s hladkým a volným průtokovým kanálem",null,null,null,null,null,null,null,null,"Šoupátko přírubové krkové - měkcetěsnící klínové šoupátko s hladkým a volným průtokovým kanálem",null,null,3]
[null,null,"č. 4000E2",null,null,null,null,null,null,null,null,"č. 4000E2",null,null,3]
[null,null,"PN 16",null,null,null,null,null,null,null,null,"PN 16",null,null,3]
[null,null,"DN 80",null,null,null,null,null,null,null,null,"DN 80",null,null,3]
[null,null,"těleso a víko: tvárná litina GGG 400 - DIN 1693",null,null,null,null,null,null,null,null,"těleso a víko: tvárná litina GGG 400 - DIN 1693",null,null,3]
[null,null,"medium: pitná voda, neagresivní odpadní voda",null,null,null,null,null,null,null,null,"medium: pitná voda, neagresivní odpadní voda",null,null,3]
[null,null,"Řad TLT DN150 a PE D 90x8,2 mm:",null,0,null,null,null,null,null,null,null,"Řad TLT DN150 a PE D 90x8,2 mm:"]
[null,null,"Řady a propoje:",null,0,null,null,null,null,null,null,null,"Řady a propoje:"]
[null,null,"Šoupě DN80:2",null,2,null,null,null,null,null,null,null,"Šoupě DN80:2"]
[null,null,"AŠ:",null,0,null,null,null,null,null,null,null,"AŠ:"]
[null,null,"Šoupě DN80:1",null,1,null,null,null,null,null,null,null,"Šoupě DN80:1"]
[67,"42228314.R","Šoupátko 4000E2 DN 150 přírubové, voda PN16","kus",8,null,{"$f":"E467*F467","v":0},4.0500000000000001E-2,{"$f":"E467*H467","v":0.32400000000000001},null,{"$f":"E467*J467","v":0},null,null,null,2,null,null,null,null,null,null,null,null,null,null,null,3,1,"42228314.R",null,null,null,null,null,null,null,null,null,null,null,null,null,null,null,null,null,null,null,null,null,null,1,{"$f":"IF(AZ467=1,G467,0)","v":0},{"$f":"IF(AZ467=2,G467,0)","v":0},{"$f":"IF(AZ467=3,G467,0)","v":0},{"$f":"IF(AZ467=4,G467,0)","v":0},{"$f":"IF(AZ467=5,G467,0)","v":0},null,null,null,null,null,null,null,null,null,null,null,null,null,null,null,null,null,null,null,null,null,3,1]
[null,null,"Šoupátko přírubové krkové - měkcetěsnící klínové šoupátko s hladkým a volným průtokovým kanálem",null,null,null,null,null,null,null,null,"Šoupátko přírubové krkové - měkcetěsnící klínové šoupátko s hladkým a volným průtokovým kanálem",null,null,3]
[null,null,"č. 4000E2",null,null,null,null,null,null,null,null,"č. 4000E2",null,null,3]
[null,null,"PN 16",null,null,null,null,null,null,null,null,"PN 16",null,null,3]
[null,null,"DN 150",null,null,null,null,null,null,null,null,"DN 150",null,null,3]
[null,null,"těleso a víko: tvárná litina GGG 400 - DIN 1693",null,null,null,null,null,null,null,null,"těleso a víko: tvárná litina GGG 400 - DIN 1693",null,null,3]
[null,null,"medium: pitná voda, neagresivní odpadní voda",null,null,null,null,null,null,null,null,"medium: pitná voda, neagresivní odpadní voda",null,null,3]
[null,null,"Řad TLT DN150 a PE D 90x8,2 mm:",null,0,null,null,null,null,null,null,null,"Řad TLT DN150 a PE D 90x8,2 mm:"]
[null,null,"Řady a propoje:",null,0,null,null,null,null,null,null,null,"Řady a propoje:"]
[null,null,"Šoupě DN150:2",null,2,null,null,null,null,null,null,null,"Šoupě DN150:2"]
[null,null,"AŠ:",null,0,null,null,null,null,null,null,null,"AŠ:"]
[null,null,"Šoupě DN150:6",null,6,null,null,null,null,null,null,null,"Šoupě DN150:6"]
[68,"422737412.R","Hydrant podzemní DUO K240, DN80/1,5 m","kus",1,null,{"$f":"E479*F479","v":0},3.95E-2,{"$f":"E479*H479","v":3.95E-2},null,{"$f":"E479*J479","v":0},null,null,null,2,null,null,null,null,null,null,null,null,null,null,null,3,1,"422737412.R",null,null,null,null,null,null,null,null,null,null,null,null,null,null,null,null,null,null,null,null,null,null,1,{"$f":"IF(AZ479=1,G479,0)","v":0},{"$f":"IF(AZ479=2,G479,0)","v":0},{"$f":"IF(AZ479=3,G479,0)","v":0},{"$f":"IF(AZ479=4,G479,0)","v":0},{"$f":"IF(AZ479=5,G479,0)","v":0},null,null,null,null,null,null,null,null,null,null,null,null,null,null,null,null,null,null,null,null,null,3,1]
[null,null,"Řad TLT DN150 a PE D 90x8,2 mm:",null,0,null,null,null,null,null,null,null,"Řad TLT DN150 a PE D 90x8,2 mm:"]
[null,null,"Řady a propoje:",null,0,null,null,null,null,null,null,null,"Řady a propoje:"]
[null,null,"Hp DN80/1,5:1",null,1,null,null,null,null,null,null,null,"Hp DN80/1,5:1"]
[69,"42293250.6.R","Souprava zemní tel.9502E2/E3 DN50 -100, 1,3-1,8m","kus",2,null,{"$f":"E483*F483","v":0},7.3000000000000001E-3,{"$f":"E483*H483","v":1.46E-2},null,{"$f":"E483*J483","v":0},null,null,null,2,null,null,null,null,null,null,null,null,null,null,null,3,1,"42293250.6.R",null,null,null,null,null,null,null,null,null,null,null,null,null,null,null,null,null,null,null,null,null,null,1,{"$f":"IF(AZ483=1,G483,0)","v":0},{"$f":"IF(AZ483=2,G483,0)","v":0},{"$f":"IF(AZ483=3,G483,0)","v":0},{"$f":"IF(AZ483=4,G483,0)","v":0},{"$f":"IF(AZ483=5,G483,0)","v":0},null,null,null,null,null,null,null,null,null,null,null,null,null,null,null,null,null,null,null,null,null,3,1]
[null,null,"Řad TLT DN150 a PE D 90x8,2 mm:",null,0,null,null,null,null,null,null,null,"Řad TLT DN150 a PE D 90x8,2 mm:"]
[null,null,"Řady a propoje:",null,0,null,null,null,null,null,null,null,"Řady a propoje:"]
[null,null,"Pro Šoupě DN80:2",null,2,null,null,null,null,null,null,null,"Pro Šoupě DN80:2"]
[70,"42293250.8.R","Souprava zemní tel.9502E2/E3 DN125 -150, 1,3-1,8m","kus",2,null,{"$f":"E487*F487","v":0},7.3000000000000001E-3,{"$f":"E487*H487","v":1.46E-2},null,{"$f":"E487*J487","v":0},null,null,null,2,null,null,null,null,null,null,null,null,null,null,null,3,1,"42293250.8.R",null,null,null,null,null,null,null,null,null,null,null,null,null,null,null,null,null,null,null,null,null,null,1,{"$f":"IF(AZ487=1,G487,0)","v":0},{"$f":"IF(AZ487=2,G487,0)","v":0},{"$f":"IF(AZ487=3,G487,0)","v":0},{"$f":"IF(AZ487=4,G487,0)","v":0},{"$f":"IF(AZ487=5,G487,0)","v":0},null,null,null,null,null,null,null,null,null,null,null,null,null,null,null,null,null,null,null,null,null,3,1]
[null,null,"Řad TLT DN150 a PE D 90x8,2 mm:",null,0,null,null,null,null,null,null,null,"Řad TLT DN150 a PE D 90x8,2 mm:"]
[null,null,"Řady a propoje:",null,0,null,null,null,null,null,null,null,"Řady a propoje:"]
[null,null,"Pro Šoupě DN150:2",null,2,null,null,null,null,null,null,null,"Pro Šoupě DN150:2"]
[71,"422935322.R","Spojka Synoflex s přírubou 7994, DN 80,PN 16","kus",1,null,{"$f":"E491*F491","v":0},7.1000000000000004E-3,{"$f":"E491*H491","v":7.1000000000000004E-3},null,{"$f":"E491*J491","v":0},null,null,null,2,null,null,null,null,null,null,null,null,null,null,null,3,1,"422935322.R",null,null,null,null,null,null,null,null,null,null,null,null,null,null,null,null,null,null,null,null,null,null,1,{"$f":"IF(AZ491=1,G491,0)","v":0},{"$f":"IF(AZ491=2,G491,0)","v":0},{"$f":"IF(AZ491=3,G491,0)","v":0},{"$f":"IF(AZ491=4,G491,0)","v":0},{"$f":"IF(AZ491=5,G491,0)","v":0},null,null,null,null,null,null,null,null,null,null,null,null,null,null,null,null,null,null,null,null,null,3,1]
[null,null,"Spojka s přírubou jištěná proti posunu pro všechny standardní materiály potrubí s velkým rozsahem vnějších průměrů potrubí a úhlovým vychýlením",null,null,null,null,null,null,null,null,"Spojka s přírubou jištěná proti posunu pro všechny standardní materiály potrubí s velkým rozsahem vnějších průměrů potrubí a úhlovým vychýlením",null,null,3]
[null,null,"PROVEDENÍ: hrdlo - příruba",null,null,null,null,null,null,null,null,"PROVEDENÍ: hrdlo - příruba",null,null,3]
[null,null,"dle EN 14 525",null,null,null,null,null,null,null,null,"dle EN 14 525",null,null,3]
[null,null,"příruba a opěrný kroužek: dle EN 1092-2 PN10 (případně PN16)",null,null,null,null,null,null,null,null,"příruba a opěrný kroužek: dle EN 1092-2 PN10 (případně PN16)",null,null,3]
[null,null,"tělo a přítlačný kroužek: z tvárné litny EN-GJS-400 s povrchovou úpravou vířivým slinováním",null,null,null,null,null,null,null,null,"tělo a přítlačný kroužek: z tvárné litny EN-GJS-400 s povrchovou úpravou vířivým slinováním",null,null,3]
[null,null,"flexibilní těsnění: z elastomeru dle EN 681-1 (vhodné pro pitnou vodu)",null,null,null,null,null,null,null,null,"flexibilní těsnění: z elastomeru dle EN 681-1 (vhodné pro pitnou vodu)",null,null,3]
[null,null,"flexibilní Synoflex kroužek: z POM sestaven z jednotlivých segmentů",null,null,null,null,null,null,null,null,"flexibilní Synoflex kroužek: z POM sestaven z jednotlivých segmentů",null,null,3]
[null,null,"jistící prvky: z nekorodující oceli na každém segmentu kroužku",null,null,null,null,null,null,null,null,"jistící prvky: z nekorodující oceli na každém segmentu kroužku",null,null,3]
[null,null,"šrouby a matice: z nerezové oceli s povrchovou úpravou proti zadírání",null,null,null,null,null,null,null,null,"šrouby a matice: z nerezové oceli s povrchovou úpravou proti zadírání",null,null,3]
[null,null,"podložky: z nerezové oceli s ochrannou krytkou z elastomeru",null,null,null,null,null,null,null,null,"podložky: z nerezové oceli s ochrannou krytkou z elastomeru",null,null,3]
[null,null,"šrbouby: lze použít i otočené o 180°",null,null,null,null,null,null,null,null,"šrbouby: lze použít i otočené o 180°",null,null,3]
[null,null,"distanční objímky: z plastu",null,null,null,null,null,null,null,null,"distanční objímky: z plastu",null,null,3]
[null,null,"úhlové vychýlení (ČSN EN 14 525)",null,null,null,null,null,null,null,null,"úhlové vychýlení (ČSN EN 14 525)",null,null,3]
[null,null,"pro jištění tahových sil na PE potrubí doporučujeme instalaci rozpěrných pouzder (č. 6035, 6036)",null,null,null,null,null,null,null,null,"pro jištění tahových sil na PE potrubí doporučujeme instalaci rozpěrných pouzder (č. 6035, 6036)",null,null,3]
[null,null,"Řad TLT DN150 a PE D 90x8,2 mm:",null,0,null,null,null,null,null,null,null,"Řad TLT DN150 a PE D 90x8,2 mm:"]
[null,null,"Řady a propoje:",null,0,null,null,null,null,null,null,null,"Řady a propoje:"]
[null,null,"Synoflex s přírubou DN80:1",null,1,null,null,null,null,null,null,null,"Synoflex s přírubou DN80:1"]
[72,"422935323.R","Spojka Synoflex s přírubou 7994, DN100,PN 16","kus",2,null,{"$f":"E509*F509","v":0},1.0800000000000001E-2,{"$f":"E509*H509","v":2.1600000000000001E-2},null,{"$f":"E509*J509","v":0},null,null,null,2,null,null,null,null,null,null,null,null,null,null,null,3,1,"422935323.R",null,null,null,null,null,null,null,null,null,null,null,null,null,null,null,null,null,null,null,null,null,null,1,{"$f":"IF(AZ509=1,G509,0)","v":0},{"$f":"IF(AZ509=2,G509,0)","v":0},{"$f":"IF(AZ509=3,G509,0)","v":0},{"$f":"IF(AZ509=4,G509,0)","v":0},{"$f":"IF(AZ509=5,G509,0)","v":0},null,null,null,null,null,null,null,null,null,null,null,null,null,null,null,null,null,null,null,null,null,3,1]
[null,null,"Spojka s přírubou jištěná proti posunu pro všechny standardní materiály potrubí s velkým rozsahem vnějších průměrů potrubí a úhlovým vychýlením",null,null,null,null,null,null,null,null,"Spojka s přírubou jištěná proti posunu pro všechny standardní materiály potrubí s velkým rozsahem vnějších průměrů potrubí a úhlovým vychýlením",null,null,3]
[null,null,"PROVEDENÍ: hrdlo - příruba",null,null,null,null,null,null,null,null,"PROVEDENÍ: hrdlo - příruba",null,null,3]
[null,null,"dle EN 14 525",null,null,null,null,null,null,null,null,"dle EN 14 525",null,null,3]
[null,null,"příruba a opěrný kroužek: dle EN 1092-2 PN10 (případně PN16)",null,null,null,null,null,null,null,null,"příruba a opěrný kroužek: dle EN 1092-2 PN10 (případně PN16)",null,null,3]
[null,null,"tělo a přítlačný kroužek: z tvárné litny EN-GJS-400 s povrchovou úpravou vířivým slinováním",null,null,null,null,null,null,null,null,"tělo a přítlačný kroužek: z tvárné litny EN-GJS-400 s povrchovou úpravou vířivým slinováním",null,null,3]
[null,null,"flexibilní těsnění: z elastomeru dle EN 681-1 (vhodné pro pitnou vodu)",null,null,null,null,null,null,null,null,"flexibilní těsnění: z elastomeru dle EN 681-1 (vhodné pro pitnou vodu)",null,null,3]
[null,null,"flexibilní Synoflex kroužek: z POM sestaven z jednotlivých segmentů",null,null,null,null,null,null,null,null,"flexibilní Synoflex kroužek: z POM sestaven z jednotlivých segmentů",null,null,3]
[null,null,"jistící prvky: z nekorodující oceli na každém segmentu kroužku",null,null,null,null,null,null,null,null,"jistící prvky: z nekorodující oceli na každém segmentu kroužku",null,null,3]
[null,null,"šrouby a matice: z nerezové oceli s povrchovou úpravou proti zadírání",null,null,null,null,null,null,null,null,"šrouby a matice: z nerezové oceli s povrchovou úpravou proti zadírání",null,null,3]
[null,null,"podložky: z nerezové oceli s ochrannou krytkou z elastomeru",null,null,null,null,null,null,null,null,"podložky: z nerezové oceli s ochrannou krytkou z elastomeru",null,null,3]
[null,null,"šrbouby: lze použít i otočené o 180°",null,null,null,null,null,null,null,null,"šrbouby: lze použít i otočené o 180°",null,null,3]
[null,null,"distanční objímky: z plastu",null,null,null,null,null,null,null,null,"distanční objímky: z plastu",null,null,3]
[null,null,"úhlové vychýlení (ČSN EN 14 525)",null,null,null,null,null,null,null,null,"úhlové vychýlení (ČSN EN 14 525)",null,null,3]
[null,null,"pro jištění tahových sil na PE potrubí doporučujeme instalaci rozpěrných pouzder (č. 6035, 6036)",null,null,null,null,null,null,null,null,"pro jištění tahových sil na PE potrubí doporučujeme instalaci rozpěrných pouzder (č. 6035, 6036)",null,null,3]
[null,null,"Řad TLT DN150 a PE D 90x8,2 mm:",null,0,null,null,null,null,null,null,null,"Řad TLT DN150 a PE D 90x8,2 mm:"]
[null,null,"Řady a propoje:",null,0,null,null,null,null,null,null,null,"Řady a propoje:"]
[null,null,"Synoflex s přírubou DN100:2",null,2,null,null,null,null,null,null,null,"Synoflex s přírubou DN100:2"]
[73,"422935325.R","Spojka Synoflex s přírubou 7994, DN150,PN 16","kus",2,null,{"$f":"E527*F527","v":0},1.67E-2,{"$f":"E527*H527","v":3.3399999999999999E-2},null,{"$f":"E527*J527","v":0},null,null,null,2,null,null,null,null,null,null,null,null,null,null,null,3,1,"422935325.R",null,null,null,null,null,null,null,null,null,null,null,null,null,null,null,null,null,null,null,null,null,null,1,{"$f":"IF(AZ527=1,G527,0)","v":0},{"$f":"IF(AZ527=2,G527,0)","v":0},{"$f":"IF(AZ527=3,G527,0)","v":0},{"$f":"IF(AZ527=4,G527,0)","v":0},{"$f":"IF(AZ527=5,G527,0)","v":0},null,null,null,null,null,null,null,null,null,null,null,null,null,null,null,null,null,null,null,null,null,3,1]
[null,null,"Řad TLT DN150 a PE D 90x8,2 mm:",null,0,null,null,null,null,null,null,null,"Řad TLT DN150 a PE D 90x8,2 mm:"]
[null,null,"Řady a propoje:",null,0,null,null,null,null,null,null,null,"Řady a propoje:"]
[null,null,"Synoflex s přírubou DN150:2",null,2,null,null,null,null,null,null,null,"Synoflex s přírubou DN150:2"]
[74,"55251100.R","Trouba vod.lit.tlak. DN 80 mm  spoj TYTON","m",7.2720000000000002,null,{"$f":"E531*F531","v":0},1.4500000000000001E-2,{"$f":"E531*H531","v":0.10544400000000001},null,{"$f":"E531*J531","v":0},null,null,null,2,null,null,null,null,null,null,null,null,null,null,null,3,1,"55251100.R",null,null,null,null,null,null,null,null,null,null,null,null,null,null,null,null,null,null,null,null,null,null,1,{"$f":"IF(AZ531=1,G531,0)","v":0},{"$f":"IF(AZ531=2,G531,0)","v":0},{"$f":"IF(AZ531=3,G531,0)","v":0},{"$f":"IF(AZ531=4,G531,0)","v":0},{"$f":"IF(AZ531=5,G531,0)","v":0},null,null,null,null,null,null,null,null,null,null,null,null,null,null,null,null,null,null,null,null,null,3,1]
[null,null,"Hrdlová trouba z tvárné litiny s hladkým koncem dle ČSN EN 545",null,null,null,null,null,null,null,null,"Hrdlová trouba z tvárné litiny s hladkým koncem dle ČSN EN 545",null,null,3]
[null,null,"Hrdlový spoj Tyton (pružný násuvný spoj EPDM)",null,null,null,null,null,null,null,null,"Hrdlový spoj Tyton (pružný násuvný spoj EPDM)",null,null,3]
[null,null,"Duktus standard - vně vrstva pozinkování 200 g/m2 s krycí modrou epoxidovou vrstvou",null,null,null,null,null,null,null,null,"Duktus standard - vně vrstva pozinkování 200 g/m2 s krycí modrou epoxidovou vrstvou",null,null,3]
[null,null,"uvnitř vyložení z cementové malty z vysokopecního cementu",null,null,null,null,null,null,null,null,"uvnitř vyložení z cementové malty z vysokopecního cementu",null,null,3]
[null,null,"hrdla trub jsou zevnitř pozinkována a pokryta epoxidovým povlakem",null,null,null,null,null,null,null,null,"hrdla trub jsou zevnitř pozinkována a pokryta epoxidovým povlakem",null,null,3]
[null,null,"Řad TLT DN150 a PE D 90x8,2 mm:",null,0,null,null,null,null,null,null,null,"Řad TLT DN150 a PE D 90x8,2 mm:"]
[null,null,"Propoj do AŠ TLT DN80:7,20*1,01",null,7.2720000000000002,null,null,null,null,null,null,null,"Propoj do AŠ TLT DN80:7,20*1,01"]
[75,"55251102.R","Trouba vod.lit.tlak. DN 100 mm spoj TYTON","m",10.605,null,{"$f":"E539*F539","v":0},1.77E-2,{"$f":"E539*H539","v":0.1877085},null,{"$f":"E539*J539","v":0},null,null,null,2,null,null,null,null,null,null,null,null,null,null,null,3,1,"55251102.R",null,null,null,null,null,null,null,null,null,null,null,null,null,null,null,null,null,null,null,null,null,null,1,{"$f":"IF(AZ539=1,G539,0)","v":0},{"$f":"IF(AZ539=2,G539,0)","v":0},{"$f":"IF(AZ539=3,G539,0)","v":0},{"$f":"IF(AZ539=4,G539,0)","v":0},{"$f":"IF(AZ539=5,G539,0)","v":0},null,null,null,null,null,null,null,null,null,null,null,null,null,null,null,null,null,null,null,null,null,3,1]
[null,null,"Hrdlová trouba z tvárné litiny s hladkým koncem dle ČSN EN 545",null,null,null,null,null,null,null,null,"Hrdlová trouba z tvárné litiny s hladkým koncem dle ČSN EN 545",null,null,3]
[null,null,"Hrdlový spoj Tyton (pružný násuvný spoj EPDM)",null,null,null,null,null,null,null,null,"Hrdlový spoj Tyton (pružný násuvný spoj EPDM)",null,null,3]
[null,null,"Duktus standard - vně vrstva pozinkování 200 g/m2 s krycí modrou epoxidovou vrstvou",null,null,null,null,null,null,null,null,"Duktus standard - vně vrstva pozinkování 200 g/m2 s krycí modrou epoxidovou vrstvou",null,null,3]
[null,null,"uvnitř vyložení z cementové malty z vysokopecního cementu",null,null,null,null,null,null,null,null,"uvnitř vyložení z cementové malty z vysokopecního cementu",null,null,3]
[null,null,"hrdla trub jsou zevnitř pozinkována a pokryta epoxidovým povlakem",null,null,null,null,null,null,null,null,"hrdla trub jsou zevnitř pozinkována a pokryta epoxidovým povlakem",null,null,3]
[null,null,"Řad TLT DN150 a PE D 90x8,2 mm:",null,0,null,null,null,null,null,null,null,"Řad TLT DN150 a PE D 90x8,2 mm:"]
[null,null,"Propoj do AŠ TLT DN100:(4,50+6,00)*1,01",null,10.605,null,null,null,null,null,null,null,"Propoj do AŠ TLT DN100:(4,50+6,00)*1,01"]
[76,"55251106.R","Trouba vod.lit.tlak. DN 150 mm spoj TYTON","m",66.760999999999996,null,{"$f":"E547*F547","v":0},2.8000000000000001E-2,{"$f":"E547*H547","v":1.869308},null,{"$f":"E547*J547","v":0},null,null,null,2,null,null,null,null,null,null,null,null,null,null,null,3,1,"55251106.R",null,null,null,null,null,null,null,null,null,null,null,null,null,null,null,null,null,null,null,null,null,null,1,{"$f":"IF(AZ547=1,G547,0)","v":0},{"$f":"IF(AZ547=2,G547,0)","v":0},{"$f":"IF(AZ547=3,G547,0)","v":0},{"$f":"IF(AZ547=4,G547,0)","v":0},{"$f":"IF(AZ547=5,G547,0)","v":0},null,null,null,null,null,null,null,null,null,null,null,null,null,null,null,null,null,null,null,null,null,3,1]
[null,null,"Hrdlová trouba z tvárné litiny s hladkým koncem dle ČSN EN 545",null,null,null,null,null,null,null,null,"Hrdlová trouba z tvárné litiny s hladkým koncem dle ČSN EN 545",null,null,3]
[null,null,"Hrdlový spoj Tyton (pružný násuvný spoj EPDM)",null,null,null,null,null,null,null,null,"Hrdlový spoj Tyton (pružný násuvný spoj EPDM)",null,null,3]
[null,null,"Duktus standard - vně vrstva pozinkování 200 g/m2 s krycí modrou epoxidovou vrstvou",null,null,null,null,null,null,null,null,"Duktus standard - vně vrstva pozinkování 200 g/m2 s krycí modrou epoxidovou vrstvou",null,null,3]
[null,null,"uvnitř vyložení z cementové malty z vysokopecního cementu",null,null,null,null,null,null,null,null,"uvnitř vyložení z cementové malty z vysokopecního cementu",null,null,3]
[null,null,"hrdla trub jsou zevnitř pozinkována a pokryta epoxidovým povlakem",null,null,null,null,null,null,null,null,"hrdla trub jsou zevnitř pozinkována a pokryta epoxidovým povlakem",null,null,3]
[null,null,"Řad TLT DN150 a PE D 90x8,2 mm:",null,0,null,null,null,null,null,null,null,"Řad TLT DN150 a PE D 90x8,2 mm:"]
[null,null,"Řad TLT DN150 :46,10*1,01",null,46.561,null,null,null,null,null,null,null,"Řad TLT DN150 :46,10*1,01"]
[null,null,"Propoj na TLT DN150:10,00*1,01",null,10.1,null,null,null,null,null,null,null,"Propoj na TLT DN150:10,00*1,01"]
[null,null,"Propoj do AŠ TLT DN150:10,00*1,01",null,10.1,null,null,null,null,null,null,null,"Propoj do AŠ TLT DN150:10,00*1,01"]
[77,"55251218.R","Trouba přír.litin. FF DN 80 mm dl.600 mm","kus",1,null,{"$f":"E557*F557","v":0},1.29E-2,{"$f":"E557*H557","v":1.29E-2},null,{"$f":"E557*J557","v":0},null,null,null,2,null,null,null,null,null,null,null,null,null,null,null,3,1,"55251218.R",null,null,null,null,null,null,null,null,null,null,null,null,null,null,null,null,null,null,null,null,null,null,1,{"$f":"IF(AZ557=1,G557,0)","v":0},{"$f":"IF(AZ557=2,G557,0)","v":0},{"$f":"IF(AZ557=3,G557,0)","v":0},{"$f":"IF(AZ557=4,G557,0)","v":0},{"$f":"IF(AZ557=5,G557,0)","v":0},null,null,null,null,null,null,null,null,null,null,null,null,null,null,null,null,null,null,null,null,null,3,1]
[null,null,"Řad TLT DN150 a PE D 90x8,2 mm:",null,0,null,null,null,null,null,null,null,"Řad TLT DN150 a PE D 90x8,2 mm:"]
[null,null,"Řady a propoje:",null,0,null,null,null,null,null,null,null,"Řady a propoje:"]
[null,null,"FF DN80/600:1",null,1,null,null,null,null,null,null,null,"FF DN80/600:1"]
[78,"55251246.R","Trouba přír.litin. FF DN 100 mm dl.400 mm","kus",1,null,{"$f":"E561*F561","v":0},1.46E-2,{"$f":"E561*H561","v":1.46E-2},null,{"$f":"E561*J561","v":0},null,null,null,2,null,null,null,null,null,null,null,null,null,null,null,3,1,"55251246.R",null,null,null,null,null,null,null,null,null,null,null,null,null,null,null,null,null,null,null,null,null,null,1,{"$f":"IF(AZ561=1,G561,0)","v":0},{"$f":"IF(AZ561=2,G561,0)","v":0},{"$f":"IF(AZ561=3,G561,0)","v":0},{"$f":"IF(AZ561=4,G561,0)","v":0},{"$f":"IF(AZ561=5,G561,0)","v":0},null,null,null,null,null,null,null,null,null,null,null,null,null,null,null,null,null,null,null,null,null,3,1]
[null,null,"Řad TLT DN150 a PE D 90x8,2 mm:",null,0,null,null,null,null,null,null,null,"Řad TLT DN150 a PE D 90x8,2 mm:"]
[null,null,"Řady a propoje:",null,0,null,null,null,null,null,null,null,"Řady a propoje:"]
[null,null,"FF DN100/400:1",null,1,null,null,null,null,null,null,null,"FF DN100/400:1"]
[79,"55251248.R","Trouba přír.litin. FF DN 100mm dl.600 mm","kus",1,null,{"$f":"E565*F565","v":0},1.55E-2,{"$f":"E565*H565","v":1.55E-2},null,{"$f":"E565*J565","v":0},null,null,null,2,null,null,null,null,null,null,null,null,null,null,null,3,1,"55251248.R",null,null,null,null,null,null,null,null,null,null,null,null,null,null,null,null,null,null,null,null,null,null,1,{"$f":"IF(AZ565=1,G565,0)","v":0},{"$f":"IF(AZ565=2,G565,0)","v":0},{"$f":"IF(AZ565=3,G565,0)","v":0},{"$f":"IF(AZ565=4,G565,0)","v":0},{"$f":"IF(AZ565=5,G565,0)","v":0},null,null,null,null,null,null,null,null,null,null,null,null,null,null,null,null,null,null,null,null,null,3,1]
[null,null,"Řad TLT DN150 a PE D 90x8,2 mm:",null,0,null,null,null,null,null,null,null,"Řad TLT DN150 a PE D 90x8,2 mm:"]
[null,null,"Řady a propoje:",null,0,null,null,null,null,null,null,null,"Řady a propoje:"]
[null,null,"FF DN100/600:1",null,1,null,null,null,null,null,null,null,"FF DN100/600:1"]
[80,"55251308.R","Trouba přír.litin. FF DN 150 mm dl.600 mm","kus",2,null,{"$f":"E569*F569","v":0},2.41E-2,{"$f":"E569*H569","v":4.82E-2},null,{"$f":"E569*J569","v":0},null,null,null,2,null,null,null,null,null,null,null,null,null,null,null,3,1,"55251308.R",null,null,null,null,null,null,null,null,null,null,null,null,null,null,null,null,null,null,null,null,null,null,1,{"$f":"IF(AZ569=1,G569,0)","v":0},{"$f":"IF(AZ569=2,G569,0)","v":0},{"$f":"IF(AZ569=3,G569,0)","v":0},{"$f":"IF(AZ569=4,G569,0)","v":0},{"$f":"IF(AZ569=5,G569,0)","v":0},null,null,null,null,null,null,null,null,null,null,null,null,null,null,null,null,null,null,null,null,null,3,1]
[null,null,"Řad TLT DN150 a PE D 90x8,2 mm:",null,0,null,null,null,null,null,null,null,"Řad TLT DN150 a PE D 90x8,2 mm:"]
[null,null,"Řady a propoje:",null,0,null,null,null,null,null,null,null,"Řady a propoje:"]
[null,null,"FF DN150/600:1",null,1,null,null,null,null,null,null,null,"FF DN150/600:1"]
[null,null,"AŠ:",null,0,null,null,null,null,null,null,null,"AŠ:"]
[null,null,"FF DN150/600:1",null,1,null,null,null,null,null,null,null,"FF DN150/600:1"]
[81,"5525852703.R","Tvarovka přír.litin. s hlad.koncem F DN 80","kus",2,null,{"$f":"E575*F575","v":0},7.7000000000000002E-3,{"$f":"E575*H575","v":1.54E-2},null,{"$f":"E575*J575","v":0},null,null,null,2,null,null,null,null,null,null,null,null,null,null,null,3,1,"5525852703.R",null,null,null,null,null,null,null,null,null,null,null,null,null,null,null,null,null,null,null,null,null,null,1,{"$f":"IF(AZ575=1,G575,0)","v":0},{"$f":"IF(AZ575=2,G575,0)","v":0},{"$f":"IF(AZ575=3,G575,0)","v":0},{"$f":"IF(AZ575=4,G575,0)","v":0},{"$f":"IF(AZ575=5,G575,0)","v":0},null,null,null,null,null,null,null,null,null,null,null,null,null,null,null,null,null,null,null,null,null,3,1]
[null,null,"Řad TLT DN150 a PE D 90x8,2 mm:",null,0,null,null,null,null,null,null,null,"Řad TLT DN150 a PE D 90x8,2 mm:"]
[null,null,"Řady a propoje:",null,0,null,null,null,null,null,null,null,"Řady a propoje:"]
[null,null,"F DN80:2",null,2,null,null,null,null,null,null,null,"F DN80:2"]
[82,"5525852704.R","Tvarovka přír.litin. s hlad.koncem  F DN 100","kus",2,null,{"$f":"E579*F579","v":0},9.7000000000000003E-3,{"$f":"E579*H579","v":1.9400000000000001E-2},null,{"$f":"E579*J579","v":0},null,null,null,2,null,null,null,null,null,null,null,null,null,null,null,3,1,"5525852704.R",null,null,null,null,null,null,null,null,null,null,null,null,null,null,null,null,null,null,null,null,null,null,1,{"$f":"IF(AZ579=1,G579,0)","v":0},{"$f":"IF(AZ579=2,G579,0)","v":0},{"$f":"IF(AZ579=3,G579,0)","v":0},{"$f":"IF(AZ579=4,G579,0)","v":0},{"$f":"IF(AZ579=5,G579,0)","v":0},null,null,null,null,null,null,null,null,null,null,null,null,null,null,null,null,null,null,null,null,null,3,1]
[null,null,"Řad TLT DN150 a PE D 90x8,2 mm:",null,0,null,null,null,null,null,null,null,"Řad TLT DN150 a PE D 90x8,2 mm:"]
[null,null,"Řady a propoje:",null,0,null,null,null,null,null,null,null,"Řady a propoje:"]
[null,null,"F DN100:2",null,2,null,null,null,null,null,null,null,"F DN100:2"]
[83,"5525852706.R","Tvarovka přír.litin. s hlad.koncem F DN 150","kus",5,null,{"$f":"E583*F583","v":0},1.5599999999999999E-2,{"$f":"E583*H583","v":7.8E-2},null,{"$f":"E583*J583","v":0},null,null,null,2,null,null,null,null,null,null,null,null,null,null,null,3,1,"5525852706.R",null,null,null,null,null,null,null,null,null,null,null,null,null,null,null,null,null,null,null,null,null,null,1,{"$f":"IF(AZ583=1,G583,0)","v":0},{"$f":"IF(AZ583=2,G583,0)","v":0},{"$f":"IF(AZ583=3,G583,0)","v":0},{"$f":"IF(AZ583=4,G583,0)","v":0},{"$f":"IF(AZ583=5,G583,0)","v":0},null,null,null,null,null,null,null,null,null,null,null,null,null,null,null,null,null,null,null,null,null,3,1]
[null,null,"Řad TLT DN150 a PE D 90x8,2 mm:",null,0,null,null,null,null,null,null,null,"Řad TLT DN150 a PE D 90x8,2 mm:"]
[null,null,"Řady a propoje:",null,0,null,null,null,null,null,null,null,"Řady a propoje:"]
[null,null,"F DN150:5",null,5,null,null,null,null,null,null,null,"F DN150:5"]
[84,"55259454.R","Koleno hrdlové MMK DN150/30°","kus",2,null,{"$f":"E587*F587","v":0},1.4800000000000001E-2,{"$f":"E587*H587","v":2.9600000000000001E-2},null,{"$f":"E587*J587","v":0},null,null,null,2,null,null,null,null,null,null,null,null,null,null,null,3,1,"55259454.R",null,null,null,null,null,null,null,null,null,null,null,null,null,null,null,null,null,null,null,null,null,null,1,{"$f":"IF(AZ587=1,G587,0)","v":0},{"$f":"IF(AZ587=2,G587,0)","v":0},{"$f":"IF(AZ587=3,G587,0)","v":0},{"$f":"IF(AZ587=4,G587,0)","v":0},{"$f":"IF(AZ587=5,G587,0)","v":0},null,null,null,null,null,null,null,null,null,null,null,null,null,null,null,null,null,null,null,null,null,3,1]
[null,null,"Řad TLT DN150 a PE D 90x8,2 mm:",null,0,null,null,null,null,null,null,null,"Řad TLT DN150 a PE D 90x8,2 mm:"]
[null,null,"Řady a propoje:",null,0,null,null,null,null,null,null,null,"Řady a propoje:"]
[null,null,"MMK DN150/30°:2",null,2,null,null,null,null,null,null,null,"MMK DN150/30°:2"]
[85,"55259730.R","Tvar. přír. s hrdlem EU DN 80","kus",1,null,{"$f":"E591*F591","v":0},6.8999999999999999E-3,{"$f":"E591*H591","v":6.8999999999999999E-3},null,{"$f":"E591*J591","v":0},null,null,null,2,null,null,null,null,null,null,null,null,null,null,null,3,1,"55259730.R",null,null,null,null,null,null,null,null,null,null,null,null,null,null,null,null,null,null,null,null,null,null,1,{"$f":"IF(AZ591=1,G591,0)","v":0},{"$f":"IF(AZ591=2,G591,0)","v":0},{"$f":"IF(AZ591=3,G591,0)","v":0},{"$f":"IF(AZ591=4,G591,0)","v":0},{"$f":"IF(AZ591=5,G591,0)","v":0},null,null,null,null,null,null,null,null,null,null,null,null,null,null,null,null,null,null,null,null,null,3,1]
[null,null,"Řad TLT DN150 a PE D 90x8,2 mm:",null,0,null,null,null,null,null,null,null,"Řad TLT DN150 a PE D 90x8,2 mm:"]
[null,null,"Řady a propoje:",null,0,null,null,null,null,null,null,null,"Řady a propoje:"]
[null,null,"EU DN80:1",null,1,null,null,null,null,null,null,null,"EU DN80:1"]
[86,"55259731.R","Tvar. přír. s hrdlem EU DN 100","kus",2,null,{"$f":"E595*F595","v":0},8.8000000000000005E-3,{"$f":"E595*H595","v":1.7600000000000001E-2},null,{"$f":"E595*J595","v":0},null,null,null,2,null,null,null,null,null,null,null,null,null,null,null,3,1,"55259731.R",null,null,null,null,null,null,null,null,null,null,null,null,null,null,null,null,null,null,null,null,null,null,1,{"$f":"IF(AZ595=1,G595,0)","v":0},{"$f":"IF(AZ595=2,G595,0)","v":0},{"$f":"IF(AZ595=3,G595,0)","v":0},{"$f":"IF(AZ595=4,G595,0)","v":0},{"$f":"IF(AZ595=5,G595,0)","v":0},null,null,null,null,null,null,null,null,null,null,null,null,null,null,null,null,null,null,null,null,null,3,1]
[null,null,"Řad TLT DN150 a PE D 90x8,2 mm:",null,0,null,null,null,null,null,null,null,"Řad TLT DN150 a PE D 90x8,2 mm:"]
[null,null,"EU DN100:2",null,2,null,null,null,null,null,null,null,"EU DN100:2"]
[87,"55259733.R","Tvar. přír. s hrdlem EU DN 150","kus",2,null,{"$f":"E598*F598","v":0},1.6E-2,{"$f":"E598*H598","v":3.2000000000000001E-2},null,{"$f":"E598*J598","v":0},null,null,null,2,null,null,null,null,null,null,null,null,null,null,null,3,1,"55259733.R",null,null,null,null,null,null,null,null,null,null,null,null,null,null,null,null,null,null,null,null,null,null,1,{"$f":"IF(AZ598=1,G598,0)","v":0},{"$f":"IF(AZ598=2,G598,0)","v":0},{"$f":"IF(AZ598=3,G598,0)","v":0},{"$f":"IF(AZ598=4,G598,0)","v":0},{"$f":"IF(AZ598=5,G598,0)","v":0},null,null,null,null,null,null,null,null,null,null,null,null,null,null,null,null,null,null,null,null,null,3,1]
[null,null,"Řad TLT DN150 a PE D 90x8,2 mm:",null,0,null,null,null,null,null,null,null,"Řad TLT DN150 a PE D 90x8,2 mm:"]
[null,null,"Řady a propoje:",null,0,null,null,null,null,null,null,null,"Řady a propoje:"]
[null,null,"EU DN150:2",null,2,null,null,null,null,null,null,null,"EU DN150:2"]
[88,"55259819.R","Přechod přír. FFR DN 150/ 80","kus",1,null,{"$f":"E602*F602","v":0},1.38E-2,{"$f":"E602*H602","v":1.38E-2},null,{"$f":"E602*J602","v":0},null,null,null,2,null,null,null,null,null,null,null,null,null,null,null,3,1,"55259819.R",null,null,null,null,null,null,null,null,null,null,null,null,null,null,null,null,null,null,null,null,null,null,1,{"$f":"IF(AZ602=1,G602,0)","v":0},{"$f":"IF(AZ602=2,G602,0)","v":0},{"$f":"IF(AZ602=3,G602,0)","v":0},{"$f":"IF(AZ602=4,G602,0)","v":0},{"$f":"IF(AZ602=5,G602,0)","v":0},null,null,null,null,null,null,null,null,null,null,null,null,null,null,null,null,null,null,null,null,null,3,1]
[null,null,"Řad TLT DN150 a PE D 90x8,2 mm:",null,0,null,null,null,null,null,null,null,"Řad TLT DN150 a PE D 90x8,2 mm:"]
[null,null,"Řady a propoje:",null,0,null,null,null,null,null,null,null,"Řady a propoje:"]
[null,null,"FFR DN150/80:1",null,1,null,null,null,null,null,null,null,"FFR DN150/80:1"]
[89,"55259820.R","Přechod přír. FFR DN 150/100","kus",2,null,{"$f":"E606*F606","v":0},1.3899999999999999E-2,{"$f":"E606*H606","v":2.7799999999999998E-2},null,{"$f":"E606*J606","v":0},null,null,null,2,null,null,null,null,null,null,null,null,null,null,null,3,1,"55259820.R",null,null,null,null,null,null,null,null,null,null,null,null,null,null,null,null,null,null,null,null,null,null,1,{"$f":"IF(AZ606=1,G606,0)","v":0},{"$f":"IF(AZ606=2,G606,0)","v":0},{"$f":"IF(AZ606=3,G606,0)","v":0},{"$f":"IF(AZ606=4,G606,0)","v":0},{"$f":"IF(AZ606=5,G606,0)","v":0},null,null,null,null,null,null,null,null,null,null,null,null,null,null,null,null,null,null,null,null,null,3,1]
[null,null,"Řad TLT DN150 a PE D 90x8,2 mm:",null,0,null,null,null,null,null,null,null,"Řad TLT DN150 a PE D 90x8,2 mm:"]
[null,null,"AŠ:",null,0,null,null,null,null,null,null,null,"AŠ:"]
[null,null,"FFR DN150/100:2",null,2,null,null,null,null,null,null,null,"FFR DN150/100:2"]
[90,"55259985.R","Koleno přírubové Q DN 150-90°","kus",3,null,{"$f":"E610*F610","v":0},2.3599999999999999E-2,{"$f":"E610*H610","v":7.0800000000000002E-2},null,{"$f":"E610*J610","v":0},null,null,null,2,null,null,null,null,null,null,null,null,null,null,null,3,1,"55259985.R",null,null,null,null,null,null,null,null,null,null,null,null,null,null,null,null,null,null,null,null,null,null,1,{"$f":"IF(AZ610=1,G610,0)","v":0},{"$f":"IF(AZ610=2,G610,0)","v":0},{"$f":"IF(AZ610=3,G610,0)","v":0},{"$f":"IF(AZ610=4,G610,0)","v":0},{"$f":"IF(AZ610=5,G610,0)","v":0},null,null,null,null,null,null,null,null,null,null,null,null,null,null,null,null,null,null,null,null,null,3,1]
[null,null,"Řad TLT DN150 a PE D 90x8,2 mm:",null,0,null,null,null,null,null,null,null,"Řad TLT DN150 a PE D 90x8,2 mm:"]
[null,null,"Řady a propoje:",null,0,null,null,null,null,null,null,null,"Řady a propoje:"]
[null,null,"Q DN150:1",null,1,null,null,null,null,null,null,null,"Q DN150:1"]
[null,null,"AŠ:",null,0,null,null,null,null,null,null,null,"AŠ:"]
[null,null,"Q DN150:2",null,2,null,null,null,null,null,null,null,"Q DN150:2"]
[91,"552599953.R","Tvarovka přír. s přír. odb. T DN 150/80","kus",3,null,{"$f":"E616*F616","v":0},2.76E-2,{"$f":"E616*H616","v":8.2799999999999999E-2},null,{"$f":"E616*J616","v":0},null,null,null,2,null,null,null,null,null,null,null,null,null,null,null,3,1,"552599953.R",null,null,null,null,null,null,null,null,null,null,null,null,null,null,null,null,null,null,null,null,null,null,1,{"$f":"IF(AZ616=1,G616,0)","v":0},{"$f":"IF(AZ616=2,G616,0)","v":0},{"$f":"IF(AZ616=3,G616,0)","v":0},{"$f":"IF(AZ616=4,G616,0)","v":0},{"$f":"IF(AZ616=5,G616,0)","v":0},null,null,null,null,null,null,null,null,null,null,null,null,null,null,null,null,null,null,null,null,null,3,1]
[null,null,"Řad TLT DN150 a PE D 90x8,2 mm:",null,0,null,null,null,null,null,null,null,"Řad TLT DN150 a PE D 90x8,2 mm:"]
[null,null,"Řady a propoje:",null,0,null,null,null,null,null,null,null,"Řady a propoje:"]
[null,null,"T DN150/80:1",null,1,null,null,null,null,null,null,null,"T DN150/80:1"]
[null,null,"AŠ:",null,0,null,null,null,null,null,null,null,"AŠ:"]
[null,null,"T DN150/80:2",null,2,null,null,null,null,null,null,null,"T DN150/80:2"]
[92,"552599956.R","Tvarovka přír. s přír. odb. T DN 150/150","kus",1,null,{"$f":"E622*F622","v":0},2.9899999999999999E-2,{"$f":"E622*H622","v":2.9899999999999999E-2},null,{"$f":"E622*J622","v":0},null,null,null,2,null,null,null,null,null,null,null,null,null,null,null,3,1,"552599956.R",null,null,null,null,null,null,null,null,null,null,null,null,null,null,null,null,null,null,null,null,null,null,1,{"$f":"IF(AZ622=1,G622,0)","v":0},{"$f":"IF(AZ622=2,G622,0)","v":0},{"$f":"IF(AZ622=3,G622,0)","v":0},{"$f":"IF(AZ622=4,G622,0)","v":0},{"$f":"IF(AZ622=5,G622,0)","v":0},null,null,null,null,null,null,null,null,null,null,null,null,null,null,null,null,null,null,null,null,null,3,1]
[null,null,"Řad TLT DN150 a PE D 90x8,2 mm:",null,0,null,null,null,null,null,null,null,"Řad TLT DN150 a PE D 90x8,2 mm:"]
[null,null,"Řady a propoje:",null,0,null,null,null,null,null,null,null,"Řady a propoje:"]
[null,null,"T DN150/80:1",null,1,null,null,null,null,null,null,null,"T DN150/80:1"]
[93,"55260006.A.R","Kříž přírubový TT DN 150/150","kus",1,null,{"$f":"E626*F626","v":0},4.1500000000000002E-2,{"$f":"E626*H626","v":4.1500000000000002E-2},null,{"$f":"E626*J626","v":0},null,null,null,2,null,null,null,null,null,null,null,null,null,null,null,3,1,"55260006.A.R",null,null,null,null,null,null,null,null,null,null,null,null,null,null,null,null,null,null,null,null,null,null,1,{"$f":"IF(AZ626=1,G626,0)","v":0},{"$f":"IF(AZ626=2,G626,0)","v":0},{"$f":"IF(AZ626=3,G626,0)","v":0},{"$f":"IF(AZ626=4,G626,0)","v":0},{"$f":"IF(AZ626=5,G626,0)","v":0},null,null,null,null,null,null,null,null,null,null,null,null,null,null,null,null,null,null,null,null,null,3,1]
[null,null,"Řad TLT DN150 a PE D 90x8,2 mm:",null,0,null,null,null,null,null,null,null,"Řad TLT DN150 a PE D 90x8,2 mm:"]
[null,null,"AŠ:",null,0,null,null,null,null,null,null,null,"AŠ:"]
[null,null,"TT DN150:1",null,1,null,null,null,null,null,null,null,"TT DN150:1"]
[94,"55260055.R","Příruba zaslepovací  XG DN 80 závit 2\" s koncovkou \"C\"","kus",1,null,{"$f":"E630*F630","v":0},3.7000000000000002E-3,{"$f":"E630*H630","v":3.7000000000000002E-3},null,{"$f":"E630*J630","v":0},null,null,null,2,null,null,null,null,null,null,null,null,null,null,null,3,1,"55260055.R",null,null,null,null,null,null,null,null,null,null,null,null,null,null,null,null,null,null,null,null,null,null,1,{"$f":"IF(AZ630=1,G630,0)","v":0},{"$f":"IF(AZ630=2,G630,0)","v":0},{"$f":"IF(AZ630=3,G630,0)","v":0},{"$f":"IF(AZ630=4,G630,0)","v":0},{"$f":"IF(AZ630=5,G630,0)","v":0},null,null,null,null,null,null,null,null,null,null,null,null,null,null,null,null,null,null,null,null,null,3,1]
[null,null,"Řad TLT DN150 a PE D 90x8,2 mm:",null,0,null,null,null,null,null,null,null,"Řad TLT DN150 a PE D 90x8,2 mm:"]
[null,null,"AŠ:",null,0,null,null,null,null,null,null,null,"AŠ:"]
[null,null,"XG DN80/2\":1",null,1,null,null,null,null,null,null,null,"XG DN80/2\":1"]
[95,"5526009705.R","Koleno prodloužené přír.s patkou PPL DN 80","kus",2,null,{"$f":"E634*F634","v":0},1.2200000000000001E-2,{"$f":"E634*H634","v":2.4400000000000002E-2},null,{"$f":"E634*J634","v":0},null,null,null,2,null,null,null,null,null,null,null,null,null,null,null,3,1,"5526009705.R",null,null,null,null,null,null,null,null,null,null,null,null,null,null,null,null,null,null,null,null,null,null,1,{"$f":"IF(AZ634=1,G634,0)","v":0},{"$f":"IF(AZ634=2,G634,0)","v":0},{"$f":"IF(AZ634=3,G634,0)","v":0},{"$f":"IF(AZ634=4,G634,0)","v":0},{"$f":"IF(AZ634=5,G634,0)","v":0},null,null,null,null,null,null,null,null,null,null,null,null,null,null,null,null,null,null,null,null,null,3,1]
[null,null,"Řad TLT DN150 a PE D 90x8,2 mm:",null,0,null,null,null,null,null,null,null,"Řad TLT DN150 a PE D 90x8,2 mm:"]
[null,null,"Řady a propoje:",null,0,null,null,null,null,null,null,null,"Řady a propoje:"]
[null,null,"PPL DN80:2",null,2,null,null,null,null,null,null,null,"PPL DN80:2"]
[null,"Celkem za","8 Trubní vedení",null,null,null,{"$f":"SUM(G180:G637)","v":0},null,{"$f":"SUM(I180:I637)","v":23.932159846000001},null,{"$f":"SUM(K180:K637)","v":0},null,null,null,4,null,null,null,null,null,null,null,null,null,null,null,null,null,null,null,null,null,null,null,null,null,null,null,null,null,null,null,null,null,null,null,null,null,null,null,null,null,{"$f":"SUM(BA180:BA637)","v":0},{"$f":"SUM(BB180:BB637)","v":0},{"$f":"SUM(BC180:BC637)","v":0},{"$f":"SUM(BD180:BD637)","v":0},{"$f":"SUM(BE180:BE637)","v":0}]
["Díl:","93","Dokončovací práce inženýrských staveb",null,null,null,null,null,null,null,null,null,null,null,1]
[96,"939421121RT1","Osazení samonivelač.vodovod.poklopu za finišerem bez dodávky poklopu","kus",5,null,{"$f":"E640*F640","v":0},5.2499999999999998E-2,{"$f":"E640*H640","v":0.26250000000000001},0,{"$f":"E640*J640","v":0},null,null,null,2,null,null,null,null,null,null,null,null,null,null,null,1,0,0,null,null,null,null,null,null,null,null,null,null,null,null,null,null,null,null,null,null,null,null,null,null,1,{"$f":"IF(AZ640=1,G640,0)","v":0},{"$f":"IF(AZ640=2,G640,0)","v":0},{"$f":"IF(AZ640=3,G640,0)","v":0},{"$f":"IF(AZ640=4,G640,0)","v":0},{"$f":"IF(AZ640=5,G640,0)","v":0},null,null,null,null,null,null,null,null,null,null,null,null,null,null,null,null,null,null,null,null,null,1,0]
[null,null,"Položka obsahuje:",null,null,null,null,null,null,null,null,"Položka obsahuje:",null,null,3]
[null,null,"- osazení prefabrikovaného betonového prstence do rychletuhnoucí malty (s dodávkou hmot)",null,null,null,null,null,null,null,null,"- osazení prefabrikovaného betonového prstence do rychletuhnoucí malty (s dodávkou hmot)",null,null,3]
[null,null,"- zalití prstence rychletuhnoucí zálivkou do výše prstence (s dodávkou hmoty)",null,null,null,null,null,null,null,null,"- zalití prstence rychletuhnoucí zálivkou do výše prstence (s dodávkou hmoty)",null,null,3]
[null,null,"- vložení kruhového bednění",null,null,null,null,null,null,null,null,"- vložení kruhového bednění",null,null,3]
[null,null,"- doplnění mezikruží asfaltovou směsí do výšky současné podkladní vrstvy, zhutnění",null,null,null,null,null,null,null,null,"- doplnění mezikruží asfaltovou směsí do výšky současné podkladní vrstvy, zhutnění",null,null,3]
[null,null,"- vyjmutí kruhového bednění",null,null,null,null,null,null,null,null,"- vyjmutí kruhového bednění",null,null,3]
[null,null,"- osazení poklopu a zatlačení",null,null,null,null,null,null,null,null,"- osazení poklopu a zatlačení",null,null,3]
[null,null,"  (následuje pokládka finální vrstvy vozovky - není součástí položky)",null,null,null,null,null,null,null,null,"  (následuje pokládka finální vrstvy vozovky - není součástí položky)",null,null,3]
[null,null,"- povytažení poklopu",null,null,null,null,null,null,null,null,"- povytažení poklopu",null,null,3]
[null,null,"- podsyp asfaltovou směsí, spuštění poklopu a zhutnění směsi",null,null,null,null,null,null,null,null,"- podsyp asfaltovou směsí, spuštění poklopu a zhutnění směsi",null,null,3]
[null,null,"Položka neobsahuje:",null,null,null,null,null,null,null,null,"Položka neobsahuje:",null,null,3]
[null,null,"- dodávku samonivelačního poklopu - oceňuje se ve specifikaci",null,null,null,null,null,null,null,null,"- dodávku samonivelačního poklopu - oceňuje se ve specifikaci",null,null,3]
[null,null,"- pokládku krycí vrstvy komunikace, oceňuje se samostatně",null,null,null,null,null,null,null,null,"- pokládku krycí vrstvy komunikace, oceňuje se samostatně",null,null,3]
[null,null,"Řad TLT DN150 a PE D 90x8,2 mm:",null,0,null,null,null,null,null,null,null,"Řad TLT DN150 a PE D 90x8,2 mm:"]
[null,null,"Řady a propoje:",null,0,null,null,null,null,null,null,null,"Řady a propoje:"]
[null,null,"Pro Šoupě DN80:2",null,2,null,null,null,null,null,null,null,"Pro Šoupě DN80:2"]
[null,null,"Pro Šoupě DN150:2",null,2,null,null,null,null,null,null,null,"Pro Šoupě DN150:2"]
[null,null,"Pro VP:1",null,1,null,null,null,null,null,null,null,"Pro VP:1"]
[97,"939421131RT1","Osazení samonivelač.hydrant.poklopu za finišerem bez dodávky poklopu","kus",1,null,{"$f":"E659*F659","v":0},6.8250000000000005E-2,{"$f":"E659*H659","v":6.8250000000000005E-2},0,{"$f":"E659*J659","v":0},null,null,null,2,null,null,null,null,null,null,null,null,null,null,null,1,1,1,null,null,null,null,null,null,null,null,null,null,null,null,null,null,null,null,null,null,null,null,null,null,1,{"$f":"IF(AZ659=1,G659,0)","v":0},{"$f":"IF(AZ659=2,G659,0)","v":0},{"$f":"IF(AZ659=3,G659,0)","v":0},{"$f":"IF(AZ659=4,G659,0)","v":0},{"$f":"IF(AZ659=5,G659,0)","v":0},null,null,null,null,null,null,null,null,null,null,null,null,null,null,null,null,null,null,null,null,null,1,1]
[null,null,"Položka obsahuje:",null,null,null,null,null,null,null,null,"Položka obsahuje:",null,null,3]
[null,null,"- osazení prefabrikovaného betonového prstence do rychletuhnoucí malty (s dodávkou hmot)",null,null,null,null,null,null,null,null,"- osazení prefabrikovaného betonového prstence do rychletuhnoucí malty (s dodávkou hmot)",null,null,3]
[null,null,"- zalití prstence rychletuhnoucí zálivkou do výše prstence (s dodávkou hmoty)",null,null,null,null,null,null,null,null,"- zalití prstence rychletuhnoucí zálivkou do výše prstence (s dodávkou hmoty)",null,null,3]
[null,null,"- vložení kruhového bednění",null,null,null,null,null,null,null,null,"- vložení kruhového bednění",null,null,3]
[null,null,"- doplnění mezikruží asfaltovou směsí do výšky současné podkladní vrstvy, zhutnění",null,null,null,null,null,null,null,null,"- doplnění mezikruží asfaltovou směsí do výšky současné podkladní vrstvy, zhutnění",null,null,3]
[null,null,"- vyjmutí kruhového bednění",null,null,null,null,null,null,null,null,"- vyjmutí kruhového bednění",null,null,3]
[null,null,"- osazení poklopu a zatlačení",null,null,null,null,null,null,null,null,"- osazení poklopu a zatlačení",null,null,3]
[null,null,"  (následuje pokládka finální vrstvy vozovky - není součástí položky)",null,null,null,null,null,null,null,null,"  (následuje pokládka finální vrstvy vozovky - není součástí položky)",null,null,3]
[null,null,"- povytažení poklopu",null,null,null,null,null,null,null,null,"- povytažení poklopu",null,null,3]
[null,null,"- podsyp asfaltovou směsí, spuštění poklopu a zhutnění směsi",null,null,null,null,null,null,null,null,"- podsyp asfaltovou směsí, spuštění poklopu a zhutnění směsi",null,null,3]
[null,null,"Položka neobsahuje:",null,null,null,null,null,null,null,null,"Položka neobsahuje:",null,null,3]
[null,null,"- dodávku samonivelačního poklopu - oceňuje se ve specifikaci",null,null,null,null,null,null,null,null,"- dodávku samonivelačního poklopu - oceňuje se ve specifikaci",null,null,3]
[null,null,"- pokládku krycí vrstvy komunikace, oceňuje se samostatně",null,null,null,null,null,null,null,null,"- pokládku krycí vrstvy komunikace, oceňuje se samostatně",null,null,3]
[null,null,"Řad TLT DN150 a PE D 90x8,2 mm:",null,0,null,null,null,null,null,null,null,"Řad TLT DN150 a PE D 90x8,2 mm:"]
[null,null,"Řady a propoje:",null,0,null,null,null,null,null,null,null,"Řady a propoje:"]
[null,null,"Pro Hp DN80/1,5:1",null,1,null,null,null,null,null,null,null,"Pro Hp DN80/1,5:1"]
[98,"422913520.R","Poklop luliční samonivelační přípojkový D400","kus",1,null,{"$f":"E676*F676","v":0},1.2E-2,{"$f":"E676*H676","v":1.2E-2},null,{"$f":"E676*J676","v":0},null,null,null,2,null,null,null,null,null,null,null,null,null,null,null,3,1,"422913520.R",null,null,null,null,null,null,null,null,null,null,null,null,null,null,null,null,null,null,null,null,null,null,1,{"$f":"IF(AZ676=1,G676,0)","v":0},{"$f":"IF(AZ676=2,G676,0)","v":0},{"$f":"IF(AZ676=3,G676,0)","v":0},{"$f":"IF(AZ676=4,G676,0)","v":0},{"$f":"IF(AZ676=5,G676,0)","v":0},null,null,null,null,null,null,null,null,null,null,null,null,null,null,null,null,null,null,null,null,null,3,1]
[null,null,"Uliční samonivelační poklop přípojkový z tvárné litiny dle ČSN EN 124",null,null,null,null,null,null,null,null,"Uliční samonivelační poklop přípojkový z tvárné litiny dle ČSN EN 124",null,null,3]
[null,null,"Rozpětí stavební výšky 195 - 285 mm s fixací polohy",null,null,null,null,null,null,null,null,"Rozpětí stavební výšky 195 - 285 mm s fixací polohy",null,null,3]
[null,null,"Výklopové víko spojeno s rámem čepem a opatřeno ochrannou a těsnící vrstvou proti vnikání nečistot",null,null,null,null,null,null,null,null,"Výklopové víko spojeno s rámem čepem a opatřeno ochrannou a těsnící vrstvou proti vnikání nečistot",null,null,3]
[null,null,"Tlumicí vložka z elastomeru a PUR",null,null,null,null,null,null,null,null,"Tlumicí vložka z elastomeru a PUR",null,null,3]
[null,null,"Možnost vlastního loga a barevného provedení",null,null,null,null,null,null,null,null,"Možnost vlastního loga a barevného provedení",null,null,3]
[null,null,"Řad TLT DN150 a PE D 90x8,2 mm:",null,0,null,null,null,null,null,null,null,"Řad TLT DN150 a PE D 90x8,2 mm:"]
[null,null,"Řady a propoje:",null,0,null,null,null,null,null,null,null,"Řady a propoje:"]
[null,null,"Pro VP:1",null,1,null,null,null,null,null,null,null,"Pro VP:1"]
[99,"422913521.R","Poklop litinový samonivelační šoupátkový D400","kus",4,null,{"$f":"E685*F685","v":0},1.2E-2,{"$f":"E685*H685","v":4.8000000000000001E-2},null,{"$f":"E685*J685","v":0},null,null,null,2,null,null,null,null,null,null,null,null,null,null,null,3,1,"422913521.R",null,null,null,null,null,null,null,null,null,null,null,null,null,null,null,null,null,null,null,null,null,null,1,{"$f":"IF(AZ685=1,G685,0)","v":0},{"$f":"IF(AZ685=2,G685,0)","v":0},{"$f":"IF(AZ685=3,G685,0)","v":0},{"$f":"IF(AZ685=4,G685,0)","v":0},{"$f":"IF(AZ685=5,G685,0)","v":0},null,null,null,null,null,null,null,null,null,null,null,null,null,null,null,null,null,null,null,null,null,3,1]
[null,null,"Uliční samonivelační šoupátkový poklop z tvárné litiny dle ČSN EN 124",null,null,null,null,null,null,null,null,"Uliční samonivelační šoupátkový poklop z tvárné litiny dle ČSN EN 124",null,null,3]
[null,null,"Rozpětí stavební výšky 195 - 285 mm s fixací polohy",null,null,null,null,null,null,null,null,"Rozpětí stavební výšky 195 - 285 mm s fixací polohy",null,null,3]
[null,null,"Výklopové víko spojeno s rámem čepem a opatřeno ochrannou a těsnící vrstvou proti vnikání nečistot",null,null,null,null,null,null,null,null,"Výklopové víko spojeno s rámem čepem a opatřeno ochrannou a těsnící vrstvou proti vnikání nečistot",null,null,3]
[null,null,"Tlumicí vložka z elastomeru a PUR",null,null,null,null,null,null,null,null,"Tlumicí vložka z elastomeru a PUR",null,null,3]
[null,null,"Možnost vlastního loga a barevného provedení",null,null,null,null,null,null,null,null,"Možnost vlastního loga a barevného provedení",null,null,3]
[null,null,"Řad TLT DN150 a PE D 90x8,2 mm:",null,0,null,null,null,null,null,null,null,"Řad TLT DN150 a PE D 90x8,2 mm:"]
[null,null,"Řady a propoje:",null,0,null,null,null,null,null,null,null,"Řady a propoje:"]
[null,null,"Pro Šoupě DN80:2",null,2,null,null,null,null,null,null,null,"Pro Šoupě DN80:2"]
[null,null,"Pro Šoupě DN150:2",null,2,null,null,null,null,null,null,null,"Pro Šoupě DN150:2"]
[100,"422914522.R","Poklop litinový hydrantový samonivelační D400","kus",1,null,{"$f":"E695*F695","v":0},2.4E-2,{"$f":"E695*H695","v":2.4E-2},null,{"$f":"E695*J695","v":0},null,null,null,2,null,null,null,null,null,null,null,null,null,null,null,3,1,"422914522.R",null,null,null,null,null,null,null,null,null,null,null,null,null,null,null,null,null,null,null,null,null,null,1,{"$f":"IF(AZ695=1,G695,0)","v":0},{"$f":"IF(AZ695=2,G695,0)","v":0},{"$f":"IF(AZ695=3,G695,0)","v":0},{"$f":"IF(AZ695=4,G695,0)","v":0},{"$f":"IF(AZ695=5,G695,0)","v":0},null,null,null,null,null,null,null,null,null,null,null,null,null,null,null,null,null,null,null,null,null,3,1]
[null,null,"Uliční samonivelační hydrantový poklop z tvárné litiny dle ČSN EN 124",null,null,null,null,null,null,null,null,"Uliční samonivelační hydrantový poklop z tvárné litiny dle ČSN EN 124",null,null,3]
[null,null,"Rozpětí stavební výšky 200 - 285 mm s fixací polohy",null,null,null,null,null,null,null,null,"Rozpětí stavební výšky 200 - 285 mm s fixací polohy",null,null,3]
[null,null,"Výklopové víko spojeno s rámem čepem a opatřeno ochrannou a těsnící vrstvou proti vnikání nečistot",null,null,null,null,null,null,null,null,"Výklopové víko spojeno s rámem čepem a opatřeno ochrannou a těsnící vrstvou proti vnikání nečistot",null,null,3]
[null,null,"Tlumicí vložka z elastomeru a PUR",null,null,null,null,null,null,null,null,"Tlumicí vložka z elastomeru a PUR",null,null,3]
[null,null,"Možnost vlastního loga a barevného provedení",null,null,null,null,null,null,null,null,"Možnost vlastního loga a barevného provedení",null,null,3]
[null,null,"Řad TLT DN150 a PE D 90x8,2 mm:",null,0,null,null,null,null,null,null,null,"Řad TLT DN150 a PE D 90x8,2 mm:"]
[null,null,"Řady a propoje:",null,0,null,null,null,null,null,null,null,"Řady a propoje:"]
[null,null,"Pro Hp DN80/1,5:1",null,1,null,null,null,null,null,null,null,"Pro Hp DN80/1,5:1"]
[null,"Celkem za","93 Dokončovací práce inženýrských staveb",null,null,null,{"$f":"SUM(G639:G703)","v":0},null,{"$f":"SUM(I639:I703)","v":0.41475000000000001},null,{"$f":"SUM(K639:K703)","v":0},null,null,null,4,null,null,null,null,null,null,null,null,null,null,null,null,null,null,null,null,null,null,null,null,null,null,null,null,null,null,null,null,null,null,null,null,null,null,null,null,null,{"$f":"SUM(BA639:BA703)","v":0},{"$f":"SUM(BB639:BB703)","v":0},{"$f":"SUM(BC639:BC703)","v":0},{"$f":"SUM(BD639:BD703)","v":0},{"$f":"SUM(BE639:BE703)","v":0}]
["Díl:","99","Staveništní přesun hmot",null,null,null,null,null,null,null,null,null,null,null,1]
[101,"998273101R00","Přesun hmot, trubní vedení litinové, otevř. výkop ","t",329.272167846,null,{"$f":"E706*F706","v":0},0,{"$f":"E706*H706","v":0},null,{"$f":"E706*J706","v":0},null,null,null,2,null,null,null,null,null,null,null,null,null,null,null,7,1,2,null,null,null,null,null,null,null,null,null,null,null,null,null,null,null,null,null,null,null,null,null,null,1,{"$f":"IF(AZ706=1,G706,0)","v":0},{"$f":"IF(AZ706=2,G706,0)","v":0},{"$f":"IF(AZ706=3,G706,0)","v":0},{"$f":"IF(AZ706=4,G706,0)","v":0},{"$f":"IF(AZ706=5,G706,0)","v":0},null,null,null,null,null,null,null,null,null,null,null,null,null,null,null,null,null,null,null,null,null,7,1]
[null,"Celkem za","99 Staveništní přesun hmot",null,null,null,{"$f":"SUM(G705:G706)","v":0},null,{"$f":"SUM(I705:I706)","v":0},null,{"$f":"SUM(K705:K706)","v":0},null,null,null,4,null,null,null,null,null,null,null,null,null,null,null,null,null,null,null,null,null,null,null,null,null,null,null,null,null,null,null,null,null,null,null,null,null,null,null,null,null,{"$f":"SUM(BA705:BA706)","v":0},{"$f":"SUM(BB705:BB706)","v":0},{"$f":"SUM(BC705:BC706)","v":0},{"$f":"SUM(BD705:BD706)","v":0},{"$f":"SUM(BE705:BE706)","v":0}]

{"sheet":"310 3380310 KL","index":4,"n_rows":45,"n_cols":8,"rows_kept":45,"cut":false,"hidden":false,"merged":[[50,1,50,6],[29,5,29,6],[30,5,30,6],[31,5,31,6],[32,5,32,6],[33,5,33,6],[36,1,44,6],[45,1,45,6],[46,1,46,6],[47,1,47,6],[48,1,48,6],[49,1,49,6],[22,0,22,1],[7,2,7,4],[8,2,8,4],[9,2,9,4],[10,2,10,4],[11,2,11,4]]}
["POLOŽKOVÝ ROZPOČET"]
["Rozpočet",null,"3380/310","Prodloužení splaškové kanalizace",null,"JKSO ","827.21.A3"]
[]
["Objekt",null,null,null,null,"SKP "]
["310",null,"Prodloužení splaškové kanalizace",null,null,"Měrná jednotka","m"]
["Stavba",null,null,null,null,"Počet jednotek",0]
["3380",null,"Lomnice n/P. Prodloužení sítí technické infrastruk",null,null,"Náklady na m.j.",{"$f":"IF(G6=0,,ROUND((F30+F32)/G6,1))","v":0}]
["Projektant",null,"PVK Projekt s.r.o.",null,null,"Typ rozpočtu"]
["Zpracovatel projektu"]
["Objednatel",null,"Město Lomnice nad Popelkou"]
["Dodavatel",null,".",null,null,"Zakázkové číslo "]
["Rozpočtoval",null,null,null,null,"Počet listů"]
["ROZPOČTOVÉ NÁKLADY"]
["Základní rozpočtové náklady"]
[null,"HSV celkem",{"$f":"'310 3380310 Rek'!E13","v":0}]
["Z","PSV celkem",{"$f":"'310 3380310 Rek'!F13","v":0}]
["R","M práce celkem",{"$f":"'310 3380310 Rek'!H13","v":0}]
["N","M dodávky celkem",{"$f":"'310 3380310 Rek'!G13","v":0}]
["ZRN celkem",null,{"$f":"SUM(C15:C18)","v":0}]
[]
["HZS",null,{"$f":"'310 3380310 Rek'!I13","v":0}]
["ZRN+HZS",null,{"$f":"C19+C21","v":0}]
["ZRN+ost.náklady+HZS",null,{"$f":"C22+G23","v":0}]
["Vypracoval",null,null,"Za zhotovitele",null,"Za objednatele"]
["Jméno :",null,null,"Jméno :",null,"Jméno :"]
["Datum :",null,null,"Datum :",null,"Datum :"]
[]
["Podpis :",null,null,"Podpis:",null,"Podpis:"]
[]
["Základ pro DPH",null,21,"%  ",null,{"$f":"C23-F32","v":0}]
["DPH",null,{"$f":"C30","v":21},"% ",null,{"$f":"ROUND(PRODUCT(F30,C31/100),0)","v":0}]
["Základ pro DPH",null,0,"% ",null,0]
["DPH",null,{"$f":"C32","v":0},"% ",null,{"$f":"ROUND(PRODUCT(F32,C33/100),0)","v":0}]
["CENA ZA OBJEKT CELKEM",null,null,null,null,{"$f":"ROUND(SUM(F30:F33),0)","v":0}]
[]
["Poznámka :",null,null,null,null,null,null," "]
[null,null,null,null,null,null,null," "]
[null,null,null,null,null,null,null," "]
[null,null,null,null,null,null,null," "]
[null,null,null,null,null,null,null," "]
[null,null,null,null,null,null,null," "]
[null,null,null,null,null,null,null," "]
[null,null,null,null,null,null,null," "]
[null,null,null,null,null,null,null," "]
[null,null,null,null,null,null,null," "]

{"sheet":"310 3380310 Rek","index":5,"n_rows":13,"n_cols":9,"rows_kept":13,"cut":false,"hidden":false,"merged":[[0,0,0,1],[1,0,1,1],[1,6,1,8]]}
["Stavba :",null,"3380 Lomnice n/P. Prodloužení sítí technické infrastruk",null,null,null,"Rozpočet :","3380/310"]
["Objekt :",null,"310 Prodloužení splaškové kanalizace",null,null,null,"Prodloužení splaškové kanalizace"]
[]
["REKAPITULACE  STAVEBNÍCH  DÍLŮ"]
[]
[null,"Stavební díl",null,null,"HSV","PSV","Dodávka","Montáž","HZS"]
[{"$f":"'310 3380310 Pol'!B7","v":"1"},{"$f":"'310 3380310 Pol'!C7","v":"Zemní práce"},null,null,{"$f":"'310 3380310 Pol'!BA121","v":0},{"$f":"'310 3380310 Pol'!BB121","v":0},{"$f":"'310 3380310 Pol'!BC121","v":0},{"$f":"'310 3380310 Pol'!BD121","v":0},{"$f":"'310 3380310 Pol'!BE121","v":0}]
[{"$f":"'310 3380310 Pol'!B122","v":"45"},{"$f":"'310 3380310 Pol'!C122","v":"Podkladní a vedlejší konstrukce"},null,null,{"$f":"'310 3380310 Pol'!BA152","v":0},{"$f":"'310 3380310 Pol'!BB152","v":0},{"$f":"'310 3380310 Pol'!BC152","v":0},{"$f":"'310 3380310 Pol'!BD152","v":0},{"$f":"'310 3380310 Pol'!BE152","v":0}]
[{"$f":"'310 3380310 Pol'!B153","v":"5"},{"$f":"'310 3380310 Pol'!C153","v":"Komunikace"},null,null,{"$f":"'310 3380310 Pol'!BA159","v":0},{"$f":"'310 3380310 Pol'!BB159","v":0},{"$f":"'310 3380310 Pol'!BC159","v":0},{"$f":"'310 3380310 Pol'!BD159","v":0},{"$f":"'310 3380310 Pol'!BE159","v":0}]
[{"$f":"'310 3380310 Pol'!B160","v":"8"},{"$f":"'310 3380310 Pol'!C160","v":"Trubní vedení"},null,null,{"$f":"'310 3380310 Pol'!BA297","v":0},{"$f":"'310 3380310 Pol'!BB297","v":0},{"$f":"'310 3380310 Pol'!BC297","v":0},{"$f":"'310 3380310 Pol'!BD297","v":0},{"$f":"'310 3380310 Pol'!BE297","v":0}]
[{"$f":"'310 3380310 Pol'!B298","v":"93"},{"$f":"'310 3380310 Pol'!C298","v":"Dokončovací práce inženýrských staveb"},null,null,{"$f":"'310 3380310 Pol'!BA321","v":0},{"$f":"'310 3380310 Pol'!BB321","v":0},{"$f":"'310 3380310 Pol'!BC321","v":0},{"$f":"'310 3380310 Pol'!BD321","v":0},{"$f":"'310 3380310 Pol'!BE321","v":0}]
[{"$f":"'310 3380310 Pol'!B322","v":"99"},{"$f":"'310 3380310 Pol'!C322","v":"Staveništní přesun hmot"},null,null,{"$f":"'310 3380310 Pol'!BA324","v":0},{"$f":"'310 3380310 Pol'!BB324","v":0},{"$f":"'310 3380310 Pol'!BC324","v":0},{"$f":"'310 3380310 Pol'!BD324","v":0},{"$f":"'310 3380310 Pol'!BE324","v":0}]
[null,"CELKEM  OBJEKT",null,null,{"$f":"SUM(E7:E12)","v":0},{"$f":"SUM(F7:F12)","v":0},{"$f":"SUM(G7:G12)","v":0},{"$f":"SUM(H7:H12)","v":0},{"$f":"SUM(I7:I12)","v":0}]

{"sheet":"310 3380310 Pol","index":6,"n_rows":324,"n_cols":80,"rows_kept":324,"cut":false,"hidden":false,"merged":[[313,2,313,3],[315,2,315,6],[316,2,316,6],[317,2,317,6],[318,2,318,3],[319,2,319,3],[299,2,299,3],[300,2,300,3],[302,2,302,6],[303,2,303,6],[304,2,304,6],[305,2,305,6],[306,2,306,6],[307,2,307,6],[308,2,308,6],[289,2,289,3],[291,2,291,3],[292,2,292,3],[294,2,294,3],[295,2,295,3],[309,2,309,6],[310,2,310,6],[311,2,311,6],[312,2,312,3],[280,2,280,3],[282,2,282,3],[283,2,283,3],[285,2,285,3],[286,2,286,3],[288,2,288,3],[272,2,272,6],[273,2,273,3],[274,2,274,3],[276,2,276,3],[277,2,277,3],[279,2,279,3],[265,2,265,6],[266,2,266,6],[267,2,267,3],[268,2,268,3],[270,2,270,6],[271,2,271,6],[258,2,258,6],[259,2,259,3],[260,2,260,3],[262,2,262,6],[263,2,263,6],[264,2,264,6],[251,2,251,6],[252,2,252,3],[254,2,254,6],[255,2,255,6],[256,2,256,6],[257,2,257,6],[244,2,244,3],[246,2,246,6],[247,2,247,6],[248,2,248,6],[249,2,249,6],[250,2,250,6],[238,2,238,6],[239,2,239,6],[240,2,240,6],[241,2,241,6],[242,2,242,6],[243,2,243,6],[231,2,231,6],[232,2,232,6],[233,2,233,6],[234,2,234,6],[235,2,235,3],[236,2,236,3],[224,2,224,3],[225,2,225,3],[226,2,226,3],[228,2,228,6],[229,2,229,6],[230,2,230,6],[215,2,215,3],[217,2,217,6],[218,2,218,3],[219,2,219,3],[221,2,221,3],[222,2,222,3],[208,2,208,3],[209,2,209,3],[211,2,211,6],[212,2,212,6],[213,2,213,3],[214,2,214,3],[201,2,201,6],[202,2,202,3],[203,2,203,3],[204,2,204,3],[206,2,206,6],[207,2,207,6],[193,2,193,3],[195,2,195,6],[196,2,196,6],[197,2,197,3],[198,2,198,3],[200,2,200,6],[186,2,186,6],[187,2,187,3],[188,2,188,3],[190,2,190,6],[191,2,191,3],[192,2,192,3],[178,2,178,3],[179,2,179,3],[181,2,181,6],[183,2,183,6],[184,2,184,6],[185,2,185,6],[161,2,161,6],[162,2,162,3],[163,2,163,3],[165,2,165,6],[166,2,166,3],[167,2,167,3],[169,2,169,6],[170,2,170,3],[171,2,171,3],[154,2,154,3],[155,2,155,3],[156,2,156,3],[157,2,157,3],[173,2,173,6],[174,2,174,3],[175,2,175,3],[177,2,177,6],[144,2,144,3],[146,2,146,3],[147,2,147,3],[149,2,149,3],[150,2,150,3],[135,2,135,3],[137,2,137,3],[138,2,138,3],[140,2,140,3],[141,2,141,3],[143,2,143,3],[128,2,128,3],[129,2,129,3],[130,2,130,3],[131,2,131,3],[133,2,133,3],[134,2,134,3],[116,2,116,3],[117,2,117,3],[118,2,118,3],[119,2,119,3],[123,2,123,3],[124,2,124,3],[125,2,125,3],[127,2,127,6],[110,2,110,3],[111,2,111,3],[112,2,112,3],[113,2,113,3],[114,2,114,3],[115,2,115,3],[99,2,99,3],[103,2,103,6],[105,2,105,3],[106,2,106,3],[107,2,107,3],[109,2,109,3],[92,2,92,3],[93,2,93,3],[94,2,94,3],[96,2,96,3],[97,2,97,3],[98,2,98,3],[84,2,84,3],[85,2,85,3],[86,2,86,3],[88,2,88,3],[89,2,89,3],[90,2,90,3],[78,2,78,3],[79,2,79,3],[80,2,80,3],[81,2,81,3],[82,2,82,3],[83,2,83,3],[71,2,71,3],[72,2,72,3],[74,2,74,6],[75,2,75,6],[76,2,76,3],[77,2,77,3],[64,2,64,3],[65,2,65,3],[66,2,66,3],[67,2,67,3],[68,2,68,3],[70,2,70,3],[56,2,56,3],[58,2,58,3],[59,2,59,3],[60,2,60,3],[61,2,61,3],[62,2,62,3],[49,2,49,6],[50,2,50,3],[51,2,51,3],[52,2,52,3],[54,2,54,3],[55,2,55,3],[41,2,41,3],[42,2,42,3],[43,2,43,3],[45,2,45,3],[46,2,46,3],[47,2,47,3],[35,2,35,3],[36,2,36,3],[37,2,37,3],[38,2,38,3],[39,2,39,3],[40,2,40,3],[29,2,29,3],[30,2,30,3],[31,2,31,3],[32,2,32,3],[33,2,33,3],[34,2,34,3],[21,2,21,6],[22,2,22,3],[23,2,23,3],[24,2,24,3],[26,2,26,6],[28,2,28,6],[13,2,13,3],[14,2,14,3],[15,2,15,3],[17,2,17,6],[18,2,18,6],[20,2,20,6],[0,0,0,6],[2,0,2,1],[3,0,3,1],[3,4,3,6],[8,2,8,3],[9,2,9,3],[10,2,10,3],[12,2,12,3]]}
["Položkový rozpočet "]
[]
["Stavba :",null,"3380 Lomnice n/P. Prodloužení sítí technické infrastruk",null,"Rozpočet:",{"$f":"'310 3380310 Rek'!H1","v":"3380/310"}]
["Objekt :",null,"310 Prodloužení splaškové kanalizace",null,{"$f":"'310 3380310 Rek'!G2","v":"Prodloužení splaškové kanalizace"}]
[]
["P.č.","Číslo položky","Název položky","MJ","množství","cena / MJ","celkem (Kč)","Jednotková hmotnost","Celková hmotnost","Jednotková dem.hmot.","Celková dem.hmot."]
["Díl:","1","Zemní práce",null,null,null,null,null,null,null,null,null,null,null,1]
[1,"113107625R00","Odstranění podkladu nad 50 m2,kam.drcené tl.25 cm ","m2",77.349999999999994,null,{"$f":"E8*F8","v":0},0,{"$f":"E8*H8","v":0},-0.55000000000000004,{"$f":"E8*J8","v":-42.542499999999997},null,null,null,2,null,null,null,null,null,null,null,null,null,null,null,1,1,1,null,null,null,null,null,null,null,null,null,null,null,null,null,null,null,null,null,null,null,null,null,null,1,{"$f":"IF(AZ8=1,G8,0)","v":0},{"$f":"IF(AZ8=2,G8,0)","v":0},{"$f":"IF(AZ8=3,G8,0)","v":0},{"$f":"IF(AZ8=4,G8,0)","v":0},{"$f":"IF(AZ8=5,G8,0)","v":0},null,null,null,null,null,null,null,null,null,null,null,null,null,null,null,null,null,null,null,null,null,1,1]
[null,null,"Stoka SK PVC DN250 :61,90*0,90+1,60*(1,60-0,90)*4",null,60.19,null,null,null,null,null,null,null,"Stoka SK PVC DN250 :61,90*0,90+1,60*(1,60-0,90)*4"]
[null,null,"Stoka SK PVC DN300:5,80*1,00+1,60*(1,60-1,00)*2",null,7.72,null,null,null,null,null,null,null,"Stoka SK PVC DN300:5,80*1,00+1,60*(1,60-1,00)*2"]
[null,null,"Přípojka PVC DN150:11,80*0,80",null,9.44,null,null,null,null,null,null,null,"Přípojka PVC DN150:11,80*0,80"]
[2,"113108415R00","Odstranění asfaltové vrstvy pl.nad 50 m2, tl.15 cm ","m2",61.83,null,{"$f":"E12*F12","v":0},0,{"$f":"E12*H12","v":0},-0.33,{"$f":"E12*J12","v":-20.4039},null,null,null,2,null,null,null,null,null,null,null,null,null,null,null,1,1,1,null,null,null,null,null,null,null,null,null,null,null,null,null,null,null,null,null,null,null,null,null,null,1,{"$f":"IF(AZ12=1,G12,0)","v":0},{"$f":"IF(AZ12=2,G12,0)","v":0},{"$f":"IF(AZ12=3,G12,0)","v":0},{"$f":"IF(AZ12=4,G12,0)","v":0},{"$f":"IF(AZ12=5,G12,0)","v":0},null,null,null,null,null,null,null,null,null,null,null,null,null,null,null,null,null,null,null,null,null,1,1]
[null,null,"Stoka SK PVC DN250 :61,90*0,90+1,60*(1,60-0,90)*4",null,60.19,null,null,null,null,null,null,null,"Stoka SK PVC DN250 :61,90*0,90+1,60*(1,60-0,90)*4"]
[null,null,"Stoka SK PVC DN300:5,80*1,00+1,60*(1,60-1,00)*2",null,7.72,null,null,null,null,null,null,null,"Stoka SK PVC DN300:5,80*1,00+1,60*(1,60-1,00)*2"]
[null,null,"Přípojka PVC DN150:11,80*0,80",null,9.44,null,null,null,null,null,null,null,"Přípojka PVC DN150:11,80*0,80"]
[null,null,"Odpočet podílu panelové plochy parkoviště (manipulace s panely počítána v SO320):-16,00*0,90-1,60*(1,60-0,90)*1",null,-15.52,null,null,null,null,null,null,null,"Odpočet podílu panelové plochy parkoviště (manipulace s panely počítána v SO320):-16,00*0,90-1,60*(1,60-0,90)*1"]
[3,"115109201RRX","Přečerpávání nebo převedení splašků a dešť. vod ","h",150,null,{"$f":"E17*F17","v":0},0,{"$f":"E17*H17","v":0},0,{"$f":"E17*J17","v":0},null,null,null,2,null,null,null,null,null,null,null,null,null,null,null,1,1,1,null,null,null,null,null,null,null,null,null,null,null,null,null,null,null,null,null,null,null,null,null,null,1,{"$f":"IF(AZ17=1,G17,0)","v":0},{"$f":"IF(AZ17=2,G17,0)","v":0},{"$f":"IF(AZ17=3,G17,0)","v":0},{"$f":"IF(AZ17=4,G17,0)","v":0},{"$f":"IF(AZ17=5,G17,0)","v":0},null,null,null,null,null,null,null,null,null,null,null,null,null,null,null,null,null,null,null,null,null,1,1]
[null,null,"Převedení a čerpání splašků nebo dešťových vod dle zvolené technologie zhotovitele stavby.",null,null,null,null,null,null,null,null,"Převedení a čerpání splašků nebo dešťových vod dle zvolené technologie zhotovitele stavby.",null,null,3]
[null,null,"(Množství bude určeno na stavbě dle skutečnosti)",null,null,null,null,null,null,null,null,"(Množství bude určeno na stavbě dle skutečnosti)",null,null,3]
[4,"130001101RRX","Příplatek za ztížené hloubení v blízkosti vedení ","m3",48.484400000000001,null,{"$f":"E20*F20","v":0},0,{"$f":"E20*H20","v":0},0,{"$f":"E20*J20","v":0},null,null,null,2,null,null,null,null,null,null,null,null,null,null,null,1,1,1,null,null,null,null,null,null,null,null,null,null,null,null,null,null,null,null,null,null,null,null,null,null,1,{"$f":"IF(AZ20=1,G20,0)","v":0},{"$f":"IF(AZ20=2,G20,0)","v":0},{"$f":"IF(AZ20=3,G20,0)","v":0},{"$f":"IF(AZ20=4,G20,0)","v":0},{"$f":"IF(AZ20=5,G20,0)","v":0},null,null,null,null,null,null,null,null,null,null,null,null,null,null,null,null,null,null,null,null,null,1,1]
[null,null,"Včetně případných nutných dokopávem a ručního výkopu podél sousedících inženýrských sítí včetně vyvěšení a zajištění sítí.",null,null,null,null,null,null,null,null,"Včetně případných nutných dokopávem a ručního výkopu podél sousedících inženýrských sítí včetně vyvěšení a zajištění sítí.",null,null,3]
[null,null,"Součástí položky jsou i nutné ruční kopané sondy předepsané projektovou dokumentací pro upřesnění směrového a výškového umístění sousedních vedení inženýrských sítí.",null,null,null,null,null,null,null,null,"Součástí položky jsou i nutné ruční kopané sondy předepsané projektovou dokumentací pro upřesnění směrového a výškového umístění sousedních vedení inženýrských sítí.",null,null,3]
[null,null,"Stoka SK PVC DN250 a DN300:",null,0,null,null,null,null,null,null,null,"Stoka SK PVC DN250 a DN300:"]
[null,null,"Výkopy:",null,0,null,null,null,null,null,null,null,"Výkopy:"]
[null,null,"V hornině tř. 3 - 4 - 30%:161,6146*0,3",null,48.484400000000001,null,null,null,null,null,null,null,"V hornině tř. 3 - 4 - 30%:161,6146*0,3"]
[5,"130901123RT3","Bourání konstrukcí ze železobetonu ve vykopávkách bagrem s kladivem","m3",4.3650000000000002,null,{"$f":"E26*F26","v":0},0,{"$f":"E26*H26","v":0},-2.5,{"$f":"E26*J26","v":-10.912500000000001},null,null,null,2,null,null,null,null,null,null,null,null,null,null,null,1,1,1,null,null,null,null,null,null,null,null,null,null,null,null,null,null,null,null,null,null,null,null,null,null,1,{"$f":"IF(AZ26=1,G26,0)","v":0},{"$f":"IF(AZ26=2,G26,0)","v":0},{"$f":"IF(AZ26=3,G26,0)","v":0},{"$f":"IF(AZ26=4,G26,0)","v":0},{"$f":"IF(AZ26=5,G26,0)","v":0},null,null,null,null,null,null,null,null,null,null,null,null,null,null,null,null,null,null,null,null,null,1,1]
[null,null,"Položka obsahuje odstranění materiálu obklopujícího betonové a železobetonové konstrukce v míře nutné pro vyzvednutí, rozpojení konstrukcí, uchopení a vyzvednutí konstrukce z výkopu a uložení na dopravní prostředek.",null,null,null,null,null,null,null,null,"Položka obsahuje odstranění materiálu obklopujícího betonové a železobetonové konstrukce v míře nutné pro vyzvednutí, rozpojení konstrukcí, uchopení a vyzvednutí konstrukce z výkopu a uložení na dopravní prostředek.",null,null,3]
[6,"132201212R00","Hloubení rýh š.do 200 cm hor.3 do 1000m3,STROJNĚ ","m3",80.807299999999998,null,{"$f":"E28*F28","v":0},0,{"$f":"E28*H28","v":0},0,{"$f":"E28*J28","v":0},null,null,null,2,null,null,null,null,null,null,null,null,null,null,null,1,1,1,null,null,null,null,null,null,null,null,null,null,null,null,null,null,null,null,null,null,null,null,null,null,1,{"$f":"IF(AZ28=1,G28,0)","v":0},{"$f":"IF(AZ28=2,G28,0)","v":0},{"$f":"IF(AZ28=3,G28,0)","v":0},{"$f":"IF(AZ28=4,G28,0)","v":0},{"$f":"IF(AZ28=5,G28,0)","v":0},null,null,null,null,null,null,null,null,null,null,null,null,null,null,null,null,null,null,null,null,null,1,1]
[null,null,"Položka obsahuje hloubení rýh traktorbagrem, naložení výkopku na dopravní prostředek pro svislé, nebo vodorovné přemístění, popř. přemístění výkopku do 3 m (po povrchu území), případné zajištění rypadel polštáři, udržování pracoviště a ochranu výkopiště proti stékání srážkové vody z okolního terénu i s jejím odvodněním, nebo odvedením, přesekání a odstranění kořenů ve výkopišti, odstranění napadávek, urovnání dna výkopu.",null,null,null,null,null,null,null,null,"Položka obsahuje hloubení rýh traktorbagrem, naložení výkopku na dopravní prostředek pro svislé, nebo vodorovné přemístění, popř. přemístění výkopku do 3 m (po povrchu území), případné zajištění rypadel polštáři, udržování pracoviště a ochranu výkopiště proti stékání srážkové vody z okolního terénu i s jejím odvodněním, nebo odvedením, přesekání a odstranění kořenů ve výkopišti, odstranění napadávek, urovnání dna výkopu.",null,null,3]
[null,null,"Stoka SK PVC DN250 a DN300:",null,0,null,null,null,null,null,null,null,"Stoka SK PVC DN250 a DN300:"]
[null,null,"Výkopy:",null,0,null,null,null,null,null,null,null,"Výkopy:"]
[null,null,"Začátek provozního součtu",null,0,null,null,null,null,null,null,null,"Začátek provozního součtu"]
[null,null,"Stoka SK PVC DN250 a DN300:5,80*1,00*(2,88+2,78)/2",null,16.414000000000001,null,null,null,null,null,null,null,"Stoka SK PVC DN250 a DN300:5,80*1,00*(2,88+2,78)/2"]
[null,null,"(67,70-5,80)*0,90*(2,78+2,33)/2",null,142.339,null,null,null,null,null,null,null,"(67,70-5,80)*0,90*(2,78+2,33)/2"]
[null,null,"Prohloubení pro RŠ:1,60*1,60*0,20*6",null,3.0720000000000001,null,null,null,null,null,null,null,"Prohloubení pro RŠ:1,60*1,60*0,20*6"]
[null,null,"Rozšíření pro RŠ:1,60*(1,60-1,00)*(2,88+2,78)",null,5.4336000000000002,null,null,null,null,null,null,null,"Rozšíření pro RŠ:1,60*(1,60-1,00)*(2,88+2,78)"]
[null,null,"1,60*(1,60-0,90)*(2,40+2,22+2,26+2,33)",null,10.315200000000001,null,null,null,null,null,null,null,"1,60*(1,60-0,90)*(2,40+2,22+2,26+2,33)"]
[null,null,"Přípojka PVC DN150:11,80*0,80*(2,24+2,00)/2",null,20.012799999999999,null,null,null,null,null,null,null,"Přípojka PVC DN150:11,80*0,80*(2,24+2,00)/2"]
[null,null,"Odpočet objemu konstrukce komunikace a ZP:",null,0,null,null,null,null,null,null,null,"Odpočet objemu konstrukce komunikace a ZP:"]
[null,null,"Stoka SK PVC DN250 :-(61,90*0,90+1,60*(1,60-0,90)*4)*0,40",null,-24.076000000000001,null,null,null,null,null,null,null,"Stoka SK PVC DN250 :-(61,90*0,90+1,60*(1,60-0,90)*4)*0,40"]
[null,null,"Stoka SK PVC DN300:-(5,80*1,00+1,60*(1,60-1,00)*2)-0,40",null,-8.1199999999999992,null,null,null,null,null,null,null,"Stoka SK PVC DN300:-(5,80*1,00+1,60*(1,60-1,00)*2)-0,40"]
[null,null,"Přípojka PVC DN150:-11,80*0,80*0,40",null,-3.7759999999999998,null,null,null,null,null,null,null,"Přípojka PVC DN150:-11,80*0,80*0,40"]
[null,null,"Konec provozního součtu",null,161.6146,null,null,null,null,null,null,null,"Konec provozního součtu"]
[null,null,"V hornině tř. 3 - 50%:161,6146*0,5",null,80.807299999999998,null,null,null,null,null,null,null,"V hornině tř. 3 - 50%:161,6146*0,5"]
[7,"132201219R00","Přípl.za lepivost,hloubení rýh 200cm,hor.3,STROJNĚ ","m3",40.403599999999997,null,{"$f":"E45*F45","v":0},0,{"$f":"E45*H45","v":0},0,{"$f":"E45*J45","v":0},null,null,null,2,null,null,null,null,null,null,null,null,null,null,null,1,1,1,null,null,null,null,null,null,null,null,null,null,null,null,null,null,null,null,null,null,null,null,null,null,1,{"$f":"IF(AZ45=1,G45,0)","v":0},{"$f":"IF(AZ45=2,G45,0)","v":0},{"$f":"IF(AZ45=3,G45,0)","v":0},{"$f":"IF(AZ45=4,G45,0)","v":0},{"$f":"IF(AZ45=5,G45,0)","v":0},null,null,null,null,null,null,null,null,null,null,null,null,null,null,null,null,null,null,null,null,null,1,1]
[null,null,"Stoka SK PVC DN250 a DN300:",null,0,null,null,null,null,null,null,null,"Stoka SK PVC DN250 a DN300:"]
[null,null,"Výkopy:",null,0,null,null,null,null,null,null,null,"Výkopy:"]
[null,null,"V hornině tř. 3 - 50%:161,6146*0,5*0,5",null,40.403599999999997,null,null,null,null,null,null,null,"V hornině tř. 3 - 50%:161,6146*0,5*0,5"]
[8,"132301212R00","Hloubení rýh š.do 200 cm hor.4 do 1000 m3, STROJNĚ ","m3",80.807299999999998,null,{"$f":"E49*F49","v":0},0,{"$f":"E49*H49","v":0},0,{"$f":"E49*J49","v":0},null,null,null,2,null,null,null,null,null,null,null,null,null,null,null,1,1,1,null,null,null,null,null,null,null,null,null,null,null,null,null,null,null,null,null,null,null,null,null,null,1,{"$f":"IF(AZ49=1,G49,0)","v":0},{"$f":"IF(AZ49=2,G49,0)","v":0},{"$f":"IF(AZ49=3,G49,0)","v":0},{"$f":"IF(AZ49=4,G49,0)","v":0},{"$f":"IF(AZ49=5,G49,0)","v":0},null,null,null,null,null,null,null,null,null,null,null,null,null,null,null,null,null,null,null,null,null,1,1]
[null,null,"Položka obsahuje hloubení rýh traktorbagrem, naložení výkopku na dopravní prostředek pro svislé, nebo vodorovné přemístění, popř. přemístění výkopku do 3 m (po povrchu území), případné zajištění rypadel polštáři, udržování pracoviště a ochranu výkopiště proti stékání srážkové vody z okolního terénu i s jejím odvodněním, nebo odvedením, přesekání a odstranění kořenů ve výkopišti, odstranění napadávek, urovnání dna výkopu.",null,null,null,null,null,null,null,null,"Položka obsahuje hloubení rýh traktorbagrem, naložení výkopku na dopravní prostředek pro svislé, nebo vodorovné přemístění, popř. přemístění výkopku do 3 m (po povrchu území), případné zajištění rypadel polštáři, udržování pracoviště a ochranu výkopiště proti stékání srážkové vody z okolního terénu i s jejím odvodněním, nebo odvedením, přesekání a odstranění kořenů ve výkopišti, odstranění napadávek, urovnání dna výkopu.",null,null,3]
[null,null,"Stoka SK PVC DN250 a DN300:",null,0,null,null,null,null,null,null,null,"Stoka SK PVC DN250 a DN300:"]
[null,null,"Výkopy:",null,0,null,null,null,null,null,null,null,"Výkopy:"]
[null,null,"V hornině tř. 4 - 50%:161,6146*0,5",null,80.807299999999998,null,null,null,null,null,null,null,"V hornině tř. 4 - 50%:161,6146*0,5"]
[9,"132301219R00","Přípl.za lepivost,hloubení rýh 200cm,hor.4,STROJNĚ ","m3",40.403599999999997,null,{"$f":"E54*F54","v":0},0,{"$f":"E54*H54","v":0},0,{"$f":"E54*J54","v":0},null,null,null,2,null,null,null,null,null,null,null,null,null,null,null,1,1,1,null,null,null,null,null,null,null,null,null,null,null,null,null,null,null,null,null,null,null,null,null,null,1,{"$f":"IF(AZ54=1,G54,0)","v":0},{"$f":"IF(AZ54=2,G54,0)","v":0},{"$f":"IF(AZ54=3,G54,0)","v":0},{"$f":"IF(AZ54=4,G54,0)","v":0},{"$f":"IF(AZ54=5,G54,0)","v":0},null,null,null,null,null,null,null,null,null,null,null,null,null,null,null,null,null,null,null,null,null,1,1]
[null,null,"Stoka SK PVC DN250 a DN300:",null,0,null,null,null,null,null,null,null,"Stoka SK PVC DN250 a DN300:"]
[null,null,"Výkopy:",null,0,null,null,null,null,null,null,null,"Výkopy:"]
[null,null,"V hornině tř. 4 - 50%:161,6146*0,5*0,5",null,40.403599999999997,null,null,null,null,null,null,null,"V hornině tř. 4 - 50%:161,6146*0,5*0,5"]
[10,"151101102R00","Pažení a rozepření stěn rýh - příložné - hl.do 4 m ","m2",399.16899999999998,null,{"$f":"E58*F58","v":0},8.5999999999999998E-4,{"$f":"E58*H58","v":0.34328533999999999},0,{"$f":"E58*J58","v":0},null,null,null,2,null,null,null,null,null,null,null,null,null,null,null,1,1,1,null,null,null,null,null,null,null,null,null,null,null,null,null,null,null,null,null,null,null,null,null,null,1,{"$f":"IF(AZ58=1,G58,0)","v":0},{"$f":"IF(AZ58=2,G58,0)","v":0},{"$f":"IF(AZ58=3,G58,0)","v":0},{"$f":"IF(AZ58=4,G58,0)","v":0},{"$f":"IF(AZ58=5,G58,0)","v":0},null,null,null,null,null,null,null,null,null,null,null,null,null,null,null,null,null,null,null,null,null,1,1]
[null,null,"Stoka SK PVC DN250 a DN300:",null,0,null,null,null,null,null,null,null,"Stoka SK PVC DN250 a DN300:"]
[null,null,"Výkopy:",null,0,null,null,null,null,null,null,null,"Výkopy:"]
[null,null,"Stoka SK PVC DN250 a DN300:5,80*(2,88+2,78)/2*2",null,32.828000000000003,null,null,null,null,null,null,null,"Stoka SK PVC DN250 a DN300:5,80*(2,88+2,78)/2*2"]
[null,null,"(67,70-5,80)*(2,78+2,33)/2*2",null,316.30900000000003,null,null,null,null,null,null,null,"(67,70-5,80)*(2,78+2,33)/2*2"]
[null,null,"Přípojka PVC DN150:11,80*(2,24+2,00)/2*2",null,50.031999999999996,null,null,null,null,null,null,null,"Přípojka PVC DN150:11,80*(2,24+2,00)/2*2"]
[11,"151101112R00","Odstranění pažení stěn rýh - příložné - hl. do 4 m ","m2",399.16899999999998,null,{"$f":"E64*F64","v":0},0,{"$f":"E64*H64","v":0},0,{"$f":"E64*J64","v":0},null,null,null,2,null,null,null,null,null,null,null,null,null,null,null,1,1,1,null,null,null,null,null,null,null,null,null,null,null,null,null,null,null,null,null,null,null,null,null,null,1,{"$f":"IF(AZ64=1,G64,0)","v":0},{"$f":"IF(AZ64=2,G64,0)","v":0},{"$f":"IF(AZ64=3,G64,0)","v":0},{"$f":"IF(AZ64=4,G64,0)","v":0},{"$f":"IF(AZ64=5,G64,0)","v":0},null,null,null,null,null,null,null,null,null,null,null,null,null,null,null,null,null,null,null,null,null,1,1]
[null,null,"Stoka SK PVC DN250 a DN300:",null,0,null,null,null,null,null,null,null,"Stoka SK PVC DN250 a DN300:"]
[null,null,"Výkopy:",null,0,null,null,null,null,null,null,null,"Výkopy:"]
[null,null,"Stoka SK PVC DN250 a DN300:5,80*(2,88+2,78)/2*2",null,32.828000000000003,null,null,null,null,null,null,null,"Stoka SK PVC DN250 a DN300:5,80*(2,88+2,78)/2*2"]
[null,null,"(67,70-5,80)*(2,78+2,33)/2*2",null,316.30900000000003,null,null,null,null,null,null,null,"(67,70-5,80)*(2,78+2,33)/2*2"]
[null,null,"Přípojka PVC DN150:11,80*(2,24+2,00)/2*2",null,50.031999999999996,null,null,null,null,null,null,null,"Přípojka PVC DN150:11,80*(2,24+2,00)/2*2"]
[12,"162701105RSZ","Vodorovné přemístění výkopku z hor.1-7 na skládku zhotovitele","m3",161.6146,null,{"$f":"E70*F70","v":0},0,{"$f":"E70*H70","v":0},0,{"$f":"E70*J70","v":0},null,null,null,2,null,null,null,null,null,null,null,null,null,null,null,1,1,1,null,null,null,null,null,null,null,null,null,null,null,null,null,null,null,null,null,null,null,null,null,null,1,{"$f":"IF(AZ70=1,G70,0)","v":0},{"$f":"IF(AZ70=2,G70,0)","v":0},{"$f":"IF(AZ70=3,G70,0)","v":0},{"$f":"IF(AZ70=4,G70,0)","v":0},{"$f":"IF(AZ70=5,G70,0)","v":0},null,null,null,null,null,null,null,null,null,null,null,null,null,null,null,null,null,null,null,null,null,1,1]
[null,null,"Stoka SK PVC DN250 a DN300:",null,0,null,null,null,null,null,null,null,"Stoka SK PVC DN250 a DN300:"]
[null,null,"Výkopy:",null,0,null,null,null,null,null,null,null,"Výkopy:"]
[null,null,"V hornině tř. 3 - 4:161,6146",null,161.6146,null,null,null,null,null,null,null,"V hornině tř. 3 - 4:161,6146"]
[13,"174101101R00","Zásyp jam, rýh, šachet se zhutněním ","m3",94.468299999999999,null,{"$f":"E74*F74","v":0},0,{"$f":"E74*H74","v":0},0,{"$f":"E74*J74","v":0},null,null,null,2,null,null,null,null,null,null,null,null,null,null,null,1,1,1,null,null,null,null,null,null,null,null,null,null,null,null,null,null,null,null,null,null,null,null,null,null,1,{"$f":"IF(AZ74=1,G74,0)","v":0},{"$f":"IF(AZ74=2,G74,0)","v":0},{"$f":"IF(AZ74=3,G74,0)","v":0},{"$f":"IF(AZ74=4,G74,0)","v":0},{"$f":"IF(AZ74=5,G74,0)","v":0},null,null,null,null,null,null,null,null,null,null,null,null,null,null,null,null,null,null,null,null,null,1,1]
[null,null,"Položka obsahuje strojní přemístění materiálu pro zásyp ze vzdálenosti do 10 m od okraje zásypu.",null,null,null,null,null,null,null,null,"Položka obsahuje strojní přemístění materiálu pro zásyp ze vzdálenosti do 10 m od okraje zásypu.",null,null,3]
[null,null,null,null,null,null,null,null,null,null,null,null,null,null,3]
[null,null,"Zásyp ŠD fr. 0-63 mm:94,4683",null,94.468299999999999,null,null,null,null,null,null,null,"Zásyp ŠD fr. 0-63 mm:94,4683"]
[null,null,"Začátek provozního součtu",null,0,null,null,null,null,null,null,null,"Začátek provozního součtu"]
[null,null,"Stoka SK PVC DN250 a DN300:",null,0,null,null,null,null,null,null,null,"Stoka SK PVC DN250 a DN300:"]
[null,null,"Výkopy:",null,0,null,null,null,null,null,null,null,"Výkopy:"]
[null,null,"V hornině tř. 3 - 4:161,6146",null,161.6146,null,null,null,null,null,null,null,"V hornině tř. 3 - 4:161,6146"]
[null,null,"Odpočet lože, potrubí a obsypů:",null,0,null,null,null,null,null,null,null,"Odpočet lože, potrubí a obsypů:"]
[null,null,"Stoka SK PVC DN250 :-61,90*0,90*(0,15+0,25+0,30)",null,-38.997,null,null,null,null,null,null,null,"Stoka SK PVC DN250 :-61,90*0,90*(0,15+0,25+0,30)"]
[null,null,"Stoka SK PVC DN300:-5,80*1,00*(0,15+0,30+0,30)",null,-4.3499999999999996,null,null,null,null,null,null,null,"Stoka SK PVC DN300:-5,80*1,00*(0,15+0,30+0,30)"]
[null,null,"Přípojka PVC DN150:-11,80*0,80*(0,15+0,15+0,30)",null,-5.6639999999999997,null,null,null,null,null,null,null,"Přípojka PVC DN150:-11,80*0,80*(0,15+0,15+0,30)"]
[null,null,"Odpočet objemu RŠ:-18,1353",null,-18.135300000000001,null,null,null,null,null,null,null,"Odpočet objemu RŠ:-18,1353"]
[null,null,"Konec provozního součtu",null,94.468299999999999,null,null,null,null,null,null,null,"Konec provozního součtu"]
[14,"175101101R00","Obsyp potrubí bez prohození sypaniny ","m3",34.711500000000001,null,{"$f":"E88*F88","v":0},0,{"$f":"E88*H88","v":0},0,{"$f":"E88*J88","v":0},null,null,null,2,null,null,null,null,null,null,null,null,null,null,null,1,1,1,null,null,null,null,null,null,null,null,null,null,null,null,null,null,null,null,null,null,null,null,null,null,1,{"$f":"IF(AZ88=1,G88,0)","v":0},{"$f":"IF(AZ88=2,G88,0)","v":0},{"$f":"IF(AZ88=3,G88,0)","v":0},{"$f":"IF(AZ88=4,G88,0)","v":0},{"$f":"IF(AZ88=5,G88,0)","v":0},null,null,null,null,null,null,null,null,null,null,null,null,null,null,null,null,null,null,null,null,null,1,1]
[null,null,"Stoka SK PVC DN250 :61,90*(0,90*(0,25+0,30)-0,125^2*Pi)",null,27.602,null,null,null,null,null,null,null,"Stoka SK PVC DN250 :61,90*(0,90*(0,25+0,30)-0,125^2*Pi)"]
[null,null,"Stoka SK PVC DN300:5,80*(1,00*(0,30+0,30)-0,15^2*Pi)",null,3.07,null,null,null,null,null,null,null,"Stoka SK PVC DN300:5,80*(1,00*(0,30+0,30)-0,15^2*Pi)"]
[null,null,"Přípojka PVC DN150:11,80*(0,80*(0,15+0,30)-0,075^2*Pi)",null,4.0395000000000003,null,null,null,null,null,null,null,"Přípojka PVC DN150:11,80*(0,80*(0,15+0,30)-0,075^2*Pi)"]
[15,"199000002R00","Poplatek za skládku horniny 1- 7 č. dle katal. odpadů 17 05 04","m3",161.6146,null,{"$f":"E92*F92","v":0},0,{"$f":"E92*H92","v":0},0,{"$f":"E92*J92","v":0},null,null,null,2,null,null,null,null,null,null,null,null,null,null,null,1,1,1,null,null,null,null,null,null,null,null,null,null,null,null,null,null,null,null,null,null,null,null,null,null,1,{"$f":"IF(AZ92=1,G92,0)","v":0},{"$f":"IF(AZ92=2,G92,0)","v":0},{"$f":"IF(AZ92=3,G92,0)","v":0},{"$f":"IF(AZ92=4,G92,0)","v":0},{"$f":"IF(AZ92=5,G92,0)","v":0},null,null,null,null,null,null,null,null,null,null,null,null,null,null,null,null,null,null,null,null,null,1,1]
[null,null,"Stoka SK PVC DN250 a DN300:",null,0,null,null,null,null,null,null,null,"Stoka SK PVC DN250 a DN300:"]
[null,null,"Výkopy:",null,0,null,null,null,null,null,null,null,"Výkopy:"]
[null,null,"V hornině tř. 3 - 4:161,6146",null,161.6146,null,null,null,null,null,null,null,"V hornině tř. 3 - 4:161,6146"]
[16,"919735112R00","Řezání stávajícího živičného krytu tl. 5 - 10 cm ","m",136.4,null,{"$f":"E96*F96","v":0},0,{"$f":"E96*H96","v":0},0,{"$f":"E96*J96","v":0},null,null,null,2,null,null,null,null,null,null,null,null,null,null,null,1,1,1,null,null,null,null,null,null,null,null,null,null,null,null,null,null,null,null,null,null,null,null,null,null,1,{"$f":"IF(AZ96=1,G96,0)","v":0},{"$f":"IF(AZ96=2,G96,0)","v":0},{"$f":"IF(AZ96=3,G96,0)","v":0},{"$f":"IF(AZ96=4,G96,0)","v":0},{"$f":"IF(AZ96=5,G96,0)","v":0},null,null,null,null,null,null,null,null,null,null,null,null,null,null,null,null,null,null,null,null,null,1,1]
[null,null,"Stoka SK PVC DN250 :61,90*2+1,60*2+(1,60-0,90)*6",null,131.19999999999999,null,null,null,null,null,null,null,"Stoka SK PVC DN250 :61,90*2+1,60*2+(1,60-0,90)*6"]
[null,null,"Stoka SK PVC DN300:5,80*2+1,60*1+(1,60-1,00)*3",null,15,null,null,null,null,null,null,null,"Stoka SK PVC DN300:5,80*2+1,60*1+(1,60-1,00)*3"]
[null,null,"Přípojka PVC DN150:11,80*2",null,23.6,null,null,null,null,null,null,null,"Přípojka PVC DN150:11,80*2"]
[null,null,"Odpočet podílu panelové plochy parkoviště (manipulace s panely počítána v SO320):-16,00*2-(1,60-0,90)*2",null,-33.4,null,null,null,null,null,null,null,"Odpočet podílu panelové plochy parkoviště (manipulace s panely počítána v SO320):-16,00*2-(1,60-0,90)*2"]
[17,"979082113RSZ","Vodorovná doprava suti po suchu na skládku zhotovitele","t",62.946399999999997,null,{"$f":"E101*F101","v":0},0,{"$f":"E101*H101","v":0},0,{"$f":"E101*J101","v":0},null,null,null,2,null,null,null,null,null,null,null,null,null,null,null,1,1,1,null,null,null,null,null,null,null,null,null,null,null,null,null,null,null,null,null,null,null,null,null,null,1,{"$f":"IF(AZ101=1,G101,0)","v":0},{"$f":"IF(AZ101=2,G101,0)","v":0},{"$f":"IF(AZ101=3,G101,0)","v":0},{"$f":"IF(AZ101=4,G101,0)","v":0},{"$f":"IF(AZ101=5,G101,0)","v":0},null,null,null,null,null,null,null,null,null,null,null,null,null,null,null,null,null,null,null,null,null,1,1]
[18,"979089001R00","Poplatek za skládku stavební suti štěrky z komunikací, skupina odpadu 010408","t",42.542499999999997,null,{"$f":"E102*F102","v":0},0,{"$f":"E102*H102","v":0},0,{"$f":"E102*J102","v":0},null,null,null,2,null,null,null,null,null,null,null,null,null,null,null,1,1,1,null,null,null,null,null,null,null,null,null,null,null,null,null,null,null,null,null,null,null,null,null,null,1,{"$f":"IF(AZ102=1,G102,0)","v":0},{"$f":"IF(AZ102=2,G102,0)","v":0},{"$f":"IF(AZ102=3,G102,0)","v":0},{"$f":"IF(AZ102=4,G102,0)","v":0},{"$f":"IF(AZ102=5,G102,0)","v":0},null,null,null,null,null,null,null,null,null,null,null,null,null,null,null,null,null,null,null,null,null,1,1]
[19,"979999995R00","Poplatek za reciklaci asfaltu, kusovost do 1600cm2 skupina 170302","t",20.4039,null,{"$f":"E103*F103","v":0},0,{"$f":"E103*H103","v":0},0,{"$f":"E103*J103","v":0},null,null,null,2,null,null,null,null,null,null,null,null,null,null,null,1,1,1,null,null,null,null,null,null,null,null,null,null,null,null,null,null,null,null,null,null,null,null,null,null,1,{"$f":"IF(AZ103=1,G103,0)","v":0},{"$f":"IF(AZ103=2,G103,0)","v":0},{"$f":"IF(AZ103=3,G103,0)","v":0},{"$f":"IF(AZ103=4,G103,0)","v":0},{"$f":"IF(AZ103=5,G103,0)","v":0},null,null,null,null,null,null,null,null,null,null,null,null,null,null,null,null,null,null,null,null,null,1,1]
[null,null,"Položka je určena pro suť o velikosti kusu do 30x30 cm (technologický materiál určený k recyklaci).",null,null,null,null,null,null,null,null,"Položka je určena pro suť o velikosti kusu do 30x30 cm (technologický materiál určený k recyklaci).",null,null,3]
[20,"58337308.R","Štěrkopísek frakce 0-2 tř.B","t",69.170599999999993,null,{"$f":"E105*F105","v":0},1,{"$f":"E105*H105","v":69.170599999999993},null,{"$f":"E105*J105","v":0},null,null,null,2,null,null,null,null,null,null,null,null,null,null,null,3,1,"58337308.R",null,null,null,null,null,null,null,null,null,null,null,null,null,null,null,null,null,null,null,null,null,null,1,{"$f":"IF(AZ105=1,G105,0)","v":0},{"$f":"IF(AZ105=2,G105,0)","v":0},{"$f":"IF(AZ105=3,G105,0)","v":0},{"$f":"IF(AZ105=4,G105,0)","v":0},{"$f":"IF(AZ105=5,G105,0)","v":0},null,null,null,null,null,null,null,null,null,null,null,null,null,null,null,null,null,null,null,null,null,3,1]
[null,null,"Stoka SK PVC DN250 :61,90*(0,90*(0,25+0,30)-0,125^2*Pi)*1,973*1,01",null,55.003300000000003,null,null,null,null,null,null,null,"Stoka SK PVC DN250 :61,90*(0,90*(0,25+0,30)-0,125^2*Pi)*1,973*1,01"]
[null,null,"Stoka SK PVC DN300:5,80*(1,00*(0,30+0,30)-0,15^2*Pi)*1,973*1,01",null,6.1177000000000001,null,null,null,null,null,null,null,"Stoka SK PVC DN300:5,80*(1,00*(0,30+0,30)-0,15^2*Pi)*1,973*1,01"]
[null,null,"Přípojka PVC DN150:11,80*(0,80*(0,15+0,30)-0,075^2*Pi)*1,973*1,01",null,8.0495999999999999,null,null,null,null,null,null,null,"Přípojka PVC DN150:11,80*(0,80*(0,15+0,30)-0,075^2*Pi)*1,973*1,01"]
[21,"58344197R","Štěrkodrtě frakce 0-63 A","t",178.70849999999999,null,{"$f":"E109*F109","v":0},1,{"$f":"E109*H109","v":178.70849999999999},null,{"$f":"E109*J109","v":0},null,null,null,2,null,null,null,null,null,null,null,null,null,null,null,3,1,"58344197R",null,null,null,null,null,null,null,null,null,null,null,null,null,null,null,null,null,null,null,null,null,null,1,{"$f":"IF(AZ109=1,G109,0)","v":0},{"$f":"IF(AZ109=2,G109,0)","v":0},{"$f":"IF(AZ109=3,G109,0)","v":0},{"$f":"IF(AZ109=4,G109,0)","v":0},{"$f":"IF(AZ109=5,G109,0)","v":0},null,null,null,null,null,null,null,null,null,null,null,null,null,null,null,null,null,null,null,null,null,3,1]
[null,null,"Zásyp ŠD fr. 0-63 mm:94,4683*1,873*1,01",null,178.70849999999999,null,null,null,null,null,null,null,"Zásyp ŠD fr. 0-63 mm:94,4683*1,873*1,01"]
[null,null,"Začátek provozního součtu",null,0,null,null,null,null,null,null,null,"Začátek provozního součtu"]
[null,null,"Stoka SK PVC DN250 a DN300:",null,0,null,null,null,null,null,null,null,"Stoka SK PVC DN250 a DN300:"]
[null,null,"Výkopy:",null,0,null,null,null,null,null,null,null,"Výkopy:"]
[null,null,"V hornině tř. 3 - 4:161,6146",null,161.6146,null,null,null,null,null,null,null,"V hornině tř. 3 - 4:161,6146"]
[null,null,"Odpočet lože, potrubí a obsypů:",null,0,null,null,null,null,null,null,null,"Odpočet lože, potrubí a obsypů:"]
[null,null,"Stoka SK PVC DN250 :-61,90*0,90*(0,15+0,25+0,30)",null,-38.997,null,null,null,null,null,null,null,"Stoka SK PVC DN250 :-61,90*0,90*(0,15+0,25+0,30)"]
[null,null,"Stoka SK PVC DN300:-5,80*1,00*(0,15+0,30+0,30)",null,-4.3499999999999996,null,null,null,null,null,null,null,"Stoka SK PVC DN300:-5,80*1,00*(0,15+0,30+0,30)"]
[null,null,"Přípojka PVC DN150:-11,80*0,80*(0,15+0,15+0,30)",null,-5.6639999999999997,null,null,null,null,null,null,null,"Přípojka PVC DN150:-11,80*0,80*(0,15+0,15+0,30)"]
[null,null,"Odpočet objemu RŠ:-18,1353",null,-18.135300000000001,null,null,null,null,null,null,null,"Odpočet objemu RŠ:-18,1353"]
[null,null,"Konec provozního součtu",null,94.468299999999999,null,null,null,null,null,null,null,"Konec provozního součtu"]
[null,"Celkem za","1 Zemní práce",null,null,null,{"$f":"SUM(G7:G120)","v":0},null,{"$f":"SUM(I7:I120)","v":248.22238533999996},null,{"$f":"SUM(K7:K120)","v":-73.858900000000006},null,null,null,4,null,null,null,null,null,null,null,null,null,null,null,null,null,null,null,null,null,null,null,null,null,null,null,null,null,null,null,null,null,null,null,null,null,null,null,null,null,{"$f":"SUM(BA7:BA120)","v":0},{"$f":"SUM(BB7:BB120)","v":0},{"$f":"SUM(BC7:BC120)","v":0},{"$f":"SUM(BD7:BD120)","v":0},{"$f":"SUM(BE7:BE120)","v":0}]
["Díl:","45","Podkladní a vedlejší konstrukce",null,null,null,null,null,null,null,null,null,null,null,1]
[22,"451572111R00","Lože pod potrubí z kameniva těženého 0 - 4 mm ","m3",10.6425,null,{"$f":"E123*F123","v":0},0.43051,{"$f":"E123*H123","v":4.5817026749999998},0,{"$f":"E123*J123","v":0},null,null,null,2,null,null,null,null,null,null,null,null,null,null,null,1,1,1,null,null,null,null,null,null,null,null,null,null,null,null,null,null,null,null,null,null,null,null,null,null,1,{"$f":"IF(AZ123=1,G123,0)","v":0},{"$f":"IF(AZ123=2,G123,0)","v":0},{"$f":"IF(AZ123=3,G123,0)","v":0},{"$f":"IF(AZ123=4,G123,0)","v":0},{"$f":"IF(AZ123=5,G123,0)","v":0},null,null,null,null,null,null,null,null,null,null,null,null,null,null,null,null,null,null,null,null,null,1,1]
[null,null,"Stoka SK PVC DN250 :61,90*0,90*0,15",null,8.3565000000000005,null,null,null,null,null,null,null,"Stoka SK PVC DN250 :61,90*0,90*0,15"]
[null,null,"Stoka SK PVC DN300:5,80*1,00*0,15",null,0.87,null,null,null,null,null,null,null,"Stoka SK PVC DN300:5,80*1,00*0,15"]
[null,null,"Přípojka PVC DN150:11,80*0,80*0,15",null,1.4159999999999999,null,null,null,null,null,null,null,"Přípojka PVC DN150:11,80*0,80*0,15"]
[23,"452112111R00","Osazení beton. prstenců pod poklopy,výšky do100 mm ","kus",3,null,{"$f":"E127*F127","v":0},6.6E-3,{"$f":"E127*H127","v":1.9799999999999998E-2},0,{"$f":"E127*J127","v":0},null,null,null,2,null,null,null,null,null,null,null,null,null,null,null,1,1,1,null,null,null,null,null,null,null,null,null,null,null,null,null,null,null,null,null,null,null,null,null,null,1,{"$f":"IF(AZ127=1,G127,0)","v":0},{"$f":"IF(AZ127=2,G127,0)","v":0},{"$f":"IF(AZ127=3,G127,0)","v":0},{"$f":"IF(AZ127=4,G127,0)","v":0},{"$f":"IF(AZ127=5,G127,0)","v":0},null,null,null,null,null,null,null,null,null,null,null,null,null,null,null,null,null,null,null,null,null,1,1]
[null,null,"Volba položky se řídí výškou prstence nebo rámu. V položkách nejsou zakalkulovány náklady na dodávku betonových výrobků;",null,null,null,null,null,null,null,null,"Volba položky se řídí výškou prstence nebo rámu. V položkách nejsou zakalkulovány náklady na dodávku betonových výrobků;",null,null,3]
[null,null,"Stoka SK PVC DN250 a DN300:",null,0,null,null,null,null,null,null,null,"Stoka SK PVC DN250 a DN300:"]
[null,null,"VP H40:1",null,1,null,null,null,null,null,null,null,"VP H40:1"]
[null,null,"VP H80:1",null,1,null,null,null,null,null,null,null,"VP H80:1"]
[null,null,"VP H100:1",null,1,null,null,null,null,null,null,null,"VP H100:1"]
[24,"452112121R00","Osazení beton. prstenců pod poklopy,výšky do200 mm ","kus",3,null,{"$f":"E133*F133","v":0},6.6E-3,{"$f":"E133*H133","v":1.9799999999999998E-2},0,{"$f":"E133*J133","v":0},null,null,null,2,null,null,null,null,null,null,null,null,null,null,null,1,1,1,null,null,null,null,null,null,null,null,null,null,null,null,null,null,null,null,null,null,null,null,null,null,1,{"$f":"IF(AZ133=1,G133,0)","v":0},{"$f":"IF(AZ133=2,G133,0)","v":0},{"$f":"IF(AZ133=3,G133,0)","v":0},{"$f":"IF(AZ133=4,G133,0)","v":0},{"$f":"IF(AZ133=5,G133,0)","v":0},null,null,null,null,null,null,null,null,null,null,null,null,null,null,null,null,null,null,null,null,null,1,1]
[null,null,"Stoka SK PVC DN250 a DN300:",null,0,null,null,null,null,null,null,null,"Stoka SK PVC DN250 a DN300:"]
[null,null,"VP H120:2",null,2,null,null,null,null,null,null,null,"VP H120:2"]
[null,null,"VP H150:1",null,1,null,null,null,null,null,null,null,"VP H150:1"]
[25,"59224345.B.R","Prstenec vyrovn šachetní TBW-Q.1 40/600/120","kus",1.01,null,{"$f":"E137*F137","v":0},2.8000000000000001E-2,{"$f":"E137*H137","v":2.828E-2},null,{"$f":"E137*J137","v":0},null,null,null,2,null,null,null,null,null,null,null,null,null,null,null,3,1,"59224345.B.R",null,null,null,null,null,null,null,null,null,null,null,null,null,null,null,null,null,null,null,null,null,null,1,{"$f":"IF(AZ137=1,G137,0)","v":0},{"$f":"IF(AZ137=2,G137,0)","v":0},{"$f":"IF(AZ137=3,G137,0)","v":0},{"$f":"IF(AZ137=4,G137,0)","v":0},{"$f":"IF(AZ137=5,G137,0)","v":0},null,null,null,null,null,null,null,null,null,null,null,null,null,null,null,null,null,null,null,null,null,3,1]
[null,null,"Stoka SK PVC DN250 a DN300:",null,0,null,null,null,null,null,null,null,"Stoka SK PVC DN250 a DN300:"]
[null,null,"VP H40:1*1,01",null,1.01,null,null,null,null,null,null,null,"VP H40:1*1,01"]
[26,"59224347.B.R","Prstenec vyrovn šachetní TBW-Q.1 80/600/120","kus",1.01,null,{"$f":"E140*F140","v":0},5.2999999999999999E-2,{"$f":"E140*H140","v":5.3530000000000001E-2},null,{"$f":"E140*J140","v":0},null,null,null,2,null,null,null,null,null,null,null,null,null,null,null,3,1,"59224347.B.R",null,null,null,null,null,null,null,null,null,null,null,null,null,null,null,null,null,null,null,null,null,null,1,{"$f":"IF(AZ140=1,G140,0)","v":0},{"$f":"IF(AZ140=2,G140,0)","v":0},{"$f":"IF(AZ140=3,G140,0)","v":0},{"$f":"IF(AZ140=4,G140,0)","v":0},{"$f":"IF(AZ140=5,G140,0)","v":0},null,null,null,null,null,null,null,null,null,null,null,null,null,null,null,null,null,null,null,null,null,3,1]
[null,null,"Stoka SK PVC DN250 a DN300:",null,0,null,null,null,null,null,null,null,"Stoka SK PVC DN250 a DN300:"]
[null,null,"VP H80:1*1,01",null,1.01,null,null,null,null,null,null,null,"VP H80:1*1,01"]
[27,"59224348.B.R","Prstenec vyrovn šachetní TBW-Q.1 100/600/120","kus",1.01,null,{"$f":"E143*F143","v":0},6.8000000000000005E-2,{"$f":"E143*H143","v":6.8680000000000005E-2},null,{"$f":"E143*J143","v":0},null,null,null,2,null,null,null,null,null,null,null,null,null,null,null,3,1,"59224348.B.R",null,null,null,null,null,null,null,null,null,null,null,null,null,null,null,null,null,null,null,null,null,null,1,{"$f":"IF(AZ143=1,G143,0)","v":0},{"$f":"IF(AZ143=2,G143,0)","v":0},{"$f":"IF(AZ143=3,G143,0)","v":0},{"$f":"IF(AZ143=4,G143,0)","v":0},{"$f":"IF(AZ143=5,G143,0)","v":0},null,null,null,null,null,null,null,null,null,null,null,null,null,null,null,null,null,null,null,null,null,3,1]
[null,null,"Stoka SK PVC DN250 a DN300:",null,0,null,null,null,null,null,null,null,"Stoka SK PVC DN250 a DN300:"]
[null,null,"VP H100:1*1,01",null,1.01,null,null,null,null,null,null,null,"VP H100:1*1,01"]
[28,"59224349.B.R","Prstenec vyrovn šachetní TBW-Q.1 120/600/120","kus",2.02,null,{"$f":"E146*F146","v":0},8.1000000000000003E-2,{"$f":"E146*H146","v":0.16362000000000002},null,{"$f":"E146*J146","v":0},null,null,null,2,null,null,null,null,null,null,null,null,null,null,null,3,1,"59224349.B.R",null,null,null,null,null,null,null,null,null,null,null,null,null,null,null,null,null,null,null,null,null,null,1,{"$f":"IF(AZ146=1,G146,0)","v":0},{"$f":"IF(AZ146=2,G146,0)","v":0},{"$f":"IF(AZ146=3,G146,0)","v":0},{"$f":"IF(AZ146=4,G146,0)","v":0},{"$f":"IF(AZ146=5,G146,0)","v":0},null,null,null,null,null,null,null,null,null,null,null,null,null,null,null,null,null,null,null,null,null,3,1]
[null,null,"Stoka SK PVC DN250 a DN300:",null,0,null,null,null,null,null,null,null,"Stoka SK PVC DN250 a DN300:"]
[null,null,"VP H120:2*1,01",null,2.02,null,null,null,null,null,null,null,"VP H120:2*1,01"]
[29,"59224350.B.R","Prstenec vyrovn šachetní TBW-Q.1 150/600/120","kus",1.01,null,{"$f":"E149*F149","v":0},0.10199999999999999,{"$f":"E149*H149","v":0.10302},null,{"$f":"E149*J149","v":0},null,null,null,2,null,null,null,null,null,null,null,null,null,null,null,3,1,"59224350.B.R",null,null,null,null,null,null,null,null,null,null,null,null,null,null,null,null,null,null,null,null,null,null,1,{"$f":"IF(AZ149=1,G149,0)","v":0},{"$f":"IF(AZ149=2,G149,0)","v":0},{"$f":"IF(AZ149=3,G149,0)","v":0},{"$f":"IF(AZ149=4,G149,0)","v":0},{"$f":"IF(AZ149=5,G149,0)","v":0},null,null,null,null,null,null,null,null,null,null,null,null,null,null,null,null,null,null,null,null,null,3,1]
[null,null,"Stoka SK PVC DN250 a DN300:",null,0,null,null,null,null,null,null,null,"Stoka SK PVC DN250 a DN300:"]
[null,null,"VP H150:1*1,01",null,1.01,null,null,null,null,null,null,null,"VP H150:1*1,01"]
[null,"Celkem za","45 Podkladní a vedlejší konstrukce",null,null,null,{"$f":"SUM(G122:G151)","v":0},null,{"$f":"SUM(I122:I151)","v":5.0384326749999993},null,{"$f":"SUM(K122:K151)","v":0},null,null,null,4,null,null,null,null,null,null,null,null,null,null,null,null,null,null,null,null,null,null,null,null,null,null,null,null,null,null,null,null,null,null,null,null,null,null,null,null,null,{"$f":"SUM(BA122:BA151)","v":0},{"$f":"SUM(BB122:BB151)","v":0},{"$f":"SUM(BC122:BC151)","v":0},{"$f":"SUM(BD122:BD151)","v":0},{"$f":"SUM(BE122:BE151)","v":0}]
["Díl:","5","Komunikace",null,null,null,null,null,null,null,null,null,null,null,1]
[30,"566903111R00","Vyspravení podkladu po překopech kam.hrubě drceným ","t",52.136800000000001,null,{"$f":"E154*F154","v":0},1.1000000000000001,{"$f":"E154*H154","v":57.350480000000005},0,{"$f":"E154*J154","v":0},null,null,null,2,null,null,null,null,null,null,null,null,null,null,null,1,1,1,null,null,null,null,null,null,null,null,null,null,null,null,null,null,null,null,null,null,null,null,null,null,1,{"$f":"IF(AZ154=1,G154,0)","v":0},{"$f":"IF(AZ154=2,G154,0)","v":0},{"$f":"IF(AZ154=3,G154,0)","v":0},{"$f":"IF(AZ154=4,G154,0)","v":0},{"$f":"IF(AZ154=5,G154,0)","v":0},null,null,null,null,null,null,null,null,null,null,null,null,null,null,null,null,null,null,null,null,null,1,1]
[null,null,"Stoka SK PVC DN250 :(61,90*0,90+1,60*(1,60-0,90)*4)*0,40*1,873",null,45.094299999999997,null,null,null,null,null,null,null,"Stoka SK PVC DN250 :(61,90*0,90+1,60*(1,60-0,90)*4)*0,40*1,873"]
[null,null,"Stoka SK PVC DN300:(5,80*1,00+1,60*(1,60-1,00)*2)*0,40*1,873",null,5.7838000000000003,null,null,null,null,null,null,null,"Stoka SK PVC DN300:(5,80*1,00+1,60*(1,60-1,00)*2)*0,40*1,873"]
[null,null,"Přípojka PVC DN150:11,80*0,80*0,40*1,873",null,7.0724,null,null,null,null,null,null,null,"Přípojka PVC DN150:11,80*0,80*0,40*1,873"]
[null,null,"Odpočet podílu panelové plochy parkoviště (manipulace s panely počítána v SO320):-(16,00*0,90+1,60*(1,60-0,90)*1)*0,20*1,873",null,-5.8137999999999996,null,null,null,null,null,null,null,"Odpočet podílu panelové plochy parkoviště (manipulace s panely počítána v SO320):-(16,00*0,90+1,60*(1,60-0,90)*1)*0,20*1,873"]
[null,"Celkem za","5 Komunikace",null,null,null,{"$f":"SUM(G153:G158)","v":0},null,{"$f":"SUM(I153:I158)","v":57.350480000000005},null,{"$f":"SUM(K153:K158)","v":0},null,null,null,4,null,null,null,null,null,null,null,null,null,null,null,null,null,null,null,null,null,null,null,null,null,null,null,null,null,null,null,null,null,null,null,null,null,null,null,null,null,{"$f":"SUM(BA153:BA158)","v":0},{"$f":"SUM(BB153:BB158)","v":0},{"$f":"SUM(BC153:BC158)","v":0},{"$f":"SUM(BD153:BD158)","v":0},{"$f":"SUM(BE153:BE158)","v":0}]
["Díl:","8","Trubní vedení",null,null,null,null,null,null,null,null,null,null,null,1]
[31,"871313121R00","Montáž trub z plastu, gumový kroužek, DN 150 ","m",11.8,null,{"$f":"E161*F161","v":0},0,{"$f":"E161*H161","v":0},0,{"$f":"E161*J161","v":0},null,null,null,2,null,null,null,null,null,null,null,null,null,null,null,1,0,0,null,null,null,null,null,null,null,null,null,null,null,null,null,null,null,null,null,null,null,null,null,null,1,{"$f":"IF(AZ161=1,G161,0)","v":0},{"$f":"IF(AZ161=2,G161,0)","v":0},{"$f":"IF(AZ161=3,G161,0)","v":0},{"$f":"IF(AZ161=4,G161,0)","v":0},{"$f":"IF(AZ161=5,G161,0)","v":0},null,null,null,null,null,null,null,null,null,null,null,null,null,null,null,null,null,null,null,null,null,1,0]
[null,null,"V položce je uvažováno s jedním spojem na 6 m potrubí. Položka je určena pro montáž potrubí z kanalizačních trub z plastu těsněných gumovým kroužkem v otevřeném výkopu ve sklonu do 20 %.",null,null,null,null,null,null,null,null,"V položce je uvažováno s jedním spojem na 6 m potrubí. Položka je určena pro montáž potrubí z kanalizačních trub z plastu těsněných gumovým kroužkem v otevřeném výkopu ve sklonu do 20 %.",null,null,3]
[null,null,"Stoka SK PVC DN250 a DN300:",null,0,null,null,null,null,null,null,null,"Stoka SK PVC DN250 a DN300:"]
[null,null,"Přípojka PVC DN150:11,80",null,11.8,null,null,null,null,null,null,null,"Přípojka PVC DN150:11,80"]
[32,"871373121R00","Montáž trub z plastu, gumový kroužek, DN 300 ","m",67.7,null,{"$f":"E165*F165","v":0},1.0000000000000001E-5,{"$f":"E165*H165","v":6.7700000000000008E-4},0,{"$f":"E165*J165","v":0},null,null,null,2,null,null,null,null,null,null,null,null,null,null,null,1,1,1,null,null,null,null,null,null,null,null,null,null,null,null,null,null,null,null,null,null,null,null,null,null,1,{"$f":"IF(AZ165=1,G165,0)","v":0},{"$f":"IF(AZ165=2,G165,0)","v":0},{"$f":"IF(AZ165=3,G165,0)","v":0},{"$f":"IF(AZ165=4,G165,0)","v":0},{"$f":"IF(AZ165=5,G165,0)","v":0},null,null,null,null,null,null,null,null,null,null,null,null,null,null,null,null,null,null,null,null,null,1,1]
[null,null,"V položce je uvažováno s jedním spojem na 6 m potrubí. Položka je určena pro montáž potrubí z kanalizačních trub z plastu těsněných gumovým kroužkem v otevřeném výkopu ve sklonu do 20 %.",null,null,null,null,null,null,null,null,"V položce je uvažováno s jedním spojem na 6 m potrubí. Položka je určena pro montáž potrubí z kanalizačních trub z plastu těsněných gumovým kroužkem v otevřeném výkopu ve sklonu do 20 %.",null,null,3]
[null,null,"Stoka SK PVC DN250 :61,90",null,61.9,null,null,null,null,null,null,null,"Stoka SK PVC DN250 :61,90"]
[null,null,"Stoka SK PVC DN300:5,80",null,5.8,null,null,null,null,null,null,null,"Stoka SK PVC DN300:5,80"]
[33,"877313123R00","Montáž tvarovek jednoos. plast. gum.kroužek DN 150 ","kus",2,null,{"$f":"E169*F169","v":0},1.0000000000000001E-5,{"$f":"E169*H169","v":2.0000000000000002E-5},0,{"$f":"E169*J169","v":0},null,null,null,2,null,null,null,null,null,null,null,null,null,null,null,1,1,1,null,null,null,null,null,null,null,null,null,null,null,null,null,null,null,null,null,null,null,null,null,null,1,{"$f":"IF(AZ169=1,G169,0)","v":0},{"$f":"IF(AZ169=2,G169,0)","v":0},{"$f":"IF(AZ169=3,G169,0)","v":0},{"$f":"IF(AZ169=4,G169,0)","v":0},{"$f":"IF(AZ169=5,G169,0)","v":0},null,null,null,null,null,null,null,null,null,null,null,null,null,null,null,null,null,null,null,null,null,1,1]
[null,null,"Položka je určena pro montáž tvarovek jednoosých na potrubí z kanalizačních trub z plastu těsněných gumovým kroužkem v otevřeném výkopu.",null,null,null,null,null,null,null,null,"Položka je určena pro montáž tvarovek jednoosých na potrubí z kanalizačních trub z plastu těsněných gumovým kroužkem v otevřeném výkopu.",null,null,3]
[null,null,"Stoka SK PVC DN250 a DN300:",null,0,null,null,null,null,null,null,null,"Stoka SK PVC DN250 a DN300:"]
[null,null,"Přípojka PVC DN150 - Koleno PVC DN150/45°:2",null,2,null,null,null,null,null,null,null,"Přípojka PVC DN150 - Koleno PVC DN150/45°:2"]
[34,"877373121R00","Montáž tvarovek odboč. plast. gum. kroužek DN 300 ","kus",1,null,{"$f":"E173*F173","v":0},5.0000000000000002E-5,{"$f":"E173*H173","v":5.0000000000000002E-5},0,{"$f":"E173*J173","v":0},null,null,null,2,null,null,null,null,null,null,null,null,null,null,null,1,1,1,null,null,null,null,null,null,null,null,null,null,null,null,null,null,null,null,null,null,null,null,null,null,1,{"$f":"IF(AZ173=1,G173,0)","v":0},{"$f":"IF(AZ173=2,G173,0)","v":0},{"$f":"IF(AZ173=3,G173,0)","v":0},{"$f":"IF(AZ173=4,G173,0)","v":0},{"$f":"IF(AZ173=5,G173,0)","v":0},null,null,null,null,null,null,null,null,null,null,null,null,null,null,null,null,null,null,null,null,null,1,1]
[null,null,"Položka je určena pro montáž tvarovek odbočných na potrubí z kanalizačních trub z plastu těsněných gumovým kroužkem v otevřeném výkopu.",null,null,null,null,null,null,null,null,"Položka je určena pro montáž tvarovek odbočných na potrubí z kanalizačních trub z plastu těsněných gumovým kroužkem v otevřeném výkopu.",null,null,3]
[null,null,"Stoka SK PVC DN250 a DN300:",null,0,null,null,null,null,null,null,null,"Stoka SK PVC DN250 a DN300:"]
[null,null,"Odbočka PVC DN250/150/45°:1",null,1,null,null,null,null,null,null,null,"Odbočka PVC DN250/150/45°:1"]
[35,"891183439RX0","Přepojení potrubí PVC na přípojkách DN 150 včetně dodávky přepojovací tvarovky","kus",1,null,{"$f":"E177*F177","v":0},4.6000000000000001E-4,{"$f":"E177*H177","v":4.6000000000000001E-4},0,{"$f":"E177*J177","v":0},null,null,null,2,null,null,null,null,null,null,null,null,null,null,null,1,1,1,null,null,null,null,null,null,null,null,null,null,null,null,null,null,null,null,null,null,null,null,null,null,1,{"$f":"IF(AZ177=1,G177,0)","v":0},{"$f":"IF(AZ177=2,G177,0)","v":0},{"$f":"IF(AZ177=3,G177,0)","v":0},{"$f":"IF(AZ177=4,G177,0)","v":0},{"$f":"IF(AZ177=5,G177,0)","v":0},null,null,null,null,null,null,null,null,null,null,null,null,null,null,null,null,null,null,null,null,null,1,1]
[null,null,"Položka obsahuje přerušení stávajícího potrubí DN150, dodávku a montáž tvarovky pro napojení nového PVC potrubí DN150 na stávající potrubí. ",null,null,null,null,null,null,null,null,"Položka obsahuje přerušení stávajícího potrubí DN150, dodávku a montáž tvarovky pro napojení nového PVC potrubí DN150 na stávající potrubí. ",null,null,3]
[null,null,"Stoka SK PVC DN250 a DN300:",null,0,null,null,null,null,null,null,null,"Stoka SK PVC DN250 a DN300:"]
[null,null,"Přípojka PVC DN150 - přepojení:1",null,1,null,null,null,null,null,null,null,"Přípojka PVC DN150 - přepojení:1"]
[36,"891183440RX8","Přerušení stávajícího potrubí KT DN300 a jeno napojení na novou RŠ","kus",1,null,{"$f":"E181*F181","v":0},6.8000000000000005E-2,{"$f":"E181*H181","v":6.8000000000000005E-2},0,{"$f":"E181*J181","v":0},null,null,null,2,null,null,null,null,null,null,null,null,null,null,null,1,1,1,null,null,null,null,null,null,null,null,null,null,null,null,null,null,null,null,null,null,null,null,null,null,1,{"$f":"IF(AZ181=1,G181,0)","v":0},{"$f":"IF(AZ181=2,G181,0)","v":0},{"$f":"IF(AZ181=3,G181,0)","v":0},{"$f":"IF(AZ181=4,G181,0)","v":0},{"$f":"IF(AZ181=5,G181,0)","v":0},null,null,null,null,null,null,null,null,null,null,null,null,null,null,null,null,null,null,null,null,null,1,1]
[null,null,"Položka obsahuje přerušení a výřez stávajícího potrubí KT DN300 a po osazení nové RŠ dopojení stávajícího potrubí z obou stran na tuto šachtu včetně dodávky příslušných tvarovek a spojovacích prvků dle projektové dokumentace. Součástí položky je lože a obsyp potrubí.",null,null,null,null,null,null,null,null,"Položka obsahuje přerušení a výřez stávajícího potrubí KT DN300 a po osazení nové RŠ dopojení stávajícího potrubí z obou stran na tuto šachtu včetně dodávky příslušných tvarovek a spojovacích prvků dle projektové dokumentace. Součástí položky je lože a obsyp potrubí.",null,null,3]
[37,"892601153R00","Čištění kanalizační stoky do DN 500, do 100 m ","m",67.7,null,{"$f":"E183*F183","v":0},0,{"$f":"E183*H183","v":0},0,{"$f":"E183*J183","v":0},null,null,null,2,null,null,null,null,null,null,null,null,null,null,null,1,1,1,null,null,null,null,null,null,null,null,null,null,null,null,null,null,null,null,null,null,null,null,null,null,1,{"$f":"IF(AZ183=1,G183,0)","v":0},{"$f":"IF(AZ183=2,G183,0)","v":0},{"$f":"IF(AZ183=3,G183,0)","v":0},{"$f":"IF(AZ183=4,G183,0)","v":0},{"$f":"IF(AZ183=5,G183,0)","v":0},null,null,null,null,null,null,null,null,null,null,null,null,null,null,null,null,null,null,null,null,null,1,1]
[null,null,"V položce je zakalkulováno:",null,null,null,null,null,null,null,null,"V položce je zakalkulováno:",null,null,3]
[null,null,"a) otevření a uzavření revizních šachet a čisticích kusů",null,null,null,null,null,null,null,null,"a) otevření a uzavření revizních šachet a čisticích kusů",null,null,3]
[null,null,"b) natažení vysokotlakých hadic k místu odkud se bude kanalizace čistit",null,null,null,null,null,null,null,null,"b) natažení vysokotlakých hadic k místu odkud se bude kanalizace čistit",null,null,3]
[null,null,"c) vyčištění potrubí tlakovou vodou nebo motorovým pérem.",null,null,null,null,null,null,null,null,"c) vyčištění potrubí tlakovou vodou nebo motorovým pérem.",null,null,3]
[null,null,"Stoka SK PVC DN250 :61,90",null,61.9,null,null,null,null,null,null,null,"Stoka SK PVC DN250 :61,90"]
[null,null,"Stoka SK PVC DN300:5,80",null,5.8,null,null,null,null,null,null,null,"Stoka SK PVC DN300:5,80"]
[38,"892855113R00","Kontrola kanalizace TV kamerou do 100 m ","m",79.5,null,{"$f":"E190*F190","v":0},0,{"$f":"E190*H190","v":0},0,{"$f":"E190*J190","v":0},null,null,null,2,null,null,null,null,null,null,null,null,null,null,null,1,1,1,null,null,null,null,null,null,null,null,null,null,null,null,null,null,null,null,null,null,null,null,null,null,1,{"$f":"IF(AZ190=1,G190,0)","v":0},{"$f":"IF(AZ190=2,G190,0)","v":0},{"$f":"IF(AZ190=3,G190,0)","v":0},{"$f":"IF(AZ190=4,G190,0)","v":0},{"$f":"IF(AZ190=5,G190,0)","v":0},null,null,null,null,null,null,null,null,null,null,null,null,null,null,null,null,null,null,null,null,null,1,1]
[null,null,"Provedení kaberové prohlídky včetně dodání elektronického záznamu na CD zadavateli a tištěné dokumentace průběhu kamerové prohlídky",null,null,null,null,null,null,null,null,"Provedení kaberové prohlídky včetně dodání elektronického záznamu na CD zadavateli a tištěné dokumentace průběhu kamerové prohlídky",null,null,3]
[null,null,"Stoka SK PVC DN250 :61,90",null,61.9,null,null,null,null,null,null,null,"Stoka SK PVC DN250 :61,90"]
[null,null,"Stoka SK PVC DN300:5,80",null,5.8,null,null,null,null,null,null,null,"Stoka SK PVC DN300:5,80"]
[null,null,"Přípojka PVC DN150:11,80",null,11.8,null,null,null,null,null,null,null,"Přípojka PVC DN150:11,80"]
[39,"894421111RT1","Osazení betonových dílců šachet skruže rovné, na kroužek, do 0,5 t","kus",5,null,{"$f":"E195*F195","v":0},0,{"$f":"E195*H195","v":0},0,{"$f":"E195*J195","v":0},null,null,null,2,null,null,null,null,null,null,null,null,null,null,null,1,1,1,null,null,null,null,null,null,null,null,null,null,null,null,null,null,null,null,null,null,null,null,null,null,1,{"$f":"IF(AZ195=1,G195,0)","v":0},{"$f":"IF(AZ195=2,G195,0)","v":0},{"$f":"IF(AZ195=3,G195,0)","v":0},{"$f":"IF(AZ195=4,G195,0)","v":0},{"$f":"IF(AZ195=5,G195,0)","v":0},null,null,null,null,null,null,null,null,null,null,null,null,null,null,null,null,null,null,null,null,null,1,1]
[null,null,"Položka je určena pro osazení betonových dílců šachet dle DIN 4034, skruže rovné na kroužek, hmotnost do 0,5 t.",null,null,null,null,null,null,null,null,"Položka je určena pro osazení betonových dílců šachet dle DIN 4034, skruže rovné na kroužek, hmotnost do 0,5 t.",null,null,3]
[null,null,"V položce nejsou zakalkulovány náklady na dodání betonových dílců; dílce se oceňují ve specifikaci.",null,null,null,null,null,null,null,null,"V položce nejsou zakalkulovány náklady na dodání betonových dílců; dílce se oceňují ve specifikaci.",null,null,3]
[null,null,"Stoka SK PVC DN250 a DN300:",null,0,null,null,null,null,null,null,null,"Stoka SK PVC DN250 a DN300:"]
[null,null,"Skruž H250:5",null,5,null,null,null,null,null,null,null,"Skruž H250:5"]
[40,"894421112RT1","Osazení betonových dílců šachet skruže rovné, na kroužek, do 1,4 t","kus",6,null,{"$f":"E200*F200","v":0},0,{"$f":"E200*H200","v":0},0,{"$f":"E200*J200","v":0},null,null,null,2,null,null,null,null,null,null,null,null,null,null,null,1,1,1,null,null,null,null,null,null,null,null,null,null,null,null,null,null,null,null,null,null,null,null,null,null,1,{"$f":"IF(AZ200=1,G200,0)","v":0},{"$f":"IF(AZ200=2,G200,0)","v":0},{"$f":"IF(AZ200=3,G200,0)","v":0},{"$f":"IF(AZ200=4,G200,0)","v":0},{"$f":"IF(AZ200=5,G200,0)","v":0},null,null,null,null,null,null,null,null,null,null,null,null,null,null,null,null,null,null,null,null,null,1,1]
[null,null,"Položka je určena pro osazení betonových dílců šachet dle DIN 4034, skruže rovné na kroužek, hmotnost přes 0,5 do 1,4 t.",null,null,null,null,null,null,null,null,"Položka je určena pro osazení betonových dílců šachet dle DIN 4034, skruže rovné na kroužek, hmotnost přes 0,5 do 1,4 t.",null,null,3]
[null,null,"V položce nejsou zakalkulovány náklady na dodání betonových dílců; dílce se oceňují ve specifikaci.",null,null,null,null,null,null,null,null,"V položce nejsou zakalkulovány náklady na dodání betonových dílců; dílce se oceňují ve specifikaci.",null,null,3]
[null,null,"Stoka SK PVC DN250 a DN300:",null,0,null,null,null,null,null,null,null,"Stoka SK PVC DN250 a DN300:"]
[null,null,"Skruž H500:4",null,4,null,null,null,null,null,null,null,"Skruž H500:4"]
[null,null,"Skruž H1000:2",null,2,null,null,null,null,null,null,null,"Skruž H1000:2"]
[41,"894422111RT1","Osazení betonových dílců šachet skruže přechodové, na kroužek","kus",6,null,{"$f":"E206*F206","v":0},0,{"$f":"E206*H206","v":0},0,{"$f":"E206*J206","v":0},null,null,null,2,null,null,null,null,null,null,null,null,null,null,null,1,1,1,null,null,null,null,null,null,null,null,null,null,null,null,null,null,null,null,null,null,null,null,null,null,1,{"$f":"IF(AZ206=1,G206,0)","v":0},{"$f":"IF(AZ206=2,G206,0)","v":0},{"$f":"IF(AZ206=3,G206,0)","v":0},{"$f":"IF(AZ206=4,G206,0)","v":0},{"$f":"IF(AZ206=5,G206,0)","v":0},null,null,null,null,null,null,null,null,null,null,null,null,null,null,null,null,null,null,null,null,null,1,1]
[null,null,"Položka je určena pro osazení betonových dílců šachet dle DIN 4034, skruže přechodové na kroužek.",null,null,null,null,null,null,null,null,"Položka je určena pro osazení betonových dílců šachet dle DIN 4034, skruže přechodové na kroužek.",null,null,3]
[null,null,"V položce nejsou zakalkulovány náklady na dodání betonových dílců",null,null,null,null,null,null,null,null,"V položce nejsou zakalkulovány náklady na dodání betonových dílců",null,null,3]
[null,null,"Stoka SK PVC DN250 a DN300:",null,0,null,null,null,null,null,null,null,"Stoka SK PVC DN250 a DN300:"]
[null,null,"Kónus H600:6",null,6,null,null,null,null,null,null,null,"Kónus H600:6"]
[42,"894423111RT1","Osazení betonových dílců šachet do 2,0 t šachtová dna, na kroužek, do 2,0 t","kus",6,null,{"$f":"E211*F211","v":0},0,{"$f":"E211*H211","v":0},0,{"$f":"E211*J211","v":0},null,null,null,2,null,null,null,null,null,null,null,null,null,null,null,1,1,1,null,null,null,null,null,null,null,null,null,null,null,null,null,null,null,null,null,null,null,null,null,null,1,{"$f":"IF(AZ211=1,G211,0)","v":0},{"$f":"IF(AZ211=2,G211,0)","v":0},{"$f":"IF(AZ211=3,G211,0)","v":0},{"$f":"IF(AZ211=4,G211,0)","v":0},{"$f":"IF(AZ211=5,G211,0)","v":0},null,null,null,null,null,null,null,null,null,null,null,null,null,null,null,null,null,null,null,null,null,1,1]
[null,null,"Položka je určena pro osazení betonových dílců šachet dle DIN 4034, šachtová dna na kroužek, hmotnost do 2,0 t.",null,null,null,null,null,null,null,null,"Položka je určena pro osazení betonových dílců šachet dle DIN 4034, šachtová dna na kroužek, hmotnost do 2,0 t.",null,null,3]
[null,null,"V položce nejsou zakalkulovány náklady na dodání betonových dílců;",null,null,null,null,null,null,null,null,"V položce nejsou zakalkulovány náklady na dodání betonových dílců;",null,null,3]
[null,null,"Stoka SK PVC DN250 a DN300:",null,0,null,null,null,null,null,null,null,"Stoka SK PVC DN250 a DN300:"]
[null,null,"Šachtové dno 250/600:4",null,4,null,null,null,null,null,null,null,"Šachtové dno 250/600:4"]
[null,null,"Šachtové dno 300/600:2",null,2,null,null,null,null,null,null,null,"Šachtové dno 300/600:2"]
[43,"894431321RBB","Šachta, D 425 mm, dl.šach.roury 2,0 m, přímá dno KG D 160 mm, poklop šedá litina 40 t","kus",1,null,{"$f":"E217*F217","v":0},9.3259999999999996E-2,{"$f":"E217*H217","v":9.3259999999999996E-2},0,{"$f":"E217*J217","v":0},null,null,null,2,null,null,null,null,null,null,null,null,null,null,null,1,1,1,null,null,null,null,null,null,null,null,null,null,null,null,null,null,null,null,null,null,null,null,null,null,1,{"$f":"IF(AZ217=1,G217,0)","v":0},{"$f":"IF(AZ217=2,G217,0)","v":0},{"$f":"IF(AZ217=3,G217,0)","v":0},{"$f":"IF(AZ217=4,G217,0)","v":0},{"$f":"IF(AZ217=5,G217,0)","v":0},null,null,null,null,null,null,null,null,null,null,null,null,null,null,null,null,null,null,null,null,null,1,1]
[null,null,"Plastové dno, šachta z korugované trouby, těsnění, šachtová roura teleskopická, rám do teleskopické trouby, poklop litinový.",null,null,null,null,null,null,null,null,"Plastové dno, šachta z korugované trouby, těsnění, šachtová roura teleskopická, rám do teleskopické trouby, poklop litinový.",null,null,3]
[null,null,"Stoka SK PVC DN250 a DN300:",null,0,null,null,null,null,null,null,null,"Stoka SK PVC DN250 a DN300:"]
[null,null,"Přípojka PVC DN150 - DRŠ:1",null,1,null,null,null,null,null,null,null,"Přípojka PVC DN150 - DRŠ:1"]
[44,"899104111R00","Osazení poklopu s rámem nad 150 kg ","kus",1,null,{"$f":"E221*F221","v":0},7.0200000000000002E-3,{"$f":"E221*H221","v":7.0200000000000002E-3},0,{"$f":"E221*J221","v":0},null,null,null,2,null,null,null,null,null,null,null,null,null,null,null,1,1,1,null,null,null,null,null,null,null,null,null,null,null,null,null,null,null,null,null,null,null,null,null,null,1,{"$f":"IF(AZ221=1,G221,0)","v":0},{"$f":"IF(AZ221=2,G221,0)","v":0},{"$f":"IF(AZ221=3,G221,0)","v":0},{"$f":"IF(AZ221=4,G221,0)","v":0},{"$f":"IF(AZ221=5,G221,0)","v":0},null,null,null,null,null,null,null,null,null,null,null,null,null,null,null,null,null,null,null,null,null,1,1]
[null,null,"Stoka SK PVC DN250 a DN300:",null,0,null,null,null,null,null,null,null,"Stoka SK PVC DN250 a DN300:"]
[null,null,"Poklopy D400 v panelové ploše parkoviště:1",null,1,null,null,null,null,null,null,null,"Poklopy D400 v panelové ploše parkoviště:1"]
[45,"899711122R00","Fólie výstražná z PVC šedá, šířka 30 cm ","m",79.5,null,{"$f":"E224*F224","v":0},0,{"$f":"E224*H224","v":0},0,{"$f":"E224*J224","v":0},null,null,null,2,null,null,null,null,null,null,null,null,null,null,null,1,1,1,null,null,null,null,null,null,null,null,null,null,null,null,null,null,null,null,null,null,null,null,null,null,1,{"$f":"IF(AZ224=1,G224,0)","v":0},{"$f":"IF(AZ224=2,G224,0)","v":0},{"$f":"IF(AZ224=3,G224,0)","v":0},{"$f":"IF(AZ224=4,G224,0)","v":0},{"$f":"IF(AZ224=5,G224,0)","v":0},null,null,null,null,null,null,null,null,null,null,null,null,null,null,null,null,null,null,null,null,null,1,1]
[null,null,"Stoka SK PVC DN250 :5,80",null,5.8,null,null,null,null,null,null,null,"Stoka SK PVC DN250 :5,80"]
[null,null,"Stoka SK PVC DN300:61,90",null,61.9,null,null,null,null,null,null,null,"Stoka SK PVC DN300:61,90"]
[null,null,"Přípojka PVC DN150:11,80",null,11.8,null,null,null,null,null,null,null,"Přípojka PVC DN150:11,80"]
[46,"286111904","Trubka kanalizační PVC QUANTUM SN 12 DN 150","m",12.154,null,{"$f":"E228*F228","v":0},5.1000000000000004E-3,{"$f":"E228*H228","v":6.1985400000000003E-2},null,{"$f":"E228*J228","v":0},null,null,null,2,null,null,null,null,null,null,null,null,null,null,null,3,1,286111904,null,null,null,null,null,null,null,null,null,null,null,null,null,null,null,null,null,null,null,null,null,null,1,{"$f":"IF(AZ228=1,G228,0)","v":0},{"$f":"IF(AZ228=2,G228,0)","v":0},{"$f":"IF(AZ228=3,G228,0)","v":0},{"$f":"IF(AZ228=4,G228,0)","v":0},{"$f":"IF(AZ228=5,G228,0)","v":0},null,null,null,null,null,null,null,null,null,null,null,null,null,null,null,null,null,null,null,null,null,3,1]
[null,null,"Jedná  se  o  plnostěnné kanalizační trubky DN 150 – DN 400, SN 12 kN/m2 , zvenčí  i  zevnitř  hladké. Jsou  opatřeny hrdlem,  v  němž  je  vložen vysoce  elastický  jazýčkový  kroužek.  konce  trubek  (dříků)  jsou opatřeny  zkosením  pod  úhlem  15°.  Způsob  použití  trubek  je  „U“  dle  normy  ČSN  EN  1401-1, tj. mimo budovy. Spolehlivá  funkce  těsnění  je  jištěna  výztužným  kroužkem  z  elastomeru.  Je  tak  zamezeno  vypad-nutí nebo vytlačení kroužku při manipulaci a montáži. Tento systém zaručuje při správné montáži ",null,null,null,null,null,null,null,null,"Jedná  se  o  plnostěnné kanalizační trubky DN 150 – DN 400, SN 12 kN/m2 , zvenčí  i  zevnitř  hladké. Jsou  opatřeny hrdlem,  v  němž  je  vložen vysoce  elastický  jazýčkový  kroužek.  konce  trubek  (dříků)  jsou opatřeny  zkosením  pod  úhlem  15°.  Způsob  použití  trubek  je  „U“  dle  normy  ČSN  EN  1401-1, tj. mimo budovy. Spolehlivá  funkce  těsnění  je  jištěna  výztužným  kroužkem  z  elastomeru.  Je  tak  zamezeno  vypad-nutí nebo vytlačení kroužku při manipulaci a montáži. Tento systém zaručuje při správné montáži ",null,null,3]
[null,null,"dokonalou  těsnost  do  výšky  vodního  sloupce  5  metrů.",null,null,null,null,null,null,null,null,"dokonalou  těsnost  do  výšky  vodního  sloupce  5  metrů.",null,null,3]
[null,null,null,null,null,null,null,null,null,null,null,null,null,null,3]
[null,null,"Teplota při pokládce: min. -10 °C, max. 50 °C",null,null,null,null,null,null,null,null,"Teplota při pokládce: min. -10 °C, max. 50 °C",null,null,3]
[null,null,"Max. teplota média: trvale do 40 °C, krátkodobě do 60 °C",null,null,null,null,null,null,null,null,"Max. teplota média: trvale do 40 °C, krátkodobě do 60 °C",null,null,3]
[null,null,"Orientační výška krytí: min. 0,5 m, max. 10 m",null,null,null,null,null,null,null,null,"Orientační výška krytí: min. 0,5 m, max. 10 m",null,null,3]
[null,null,"Max. rychlost média: 12 m/s",null,null,null,null,null,null,null,null,"Max. rychlost média: 12 m/s",null,null,3]
[null,null,"Stoka SK PVC DN250 a DN300:",null,0,null,null,null,null,null,null,null,"Stoka SK PVC DN250 a DN300:"]
[null,null,"Přípojka PVC DN150:11,80*1,03",null,12.154,null,null,null,null,null,null,null,"Přípojka PVC DN150:11,80*1,03"]
[47,"286111923.A","Trubka kanalizační PVC QUANTUM SN 12 DN 250","kus",63.756999999999998,null,{"$f":"E238*F238","v":0},8.2000000000000007E-3,{"$f":"E238*H238","v":0.52280740000000003},null,{"$f":"E238*J238","v":0},null,null,null,2,null,null,null,null,null,null,null,null,null,null,null,3,1,"286111923.A",null,null,null,null,null,null,null,null,null,null,null,null,null,null,null,null,null,null,null,null,null,null,1,{"$f":"IF(AZ238=1,G238,0)","v":0},{"$f":"IF(AZ238=2,G238,0)","v":0},{"$f":"IF(AZ238=3,G238,0)","v":0},{"$f":"IF(AZ238=4,G238,0)","v":0},{"$f":"IF(AZ238=5,G238,0)","v":0},null,null,null,null,null,null,null,null,null,null,null,null,null,null,null,null,null,null,null,null,null,3,1]
[null,null,"Jedná  se  o  plnostěnné kanalizační trubky DN 150 – DN 400, SN 12 kN/m2 , zvenčí  i  zevnitř  hladké. Jsou  opatřeny hrdlem,  v  němž  je  vložen vysoce  elastický  jazýčkový  kroužek.  konce  trubek  (dříků)  jsou opatřeny  zkosením  pod  úhlem  15°.  Způsob  použití  trubek  je  „U“  dle  normy  ČSN  EN  1401-1, tj. mimo budovy. Spolehlivá  funkce  těsnění  je  jištěna  výztužným  kroužkem  z  elastomeru.  Je  tak  zamezeno  vypad-nutí nebo vytlačení kroužku při manipulaci a montáži. Tento systém zaručuje při správné montáži ",null,null,null,null,null,null,null,null,"Jedná  se  o  plnostěnné kanalizační trubky DN 150 – DN 400, SN 12 kN/m2 , zvenčí  i  zevnitř  hladké. Jsou  opatřeny hrdlem,  v  němž  je  vložen vysoce  elastický  jazýčkový  kroužek.  konce  trubek  (dříků)  jsou opatřeny  zkosením  pod  úhlem  15°.  Způsob  použití  trubek  je  „U“  dle  normy  ČSN  EN  1401-1, tj. mimo budovy. Spolehlivá  funkce  těsnění  je  jištěna  výztužným  kroužkem  z  elastomeru.  Je  tak  zamezeno  vypad-nutí nebo vytlačení kroužku při manipulaci a montáži. Tento systém zaručuje při správné montáži ",null,null,3]
[null,null,"dokonalou  těsnost  do  výšky  vodního  sloupce  5  metrů.",null,null,null,null,null,null,null,null,"dokonalou  těsnost  do  výšky  vodního  sloupce  5  metrů.",null,null,3]
[null,null,"Teplota při pokládce: min. -10 °C, max. 50 °C",null,null,null,null,null,null,null,null,"Teplota při pokládce: min. -10 °C, max. 50 °C",null,null,3]
[null,null,"Max. teplota média: trvale do 40 °C, krátkodobě do 60 °C",null,null,null,null,null,null,null,null,"Max. teplota média: trvale do 40 °C, krátkodobě do 60 °C",null,null,3]
[null,null,"Orientační výška krytí: min. 0,5 m, max. 10 m",null,null,null,null,null,null,null,null,"Orientační výška krytí: min. 0,5 m, max. 10 m",null,null,3]
[null,null,"Max. rychlost média: 12 m/s",null,null,null,null,null,null,null,null,"Max. rychlost média: 12 m/s",null,null,3]
[null,null,"Stoka SK PVC DN250 :61,90*1,03",null,63.756999999999998,null,null,null,null,null,null,null,"Stoka SK PVC DN250 :61,90*1,03"]
[48,"286111934.R","Trubka kanalizační PVC QUANTUM SN 12 DN 300","m",5.9740000000000002,null,{"$f":"E246*F246","v":0},1.0200000000000001E-3,{"$f":"E246*H246","v":6.0934800000000009E-3},null,{"$f":"E246*J246","v":0},null,null,null,2,null,null,null,null,null,null,null,null,null,null,null,3,1,"286111934.R",null,null,null,null,null,null,null,null,null,null,null,null,null,null,null,null,null,null,null,null,null,null,1,{"$f":"IF(AZ246=1,G246,0)","v":0},{"$f":"IF(AZ246=2,G246,0)","v":0},{"$f":"IF(AZ246=3,G246,0)","v":0},{"$f":"IF(AZ246=4,G246,0)","v":0},{"$f":"IF(AZ246=5,G246,0)","v":0},null,null,null,null,null,null,null,null,null,null,null,null,null,null,null,null,null,null,null,null,null,3,1]
[null,null,"Jedná  se  o  plnostěnné kanalizační trubky DN 150 – DN 400, SN 12 kN/m2 , zvenčí  i  zevnitř  hladké. Jsou  opatřeny hrdlem,  v  němž  je  vložen vysoce  elastický  jazýčkový  kroužek.  konce  trubek  (dříků)  jsou opatřeny  zkosením  pod  úhlem  15°.  Způsob  použití  trubek  je  „U“  dle  normy  ČSN  EN  1401-1, tj. mimo budovy. Spolehlivá  funkce  těsnění  je  jištěna  výztužným  kroužkem  z  elastomeru.  Je  tak  zamezeno  vypad-nutí nebo vytlačení kroužku při manipulaci a montáži. Tento systém zaručuje při správné montáži ",null,null,null,null,null,null,null,null,"Jedná  se  o  plnostěnné kanalizační trubky DN 150 – DN 400, SN 12 kN/m2 , zvenčí  i  zevnitř  hladké. Jsou  opatřeny hrdlem,  v  němž  je  vložen vysoce  elastický  jazýčkový  kroužek.  konce  trubek  (dříků)  jsou opatřeny  zkosením  pod  úhlem  15°.  Způsob  použití  trubek  je  „U“  dle  normy  ČSN  EN  1401-1, tj. mimo budovy. Spolehlivá  funkce  těsnění  je  jištěna  výztužným  kroužkem  z  elastomeru.  Je  tak  zamezeno  vypad-nutí nebo vytlačení kroužku při manipulaci a montáži. Tento systém zaručuje při správné montáži ",null,null,3]
[null,null,"dokonalou  těsnost  do  výšky  vodního  sloupce  5  metrů.",null,null,null,null,null,null,null,null,"dokonalou  těsnost  do  výšky  vodního  sloupce  5  metrů.",null,null,3]
[null,null,"Teplota při pokládce: min. -10 °C, max. 50 °C",null,null,null,null,null,null,null,null,"Teplota při pokládce: min. -10 °C, max. 50 °C",null,null,3]
[null,null,"Max. teplota média: trvale do 40 °C, krátkodobě do 60 °C",null,null,null,null,null,null,null,null,"Max. teplota média: trvale do 40 °C, krátkodobě do 60 °C",null,null,3]
[null,null,"Orientační výška krytí: min. 0,5 m, max. 10 m",null,null,null,null,null,null,null,null,"Orientační výška krytí: min. 0,5 m, max. 10 m",null,null,3]
[null,null,"Max. rychlost média: 12 m/s",null,null,null,null,null,null,null,null,"Max. rychlost média: 12 m/s",null,null,3]
[null,null,"Stoka SK PVC DN300:5,80*1,03",null,5.9740000000000002,null,null,null,null,null,null,null,"Stoka SK PVC DN300:5,80*1,03"]
[49,"286506003.R","Koleno kanalizační PVC SDR 34 DN 150 Kolena s úhlem 15°, 30°, 45° a 90°","kus",2.0299999999999998,null,{"$f":"E254*F254","v":0},1.2700000000000001E-3,{"$f":"E254*H254","v":2.5780999999999998E-3},null,{"$f":"E254*J254","v":0},null,null,null,2,null,null,null,null,null,null,null,null,null,null,null,3,1,"286506003.R",null,null,null,null,null,null,null,null,null,null,null,null,null,null,null,null,null,null,null,null,null,null,1,{"$f":"IF(AZ254=1,G254,0)","v":0},{"$f":"IF(AZ254=2,G254,0)","v":0},{"$f":"IF(AZ254=3,G254,0)","v":0},{"$f":"IF(AZ254=4,G254,0)","v":0},{"$f":"IF(AZ254=5,G254,0)","v":0},null,null,null,null,null,null,null,null,null,null,null,null,null,null,null,null,null,null,null,null,null,3,1]
[null,null,"Tvarovky kanalizačního systému PVC SDR 34",null,null,null,null,null,null,null,null,"Tvarovky kanalizačního systému PVC SDR 34",null,null,3]
[null,null,"Teplota při pokládce: min. -10 °C, max. 50 °C",null,null,null,null,null,null,null,null,"Teplota při pokládce: min. -10 °C, max. 50 °C",null,null,3]
[null,null,"Max. teplota média: trvale do 40 °C, krátkodobě do 60 °C",null,null,null,null,null,null,null,null,"Max. teplota média: trvale do 40 °C, krátkodobě do 60 °C",null,null,3]
[null,null,"Orientační výška krytí: min. 0,5 m, max. 10 m",null,null,null,null,null,null,null,null,"Orientační výška krytí: min. 0,5 m, max. 10 m",null,null,3]
[null,null,"Max. rychlost média: 12 m/s",null,null,null,null,null,null,null,null,"Max. rychlost média: 12 m/s",null,null,3]
[null,null,"Stoka SK PVC DN250 a DN300:",null,0,null,null,null,null,null,null,null,"Stoka SK PVC DN250 a DN300:"]
[null,null,"Přípojka PVC DN150 - Koleno PVC DN150/45°:2*1,015",null,2.0299999999999998,null,null,null,null,null,null,null,"Přípojka PVC DN150 - Koleno PVC DN150/45°:2*1,015"]
[50,"286506121","Odbočka kanaliz. PVC QUANTUM SDR 34 DN 250/150/45°","kus",1.0149999999999999,null,{"$f":"E262*F262","v":0},3.6700000000000001E-3,{"$f":"E262*H262","v":3.7250499999999997E-3},null,{"$f":"E262*J262","v":0},null,null,null,2,null,null,null,null,null,null,null,null,null,null,null,3,1,286506121,null,null,null,null,null,null,null,null,null,null,null,null,null,null,null,null,null,null,null,null,null,null,1,{"$f":"IF(AZ262=1,G262,0)","v":0},{"$f":"IF(AZ262=2,G262,0)","v":0},{"$f":"IF(AZ262=3,G262,0)","v":0},{"$f":"IF(AZ262=4,G262,0)","v":0},{"$f":"IF(AZ262=5,G262,0)","v":0},null,null,null,null,null,null,null,null,null,null,null,null,null,null,null,null,null,null,null,null,null,3,1]
[null,null,"Tvarovky kanalizačního systému PVC QUANTUM SDR 34",null,null,null,null,null,null,null,null,"Tvarovky kanalizačního systému PVC QUANTUM SDR 34",null,null,3]
[null,null,"Teplota při pokládce: min. -10 °C, max. 50 °C",null,null,null,null,null,null,null,null,"Teplota při pokládce: min. -10 °C, max. 50 °C",null,null,3]
[null,null,"Max. teplota média: trvale do 40 °C, krátkodobě do 60 °C",null,null,null,null,null,null,null,null,"Max. teplota média: trvale do 40 °C, krátkodobě do 60 °C",null,null,3]
[null,null,"Orientační výška krytí: min. 0,5 m, max. 10 m",null,null,null,null,null,null,null,null,"Orientační výška krytí: min. 0,5 m, max. 10 m",null,null,3]
[null,null,"Max. rychlost média: 12 m/s",null,null,null,null,null,null,null,null,"Max. rychlost média: 12 m/s",null,null,3]
[null,null,"Stoka SK PVC DN250 a DN300:",null,0,null,null,null,null,null,null,null,"Stoka SK PVC DN250 a DN300:"]
[null,null,"Odbočka PVC DN250/150/45°:1*1,015",null,1.0149999999999999,null,null,null,null,null,null,null,"Odbočka PVC DN250/150/45°:1*1,015"]
[51,"55244410.R","Poklop v litino-betonovém rámu dle PD","kus",1,null,{"$f":"E270*F270","v":0},0.16300000000000001,{"$f":"E270*H270","v":0.16300000000000001},null,{"$f":"E270*J270","v":0},null,null,null,2,null,null,null,null,null,null,null,null,null,null,null,3,1,"55244410.R",null,null,null,null,null,null,null,null,null,null,null,null,null,null,null,null,null,null,null,null,null,null,1,{"$f":"IF(AZ270=1,G270,0)","v":0},{"$f":"IF(AZ270=2,G270,0)","v":0},{"$f":"IF(AZ270=3,G270,0)","v":0},{"$f":"IF(AZ270=4,G270,0)","v":0},{"$f":"IF(AZ270=5,G270,0)","v":0},null,null,null,null,null,null,null,null,null,null,null,null,null,null,null,null,null,null,null,null,null,3,1]
[null,null,"Kanalizační kruhový poklop bez ventilace v litino-betonovém rámu, bez pantu, bez tlumící vložky, bez pružinového zajištění víka v rámu.",null,null,null,null,null,null,null,null,"Kanalizační kruhový poklop bez ventilace v litino-betonovém rámu, bez pantu, bez tlumící vložky, bez pružinového zajištění víka v rámu.",null,null,3]
[null,null,"Dle TS VHS Turnov",null,null,null,null,null,null,null,null,"Dle TS VHS Turnov",null,null,3]
[null,null,"Víko se znakem Lomnice nad Popelkou",null,null,null,null,null,null,null,null,"Víko se znakem Lomnice nad Popelkou",null,null,3]
[null,null,"Stoka SK PVC DN250 a DN300:",null,0,null,null,null,null,null,null,null,"Stoka SK PVC DN250 a DN300:"]
[null,null,"Poklopy D400 v panelové ploše parkoviště:1",null,1,null,null,null,null,null,null,null,"Poklopy D400 v panelové ploše parkoviště:1"]
[52,"592243583.R","Kónus šachetní TBR-Q.1 1000x625/600/120 SKP DEHA","kus",6.06,null,{"$f":"E276*F276","v":0},0.54900000000000004,{"$f":"E276*H276","v":3.32694},null,{"$f":"E276*J276","v":0},null,null,null,2,null,null,null,null,null,null,null,null,null,null,null,3,1,"592243583.R",null,null,null,null,null,null,null,null,null,null,null,null,null,null,null,null,null,null,null,null,null,null,1,{"$f":"IF(AZ276=1,G276,0)","v":0},{"$f":"IF(AZ276=2,G276,0)","v":0},{"$f":"IF(AZ276=3,G276,0)","v":0},{"$f":"IF(AZ276=4,G276,0)","v":0},{"$f":"IF(AZ276=5,G276,0)","v":0},null,null,null,null,null,null,null,null,null,null,null,null,null,null,null,null,null,null,null,null,null,3,1]
[null,null,"Stoka SK PVC DN250 a DN300:",null,0,null,null,null,null,null,null,null,"Stoka SK PVC DN250 a DN300:"]
[null,null,"Kónus H600:6*1,01",null,6.06,null,null,null,null,null,null,null,"Kónus H600:6*1,01"]
[53,"592243594.R","Skruž šachetní TBS-Q.1 1000/250/120 SP DEHA ATL","kus",5.05,null,{"$f":"E279*F279","v":0},0.254,{"$f":"E279*H279","v":1.2827},null,{"$f":"E279*J279","v":0},null,null,null,2,null,null,null,null,null,null,null,null,null,null,null,3,1,"592243594.R",null,null,null,null,null,null,null,null,null,null,null,null,null,null,null,null,null,null,null,null,null,null,1,{"$f":"IF(AZ279=1,G279,0)","v":0},{"$f":"IF(AZ279=2,G279,0)","v":0},{"$f":"IF(AZ279=3,G279,0)","v":0},{"$f":"IF(AZ279=4,G279,0)","v":0},{"$f":"IF(AZ279=5,G279,0)","v":0},null,null,null,null,null,null,null,null,null,null,null,null,null,null,null,null,null,null,null,null,null,3,1]
[null,null,"Stoka SK PVC DN250 a DN300:",null,0,null,null,null,null,null,null,null,"Stoka SK PVC DN250 a DN300:"]
[null,null,"Skruž H250:5*1,01",null,5.05,null,null,null,null,null,null,null,"Skruž H250:5*1,01"]
[54,"592243595.R","Skruž šachetní TBS-Q.1 1000/500/120 SP DEHA ATL","kus",4.04,null,{"$f":"E282*F282","v":0},0.50900000000000001,{"$f":"E282*H282","v":2.0563600000000002},null,{"$f":"E282*J282","v":0},null,null,null,2,null,null,null,null,null,null,null,null,null,null,null,3,1,"592243595.R",null,null,null,null,null,null,null,null,null,null,null,null,null,null,null,null,null,null,null,null,null,null,1,{"$f":"IF(AZ282=1,G282,0)","v":0},{"$f":"IF(AZ282=2,G282,0)","v":0},{"$f":"IF(AZ282=3,G282,0)","v":0},{"$f":"IF(AZ282=4,G282,0)","v":0},{"$f":"IF(AZ282=5,G282,0)","v":0},null,null,null,null,null,null,null,null,null,null,null,null,null,null,null,null,null,null,null,null,null,3,1]
[null,null,"Stoka SK PVC DN250 a DN300:",null,0,null,null,null,null,null,null,null,"Stoka SK PVC DN250 a DN300:"]
[null,null,"Skruž H500:4*1,01",null,4.04,null,null,null,null,null,null,null,"Skruž H500:4*1,01"]
[55,"592243696.R","Skruž šachetní TBS-Q.1 1000/1000/120 SP DEHA ATL","kus",2.02,null,{"$f":"E285*F285","v":0},1.0189999999999999,{"$f":"E285*H285","v":2.0583799999999997},null,{"$f":"E285*J285","v":0},null,null,null,2,null,null,null,null,null,null,null,null,null,null,null,3,1,"592243696.R",null,null,null,null,null,null,null,null,null,null,null,null,null,null,null,null,null,null,null,null,null,null,1,{"$f":"IF(AZ285=1,G285,0)","v":0},{"$f":"IF(AZ285=2,G285,0)","v":0},{"$f":"IF(AZ285=3,G285,0)","v":0},{"$f":"IF(AZ285=4,G285,0)","v":0},{"$f":"IF(AZ285=5,G285,0)","v":0},null,null,null,null,null,null,null,null,null,null,null,null,null,null,null,null,null,null,null,null,null,3,1]
[null,null,"Stoka SK PVC DN250 a DN300:",null,0,null,null,null,null,null,null,null,"Stoka SK PVC DN250 a DN300:"]
[null,null,"Skruž H1000:2*1,01",null,2.02,null,null,null,null,null,null,null,"Skruž H1000:2*1,01"]
[56,"592243707.R","Dno šachetní TBZ-Q.1 CAPITAN 250/600 Včetně kynety dle projektové dokumentace","kus",4.04,null,{"$f":"E288*F288","v":0},1.415,{"$f":"E288*H288","v":5.7166000000000006},null,{"$f":"E288*J288","v":0},null,null,null,2,null,null,null,null,null,null,null,null,null,null,null,3,1,"592243707.R",null,null,null,null,null,null,null,null,null,null,null,null,null,null,null,null,null,null,null,null,null,null,1,{"$f":"IF(AZ288=1,G288,0)","v":0},{"$f":"IF(AZ288=2,G288,0)","v":0},{"$f":"IF(AZ288=3,G288,0)","v":0},{"$f":"IF(AZ288=4,G288,0)","v":0},{"$f":"IF(AZ288=5,G288,0)","v":0},null,null,null,null,null,null,null,null,null,null,null,null,null,null,null,null,null,null,null,null,null,3,1]
[null,null,"Stoka SK PVC DN250 a DN300:",null,0,null,null,null,null,null,null,null,"Stoka SK PVC DN250 a DN300:"]
[null,null,"Šachtové dno 250/600:4*1,01",null,4.04,null,null,null,null,null,null,null,"Šachtové dno 250/600:4*1,01"]
[57,"592243708.R","Dno šachetní TBZ-Q.1 CAPITAN 300/600 Včetně kynety dle projektové dokumentace","kus",2.02,null,{"$f":"E291*F291","v":0},1.405,{"$f":"E291*H291","v":2.8381000000000003},null,{"$f":"E291*J291","v":0},null,null,null,2,null,null,null,null,null,null,null,null,null,null,null,3,1,"592243708.R",null,null,null,null,null,null,null,null,null,null,null,null,null,null,null,null,null,null,null,null,null,null,1,{"$f":"IF(AZ291=1,G291,0)","v":0},{"$f":"IF(AZ291=2,G291,0)","v":0},{"$f":"IF(AZ291=3,G291,0)","v":0},{"$f":"IF(AZ291=4,G291,0)","v":0},{"$f":"IF(AZ291=5,G291,0)","v":0},null,null,null,null,null,null,null,null,null,null,null,null,null,null,null,null,null,null,null,null,null,3,1]
[null,null,"Stoka SK PVC DN250 a DN300:",null,0,null,null,null,null,null,null,null,"Stoka SK PVC DN250 a DN300:"]
[null,null,"Šachtové dno 300/600:2*1,01",null,2.02,null,null,null,null,null,null,null,"Šachtové dno 300/600:2*1,01"]
[58,"59224373.R","Těsnění elastom pro šach díly EMT 100/1.7 - DN1000","kus",17.170000000000002,null,{"$f":"E294*F294","v":0},2E-3,{"$f":"E294*H294","v":3.4340000000000002E-2},null,{"$f":"E294*J294","v":0},null,null,null,2,null,null,null,null,null,null,null,null,null,null,null,3,1,"59224373.R",null,null,null,null,null,null,null,null,null,null,null,null,null,null,null,null,null,null,null,null,null,null,1,{"$f":"IF(AZ294=1,G294,0)","v":0},{"$f":"IF(AZ294=2,G294,0)","v":0},{"$f":"IF(AZ294=3,G294,0)","v":0},{"$f":"IF(AZ294=4,G294,0)","v":0},{"$f":"IF(AZ294=5,G294,0)","v":0},null,null,null,null,null,null,null,null,null,null,null,null,null,null,null,null,null,null,null,null,null,3,1]
[null,null,"Stoka SK PVC DN250 a DN300:",null,0,null,null,null,null,null,null,null,"Stoka SK PVC DN250 a DN300:"]
[null,null,"Těsnění DN1000:17*1,01",null,17.170000000000002,null,null,null,null,null,null,null,"Těsnění DN1000:17*1,01"]
[null,"Celkem za","8 Trubní vedení",null,null,null,{"$f":"SUM(G160:G296)","v":0},null,{"$f":"SUM(I160:I296)","v":18.243096430000001},null,{"$f":"SUM(K160:K296)","v":0},null,null,null,4,null,null,null,null,null,null,null,null,null,null,null,null,null,null,null,null,null,null,null,null,null,null,null,null,null,null,null,null,null,null,null,null,null,null,null,null,null,{"$f":"SUM(BA160:BA296)","v":0},{"$f":"SUM(BB160:BB296)","v":0},{"$f":"SUM(BC160:BC296)","v":0},{"$f":"SUM(BD160:BD296)","v":0},{"$f":"SUM(BE160:BE296)","v":0}]
["Díl:","93","Dokončovací práce inženýrských staveb",null,null,null,null,null,null,null,null,null,null,null,1]
[59,"936452115R00","Výplň potrubí cementopopílkovou suspenzí DN 300 ","m",42,null,{"$f":"E299*F299","v":0},0.12751000000000001,{"$f":"E299*H299","v":5.3554200000000005},0,{"$f":"E299*J299","v":0},null,null,null,2,null,null,null,null,null,null,null,null,null,null,null,1,1,1,null,null,null,null,null,null,null,null,null,null,null,null,null,null,null,null,null,null,null,null,null,null,1,{"$f":"IF(AZ299=1,G299,0)","v":0},{"$f":"IF(AZ299=2,G299,0)","v":0},{"$f":"IF(AZ299=3,G299,0)","v":0},{"$f":"IF(AZ299=4,G299,0)","v":0},{"$f":"IF(AZ299=5,G299,0)","v":0},null,null,null,null,null,null,null,null,null,null,null,null,null,null,null,null,null,null,null,null,null,1,1]
[null,null,"Stoka SK PVC DN250 a DN300:",null,0,null,null,null,null,null,null,null,"Stoka SK PVC DN250 a DN300:"]
[null,null,"Odstavené potrubí kanalizace:42,00",null,42,null,null,null,null,null,null,null,"Odstavené potrubí kanalizace:42,00"]
[60,"939421111RT1","Osazení samonivelač.kanalizač.poklopu za finišerem bez dodávky poklopu","kus",5,null,{"$f":"E302*F302","v":0},0.15425,{"$f":"E302*H302","v":0.77124999999999999},0,{"$f":"E302*J302","v":0},null,null,null,2,null,null,null,null,null,null,null,null,null,null,null,1,0,0,null,null,null,null,null,null,null,null,null,null,null,null,null,null,null,null,null,null,null,null,null,null,1,{"$f":"IF(AZ302=1,G302,0)","v":0},{"$f":"IF(AZ302=2,G302,0)","v":0},{"$f":"IF(AZ302=3,G302,0)","v":0},{"$f":"IF(AZ302=4,G302,0)","v":0},{"$f":"IF(AZ302=5,G302,0)","v":0},null,null,null,null,null,null,null,null,null,null,null,null,null,null,null,null,null,null,null,null,null,1,0]
[null,null,"Položka obsahuje:",null,null,null,null,null,null,null,null,"Položka obsahuje:",null,null,3]
[null,null,"- osazení prefabrikovaného betonového prstence do rychletuhnoucí malty (s dodávkou hmot)",null,null,null,null,null,null,null,null,"- osazení prefabrikovaného betonového prstence do rychletuhnoucí malty (s dodávkou hmot)",null,null,3]
[null,null,"- zalití prstence rychletuhnoucí zálivkou do výše prstence (s dodávkou hmoty)",null,null,null,null,null,null,null,null,"- zalití prstence rychletuhnoucí zálivkou do výše prstence (s dodávkou hmoty)",null,null,3]
[null,null,"- vložení kruhového bednění",null,null,null,null,null,null,null,null,"- vložení kruhového bednění",null,null,3]
[null,null,"- doplnění mezikruží asfaltovou směsí do výšky současné podkladní vrstvy, zhutnění",null,null,null,null,null,null,null,null,"- doplnění mezikruží asfaltovou směsí do výšky současné podkladní vrstvy, zhutnění",null,null,3]
[null,null,"- vyjmutí kruhového bednění",null,null,null,null,null,null,null,null,"- vyjmutí kruhového bednění",null,null,3]
[null,null,"- osazení poklopu a zatlačení",null,null,null,null,null,null,null,null,"- osazení poklopu a zatlačení",null,null,3]
[null,null,"  (následuje pokládka finální vrstvy vozovky - není součástí položky)",null,null,null,null,null,null,null,null,"  (následuje pokládka finální vrstvy vozovky - není součástí položky)",null,null,3]
[null,null,"- povytažení poklopu",null,null,null,null,null,null,null,null,"- povytažení poklopu",null,null,3]
[null,null,"- podsyp asfaltovou směsí, spuštění poklopu a zhutnění směsi",null,null,null,null,null,null,null,null,"- podsyp asfaltovou směsí, spuštění poklopu a zhutnění směsi",null,null,3]
[null,null,"Stoka SK PVC DN250 a DN300:",null,0,null,null,null,null,null,null,null,"Stoka SK PVC DN250 a DN300:"]
[null,null,"Samonivelační poklop:5",null,5,null,null,null,null,null,null,null,"Samonivelační poklop:5"]
[61,"55244414.R","Poklop celolitinový v samonivelačním rámu KDM93B D400 SN600","kus",5,null,{"$f":"E315*F315","v":0},0.113,{"$f":"E315*H315","v":0.56500000000000006},null,{"$f":"E315*J315","v":0},null,null,null,2,null,null,null,null,null,null,null,null,null,null,null,3,1,"55244414.R",null,null,null,null,null,null,null,null,null,null,null,null,null,null,null,null,null,null,null,null,null,null,1,{"$f":"IF(AZ315=1,G315,0)","v":0},{"$f":"IF(AZ315=2,G315,0)","v":0},{"$f":"IF(AZ315=3,G315,0)","v":0},{"$f":"IF(AZ315=4,G315,0)","v":0},{"$f":"IF(AZ315=5,G315,0)","v":0},null,null,null,null,null,null,null,null,null,null,null,null,null,null,null,null,null,null,null,null,null,3,1]
[null,null,"Kanalizační kruhový celolitinový samonivelační poklop s pantem, horizontální PUR tlumící vložka na rámu, horizontální a vertikální  PUR tlumící vložka na víku, zajištění víka v rámu vícebodovými pružinami ",null,null,null,null,null,null,null,null,"Kanalizační kruhový celolitinový samonivelační poklop s pantem, horizontální PUR tlumící vložka na rámu, horizontální a vertikální  PUR tlumící vložka na víku, zajištění víka v rámu vícebodovými pružinami ",null,null,3]
[null,null,"KDM93B bez ventilace dle TS VHS Turnov",null,null,null,null,null,null,null,null,"KDM93B bez ventilace dle TS VHS Turnov",null,null,3]
[null,null,"Víko se znakem Města Lomnice nad Popelkou",null,null,null,null,null,null,null,null,"Víko se znakem Města Lomnice nad Popelkou",null,null,3]
[null,null,"Stoka SK PVC DN250 a DN300:",null,0,null,null,null,null,null,null,null,"Stoka SK PVC DN250 a DN300:"]
[null,null,"Samonivelační poklop:5",null,5,null,null,null,null,null,null,null,"Samonivelační poklop:5"]
[null,"Celkem za","93 Dokončovací práce inženýrských staveb",null,null,null,{"$f":"SUM(G298:G320)","v":0},null,{"$f":"SUM(I298:I320)","v":6.6916700000000011},null,{"$f":"SUM(K298:K320)","v":0},null,null,null,4,null,null,null,null,null,null,null,null,null,null,null,null,null,null,null,null,null,null,null,null,null,null,null,null,null,null,null,null,null,null,null,null,null,null,null,null,null,{"$f":"SUM(BA298:BA320)","v":0},{"$f":"SUM(BB298:BB320)","v":0},{"$f":"SUM(BC298:BC320)","v":0},{"$f":"SUM(BD298:BD320)","v":0},{"$f":"SUM(BE298:BE320)","v":0}]
["Díl:","99","Staveništní přesun hmot",null,null,null,null,null,null,null,null,null,null,null,1]
[62,"998276101R00","Přesun hmot, trubní vedení plastová, otevř. výkop ","t",335.54606444500001,null,{"$f":"E323*F323","v":0},0,{"$f":"E323*H323","v":0},null,{"$f":"E323*J323","v":0},null,null,null,2,null,null,null,null,null,null,null,null,null,null,null,7,1,2,null,null,null,null,null,null,null,null,null,null,null,null,null,null,null,null,null,null,null,null,null,null,1,{"$f":"IF(AZ323=1,G323,0)","v":0},{"$f":"IF(AZ323=2,G323,0)","v":0},{"$f":"IF(AZ323=3,G323,0)","v":0},{"$f":"IF(AZ323=4,G323,0)","v":0},{"$f":"IF(AZ323=5,G323,0)","v":0},null,null,null,null,null,null,null,null,null,null,null,null,null,null,null,null,null,null,null,null,null,7,1]
[null,"Celkem za","99 Staveništní přesun hmot",null,null,null,{"$f":"SUM(G322:G323)","v":0},null,{"$f":"SUM(I322:I323)","v":0},null,{"$f":"SUM(K322:K323)","v":0},null,null,null,4,null,null,null,null,null,null,null,null,null,null,null,null,null,null,null,null,null,null,null,null,null,null,null,null,null,null,null,null,null,null,null,null,null,null,null,null,null,{"$f":"SUM(BA322:BA323)","v":0},{"$f":"SUM(BB322:BB323)","v":0},{"$f":"SUM(BC322:BC323)","v":0},{"$f":"SUM(BD322:BD323)","v":0},{"$f":"SUM(BE322:BE323)","v":0}]

{"sheet":"320 3380320 KL","index":7,"n_rows":45,"n_cols":8,"rows_kept":45,"cut":false,"hidden":false,"merged":[[50,1,50,6],[29,5,29,6],[30,5,30,6],[31,5,31,6],[32,5,32,6],[33,5,33,6],[36,1,44,6],[45,1,45,6],[46,1,46,6],[47,1,47,6],[48,1,48,6],[49,1,49,6],[22,0,22,1],[7,2,7,4],[8,2,8,4],[9,2,9,4],[10,2,10,4],[11,2,11,4]]}
["POLOŽKOVÝ ROZPOČET"]
["Rozpočet",null,"3380/320","Dešťová kanalizace",null,"JKSO ","827.21.A3"]
[]
["Objekt",null,null,null,null,"SKP "]
["320",null,"Dešťová kanalizace",null,null,"Měrná jednotka","m"]
["Stavba",null,null,null,null,"Počet jednotek",0]
["3380",null,"Lomnice n/P. Prodloužení sítí technické infrastruk",null,null,"Náklady na m.j.",{"$f":"IF(G6=0,,ROUND((F30+F32)/G6,1))","v":0}]
["Projektant",null,"PVK Projekt s.r.o.",null,null,"Typ rozpočtu"]
["Zpracovatel projektu"]
["Objednatel",null,"Město Lomnice nad Popelkou"]
["Dodavatel",null,".",null,null,"Zakázkové číslo "]
["Rozpočtoval",null,null,null,null,"Počet listů"]
["ROZPOČTOVÉ NÁKLADY"]
["Základní rozpočtové náklady"]
[null,"HSV celkem",{"$f":"'320 3380320 Rek'!E13","v":0}]
["Z","PSV celkem",{"$f":"'320 3380320 Rek'!F13","v":0}]
["R","M práce celkem",{"$f":"'320 3380320 Rek'!H13","v":0}]
["N","M dodávky celkem",{"$f":"'320 3380320 Rek'!G13","v":0}]
["ZRN celkem",null,{"$f":"SUM(C15:C18)","v":0}]
[]
["HZS",null,{"$f":"'320 3380320 Rek'!I13","v":0}]
["ZRN+HZS",null,{"$f":"C19+C21","v":0}]
["ZRN+ost.náklady+HZS",null,{"$f":"C22+G23","v":0}]
["Vypracoval",null,null,"Za zhotovitele",null,"Za objednatele"]
["Jméno :",null,null,"Jméno :",null,"Jméno :"]
["Datum :",null,null,"Datum :",null,"Datum :"]
[]
["Podpis :",null,null,"Podpis:",null,"Podpis:"]
[]
["Základ pro DPH",null,21,"%  ",null,{"$f":"C23-F32","v":0}]
["DPH",null,{"$f":"C30","v":21},"% ",null,{"$f":"ROUND(PRODUCT(F30,C31/100),0)","v":0}]
["Základ pro DPH",null,0,"% ",null,0]
["DPH",null,{"$f":"C32","v":0},"% ",null,{"$f":"ROUND(PRODUCT(F32,C33/100),0)","v":0}]
["CENA ZA OBJEKT CELKEM",null,null,null,null,{"$f":"ROUND(SUM(F30:F33),0)","v":0}]
[]
["Poznámka :",null,null,null,null,null,null," "]
[null,null,null,null,null,null,null," "]
[null,null,null,null,null,null,null," "]
[null,null,null,null,null,null,null," "]
[null,null,null,null,null,null,null," "]
[null,null,null,null,null,null,null," "]
[null,null,null,null,null,null,null," "]
[null,null,null,null,null,null,null," "]
[null,null,null,null,null,null,null," "]
[null,null,null,null,null,null,null," "]

{"sheet":"320 3380320 Rek","index":8,"n_rows":13,"n_cols":9,"rows_kept":13,"cut":false,"hidden":false,"merged":[[0,0,0,1],[1,0,1,1],[1,6,1,8]]}
["Stavba :",null,"3380 Lomnice n/P. Prodloužení sítí technické infrastruk",null,null,null,"Rozpočet :","3380/320"]
["Objekt :",null,"320 Dešťová kanalizace",null,null,null,"Dešťová kanalizace"]
[]
["REKAPITULACE  STAVEBNÍCH  DÍLŮ"]
[]
[null,"Stavební díl",null,null,"HSV","PSV","Dodávka","Montáž","HZS"]
[{"$f":"'320 3380320 Pol'!B7","v":"1"},{"$f":"'320 3380320 Pol'!C7","v":"Zemní práce"},null,null,{"$f":"'320 3380320 Pol'!BA144","v":0},{"$f":"'320 3380320 Pol'!BB144","v":0},{"$f":"'320 3380320 Pol'!BC144","v":0},{"$f":"'320 3380320 Pol'!BD144","v":0},{"$f":"'320 3380320 Pol'!BE144","v":0}]
[{"$f":"'320 3380320 Pol'!B145","v":"45"},{"$f":"'320 3380320 Pol'!C145","v":"Podkladní a vedlejší konstrukce"},null,null,{"$f":"'320 3380320 Pol'!BA166","v":0},{"$f":"'320 3380320 Pol'!BB166","v":0},{"$f":"'320 3380320 Pol'!BC166","v":0},{"$f":"'320 3380320 Pol'!BD166","v":0},{"$f":"'320 3380320 Pol'!BE166","v":0}]
[{"$f":"'320 3380320 Pol'!B167","v":"5"},{"$f":"'320 3380320 Pol'!C167","v":"Komunikace"},null,null,{"$f":"'320 3380320 Pol'!BA180","v":0},{"$f":"'320 3380320 Pol'!BB180","v":0},{"$f":"'320 3380320 Pol'!BC180","v":0},{"$f":"'320 3380320 Pol'!BD180","v":0},{"$f":"'320 3380320 Pol'!BE180","v":0}]
[{"$f":"'320 3380320 Pol'!B181","v":"8"},{"$f":"'320 3380320 Pol'!C181","v":"Trubní vedení"},null,null,{"$f":"'320 3380320 Pol'!BA306","v":0},{"$f":"'320 3380320 Pol'!BB306","v":0},{"$f":"'320 3380320 Pol'!BC306","v":0},{"$f":"'320 3380320 Pol'!BD306","v":0},{"$f":"'320 3380320 Pol'!BE306","v":0}]
[{"$f":"'320 3380320 Pol'!B307","v":"93"},{"$f":"'320 3380320 Pol'!C307","v":"Dokončovací práce inženýrských staveb"},null,null,{"$f":"'320 3380320 Pol'!BA333","v":0},{"$f":"'320 3380320 Pol'!BB333","v":0},{"$f":"'320 3380320 Pol'!BC333","v":0},{"$f":"'320 3380320 Pol'!BD333","v":0},{"$f":"'320 3380320 Pol'!BE333","v":0}]
[{"$f":"'320 3380320 Pol'!B334","v":"99"},{"$f":"'320 3380320 Pol'!C334","v":"Staveništní přesun hmot"},null,null,{"$f":"'320 3380320 Pol'!BA336","v":0},{"$f":"'320 3380320 Pol'!BB336","v":0},{"$f":"'320 3380320 Pol'!BC336","v":0},{"$f":"'320 3380320 Pol'!BD336","v":0},{"$f":"'320 3380320 Pol'!BE336","v":0}]
[null,"CELKEM  OBJEKT",null,null,{"$f":"SUM(E7:E12)","v":0},{"$f":"SUM(F7:F12)","v":0},{"$f":"SUM(G7:G12)","v":0},{"$f":"SUM(H7:H12)","v":0},{"$f":"SUM(I7:I12)","v":0}]

{"sheet":"320 3380320 Pol","index":9,"n_rows":336,"n_cols":80,"rows_kept":336,"cut":false,"hidden":false,"merged":[[329,2,329,6],[330,2,330,3],[331,2,331,3],[322,2,322,6],[323,2,323,6],[324,2,324,3],[325,2,325,3],[327,2,327,6],[328,2,328,6],[298,2,298,3],[300,2,300,3],[301,2,301,3],[303,2,303,3],[304,2,304,3],[317,2,317,6],[318,2,318,3],[319,2,319,3],[321,2,321,6],[308,2,308,6],[309,2,309,6],[310,2,310,6],[311,2,311,6],[312,2,312,6],[313,2,313,6],[314,2,314,6],[315,2,315,6],[316,2,316,6],[289,2,289,3],[291,2,291,3],[292,2,292,3],[294,2,294,3],[295,2,295,3],[297,2,297,3],[281,2,281,6],[282,2,282,3],[283,2,283,3],[285,2,285,3],[286,2,286,3],[288,2,288,3],[274,2,274,6],[275,2,275,3],[276,2,276,3],[277,2,277,3],[279,2,279,6],[280,2,280,6],[267,2,267,3],[268,2,268,3],[270,2,270,6],[271,2,271,6],[272,2,272,6],[273,2,273,6],[261,2,261,6],[262,2,262,6],[263,2,263,6],[264,2,264,6],[265,2,265,6],[266,2,266,6],[254,2,254,6],[255,2,255,6],[256,2,256,6],[257,2,257,6],[258,2,258,3],[259,2,259,3],[247,2,247,6],[248,2,248,6],[249,2,249,3],[250,2,250,3],[252,2,252,6],[253,2,253,6],[240,2,240,3],[242,2,242,6],[243,2,243,6],[244,2,244,6],[245,2,245,6],[246,2,246,6],[232,2,232,3],[234,2,234,3],[235,2,235,3],[237,2,237,3],[238,2,238,3],[239,2,239,3],[225,2,225,3],[226,2,226,3],[228,2,228,6],[229,2,229,6],[230,2,230,3],[231,2,231,3],[218,2,218,6],[219,2,219,3],[220,2,220,3],[221,2,221,3],[223,2,223,6],[224,2,224,6],[210,2,210,3],[212,2,212,6],[213,2,213,6],[214,2,214,3],[215,2,215,3],[217,2,217,6],[203,2,203,3],[204,2,204,3],[206,2,206,6],[207,2,207,3],[208,2,208,3],[209,2,209,3],[196,2,196,6],[198,2,198,6],[199,2,199,6],[200,2,200,6],[201,2,201,6],[202,2,202,3],[188,2,188,3],[189,2,189,3],[191,2,191,6],[192,2,192,3],[193,2,193,3],[194,2,194,3],[176,2,176,6],[177,2,177,6],[178,2,178,3],[182,2,182,6],[183,2,183,3],[184,2,184,3],[186,2,186,6],[187,2,187,3],[164,2,164,3],[168,2,168,3],[169,2,169,3],[170,2,170,3],[171,2,171,3],[172,2,172,3],[174,2,174,6],[175,2,175,6],[155,2,155,3],[157,2,157,3],[158,2,158,3],[160,2,160,3],[161,2,161,3],[163,2,163,3],[146,2,146,3],[147,2,147,3],[148,2,148,3],[149,2,149,3],[151,2,151,6],[152,2,152,3],[153,2,153,3],[154,2,154,3],[137,2,137,3],[138,2,138,3],[139,2,139,3],[140,2,140,3],[141,2,141,3],[142,2,142,3],[131,2,131,3],[132,2,132,3],[133,2,133,3],[134,2,134,3],[135,2,135,3],[136,2,136,3],[121,2,121,6],[124,2,124,6],[126,2,126,3],[127,2,127,3],[128,2,128,3],[129,2,129,3],[112,2,112,3],[113,2,113,3],[114,2,114,3],[115,2,115,3],[116,2,116,3],[118,2,118,6],[104,2,104,3],[105,2,105,3],[106,2,106,3],[108,2,108,3],[109,2,109,3],[110,2,110,3],[97,2,97,3],[98,2,98,3],[99,2,99,3],[100,2,100,3],[101,2,101,3],[103,2,103,3],[91,2,91,3],[92,2,92,3],[93,2,93,3],[94,2,94,3],[95,2,95,3],[96,2,96,3],[84,2,84,3],[85,2,85,3],[86,2,86,3],[88,2,88,6],[89,2,89,6],[90,2,90,3],[77,2,77,3],[78,2,78,3],[79,2,79,3],[80,2,80,3],[81,2,81,3],[82,2,82,3],[70,2,70,3],[71,2,71,3],[72,2,72,3],[73,2,73,3],[75,2,75,3],[76,2,76,3],[63,2,63,3],[64,2,64,3],[66,2,66,3],[67,2,67,3],[68,2,68,3],[69,2,69,3],[55,2,55,3],[57,2,57,6],[58,2,58,3],[59,2,59,3],[60,2,60,3],[62,2,62,3],[48,2,48,3],[49,2,49,3],[50,2,50,3],[51,2,51,3],[53,2,53,3],[54,2,54,3],[42,2,42,3],[43,2,43,3],[44,2,44,3],[45,2,45,3],[46,2,46,3],[47,2,47,3],[36,2,36,3],[37,2,37,3],[38,2,38,3],[39,2,39,3],[40,2,40,3],[41,2,41,3],[28,2,28,3],[30,2,30,6],[32,2,32,6],[33,2,33,3],[34,2,34,3],[35,2,35,3],[21,2,21,6],[22,2,22,6],[24,2,24,6],[25,2,25,6],[26,2,26,3],[27,2,27,3],[13,2,13,3],[14,2,14,3],[15,2,15,3],[16,2,16,3],[17,2,17,3],[19,2,19,3],[0,0,0,6],[2,0,2,1],[3,0,3,1],[3,4,3,6],[8,2,8,3],[9,2,9,3],[10,2,10,3],[11,2,11,3]]}
["Položkový rozpočet "]
[]
["Stavba :",null,"3380 Lomnice n/P. Prodloužení sítí technické infrastruk",null,"Rozpočet:",{"$f":"'320 3380320 Rek'!H1","v":"3380/320"}]
["Objekt :",null,"320 Dešťová kanalizace",null,{"$f":"'320 3380320 Rek'!G2","v":"Dešťová kanalizace"}]
[]
["P.č.","Číslo položky","Název položky","MJ","množství","cena / MJ","celkem (Kč)","Jednotková hmotnost","Celková hmotnost","Jednotková dem.hmot.","Celková dem.hmot."]
["Díl:","1","Zemní práce",null,null,null,null,null,null,null,null,null,null,null,1]
[1,"113107625R00","Odstranění podkladu nad 50 m2,kam.drcené tl.25 cm ","m2",101.56,null,{"$f":"E8*F8","v":0},0,{"$f":"E8*H8","v":0},-0.55000000000000004,{"$f":"E8*J8","v":-55.858000000000004},null,null,null,2,null,null,null,null,null,null,null,null,null,null,null,1,1,1,null,null,null,null,null,null,null,null,null,null,null,null,null,null,null,null,null,null,null,null,null,null,1,{"$f":"IF(AZ8=1,G8,0)","v":0},{"$f":"IF(AZ8=2,G8,0)","v":0},{"$f":"IF(AZ8=3,G8,0)","v":0},{"$f":"IF(AZ8=4,G8,0)","v":0},{"$f":"IF(AZ8=5,G8,0)","v":0},null,null,null,null,null,null,null,null,null,null,null,null,null,null,null,null,null,null,null,null,null,1,1]
[null,null,"Stoka DK PVC DN300:65,20*1,00+1,60*(1,60-1,00)*5",null,70,null,null,null,null,null,null,null,"Stoka DK PVC DN300:65,20*1,00+1,60*(1,60-1,00)*5"]
[null,null,"Přípojka DK PVC DN300:16,20*1,00+1,60*(1,60-1,00)*1",null,17.16,null,null,null,null,null,null,null,"Přípojka DK PVC DN300:16,20*1,00+1,60*(1,60-1,00)*1"]
[null,null,"Přepojení stávající kanalizace PVC DN250:11,20*0,90+1,60*(1,60-0,90)*1",null,11.2,null,null,null,null,null,null,null,"Přepojení stávající kanalizace PVC DN250:11,20*0,90+1,60*(1,60-0,90)*1"]
[null,null,"Přípojky pro UV PVC DN150:2,00*2*0,80",null,3.2,null,null,null,null,null,null,null,"Přípojky pro UV PVC DN150:2,00*2*0,80"]
[2,"113108415R00","Odstranění asfaltové vrstvy pl.nad 50 m2, tl.15 cm ","m2",64.48,null,{"$f":"E13*F13","v":0},0,{"$f":"E13*H13","v":0},-0.33,{"$f":"E13*J13","v":-21.278400000000001},null,null,null,2,null,null,null,null,null,null,null,null,null,null,null,1,1,1,null,null,null,null,null,null,null,null,null,null,null,null,null,null,null,null,null,null,null,null,null,null,1,{"$f":"IF(AZ13=1,G13,0)","v":0},{"$f":"IF(AZ13=2,G13,0)","v":0},{"$f":"IF(AZ13=3,G13,0)","v":0},{"$f":"IF(AZ13=4,G13,0)","v":0},{"$f":"IF(AZ13=5,G13,0)","v":0},null,null,null,null,null,null,null,null,null,null,null,null,null,null,null,null,null,null,null,null,null,1,1]
[null,null,"Stoka DK PVC DN300:65,20*1,00+1,60*(1,60-1,00)*5",null,70,null,null,null,null,null,null,null,"Stoka DK PVC DN300:65,20*1,00+1,60*(1,60-1,00)*5"]
[null,null,"Přípojka DK PVC DN300:16,20*1,00+1,60*(1,60-1,00)*1",null,17.16,null,null,null,null,null,null,null,"Přípojka DK PVC DN300:16,20*1,00+1,60*(1,60-1,00)*1"]
[null,null,"Přepojení stávající kanalizace PVC DN250:11,20*0,90+1,60*(1,60-0,90)*1",null,11.2,null,null,null,null,null,null,null,"Přepojení stávající kanalizace PVC DN250:11,20*0,90+1,60*(1,60-0,90)*1"]
[null,null,"Přípojky pro UV PVC DN150:2,00*2*0,80",null,3.2,null,null,null,null,null,null,null,"Přípojky pro UV PVC DN150:2,00*2*0,80"]
[null,null,"Odpočet podílu panelové plochy parkoviště (manipulace s panely počítána v SO320):-39,00*1,00+1,60*(1,60-1,00)*2",null,-37.08,null,null,null,null,null,null,null,"Odpočet podílu panelové plochy parkoviště (manipulace s panely počítána v SO320):-39,00*1,00+1,60*(1,60-1,00)*2"]
[3,"113151111R00","Rozebrání ploch ze silničních panelů pro opětovné pouřití","m2",310,null,{"$f":"E19*F19","v":0},0,{"$f":"E19*H19","v":0},-0.35499999999999998,{"$f":"E19*J19","v":-110.05},null,null,null,2,null,null,null,null,null,null,null,null,null,null,null,1,1,1,null,null,null,null,null,null,null,null,null,null,null,null,null,null,null,null,null,null,null,null,null,null,1,{"$f":"IF(AZ19=1,G19,0)","v":0},{"$f":"IF(AZ19=2,G19,0)","v":0},{"$f":"IF(AZ19=3,G19,0)","v":0},{"$f":"IF(AZ19=4,G19,0)","v":0},{"$f":"IF(AZ19=5,G19,0)","v":0},null,null,null,null,null,null,null,null,null,null,null,null,null,null,null,null,null,null,null,null,null,1,1]
[null,null,"Plocha parkoviště:310,00",null,310,null,null,null,null,null,null,null,"Plocha parkoviště:310,00"]
[4,"115109201RRX","Přečerpávání nebo převedení splašků a dešť. vod ","h",150,null,{"$f":"E21*F21","v":0},0,{"$f":"E21*H21","v":0},0,{"$f":"E21*J21","v":0},null,null,null,2,null,null,null,null,null,null,null,null,null,null,null,1,1,1,null,null,null,null,null,null,null,null,null,null,null,null,null,null,null,null,null,null,null,null,null,null,1,{"$f":"IF(AZ21=1,G21,0)","v":0},{"$f":"IF(AZ21=2,G21,0)","v":0},{"$f":"IF(AZ21=3,G21,0)","v":0},{"$f":"IF(AZ21=4,G21,0)","v":0},{"$f":"IF(AZ21=5,G21,0)","v":0},null,null,null,null,null,null,null,null,null,null,null,null,null,null,null,null,null,null,null,null,null,1,1]
[null,null,"Převedení a čerpání splašků nebo dešťových vod dle zvolené technologie zhotovitele stavby.",null,null,null,null,null,null,null,null,"Převedení a čerpání splašků nebo dešťových vod dle zvolené technologie zhotovitele stavby.",null,null,3]
[null,null,"(Množství bude určeno na stavbě dle skutečnosti)",null,null,null,null,null,null,null,null,"(Množství bude určeno na stavbě dle skutečnosti)",null,null,3]
[5,"130001101RRX","Příplatek za ztížené hloubení v blízkosti vedení ","m3",68.543400000000005,null,{"$f":"E24*F24","v":0},0,{"$f":"E24*H24","v":0},0,{"$f":"E24*J24","v":0},null,null,null,2,null,null,null,null,null,null,null,null,null,null,null,1,1,1,null,null,null,null,null,null,null,null,null,null,null,null,null,null,null,null,null,null,null,null,null,null,1,{"$f":"IF(AZ24=1,G24,0)","v":0},{"$f":"IF(AZ24=2,G24,0)","v":0},{"$f":"IF(AZ24=3,G24,0)","v":0},{"$f":"IF(AZ24=4,G24,0)","v":0},{"$f":"IF(AZ24=5,G24,0)","v":0},null,null,null,null,null,null,null,null,null,null,null,null,null,null,null,null,null,null,null,null,null,1,1]
[null,null,"Včetně případných nutných dokopávem a ručního výkopu podél sousedících inženýrských sítí včetně vyvěšení a zajištění sítí.",null,null,null,null,null,null,null,null,"Včetně případných nutných dokopávem a ručního výkopu podél sousedících inženýrských sítí včetně vyvěšení a zajištění sítí.",null,null,3]
[null,null,"Součástí položky jsou i nutné ruční kopané sondy předepsané projektovou dokumentací pro upřesnění směrového a výškového umístění sousedních vedení inženýrských sítí.",null,null,null,null,null,null,null,null,"Součástí položky jsou i nutné ruční kopané sondy předepsané projektovou dokumentací pro upřesnění směrového a výškového umístění sousedních vedení inženýrských sítí.",null,null,3]
[null,null,"Stoka DK PVC DN300 vč. přípojek a propojů DK:",null,0,null,null,null,null,null,null,null,"Stoka DK PVC DN300 vč. přípojek a propojů DK:"]
[null,null,"Výkopy:",null,0,null,null,null,null,null,null,null,"Výkopy:"]
[null,null,"V hornině tř. 3 - 4 - 28%:244,7980*0,28",null,68.543400000000005,null,null,null,null,null,null,null,"V hornině tř. 3 - 4 - 28%:244,7980*0,28"]
[6,"130901123RT3","Bourání konstrukcí ze železobetonu ve vykopávkách bagrem s kladivem","m3",1.5369999999999999,null,{"$f":"E30*F30","v":0},0,{"$f":"E30*H30","v":0},-2.5,{"$f":"E30*J30","v":-3.8424999999999998},null,null,null,2,null,null,null,null,null,null,null,null,null,null,null,1,1,1,null,null,null,null,null,null,null,null,null,null,null,null,null,null,null,null,null,null,null,null,null,null,1,{"$f":"IF(AZ30=1,G30,0)","v":0},{"$f":"IF(AZ30=2,G30,0)","v":0},{"$f":"IF(AZ30=3,G30,0)","v":0},{"$f":"IF(AZ30=4,G30,0)","v":0},{"$f":"IF(AZ30=5,G30,0)","v":0},null,null,null,null,null,null,null,null,null,null,null,null,null,null,null,null,null,null,null,null,null,1,1]
[null,null,"Položka obsahuje odstranění materiálu obklopujícího betonové a železobetonové konstrukce v míře nutné pro vyzvednutí, rozpojení konstrukcí, uchopení a vyzvednutí konstrukce z výkopu a uložení na dopravní prostředek.",null,null,null,null,null,null,null,null,"Položka obsahuje odstranění materiálu obklopujícího betonové a železobetonové konstrukce v míře nutné pro vyzvednutí, rozpojení konstrukcí, uchopení a vyzvednutí konstrukce z výkopu a uložení na dopravní prostředek.",null,null,3]
[7,"132201212R00","Hloubení rýh š.do 200 cm hor.3 do 1000m3,STROJNĚ ","m3",122.399,null,{"$f":"E32*F32","v":0},0,{"$f":"E32*H32","v":0},0,{"$f":"E32*J32","v":0},null,null,null,2,null,null,null,null,null,null,null,null,null,null,null,1,1,1,null,null,null,null,null,null,null,null,null,null,null,null,null,null,null,null,null,null,null,null,null,null,1,{"$f":"IF(AZ32=1,G32,0)","v":0},{"$f":"IF(AZ32=2,G32,0)","v":0},{"$f":"IF(AZ32=3,G32,0)","v":0},{"$f":"IF(AZ32=4,G32,0)","v":0},{"$f":"IF(AZ32=5,G32,0)","v":0},null,null,null,null,null,null,null,null,null,null,null,null,null,null,null,null,null,null,null,null,null,1,1]
[null,null,"Položka obsahuje hloubení rýh traktorbagrem, naložení výkopku na dopravní prostředek pro svislé, nebo vodorovné přemístění, popř. přemístění výkopku do 3 m (po povrchu území), případné zajištění rypadel polštáři, udržování pracoviště a ochranu výkopiště proti stékání srážkové vody z okolního terénu i s jejím odvodněním, nebo odvedením, přesekání a odstranění kořenů ve výkopišti, odstranění napadávek, urovnání dna výkopu.",null,null,null,null,null,null,null,null,"Položka obsahuje hloubení rýh traktorbagrem, naložení výkopku na dopravní prostředek pro svislé, nebo vodorovné přemístění, popř. přemístění výkopku do 3 m (po povrchu území), případné zajištění rypadel polštáři, udržování pracoviště a ochranu výkopiště proti stékání srážkové vody z okolního terénu i s jejím odvodněním, nebo odvedením, přesekání a odstranění kořenů ve výkopišti, odstranění napadávek, urovnání dna výkopu.",null,null,3]
[null,null,"Stoka DK PVC DN300 vč. přípojek a propojů DK:",null,0,null,null,null,null,null,null,null,"Stoka DK PVC DN300 vč. přípojek a propojů DK:"]
[null,null,"Výkopy:",null,0,null,null,null,null,null,null,null,"Výkopy:"]
[null,null,"Začátek provozního součtu",null,0,null,null,null,null,null,null,null,"Začátek provozního součtu"]
[null,null,"Stoka DK PVC DN300:40,01*1,00*(2,78+2,85)/2",null,112.6281,null,null,null,null,null,null,null,"Stoka DK PVC DN300:40,01*1,00*(2,78+2,85)/2"]
[null,null,"(59,44-41,01)*1,00*(2,85+2,71)/2",null,51.235399999999998,null,null,null,null,null,null,null,"(59,44-41,01)*1,00*(2,85+2,71)/2"]
[null,null,"(65,20-59,44)*1,00*(2,71+3,19)/2",null,16.992000000000001,null,null,null,null,null,null,null,"(65,20-59,44)*1,00*(2,71+3,19)/2"]
[null,null,"Přípojka DK PVC DN300:16,20*1,00*(2,85+2,83)/2",null,46.008000000000003,null,null,null,null,null,null,null,"Přípojka DK PVC DN300:16,20*1,00*(2,85+2,83)/2"]
[null,null,"Přepojení stávající kanalizace PVC DN250:11,20*0,90*(2,74+2,80)/2",null,27.921600000000002,null,null,null,null,null,null,null,"Přepojení stávající kanalizace PVC DN250:11,20*0,90*(2,74+2,80)/2"]
[null,null,"Prohloubení pro RŠ:1,60*1,60*0,20*7",null,3.5840000000000001,null,null,null,null,null,null,null,"Prohloubení pro RŠ:1,60*1,60*0,20*7"]
[null,null,"Rozšíření pro RŠ:1,60*(1,60-1,00)*(2,76+2,74+2,85+2,71+3,19+2,83)",null,16.396799999999999,null,null,null,null,null,null,null,"Rozšíření pro RŠ:1,60*(1,60-1,00)*(2,76+2,74+2,85+2,71+3,19+2,83)"]
[null,null,"1,60*(1,60-0,90)*2,80",null,3.1360000000000001,null,null,null,null,null,null,null,"1,60*(1,60-0,90)*2,80"]
[null,null,"Přípojky pro UV PVC DN150:2,00*2*0,80*(2,70+2,00)/2",null,7.52,null,null,null,null,null,null,null,"Přípojky pro UV PVC DN150:2,00*2*0,80*(2,70+2,00)/2"]
[null,null,"Odpoče objemu konstrukcí bomunikací a ZP:",null,0,null,null,null,null,null,null,null,"Odpoče objemu konstrukcí bomunikací a ZP:"]
[null,null,"Stoka DK PVC DN300:-(65,20*1,00+1,60*(1,60-1,00)*5)*0,40",null,-28,null,null,null,null,null,null,null,"Stoka DK PVC DN300:-(65,20*1,00+1,60*(1,60-1,00)*5)*0,40"]
[null,null,"Přípojka DK PVC DN300:-(16,20*1,00+1,60*(1,60-1,00)*1)*0,40",null,-6.8639999999999999,null,null,null,null,null,null,null,"Přípojka DK PVC DN300:-(16,20*1,00+1,60*(1,60-1,00)*1)*0,40"]
[null,null,"Přepojení stávající kanalizace PVC DN250:-(11,20*0,90+1,60*(1,60-0,90)*1)*0,40",null,-4.4800000000000004,null,null,null,null,null,null,null,"Přepojení stávající kanalizace PVC DN250:-(11,20*0,90+1,60*(1,60-0,90)*1)*0,40"]
[null,null,"Přípojky pro UV PVC DN150:-2,00*2*0,80*0,40",null,-1.28,null,null,null,null,null,null,null,"Přípojky pro UV PVC DN150:-2,00*2*0,80*0,40"]
[null,null,"Konec provozního součtu",null,244.7979,null,null,null,null,null,null,null,"Konec provozního součtu"]
[null,null,"V hornině tř. 3 - 50%:244,7980*0,5",null,122.399,null,null,null,null,null,null,null,"V hornině tř. 3 - 50%:244,7980*0,5"]
[8,"132201219R00","Přípl.za lepivost,hloubení rýh 200cm,hor.3,STROJNĚ ","m3",61.1995,null,{"$f":"E53*F53","v":0},0,{"$f":"E53*H53","v":0},0,{"$f":"E53*J53","v":0},null,null,null,2,null,null,null,null,null,null,null,null,null,null,null,1,1,1,null,null,null,null,null,null,null,null,null,null,null,null,null,null,null,null,null,null,null,null,null,null,1,{"$f":"IF(AZ53=1,G53,0)","v":0},{"$f":"IF(AZ53=2,G53,0)","v":0},{"$f":"IF(AZ53=3,G53,0)","v":0},{"$f":"IF(AZ53=4,G53,0)","v":0},{"$f":"IF(AZ53=5,G53,0)","v":0},null,null,null,null,null,null,null,null,null,null,null,null,null,null,null,null,null,null,null,null,null,1,1]
[null,null,"Stoka DK PVC DN300 vč. přípojek a propojů DK:",null,0,null,null,null,null,null,null,null,"Stoka DK PVC DN300 vč. přípojek a propojů DK:"]
[null,null,"Výkopy:",null,0,null,null,null,null,null,null,null,"Výkopy:"]
[null,null,"V hornině tř. 3 - 50%:244,7980*0,5*0,5",null,61.1995,null,null,null,null,null,null,null,"V hornině tř. 3 - 50%:244,7980*0,5*0,5"]
[9,"132301212R00","Hloubení rýh š.do 200 cm hor.4 do 1000 m3, STROJNĚ ","m3",122.399,null,{"$f":"E57*F57","v":0},0,{"$f":"E57*H57","v":0},0,{"$f":"E57*J57","v":0},null,null,null,2,null,null,null,null,null,null,null,null,null,null,null,1,1,1,null,null,null,null,null,null,null,null,null,null,null,null,null,null,null,null,null,null,null,null,null,null,1,{"$f":"IF(AZ57=1,G57,0)","v":0},{"$f":"IF(AZ57=2,G57,0)","v":0},{"$f":"IF(AZ57=3,G57,0)","v":0},{"$f":"IF(AZ57=4,G57,0)","v":0},{"$f":"IF(AZ57=5,G57,0)","v":0},null,null,null,null,null,null,null,null,null,null,null,null,null,null,null,null,null,null,null,null,null,1,1]
[null,null,"Položka obsahuje hloubení rýh traktorbagrem, naložení výkopku na dopravní prostředek pro svislé, nebo vodorovné přemístění, popř. přemístění výkopku do 3 m (po povrchu území), případné zajištění rypadel polštáři, udržování pracoviště a ochranu výkopiště proti stékání srážkové vody z okolního terénu i s jejím odvodněním, nebo odvedením, přesekání a odstranění kořenů ve výkopišti, odstranění napadávek, urovnání dna výkopu.",null,null,null,null,null,null,null,null,"Položka obsahuje hloubení rýh traktorbagrem, naložení výkopku na dopravní prostředek pro svislé, nebo vodorovné přemístění, popř. přemístění výkopku do 3 m (po povrchu území), případné zajištění rypadel polštáři, udržování pracoviště a ochranu výkopiště proti stékání srážkové vody z okolního terénu i s jejím odvodněním, nebo odvedením, přesekání a odstranění kořenů ve výkopišti, odstranění napadávek, urovnání dna výkopu.",null,null,3]
[null,null,"Stoka DK PVC DN300 vč. přípojek a propojů DK:",null,0,null,null,null,null,null,null,null,"Stoka DK PVC DN300 vč. přípojek a propojů DK:"]
[null,null,"Výkopy:",null,0,null,null,null,null,null,null,null,"Výkopy:"]
[null,null,"V hornině tř. 4 - 50%:244,7980*0,5",null,122.399,null,null,null,null,null,null,null,"V hornině tř. 4 - 50%:244,7980*0,5"]
[10,"132301219R00","Přípl.za lepivost,hloubení rýh 200cm,hor.4,STROJNĚ ","m3",61.1995,null,{"$f":"E62*F62","v":0},0,{"$f":"E62*H62","v":0},0,{"$f":"E62*J62","v":0},null,null,null,2,null,null,null,null,null,null,null,null,null,null,null,1,1,1,null,null,null,null,null,null,null,null,null,null,null,null,null,null,null,null,null,null,null,null,null,null,1,{"$f":"IF(AZ62=1,G62,0)","v":0},{"$f":"IF(AZ62=2,G62,0)","v":0},{"$f":"IF(AZ62=3,G62,0)","v":0},{"$f":"IF(AZ62=4,G62,0)","v":0},{"$f":"IF(AZ62=5,G62,0)","v":0},null,null,null,null,null,null,null,null,null,null,null,null,null,null,null,null,null,null,null,null,null,1,1]
[null,null,"Stoka DK PVC DN300 vč. přípojek a propojů DK:",null,0,null,null,null,null,null,null,null,"Stoka DK PVC DN300 vč. přípojek a propojů DK:"]
[null,null,"Výkopy:",null,0,null,null,null,null,null,null,null,"Výkopy:"]
[null,null,"V hornině tř. 4 - 50%:244,7980*0,5*0,5",null,61.1995,null,null,null,null,null,null,null,"V hornině tř. 4 - 50%:244,7980*0,5*0,5"]
[11,"151101102R00","Pažení a rozepření stěn rýh - příložné - hl.do 4 m ","m2",534.57510000000002,null,{"$f":"E66*F66","v":0},8.5999999999999998E-4,{"$f":"E66*H66","v":0.459734586},0,{"$f":"E66*J66","v":0},null,null,null,2,null,null,null,null,null,null,null,null,null,null,null,1,1,1,null,null,null,null,null,null,null,null,null,null,null,null,null,null,null,null,null,null,null,null,null,null,1,{"$f":"IF(AZ66=1,G66,0)","v":0},{"$f":"IF(AZ66=2,G66,0)","v":0},{"$f":"IF(AZ66=3,G66,0)","v":0},{"$f":"IF(AZ66=4,G66,0)","v":0},{"$f":"IF(AZ66=5,G66,0)","v":0},null,null,null,null,null,null,null,null,null,null,null,null,null,null,null,null,null,null,null,null,null,1,1]
[null,null,"Stoka DK PVC DN300 vč. přípojek a propojů DK:",null,0,null,null,null,null,null,null,null,"Stoka DK PVC DN300 vč. přípojek a propojů DK:"]
[null,null,"Výkopy:",null,0,null,null,null,null,null,null,null,"Výkopy:"]
[null,null,"Stoka DK PVC DN300:40,01*(2,78+2,85)/2*2",null,225.25630000000001,null,null,null,null,null,null,null,"Stoka DK PVC DN300:40,01*(2,78+2,85)/2*2"]
[null,null,"(59,44-41,01)*(2,85+2,71)/2*2",null,102.4708,null,null,null,null,null,null,null,"(59,44-41,01)*(2,85+2,71)/2*2"]
[null,null,"(65,20-59,44)*(2,71+3,19)/2*2",null,33.984000000000002,null,null,null,null,null,null,null,"(65,20-59,44)*(2,71+3,19)/2*2"]
[null,null,"Přípojka DK PVC DN300:16,20*(2,85+2,83)/2*2",null,92.016000000000005,null,null,null,null,null,null,null,"Přípojka DK PVC DN300:16,20*(2,85+2,83)/2*2"]
[null,null,"Přepojení stávající kanalizace PVC DN250:11,20*(2,74+2,80)/2*2",null,62.048000000000002,null,null,null,null,null,null,null,"Přepojení stávající kanalizace PVC DN250:11,20*(2,74+2,80)/2*2"]
[null,null,"Přípojky pro UV PVC DN150:2,00*2*(2,70+2,00)/2*2",null,18.8,null,null,null,null,null,null,null,"Přípojky pro UV PVC DN150:2,00*2*(2,70+2,00)/2*2"]
[12,"151101112R00","Odstranění pažení stěn rýh - příložné - hl. do 4 m ","m2",534.57510000000002,null,{"$f":"E75*F75","v":0},0,{"$f":"E75*H75","v":0},0,{"$f":"E75*J75","v":0},null,null,null,2,null,null,null,null,null,null,null,null,null,null,null,1,1,1,null,null,null,null,null,null,null,null,null,null,null,null,null,null,null,null,null,null,null,null,null,null,1,{"$f":"IF(AZ75=1,G75,0)","v":0},{"$f":"IF(AZ75=2,G75,0)","v":0},{"$f":"IF(AZ75=3,G75,0)","v":0},{"$f":"IF(AZ75=4,G75,0)","v":0},{"$f":"IF(AZ75=5,G75,0)","v":0},null,null,null,null,null,null,null,null,null,null,null,null,null,null,null,null,null,null,null,null,null,1,1]
[null,null,"Stoka DK PVC DN300 vč. přípojek a propojů DK:",null,0,null,null,null,null,null,null,null,"Stoka DK PVC DN300 vč. přípojek a propojů DK:"]
[null,null,"Výkopy:",null,0,null,null,null,null,null,null,null,"Výkopy:"]
[null,null,"Stoka DK PVC DN300:40,01*(2,78+2,85)/2*2",null,225.25630000000001,null,null,null,null,null,null,null,"Stoka DK PVC DN300:40,01*(2,78+2,85)/2*2"]
[null,null,"(59,44-41,01)*(2,85+2,71)/2*2",null,102.4708,null,null,null,null,null,null,null,"(59,44-41,01)*(2,85+2,71)/2*2"]
[null,null,"(65,20-59,44)*(2,71+3,19)/2*2",null,33.984000000000002,null,null,null,null,null,null,null,"(65,20-59,44)*(2,71+3,19)/2*2"]
[null,null,"Přípojka DK PVC DN300:16,20*(2,85+2,83)/2*2",null,92.016000000000005,null,null,null,null,null,null,null,"Přípojka DK PVC DN300:16,20*(2,85+2,83)/2*2"]
[null,null,"Přepojení stávající kanalizace PVC DN250:11,20*(2,74+2,80)/2*2",null,62.048000000000002,null,null,null,null,null,null,null,"Přepojení stávající kanalizace PVC DN250:11,20*(2,74+2,80)/2*2"]
[null,null,"Přípojky pro UV PVC DN150:2,00*2*(2,70+2,00)/2*2",null,18.8,null,null,null,null,null,null,null,"Přípojky pro UV PVC DN150:2,00*2*(2,70+2,00)/2*2"]
[13,"162701105RSZ","Vodorovné přemístění výkopku z hor.1-7 na skládku zhotovitele","m3",244.798,null,{"$f":"E84*F84","v":0},0,{"$f":"E84*H84","v":0},0,{"$f":"E84*J84","v":0},null,null,null,2,null,null,null,null,null,null,null,null,null,null,null,1,1,1,null,null,null,null,null,null,null,null,null,null,null,null,null,null,null,null,null,null,null,null,null,null,1,{"$f":"IF(AZ84=1,G84,0)","v":0},{"$f":"IF(AZ84=2,G84,0)","v":0},{"$f":"IF(AZ84=3,G84,0)","v":0},{"$f":"IF(AZ84=4,G84,0)","v":0},{"$f":"IF(AZ84=5,G84,0)","v":0},null,null,null,null,null,null,null,null,null,null,null,null,null,null,null,null,null,null,null,null,null,1,1]
[null,null,"Stoka DK PVC DN300 vč. přípojek a propojů DK:",null,0,null,null,null,null,null,null,null,"Stoka DK PVC DN300 vč. přípojek a propojů DK:"]
[null,null,"Výkopy:",null,0,null,null,null,null,null,null,null,"Výkopy:"]
[null,null,"V hornině tř. 3 - 4:244,7980",null,244.798,null,null,null,null,null,null,null,"V hornině tř. 3 - 4:244,7980"]
[14,"174101101R00","Zásyp jam, rýh, šachet se zhutněním ","m3",150.25559999999999,null,{"$f":"E88*F88","v":0},0,{"$f":"E88*H88","v":0},0,{"$f":"E88*J88","v":0},null,null,null,2,null,null,null,null,null,null,null,null,null,null,null,1,1,1,null,null,null,null,null,null,null,null,null,null,null,null,null,null,null,null,null,null,null,null,null,null,1,{"$f":"IF(AZ88=1,G88,0)","v":0},{"$f":"IF(AZ88=2,G88,0)","v":0},{"$f":"IF(AZ88=3,G88,0)","v":0},{"$f":"IF(AZ88=4,G88,0)","v":0},{"$f":"IF(AZ88=5,G88,0)","v":0},null,null,null,null,null,null,null,null,null,null,null,null,null,null,null,null,null,null,null,null,null,1,1]
[null,null,"Položka obsahuje strojní přemístění materiálu pro zásyp ze vzdálenosti do 10 m od okraje zásypu.",null,null,null,null,null,null,null,null,"Položka obsahuje strojní přemístění materiálu pro zásyp ze vzdálenosti do 10 m od okraje zásypu.",null,null,3]
[null,null,null,null,null,null,null,null,null,null,null,null,null,null,3]
[null,null,"Zásyp ŠD fr. 0-63 mm:150,2556",null,150.25559999999999,null,null,null,null,null,null,null,"Zásyp ŠD fr. 0-63 mm:150,2556"]
[null,null,"Začátek provozního součtu",null,0,null,null,null,null,null,null,null,"Začátek provozního součtu"]
[null,null,"Stoka DK PVC DN300 vč. přípojek a propojů DK:",null,0,null,null,null,null,null,null,null,"Stoka DK PVC DN300 vč. přípojek a propojů DK:"]
[null,null,"Výkopy:",null,0,null,null,null,null,null,null,null,"Výkopy:"]
[null,null,"V hornině tř. 3 - 4:244,7980",null,244.798,null,null,null,null,null,null,null,"V hornině tř. 3 - 4:244,7980"]
[null,null,"Odpočet lože, potrubí a obsypů:",null,0,null,null,null,null,null,null,null,"Odpočet lože, potrubí a obsypů:"]
[null,null,"Stoka DK PVC DN300:-65,20*1,00*(0,15+0,30+0,30)",null,-48.9,null,null,null,null,null,null,null,"Stoka DK PVC DN300:-65,20*1,00*(0,15+0,30+0,30)"]
[null,null,"Přípojka DK PVC DN300:-16,20*1,00*(0,15+0,30+0,30)",null,-12.15,null,null,null,null,null,null,null,"Přípojka DK PVC DN300:-16,20*1,00*(0,15+0,30+0,30)"]
[null,null,"Přepojení stávající kanalizace PVC DN250:-11,20*0,90*(0,15+0,25+0,30)",null,-7.056,null,null,null,null,null,null,null,"Přepojení stávající kanalizace PVC DN250:-11,20*0,90*(0,15+0,25+0,30)"]
[null,null,"Přípojky pro UV PVC DN150:-2,00*2*0,80*(0,15+0,15+0,30)",null,-1.92,null,null,null,null,null,null,null,"Přípojky pro UV PVC DN150:-2,00*2*0,80*(0,15+0,15+0,30)"]
[null,null,"Odpočet objemu konstrukce RŠ:-24,5164",null,-24.516400000000001,null,null,null,null,null,null,null,"Odpočet objemu konstrukce RŠ:-24,5164"]
[null,null,"Konec provozního součtu",null,150.25559999999999,null,null,null,null,null,null,null,"Konec provozního součtu"]
[15,"175101101R00","Obsyp potrubí bez prohození sypaniny ","m3",48.105800000000002,null,{"$f":"E103*F103","v":0},0,{"$f":"E103*H103","v":0},0,{"$f":"E103*J103","v":0},null,null,null,2,null,null,null,null,null,null,null,null,null,null,null,1,1,1,null,null,null,null,null,null,null,null,null,null,null,null,null,null,null,null,null,null,null,null,null,null,1,{"$f":"IF(AZ103=1,G103,0)","v":0},{"$f":"IF(AZ103=2,G103,0)","v":0},{"$f":"IF(AZ103=3,G103,0)","v":0},{"$f":"IF(AZ103=4,G103,0)","v":0},{"$f":"IF(AZ103=5,G103,0)","v":0},null,null,null,null,null,null,null,null,null,null,null,null,null,null,null,null,null,null,null,null,null,1,1]
[null,null,"Stoka DK PVC DN300:65,20*(1,00*(0,30+0,30)-0,15^2*Pi)",null,34.511299999999999,null,null,null,null,null,null,null,"Stoka DK PVC DN300:65,20*(1,00*(0,30+0,30)-0,15^2*Pi)"]
[null,null,"Přípojka DK PVC DN300:16,20*(1,00*(0,30+0,30)-0,15^2*Pi)",null,8.5748999999999995,null,null,null,null,null,null,null,"Přípojka DK PVC DN300:16,20*(1,00*(0,30+0,30)-0,15^2*Pi)"]
[null,null,"Přepojení stávající kanalizace PVC DN250:11,20*(0,90*(0,25+0,30)-0,125^2*Pi)",null,4.9942000000000002,null,null,null,null,null,null,null,"Přepojení stávající kanalizace PVC DN250:11,20*(0,90*(0,25+0,30)-0,125^2*Pi)"]
[null,null,"Přípojky pro UV PVC DN150:2,00*2*(0,80*(0,15+0,30)*0,075^2*Pi)",null,2.5399999999999999E-2,null,null,null,null,null,null,null,"Přípojky pro UV PVC DN150:2,00*2*(0,80*(0,15+0,30)*0,075^2*Pi)"]
[16,"199000002R00","Poplatek za skládku horniny 1- 7 č. dle katal. odpadů 17 05 04","m3",244.798,null,{"$f":"E108*F108","v":0},0,{"$f":"E108*H108","v":0},0,{"$f":"E108*J108","v":0},null,null,null,2,null,null,null,null,null,null,null,null,null,null,null,1,1,1,null,null,null,null,null,null,null,null,null,null,null,null,null,null,null,null,null,null,null,null,null,null,1,{"$f":"IF(AZ108=1,G108,0)","v":0},{"$f":"IF(AZ108=2,G108,0)","v":0},{"$f":"IF(AZ108=3,G108,0)","v":0},{"$f":"IF(AZ108=4,G108,0)","v":0},{"$f":"IF(AZ108=5,G108,0)","v":0},null,null,null,null,null,null,null,null,null,null,null,null,null,null,null,null,null,null,null,null,null,1,1]
[null,null,"Stoka DK PVC DN300 vč. přípojek a propojů DK:",null,0,null,null,null,null,null,null,null,"Stoka DK PVC DN300 vč. přípojek a propojů DK:"]
[null,null,"Výkopy:",null,0,null,null,null,null,null,null,null,"Výkopy:"]
[null,null,"V hornině tř. 3 - 4:244,7980",null,244.798,null,null,null,null,null,null,null,"V hornině tř. 3 - 4:244,7980"]
[17,"919735112R00","Řezání stávajícího živičného krytu tl. 5 - 10 cm ","m",131.44,null,{"$f":"E112*F112","v":0},0,{"$f":"E112*H112","v":0},0,{"$f":"E112*J112","v":0},null,null,null,2,null,null,null,null,null,null,null,null,null,null,null,1,1,1,null,null,null,null,null,null,null,null,null,null,null,null,null,null,null,null,null,null,null,null,null,null,1,{"$f":"IF(AZ112=1,G112,0)","v":0},{"$f":"IF(AZ112=2,G112,0)","v":0},{"$f":"IF(AZ112=3,G112,0)","v":0},{"$f":"IF(AZ112=4,G112,0)","v":0},{"$f":"IF(AZ112=5,G112,0)","v":0},null,null,null,null,null,null,null,null,null,null,null,null,null,null,null,null,null,null,null,null,null,1,1]
[null,null,"Stoka DK PVC DN300:65,20*2+1,60*2+(1,60-1,00)*8",null,138.4,null,null,null,null,null,null,null,"Stoka DK PVC DN300:65,20*2+1,60*2+(1,60-1,00)*8"]
[null,null,"Přípojka DK PVC DN300:16,20*2+1,60*1+(1,60-1,00)*1",null,34.6,null,null,null,null,null,null,null,"Přípojka DK PVC DN300:16,20*2+1,60*1+(1,60-1,00)*1"]
[null,null,"Přepojení stávající kanalizace PVC DN250:11,20*2+1,60*1+(1,60-1,00)*1",null,24.6,null,null,null,null,null,null,null,"Přepojení stávající kanalizace PVC DN250:11,20*2+1,60*1+(1,60-1,00)*1"]
[null,null,"Přípojky pro UV PVC DN150:2,00*2*2",null,8,null,null,null,null,null,null,null,"Přípojky pro UV PVC DN150:2,00*2*2"]
[null,null,"Odpočet podílu panelové plochy parkoviště (manipulace s panely počítána v SO320):-39,00*2+1,60*(1,60-1,00)*4",null,-74.16,null,null,null,null,null,null,null,"Odpočet podílu panelové plochy parkoviště (manipulace s panely počítána v SO320):-39,00*2+1,60*(1,60-1,00)*4"]
[18,"979081111R00","Odvoz suti a vybour. hmot na skládku do 1 km Silniční panely","t",207.7,null,{"$f":"E118*F118","v":0},0,{"$f":"E118*H118","v":0},0,{"$f":"E118*J118","v":0},null,null,null,2,null,null,null,null,null,null,null,null,null,null,null,1,0,0,null,null,null,null,null,null,null,null,null,null,null,null,null,null,null,null,null,null,null,null,null,null,1,{"$f":"IF(AZ118=1,G118,0)","v":0},{"$f":"IF(AZ118=2,G118,0)","v":0},{"$f":"IF(AZ118=3,G118,0)","v":0},{"$f":"IF(AZ118=4,G118,0)","v":0},{"$f":"IF(AZ118=5,G118,0)","v":0},null,null,null,null,null,null,null,null,null,null,null,null,null,null,null,null,null,null,null,null,null,1,0]
[null,null,"Doprava panelů ze stavby na meziskládku a z meziskládky na stavbu",null,null,null,null,null,null,null,null,"Doprava panelů ze stavby na meziskládku a z meziskládky na stavbu",null,null,3]
[19,"979082113RSZ","Vodorovná doprava suti po suchu na skládku zhotovitele","t",77.136399999999995,null,{"$f":"E120*F120","v":0},0,{"$f":"E120*H120","v":0},0,{"$f":"E120*J120","v":0},null,null,null,2,null,null,null,null,null,null,null,null,null,null,null,1,1,1,null,null,null,null,null,null,null,null,null,null,null,null,null,null,null,null,null,null,null,null,null,null,1,{"$f":"IF(AZ120=1,G120,0)","v":0},{"$f":"IF(AZ120=2,G120,0)","v":0},{"$f":"IF(AZ120=3,G120,0)","v":0},{"$f":"IF(AZ120=4,G120,0)","v":0},{"$f":"IF(AZ120=5,G120,0)","v":0},null,null,null,null,null,null,null,null,null,null,null,null,null,null,null,null,null,null,null,null,null,1,1]
[20,"979086112R00","Nakládání nebo skládání suti a vybouraných hmot Silniční panely","t",207.7,null,{"$f":"E121*F121","v":0},0,{"$f":"E121*H121","v":0},0,{"$f":"E121*J121","v":0},null,null,null,2,null,null,null,null,null,null,null,null,null,null,null,1,1,1,null,null,null,null,null,null,null,null,null,null,null,null,null,null,null,null,null,null,null,null,null,null,1,{"$f":"IF(AZ121=1,G121,0)","v":0},{"$f":"IF(AZ121=2,G121,0)","v":0},{"$f":"IF(AZ121=3,G121,0)","v":0},{"$f":"IF(AZ121=4,G121,0)","v":0},{"$f":"IF(AZ121=5,G121,0)","v":0},null,null,null,null,null,null,null,null,null,null,null,null,null,null,null,null,null,null,null,null,null,1,1]
[null,null,"Naložení a složení panelů na stavbě a na meziskládce",null,null,null,null,null,null,null,null,"Naložení a složení panelů na stavbě a na meziskládce",null,null,3]
[21,"979089001R00","Poplatek za skládku stavební suti štěrky z komunikací, skupina odpadu 010408","t",55.857999999999997,null,{"$f":"E123*F123","v":0},0,{"$f":"E123*H123","v":0},0,{"$f":"E123*J123","v":0},null,null,null,2,null,null,null,null,null,null,null,null,null,null,null,1,1,1,null,null,null,null,null,null,null,null,null,null,null,null,null,null,null,null,null,null,null,null,null,null,1,{"$f":"IF(AZ123=1,G123,0)","v":0},{"$f":"IF(AZ123=2,G123,0)","v":0},{"$f":"IF(AZ123=3,G123,0)","v":0},{"$f":"IF(AZ123=4,G123,0)","v":0},{"$f":"IF(AZ123=5,G123,0)","v":0},null,null,null,null,null,null,null,null,null,null,null,null,null,null,null,null,null,null,null,null,null,1,1]
[22,"979999995R00","Poplatek za reciklaci asfaltu, kusovost do 1600cm2 skupina 170302","t",21.278400000000001,null,{"$f":"E124*F124","v":0},0,{"$f":"E124*H124","v":0},0,{"$f":"E124*J124","v":0},null,null,null,2,null,null,null,null,null,null,null,null,null,null,null,1,1,1,null,null,null,null,null,null,null,null,null,null,null,null,null,null,null,null,null,null,null,null,null,null,1,{"$f":"IF(AZ124=1,G124,0)","v":0},{"$f":"IF(AZ124=2,G124,0)","v":0},{"$f":"IF(AZ124=3,G124,0)","v":0},{"$f":"IF(AZ124=4,G124,0)","v":0},{"$f":"IF(AZ124=5,G124,0)","v":0},null,null,null,null,null,null,null,null,null,null,null,null,null,null,null,null,null,null,null,null,null,1,1]
[null,null,"Položka je určena pro suť o velikosti kusu do 30x30 cm (technologický materiál určený k recyklaci).",null,null,null,null,null,null,null,null,"Položka je určena pro suť o velikosti kusu do 30x30 cm (technologický materiál určený k recyklaci).",null,null,3]
[23,"58337308.R","Štěrkopísek frakce 0-2 tř.B","t",95.861999999999995,null,{"$f":"E126*F126","v":0},1,{"$f":"E126*H126","v":95.861999999999995},null,{"$f":"E126*J126","v":0},null,null,null,2,null,null,null,null,null,null,null,null,null,null,null,3,1,"58337308.R",null,null,null,null,null,null,null,null,null,null,null,null,null,null,null,null,null,null,null,null,null,null,1,{"$f":"IF(AZ126=1,G126,0)","v":0},{"$f":"IF(AZ126=2,G126,0)","v":0},{"$f":"IF(AZ126=3,G126,0)","v":0},{"$f":"IF(AZ126=4,G126,0)","v":0},{"$f":"IF(AZ126=5,G126,0)","v":0},null,null,null,null,null,null,null,null,null,null,null,null,null,null,null,null,null,null,null,null,null,3,1]
[null,null,"Stoka DK PVC DN300:65,20*(1,00*(0,30+0,30)-0,15^2*Pi)*1,973*1,01",null,68.771699999999996,null,null,null,null,null,null,null,"Stoka DK PVC DN300:65,20*(1,00*(0,30+0,30)-0,15^2*Pi)*1,973*1,01"]
[null,null,"Přípojka DK PVC DN300:16,20*(1,00*(0,30+0,30)-0,15^2*Pi)*1,973*1,01",null,17.087399999999999,null,null,null,null,null,null,null,"Přípojka DK PVC DN300:16,20*(1,00*(0,30+0,30)-0,15^2*Pi)*1,973*1,01"]
[null,null,"Přepojení stávající kanalizace PVC DN250:11,20*(0,90*(0,25+0,30)-0,125^2*Pi)*1,973*1,01",null,9.9520999999999997,null,null,null,null,null,null,null,"Přepojení stávající kanalizace PVC DN250:11,20*(0,90*(0,25+0,30)-0,125^2*Pi)*1,973*1,01"]
[null,null,"Přípojky pro UV PVC DN150:2,00*2*(0,80*(0,15+0,30)*0,075^2*Pi)*1,973*1,01",null,5.0700000000000002E-2,null,null,null,null,null,null,null,"Přípojky pro UV PVC DN150:2,00*2*(0,80*(0,15+0,30)*0,075^2*Pi)*1,973*1,01"]
[24,"58344197R","Štěrkodrtě frakce 0-63 A","t",284.24299999999999,null,{"$f":"E131*F131","v":0},1,{"$f":"E131*H131","v":284.24299999999999},null,{"$f":"E131*J131","v":0},null,null,null,2,null,null,null,null,null,null,null,null,null,null,null,3,1,"58344197R",null,null,null,null,null,null,null,null,null,null,null,null,null,null,null,null,null,null,null,null,null,null,1,{"$f":"IF(AZ131=1,G131,0)","v":0},{"$f":"IF(AZ131=2,G131,0)","v":0},{"$f":"IF(AZ131=3,G131,0)","v":0},{"$f":"IF(AZ131=4,G131,0)","v":0},{"$f":"IF(AZ131=5,G131,0)","v":0},null,null,null,null,null,null,null,null,null,null,null,null,null,null,null,null,null,null,null,null,null,3,1]
[null,null,"Zásyp ŠD fr. 0-63 mm:150,2556*1,873*1,01",null,284.24299999999999,null,null,null,null,null,null,null,"Zásyp ŠD fr. 0-63 mm:150,2556*1,873*1,01"]
[null,null,"Začátek provozního součtu",null,0,null,null,null,null,null,null,null,"Začátek provozního součtu"]
[null,null,"Stoka DK PVC DN300 vč. přípojek a propojů DK:",null,0,null,null,null,null,null,null,null,"Stoka DK PVC DN300 vč. přípojek a propojů DK:"]
[null,null,"Výkopy:",null,0,null,null,null,null,null,null,null,"Výkopy:"]
[null,null,"V hornině tř. 3 - 4:244,7980",null,244.798,null,null,null,null,null,null,null,"V hornině tř. 3 - 4:244,7980"]
[null,null,"Odpočet lože, potrubí a obsypů:",null,0,null,null,null,null,null,null,null,"Odpočet lože, potrubí a obsypů:"]
[null,null,"Stoka DK PVC DN300:-65,20*1,00*(0,15+0,30+0,30)",null,-48.9,null,null,null,null,null,null,null,"Stoka DK PVC DN300:-65,20*1,00*(0,15+0,30+0,30)"]
[null,null,"Přípojka DK PVC DN300:-16,20*1,00*(0,15+0,30+0,30)",null,-12.15,null,null,null,null,null,null,null,"Přípojka DK PVC DN300:-16,20*1,00*(0,15+0,30+0,30)"]
[null,null,"Přepojení stávající kanalizace PVC DN250:-11,20*0,90*(0,15+0,25+0,30)",null,-7.056,null,null,null,null,null,null,null,"Přepojení stávající kanalizace PVC DN250:-11,20*0,90*(0,15+0,25+0,30)"]
[null,null,"Přípojky pro UV PVC DN150:-2,00*2*0,80*(0,15+0,15+0,30)",null,-1.92,null,null,null,null,null,null,null,"Přípojky pro UV PVC DN150:-2,00*2*0,80*(0,15+0,15+0,30)"]
[null,null,"Odpočet objemu konstrukce RŠ:-24,5164",null,-24.516400000000001,null,null,null,null,null,null,null,"Odpočet objemu konstrukce RŠ:-24,5164"]
[null,null,"Konec provozního součtu",null,150.25559999999999,null,null,null,null,null,null,null,"Konec provozního součtu"]
[null,"Celkem za","1 Zemní práce",null,null,null,{"$f":"SUM(G7:G143)","v":0},null,{"$f":"SUM(I7:I143)","v":380.56473458599999},null,{"$f":"SUM(K7:K143)","v":-191.02889999999999},null,null,null,4,null,null,null,null,null,null,null,null,null,null,null,null,null,null,null,null,null,null,null,null,null,null,null,null,null,null,null,null,null,null,null,null,null,null,null,null,null,{"$f":"SUM(BA7:BA143)","v":0},{"$f":"SUM(BB7:BB143)","v":0},{"$f":"SUM(BC7:BC143)","v":0},{"$f":"SUM(BD7:BD143)","v":0},{"$f":"SUM(BE7:BE143)","v":0}]
["Díl:","45","Podkladní a vedlejší konstrukce",null,null,null,null,null,null,null,null,null,null,null,1]
[25,"451572111R00","Lože pod potrubí z kameniva těženého 0 - 4 mm ","m3",14.202,null,{"$f":"E146*F146","v":0},0.43051,{"$f":"E146*H146","v":6.1141030199999999},0,{"$f":"E146*J146","v":0},null,null,null,2,null,null,null,null,null,null,null,null,null,null,null,1,1,1,null,null,null,null,null,null,null,null,null,null,null,null,null,null,null,null,null,null,null,null,null,null,1,{"$f":"IF(AZ146=1,G146,0)","v":0},{"$f":"IF(AZ146=2,G146,0)","v":0},{"$f":"IF(AZ146=3,G146,0)","v":0},{"$f":"IF(AZ146=4,G146,0)","v":0},{"$f":"IF(AZ146=5,G146,0)","v":0},null,null,null,null,null,null,null,null,null,null,null,null,null,null,null,null,null,null,null,null,null,1,1]
[null,null,"Stoka DK PVC DN300:65,20*1,00*0,15",null,9.7799999999999994,null,null,null,null,null,null,null,"Stoka DK PVC DN300:65,20*1,00*0,15"]
[null,null,"Přípojka DK PVC DN300:16,20*1,00*0,15",null,2.4300000000000002,null,null,null,null,null,null,null,"Přípojka DK PVC DN300:16,20*1,00*0,15"]
[null,null,"Přepojení stávající kanalizace PVC DN250:11,20*0,90*0,15",null,1.512,null,null,null,null,null,null,null,"Přepojení stávající kanalizace PVC DN250:11,20*0,90*0,15"]
[null,null,"Přípojky pro UV PVC DN150:2,00*2*0,80*0,15",null,0.48,null,null,null,null,null,null,null,"Přípojky pro UV PVC DN150:2,00*2*0,80*0,15"]
[26,"452112111R00","Osazení beton. prstenců pod poklopy,výšky do100 mm ","kus",7,null,{"$f":"E151*F151","v":0},6.6E-3,{"$f":"E151*H151","v":4.6199999999999998E-2},0,{"$f":"E151*J151","v":0},null,null,null,2,null,null,null,null,null,null,null,null,null,null,null,1,1,1,null,null,null,null,null,null,null,null,null,null,null,null,null,null,null,null,null,null,null,null,null,null,1,{"$f":"IF(AZ151=1,G151,0)","v":0},{"$f":"IF(AZ151=2,G151,0)","v":0},{"$f":"IF(AZ151=3,G151,0)","v":0},{"$f":"IF(AZ151=4,G151,0)","v":0},{"$f":"IF(AZ151=5,G151,0)","v":0},null,null,null,null,null,null,null,null,null,null,null,null,null,null,null,null,null,null,null,null,null,1,1]
[null,null,"Volba položky se řídí výškou prstence nebo rámu. V položkách nejsou zakalkulovány náklady na dodávku betonových výrobků;",null,null,null,null,null,null,null,null,"Volba položky se řídí výškou prstence nebo rámu. V položkách nejsou zakalkulovány náklady na dodávku betonových výrobků;",null,null,3]
[null,null,"Stoka DK PVC DN300 vč. přípojek a propojů DK:",null,0,null,null,null,null,null,null,null,"Stoka DK PVC DN300 vč. přípojek a propojů DK:"]
[null,null,"VP H40:1",null,1,null,null,null,null,null,null,null,"VP H40:1"]
[null,null,"VP H80:3",null,3,null,null,null,null,null,null,null,"VP H80:3"]
[null,null,"VP H100:3",null,3,null,null,null,null,null,null,null,"VP H100:3"]
[27,"59224345.B.R","Prstenec vyrovn šachetní TBW-Q.1 40/600/120","kus",1.01,null,{"$f":"E157*F157","v":0},2.8000000000000001E-2,{"$f":"E157*H157","v":2.828E-2},null,{"$f":"E157*J157","v":0},null,null,null,2,null,null,null,null,null,null,null,null,null,null,null,3,1,"59224345.B.R",null,null,null,null,null,null,null,null,null,null,null,null,null,null,null,null,null,null,null,null,null,null,1,{"$f":"IF(AZ157=1,G157,0)","v":0},{"$f":"IF(AZ157=2,G157,0)","v":0},{"$f":"IF(AZ157=3,G157,0)","v":0},{"$f":"IF(AZ157=4,G157,0)","v":0},{"$f":"IF(AZ157=5,G157,0)","v":0},null,null,null,null,null,null,null,null,null,null,null,null,null,null,null,null,null,null,null,null,null,3,1]
[null,null,"Stoka DK PVC DN300 vč. přípojek a propojů DK:",null,0,null,null,null,null,null,null,null,"Stoka DK PVC DN300 vč. přípojek a propojů DK:"]
[null,null,"VP H40:1*1,01",null,1.01,null,null,null,null,null,null,null,"VP H40:1*1,01"]
[28,"59224347.B.R","Prstenec vyrovn šachetní TBW-Q.1 80/600/120","kus",3.03,null,{"$f":"E160*F160","v":0},5.2999999999999999E-2,{"$f":"E160*H160","v":0.16058999999999998},null,{"$f":"E160*J160","v":0},null,null,null,2,null,null,null,null,null,null,null,null,null,null,null,3,1,"59224347.B.R",null,null,null,null,null,null,null,null,null,null,null,null,null,null,null,null,null,null,null,null,null,null,1,{"$f":"IF(AZ160=1,G160,0)","v":0},{"$f":"IF(AZ160=2,G160,0)","v":0},{"$f":"IF(AZ160=3,G160,0)","v":0},{"$f":"IF(AZ160=4,G160,0)","v":0},{"$f":"IF(AZ160=5,G160,0)","v":0},null,null,null,null,null,null,null,null,null,null,null,null,null,null,null,null,null,null,null,null,null,3,1]
[null,null,"Stoka DK PVC DN300 vč. přípojek a propojů DK:",null,0,null,null,null,null,null,null,null,"Stoka DK PVC DN300 vč. přípojek a propojů DK:"]
[null,null,"VP H80:3*1,01",null,3.03,null,null,null,null,null,null,null,"VP H80:3*1,01"]
[29,"59224348.B.R","Prstenec vyrovn šachetní TBW-Q.1 100/600/120","kus",3.03,null,{"$f":"E163*F163","v":0},6.8000000000000005E-2,{"$f":"E163*H163","v":0.20604},null,{"$f":"E163*J163","v":0},null,null,null,2,null,null,null,null,null,null,null,null,null,null,null,3,1,"59224348.B.R",null,null,null,null,null,null,null,null,null,null,null,null,null,null,null,null,null,null,null,null,null,null,1,{"$f":"IF(AZ163=1,G163,0)","v":0},{"$f":"IF(AZ163=2,G163,0)","v":0},{"$f":"IF(AZ163=3,G163,0)","v":0},{"$f":"IF(AZ163=4,G163,0)","v":0},{"$f":"IF(AZ163=5,G163,0)","v":0},null,null,null,null,null,null,null,null,null,null,null,null,null,null,null,null,null,null,null,null,null,3,1]
[null,null,"Stoka DK PVC DN300 vč. přípojek a propojů DK:",null,0,null,null,null,null,null,null,null,"Stoka DK PVC DN300 vč. přípojek a propojů DK:"]
[null,null,"VP H100:3*1,01",null,3.03,null,null,null,null,null,null,null,"VP H100:3*1,01"]
[null,"Celkem za","45 Podkladní a vedlejší konstrukce",null,null,null,{"$f":"SUM(G145:G165)","v":0},null,{"$f":"SUM(I145:I165)","v":6.5552130199999992},null,{"$f":"SUM(K145:K165)","v":0},null,null,null,4,null,null,null,null,null,null,null,null,null,null,null,null,null,null,null,null,null,null,null,null,null,null,null,null,null,null,null,null,null,null,null,null,null,null,null,null,null,{"$f":"SUM(BA145:BA165)","v":0},{"$f":"SUM(BB145:BB165)","v":0},{"$f":"SUM(BC145:BC165)","v":0},{"$f":"SUM(BD145:BD165)","v":0},{"$f":"SUM(BE145:BE165)","v":0}]
["Díl:","5","Komunikace",null,null,null,null,null,null,null,null,null,null,null,1]
[30,"566903111R00","Vyspravení podkladu po překopech kam.hrubě drceným ","t",60.760100000000001,null,{"$f":"E168*F168","v":0},1.1000000000000001,{"$f":"E168*H168","v":66.836110000000005},0,{"$f":"E168*J168","v":0},null,null,null,2,null,null,null,null,null,null,null,null,null,null,null,1,1,1,null,null,null,null,null,null,null,null,null,null,null,null,null,null,null,null,null,null,null,null,null,null,1,{"$f":"IF(AZ168=1,G168,0)","v":0},{"$f":"IF(AZ168=2,G168,0)","v":0},{"$f":"IF(AZ168=3,G168,0)","v":0},{"$f":"IF(AZ168=4,G168,0)","v":0},{"$f":"IF(AZ168=5,G168,0)","v":0},null,null,null,null,null,null,null,null,null,null,null,null,null,null,null,null,null,null,null,null,null,1,1]
[null,null,"Stoka DK PVC DN300:(65,20*1,00+1,60*(1,60-1,00)*5)*0,40*1,873",null,52.444000000000003,null,null,null,null,null,null,null,"Stoka DK PVC DN300:(65,20*1,00+1,60*(1,60-1,00)*5)*0,40*1,873"]
[null,null,"Přípojka DK PVC DN300:(16,20*1,00+1,60*(1,60-1,00)*1)*0,40*1,873",null,12.856299999999999,null,null,null,null,null,null,null,"Přípojka DK PVC DN300:(16,20*1,00+1,60*(1,60-1,00)*1)*0,40*1,873"]
[null,null,"Přepojení stávající kanalizace PVC DN250:(11,20*0,90+1,60*(1,60-0,90)*1)*0,40*1,873",null,8.391,null,null,null,null,null,null,null,"Přepojení stávající kanalizace PVC DN250:(11,20*0,90+1,60*(1,60-0,90)*1)*0,40*1,873"]
[null,null,"Přípojky pro UV PVC DN150:2,00*2*0,80*0,40*1,873",null,2.3974000000000002,null,null,null,null,null,null,null,"Přípojky pro UV PVC DN150:2,00*2*0,80*0,40*1,873"]
[null,null,"Odpočet podílu panelové plochy parkoviště (manipulace s panely počítána v SO320):-(39,00*1,00+1,60*(1,60-1,00)*2)*0,20*1,873",null,-15.3286,null,null,null,null,null,null,null,"Odpočet podílu panelové plochy parkoviště (manipulace s panely počítána v SO320):-(39,00*1,00+1,60*(1,60-1,00)*2)*0,20*1,873"]
[31,"584121111R00","Osazení silničních panelů,lože z kameniva tl. 4 cm ","m2",310,null,{"$f":"E174*F174","v":0},8.3500000000000005E-2,{"$f":"E174*H174","v":25.885000000000002},0,{"$f":"E174*J174","v":0},null,null,null,2,null,null,null,null,null,null,null,null,null,null,null,1,1,1,null,null,null,null,null,null,null,null,null,null,null,null,null,null,null,null,null,null,null,null,null,null,1,{"$f":"IF(AZ174=1,G174,0)","v":0},{"$f":"IF(AZ174=2,G174,0)","v":0},{"$f":"IF(AZ174=3,G174,0)","v":0},{"$f":"IF(AZ174=4,G174,0)","v":0},{"$f":"IF(AZ174=5,G174,0)","v":0},null,null,null,null,null,null,null,null,null,null,null,null,null,null,null,null,null,null,null,null,null,1,1]
[null,null,"Včetně:",null,null,null,null,null,null,null,null,"Včetně:",null,null,3]
[null,null,"- kameniva frakce 0 - 32 mm,",null,null,null,null,null,null,null,null,"- kameniva frakce 0 - 32 mm,",null,null,3]
[null,null,"- rozprostření podkladu,",null,null,null,null,null,null,null,null,"- rozprostření podkladu,",null,null,3]
[null,null,"- osazení silničních panelů.",null,null,null,null,null,null,null,null,"- osazení silničních panelů.",null,null,3]
[null,null,"Plocha parkoviště - původní panely:310,00",null,310,null,null,null,null,null,null,null,"Plocha parkoviště - původní panely:310,00"]
[null,"Celkem za","5 Komunikace",null,null,null,{"$f":"SUM(G167:G179)","v":0},null,{"$f":"SUM(I167:I179)","v":92.72111000000001},null,{"$f":"SUM(K167:K179)","v":0},null,null,null,4,null,null,null,null,null,null,null,null,null,null,null,null,null,null,null,null,null,null,null,null,null,null,null,null,null,null,null,null,null,null,null,null,null,null,null,null,null,{"$f":"SUM(BA167:BA179)","v":0},{"$f":"SUM(BB167:BB179)","v":0},{"$f":"SUM(BC167:BC179)","v":0},{"$f":"SUM(BD167:BD179)","v":0},{"$f":"SUM(BE167:BE179)","v":0}]
["Díl:","8","Trubní vedení",null,null,null,null,null,null,null,null,null,null,null,1]
[32,"871313121R00","Montáž trub z plastu, gumový kroužek, DN 150 ","m",4,null,{"$f":"E182*F182","v":0},0,{"$f":"E182*H182","v":0},0,{"$f":"E182*J182","v":0},null,null,null,2,null,null,null,null,null,null,null,null,null,null,null,1,0,0,null,null,null,null,null,null,null,null,null,null,null,null,null,null,null,null,null,null,null,null,null,null,1,{"$f":"IF(AZ182=1,G182,0)","v":0},{"$f":"IF(AZ182=2,G182,0)","v":0},{"$f":"IF(AZ182=3,G182,0)","v":0},{"$f":"IF(AZ182=4,G182,0)","v":0},{"$f":"IF(AZ182=5,G182,0)","v":0},null,null,null,null,null,null,null,null,null,null,null,null,null,null,null,null,null,null,null,null,null,1,0]
[null,null,"V položce je uvažováno s jedním spojem na 6 m potrubí. Položka je určena pro montáž potrubí z kanalizačních trub z plastu těsněných gumovým kroužkem v otevřeném výkopu ve sklonu do 20 %.",null,null,null,null,null,null,null,null,"V položce je uvažováno s jedním spojem na 6 m potrubí. Položka je určena pro montáž potrubí z kanalizačních trub z plastu těsněných gumovým kroužkem v otevřeném výkopu ve sklonu do 20 %.",null,null,3]
[null,null,"Stoka DK PVC DN300:",null,0,null,null,null,null,null,null,null,"Stoka DK PVC DN300:"]
[null,null,"Přípojky pro UV PVC DN150:2,00*2",null,4,null,null,null,null,null,null,null,"Přípojky pro UV PVC DN150:2,00*2"]
[33,"871373121R00","Montáž trub z plastu, gumový kroužek, DN 300 ","m",92.6,null,{"$f":"E186*F186","v":0},1.0000000000000001E-5,{"$f":"E186*H186","v":9.2600000000000007E-4},0,{"$f":"E186*J186","v":0},null,null,null,2,null,null,null,null,null,null,null,null,null,null,null,1,1,1,null,null,null,null,null,null,null,null,null,null,null,null,null,null,null,null,null,null,null,null,null,null,1,{"$f":"IF(AZ186=1,G186,0)","v":0},{"$f":"IF(AZ186=2,G186,0)","v":0},{"$f":"IF(AZ186=3,G186,0)","v":0},{"$f":"IF(AZ186=4,G186,0)","v":0},{"$f":"IF(AZ186=5,G186,0)","v":0},null,null,null,null,null,null,null,null,null,null,null,null,null,null,null,null,null,null,null,null,null,1,1]
[null,null,"V položce je uvažováno s jedním spojem na 6 m potrubí. Položka je určena pro montáž potrubí z kanalizačních trub z plastu těsněných gumovým kroužkem v otevřeném výkopu ve sklonu do 20 %.",null,null,null,null,null,null,null,null,"V položce je uvažováno s jedním spojem na 6 m potrubí. Položka je určena pro montáž potrubí z kanalizačních trub z plastu těsněných gumovým kroužkem v otevřeném výkopu ve sklonu do 20 %.",null,null,3]
[null,null,"Stoka DK PVC DN300:65,20",null,65.2,null,null,null,null,null,null,null,"Stoka DK PVC DN300:65,20"]
[null,null,"Přípojka DK PVC DN300:16,20",null,16.2,null,null,null,null,null,null,null,"Přípojka DK PVC DN300:16,20"]
[null,null,"Přepojení stávající kanalizace PVC DN250:11,20",null,11.2,null,null,null,null,null,null,null,"Přepojení stávající kanalizace PVC DN250:11,20"]
[34,"877313123R00","Montáž tvarovek jednoos. plast. gum.kroužek DN 150 ","kus",4,null,{"$f":"E191*F191","v":0},1.0000000000000001E-5,{"$f":"E191*H191","v":4.0000000000000003E-5},0,{"$f":"E191*J191","v":0},null,null,null,2,null,null,null,null,null,null,null,null,null,null,null,1,1,1,null,null,null,null,null,null,null,null,null,null,null,null,null,null,null,null,null,null,null,null,null,null,1,{"$f":"IF(AZ191=1,G191,0)","v":0},{"$f":"IF(AZ191=2,G191,0)","v":0},{"$f":"IF(AZ191=3,G191,0)","v":0},{"$f":"IF(AZ191=4,G191,0)","v":0},{"$f":"IF(AZ191=5,G191,0)","v":0},null,null,null,null,null,null,null,null,null,null,null,null,null,null,null,null,null,null,null,null,null,1,1]
[null,null,"Položka je určena pro montáž tvarovek jednoosých na potrubí z kanalizačních trub z plastu těsněných gumovým kroužkem v otevřeném výkopu.",null,null,null,null,null,null,null,null,"Položka je určena pro montáž tvarovek jednoosých na potrubí z kanalizačních trub z plastu těsněných gumovým kroužkem v otevřeném výkopu.",null,null,3]
[null,null,"Stoka DK PVC DN300:",null,0,null,null,null,null,null,null,null,"Stoka DK PVC DN300:"]
[null,null,"Přípojky pro UV PVC DN150:",null,0,null,null,null,null,null,null,null,"Přípojky pro UV PVC DN150:"]
[null,null,"Koleno PVC DN150:2*2",null,4,null,null,null,null,null,null,null,"Koleno PVC DN150:2*2"]
[35,"891183440RX8","Přerušení stávajícího potrubí KT DN300 a jeno napojení na novou RŠ","kus",1,null,{"$f":"E196*F196","v":0},6.8000000000000005E-2,{"$f":"E196*H196","v":6.8000000000000005E-2},0,{"$f":"E196*J196","v":0},null,null,null,2,null,null,null,null,null,null,null,null,null,null,null,1,1,1,null,null,null,null,null,null,null,null,null,null,null,null,null,null,null,null,null,null,null,null,null,null,1,{"$f":"IF(AZ196=1,G196,0)","v":0},{"$f":"IF(AZ196=2,G196,0)","v":0},{"$f":"IF(AZ196=3,G196,0)","v":0},{"$f":"IF(AZ196=4,G196,0)","v":0},{"$f":"IF(AZ196=5,G196,0)","v":0},null,null,null,null,null,null,null,null,null,null,null,null,null,null,null,null,null,null,null,null,null,1,1]
[null,null,"Položka obsahuje přerušení a výřez stávajícího potrubí KT DN300 a po osazení nové RŠ dopojení stávajícího potrubí z obou stran na tuto šachtu včetně dodávky příslušných tvarovek a spojovacích prvků dle projektové dokumentace. Součástí položky je lože a obsyp potrubí.",null,null,null,null,null,null,null,null,"Položka obsahuje přerušení a výřez stávajícího potrubí KT DN300 a po osazení nové RŠ dopojení stávajícího potrubí z obou stran na tuto šachtu včetně dodávky příslušných tvarovek a spojovacích prvků dle projektové dokumentace. Součástí položky je lože a obsyp potrubí.",null,null,3]
[36,"892601153R00","Čištění kanalizační stoky do DN 500, do 100 m ","m",92.6,null,{"$f":"E198*F198","v":0},0,{"$f":"E198*H198","v":0},0,{"$f":"E198*J198","v":0},null,null,null,2,null,null,null,null,null,null,null,null,null,null,null,1,1,1,null,null,null,null,null,null,null,null,null,null,null,null,null,null,null,null,null,null,null,null,null,null,1,{"$f":"IF(AZ198=1,G198,0)","v":0},{"$f":"IF(AZ198=2,G198,0)","v":0},{"$f":"IF(AZ198=3,G198,0)","v":0},{"$f":"IF(AZ198=4,G198,0)","v":0},{"$f":"IF(AZ198=5,G198,0)","v":0},null,null,null,null,null,null,null,null,null,null,null,null,null,null,null,null,null,null,null,null,null,1,1]
[null,null,"V položce je zakalkulováno:",null,null,null,null,null,null,null,null,"V položce je zakalkulováno:",null,null,3]
[null,null,"a) otevření a uzavření revizních šachet a čisticích kusů",null,null,null,null,null,null,null,null,"a) otevření a uzavření revizních šachet a čisticích kusů",null,null,3]
[null,null,"b) natažení vysokotlakých hadic k místu odkud se bude kanalizace čistit",null,null,null,null,null,null,null,null,"b) natažení vysokotlakých hadic k místu odkud se bude kanalizace čistit",null,null,3]
[null,null,"c) vyčištění potrubí tlakovou vodou nebo motorovým pérem.",null,null,null,null,null,null,null,null,"c) vyčištění potrubí tlakovou vodou nebo motorovým pérem.",null,null,3]
[null,null,"Stoka DK PVC DN300:65,20",null,65.2,null,null,null,null,null,null,null,"Stoka DK PVC DN300:65,20"]
[null,null,"Přípojka DK PVC DN300:16,20",null,16.2,null,null,null,null,null,null,null,"Přípojka DK PVC DN300:16,20"]
[null,null,"Přepojení stávající kanalizace PVC DN250:11,20",null,11.2,null,null,null,null,null,null,null,"Přepojení stávající kanalizace PVC DN250:11,20"]
[37,"892855113R00","Kontrola kanalizace TV kamerou do 100 m ","m",96.6,null,{"$f":"E206*F206","v":0},0,{"$f":"E206*H206","v":0},0,{"$f":"E206*J206","v":0},null,null,null,2,null,null,null,null,null,null,null,null,null,null,null,1,1,1,null,null,null,null,null,null,null,null,null,null,null,null,null,null,null,null,null,null,null,null,null,null,1,{"$f":"IF(AZ206=1,G206,0)","v":0},{"$f":"IF(AZ206=2,G206,0)","v":0},{"$f":"IF(AZ206=3,G206,0)","v":0},{"$f":"IF(AZ206=4,G206,0)","v":0},{"$f":"IF(AZ206=5,G206,0)","v":0},null,null,null,null,null,null,null,null,null,null,null,null,null,null,null,null,null,null,null,null,null,1,1]
[null,null,"Provedení kaberové prohlídky včetně dodání elektronického záznamu na CD zadavateli a tištěné dokumentace průběhu kamerové prohlídky",null,null,null,null,null,null,null,null,"Provedení kaberové prohlídky včetně dodání elektronického záznamu na CD zadavateli a tištěné dokumentace průběhu kamerové prohlídky",null,null,3]
[null,null,"Stoka DK PVC DN300:65,20",null,65.2,null,null,null,null,null,null,null,"Stoka DK PVC DN300:65,20"]
[null,null,"Přípojka DK PVC DN300:16,20",null,16.2,null,null,null,null,null,null,null,"Přípojka DK PVC DN300:16,20"]
[null,null,"Přepojení stávající kanalizace PVC DN250:11,20",null,11.2,null,null,null,null,null,null,null,"Přepojení stávající kanalizace PVC DN250:11,20"]
[null,null,"Přípojky pro UV PVC DN150:2,00*2",null,4,null,null,null,null,null,null,null,"Přípojky pro UV PVC DN150:2,00*2"]
[38,"894421111RT1","Osazení betonových dílců šachet skruže rovné, na kroužek, do 0,5 t","kus",5,null,{"$f":"E212*F212","v":0},0,{"$f":"E212*H212","v":0},0,{"$f":"E212*J212","v":0},null,null,null,2,null,null,null,null,null,null,null,null,null,null,null,1,1,1,null,null,null,null,null,null,null,null,null,null,null,null,null,null,null,null,null,null,null,null,null,null,1,{"$f":"IF(AZ212=1,G212,0)","v":0},{"$f":"IF(AZ212=2,G212,0)","v":0},{"$f":"IF(AZ212=3,G212,0)","v":0},{"$f":"IF(AZ212=4,G212,0)","v":0},{"$f":"IF(AZ212=5,G212,0)","v":0},null,null,null,null,null,null,null,null,null,null,null,null,null,null,null,null,null,null,null,null,null,1,1]
[null,null,"Položka je určena pro osazení betonových dílců šachet dle DIN 4034, skruže rovné na kroužek, hmotnost do 0,5 t.",null,null,null,null,null,null,null,null,"Položka je určena pro osazení betonových dílců šachet dle DIN 4034, skruže rovné na kroužek, hmotnost do 0,5 t.",null,null,3]
[null,null,"V položce nejsou zakalkulovány náklady na dodání betonových dílců; dílce se oceňují ve specifikaci.",null,null,null,null,null,null,null,null,"V položce nejsou zakalkulovány náklady na dodání betonových dílců; dílce se oceňují ve specifikaci.",null,null,3]
[null,null,"Stoka DK PVC DN300 vč. přípojek a propojů DK:",null,0,null,null,null,null,null,null,null,"Stoka DK PVC DN300 vč. přípojek a propojů DK:"]
[null,null,"Skruž H250:5",null,5,null,null,null,null,null,null,null,"Skruž H250:5"]
[39,"894421112RT1","Osazení betonových dílců šachet skruže rovné, na kroužek, do 1,4 t","kus",8,null,{"$f":"E217*F217","v":0},0,{"$f":"E217*H217","v":0},0,{"$f":"E217*J217","v":0},null,null,null,2,null,null,null,null,null,null,null,null,null,null,null,1,1,1,null,null,null,null,null,null,null,null,null,null,null,null,null,null,null,null,null,null,null,null,null,null,1,{"$f":"IF(AZ217=1,G217,0)","v":0},{"$f":"IF(AZ217=2,G217,0)","v":0},{"$f":"IF(AZ217=3,G217,0)","v":0},{"$f":"IF(AZ217=4,G217,0)","v":0},{"$f":"IF(AZ217=5,G217,0)","v":0},null,null,null,null,null,null,null,null,null,null,null,null,null,null,null,null,null,null,null,null,null,1,1]
[null,null,"Položka je určena pro osazení betonových dílců šachet dle DIN 4034, skruže rovné na kroužek, hmotnost přes 0,5 do 1,4 t.",null,null,null,null,null,null,null,null,"Položka je určena pro osazení betonových dílců šachet dle DIN 4034, skruže rovné na kroužek, hmotnost přes 0,5 do 1,4 t.",null,null,3]
[null,null,"V položce nejsou zakalkulovány náklady na dodání betonových dílců; dílce se oceňují ve specifikaci.",null,null,null,null,null,null,null,null,"V položce nejsou zakalkulovány náklady na dodání betonových dílců; dílce se oceňují ve specifikaci.",null,null,3]
[null,null,"Stoka DK PVC DN300 vč. přípojek a propojů DK:",null,0,null,null,null,null,null,null,null,"Stoka DK PVC DN300 vč. přípojek a propojů DK:"]
[null,null,"Skruž H500:1",null,1,null,null,null,null,null,null,null,"Skruž H500:1"]
[null,null,"Skruž H1000:7",null,7,null,null,null,null,null,null,null,"Skruž H1000:7"]
[40,"894422111RT1","Osazení betonových dílců šachet skruže přechodové, na kroužek","kus",7,null,{"$f":"E223*F223","v":0},0,{"$f":"E223*H223","v":0},0,{"$f":"E223*J223","v":0},null,null,null,2,null,null,null,null,null,null,null,null,null,null,null,1,1,1,null,null,null,null,null,null,null,null,null,null,null,null,null,null,null,null,null,null,null,null,null,null,1,{"$f":"IF(AZ223=1,G223,0)","v":0},{"$f":"IF(AZ223=2,G223,0)","v":0},{"$f":"IF(AZ223=3,G223,0)","v":0},{"$f":"IF(AZ223=4,G223,0)","v":0},{"$f":"IF(AZ223=5,G223,0)","v":0},null,null,null,null,null,null,null,null,null,null,null,null,null,null,null,null,null,null,null,null,null,1,1]
[null,null,"Položka je určena pro osazení betonových dílců šachet dle DIN 4034, skruže přechodové na kroužek.",null,null,null,null,null,null,null,null,"Položka je určena pro osazení betonových dílců šachet dle DIN 4034, skruže přechodové na kroužek.",null,null,3]
[null,null,"V položce nejsou zakalkulovány náklady na dodání betonových dílců",null,null,null,null,null,null,null,null,"V položce nejsou zakalkulovány náklady na dodání betonových dílců",null,null,3]
[null,null,"Stoka DK PVC DN300 vč. přípojek a propojů DK:",null,0,null,null,null,null,null,null,null,"Stoka DK PVC DN300 vč. přípojek a propojů DK:"]
[null,null,"Kónus H600:7",null,7,null,null,null,null,null,null,null,"Kónus H600:7"]
[41,"894423111RT1","Osazení betonových dílců šachet do 2,0 t šachtová dna, na kroužek, do 2,0 t","kus",7,null,{"$f":"E228*F228","v":0},0,{"$f":"E228*H228","v":0},0,{"$f":"E228*J228","v":0},null,null,null,2,null,null,null,null,null,null,null,null,null,null,null,1,1,1,null,null,null,null,null,null,null,null,null,null,null,null,null,null,null,null,null,null,null,null,null,null,1,{"$f":"IF(AZ228=1,G228,0)","v":0},{"$f":"IF(AZ228=2,G228,0)","v":0},{"$f":"IF(AZ228=3,G228,0)","v":0},{"$f":"IF(AZ228=4,G228,0)","v":0},{"$f":"IF(AZ228=5,G228,0)","v":0},null,null,null,null,null,null,null,null,null,null,null,null,null,null,null,null,null,null,null,null,null,1,1]
[null,null,"Položka je určena pro osazení betonových dílců šachet dle DIN 4034, šachtová dna na kroužek, hmotnost do 2,0 t.",null,null,null,null,null,null,null,null,"Položka je určena pro osazení betonových dílců šachet dle DIN 4034, šachtová dna na kroužek, hmotnost do 2,0 t.",null,null,3]
[null,null,"V položce nejsou zakalkulovány náklady na dodání betonových dílců;",null,null,null,null,null,null,null,null,"V položce nejsou zakalkulovány náklady na dodání betonových dílců;",null,null,3]
[null,null,"Stoka DK PVC DN300 vč. přípojek a propojů DK:",null,0,null,null,null,null,null,null,null,"Stoka DK PVC DN300 vč. přípojek a propojů DK:"]
[null,null,"Šachtové dno 250/600:1",null,1,null,null,null,null,null,null,null,"Šachtové dno 250/600:1"]
[null,null,"Šachtové dno 300/600:6",null,6,null,null,null,null,null,null,null,"Šachtové dno 300/600:6"]
[42,"899104111R00","Osazení poklopu s rámem nad 150 kg ","kus",2,null,{"$f":"E234*F234","v":0},7.0200000000000002E-3,{"$f":"E234*H234","v":1.404E-2},0,{"$f":"E234*J234","v":0},null,null,null,2,null,null,null,null,null,null,null,null,null,null,null,1,1,1,null,null,null,null,null,null,null,null,null,null,null,null,null,null,null,null,null,null,null,null,null,null,1,{"$f":"IF(AZ234=1,G234,0)","v":0},{"$f":"IF(AZ234=2,G234,0)","v":0},{"$f":"IF(AZ234=3,G234,0)","v":0},{"$f":"IF(AZ234=4,G234,0)","v":0},{"$f":"IF(AZ234=5,G234,0)","v":0},null,null,null,null,null,null,null,null,null,null,null,null,null,null,null,null,null,null,null,null,null,1,1]
[null,null,"Stoka DK PVC DN300 vč. přípojek a propojů DK:",null,0,null,null,null,null,null,null,null,"Stoka DK PVC DN300 vč. přípojek a propojů DK:"]
[null,null,"Poklopy D400 v panelové ploše parkoviště:2",null,2,null,null,null,null,null,null,null,"Poklopy D400 v panelové ploše parkoviště:2"]
[43,"899711122R00","Fólie výstražná z PVC šedá, šířka 30 cm ","m",96.6,null,{"$f":"E237*F237","v":0},0,{"$f":"E237*H237","v":0},0,{"$f":"E237*J237","v":0},null,null,null,2,null,null,null,null,null,null,null,null,null,null,null,1,1,1,null,null,null,null,null,null,null,null,null,null,null,null,null,null,null,null,null,null,null,null,null,null,1,{"$f":"IF(AZ237=1,G237,0)","v":0},{"$f":"IF(AZ237=2,G237,0)","v":0},{"$f":"IF(AZ237=3,G237,0)","v":0},{"$f":"IF(AZ237=4,G237,0)","v":0},{"$f":"IF(AZ237=5,G237,0)","v":0},null,null,null,null,null,null,null,null,null,null,null,null,null,null,null,null,null,null,null,null,null,1,1]
[null,null,"Stoka DK PVC DN300:65,20",null,65.2,null,null,null,null,null,null,null,"Stoka DK PVC DN300:65,20"]
[null,null,"Přípojka DK PVC DN300:16,20",null,16.2,null,null,null,null,null,null,null,"Přípojka DK PVC DN300:16,20"]
[null,null,"Přepojení stávající kanalizace PVC DN250:11,20",null,11.2,null,null,null,null,null,null,null,"Přepojení stávající kanalizace PVC DN250:11,20"]
[null,null,"Přípojky pro UV PVC DN150:2,00*2",null,4,null,null,null,null,null,null,null,"Přípojky pro UV PVC DN150:2,00*2"]
[44,"286111904","Trubka kanalizační PVC QUANTUM SN 12 DN 150","m",4.12,null,{"$f":"E242*F242","v":0},5.1000000000000004E-3,{"$f":"E242*H242","v":2.1012000000000003E-2},null,{"$f":"E242*J242","v":0},null,null,null,2,null,null,null,null,null,null,null,null,null,null,null,3,1,286111904,null,null,null,null,null,null,null,null,null,null,null,null,null,null,null,null,null,null,null,null,null,null,1,{"$f":"IF(AZ242=1,G242,0)","v":0},{"$f":"IF(AZ242=2,G242,0)","v":0},{"$f":"IF(AZ242=3,G242,0)","v":0},{"$f":"IF(AZ242=4,G242,0)","v":0},{"$f":"IF(AZ242=5,G242,0)","v":0},null,null,null,null,null,null,null,null,null,null,null,null,null,null,null,null,null,null,null,null,null,3,1]
[null,null,"Jedná  se  o  plnostěnné kanalizační trubky DN 150 – DN 400, SN 12 kN/m2 , zvenčí  i  zevnitř  hladké. Jsou  opatřeny hrdlem,  v  němž  je  vložen vysoce  elastický  jazýčkový  kroužek.  konce  trubek  (dříků)  jsou opatřeny  zkosením  pod  úhlem  15°.  Způsob  použití  trubek  je  „U“  dle  normy  ČSN  EN  1401-1, tj. mimo budovy. Spolehlivá  funkce  těsnění  je  jištěna  výztužným  kroužkem  z  elastomeru.  Je  tak  zamezeno  vypad-nutí nebo vytlačení kroužku při manipulaci a montáži. Tento systém zaručuje při správné montáži ",null,null,null,null,null,null,null,null,"Jedná  se  o  plnostěnné kanalizační trubky DN 150 – DN 400, SN 12 kN/m2 , zvenčí  i  zevnitř  hladké. Jsou  opatřeny hrdlem,  v  němž  je  vložen vysoce  elastický  jazýčkový  kroužek.  konce  trubek  (dříků)  jsou opatřeny  zkosením  pod  úhlem  15°.  Způsob  použití  trubek  je  „U“  dle  normy  ČSN  EN  1401-1, tj. mimo budovy. Spolehlivá  funkce  těsnění  je  jištěna  výztužným  kroužkem  z  elastomeru.  Je  tak  zamezeno  vypad-nutí nebo vytlačení kroužku při manipulaci a montáži. Tento systém zaručuje při správné montáži ",null,null,3]
[null,null,"dokonalou  těsnost  do  výšky  vodního  sloupce  5  metrů.",null,null,null,null,null,null,null,null,"dokonalou  těsnost  do  výšky  vodního  sloupce  5  metrů.",null,null,3]
[null,null,null,null,null,null,null,null,null,null,null,null,null,null,3]
[null,null,"Teplota při pokládce: min. -10 °C, max. 50 °C",null,null,null,null,null,null,null,null,"Teplota při pokládce: min. -10 °C, max. 50 °C",null,null,3]
[null,null,"Max. teplota média: trvale do 40 °C, krátkodobě do 60 °C",null,null,null,null,null,null,null,null,"Max. teplota média: trvale do 40 °C, krátkodobě do 60 °C",null,null,3]
[null,null,"Orientační výška krytí: min. 0,5 m, max. 10 m",null,null,null,null,null,null,null,null,"Orientační výška krytí: min. 0,5 m, max. 10 m",null,null,3]
[null,null,"Max. rychlost média: 12 m/s",null,null,null,null,null,null,null,null,"Max. rychlost média: 12 m/s",null,null,3]
[null,null,"Stoka DK PVC DN300:",null,0,null,null,null,null,null,null,null,"Stoka DK PVC DN300:"]
[null,null,"Přípojky pro UV PVC DN150:2,00*2*1,03",null,4.12,null,null,null,null,null,null,null,"Přípojky pro UV PVC DN150:2,00*2*1,03"]
[45,"286111923.A","Trubka kanalizační PVC QUANTUM SN 12 DN 250","kus",11.536,null,{"$f":"E252*F252","v":0},8.2000000000000007E-3,{"$f":"E252*H252","v":9.4595200000000004E-2},null,{"$f":"E252*J252","v":0},null,null,null,2,null,null,null,null,null,null,null,null,null,null,null,3,1,"286111923.A",null,null,null,null,null,null,null,null,null,null,null,null,null,null,null,null,null,null,null,null,null,null,1,{"$f":"IF(AZ252=1,G252,0)","v":0},{"$f":"IF(AZ252=2,G252,0)","v":0},{"$f":"IF(AZ252=3,G252,0)","v":0},{"$f":"IF(AZ252=4,G252,0)","v":0},{"$f":"IF(AZ252=5,G252,0)","v":0},null,null,null,null,null,null,null,null,null,null,null,null,null,null,null,null,null,null,null,null,null,3,1]
[null,null,"Jedná  se  o  plnostěnné kanalizační trubky DN 150 – DN 400, SN 12 kN/m2 , zvenčí  i  zevnitř  hladké. Jsou  opatřeny hrdlem,  v  němž  je  vložen vysoce  elastický  jazýčkový  kroužek.  konce  trubek  (dříků)  jsou opatřeny  zkosením  pod  úhlem  15°.  Způsob  použití  trubek  je  „U“  dle  normy  ČSN  EN  1401-1, tj. mimo budovy. Spolehlivá  funkce  těsnění  je  jištěna  výztužným  kroužkem  z  elastomeru.  Je  tak  zamezeno  vypad-nutí nebo vytlačení kroužku při manipulaci a montáži. Tento systém zaručuje při správné montáži ",null,null,null,null,null,null,null,null,"Jedná  se  o  plnostěnné kanalizační trubky DN 150 – DN 400, SN 12 kN/m2 , zvenčí  i  zevnitř  hladké. Jsou  opatřeny hrdlem,  v  němž  je  vložen vysoce  elastický  jazýčkový  kroužek.  konce  trubek  (dříků)  jsou opatřeny  zkosením  pod  úhlem  15°.  Způsob  použití  trubek  je  „U“  dle  normy  ČSN  EN  1401-1, tj. mimo budovy. Spolehlivá  funkce  těsnění  je  jištěna  výztužným  kroužkem  z  elastomeru.  Je  tak  zamezeno  vypad-nutí nebo vytlačení kroužku při manipulaci a montáži. Tento systém zaručuje při správné montáži ",null,null,3]
[null,null,"dokonalou  těsnost  do  výšky  vodního  sloupce  5  metrů.",null,null,null,null,null,null,null,null,"dokonalou  těsnost  do  výšky  vodního  sloupce  5  metrů.",null,null,3]
[null,null,"Teplota při pokládce: min. -10 °C, max. 50 °C",null,null,null,null,null,null,null,null,"Teplota při pokládce: min. -10 °C, max. 50 °C",null,null,3]
[null,null,"Max. teplota média: trvale do 40 °C, krátkodobě do 60 °C",null,null,null,null,null,null,null,null,"Max. teplota média: trvale do 40 °C, krátkodobě do 60 °C",null,null,3]
[null,null,"Orientační výška krytí: min. 0,5 m, max. 10 m",null,null,null,null,null,null,null,null,"Orientační výška krytí: min. 0,5 m, max. 10 m",null,null,3]
[null,null,"Max. rychlost média: 12 m/s",null,null,null,null,null,null,null,null,"Max. rychlost média: 12 m/s",null,null,3]
[null,null,"Stoka DK PVC DN300:",null,0,null,null,null,null,null,null,null,"Stoka DK PVC DN300:"]
[null,null,"Přepojení stávající kanalizace PVC DN250:11,20*1,03",null,11.536,null,null,null,null,null,null,null,"Přepojení stávající kanalizace PVC DN250:11,20*1,03"]
[46,"286111934.R","Trubka kanalizační PVC QUANTUM SN 12 DN 300","m",83.841999999999999,null,{"$f":"E261*F261","v":0},1.0200000000000001E-3,{"$f":"E261*H261","v":8.5518839999999999E-2},null,{"$f":"E261*J261","v":0},null,null,null,2,null,null,null,null,null,null,null,null,null,null,null,3,1,"286111934.R",null,null,null,null,null,null,null,null,null,null,null,null,null,null,null,null,null,null,null,null,null,null,1,{"$f":"IF(AZ261=1,G261,0)","v":0},{"$f":"IF(AZ261=2,G261,0)","v":0},{"$f":"IF(AZ261=3,G261,0)","v":0},{"$f":"IF(AZ261=4,G261,0)","v":0},{"$f":"IF(AZ261=5,G261,0)","v":0},null,null,null,null,null,null,null,null,null,null,null,null,null,null,null,null,null,null,null,null,null,3,1]
[null,null,"Jedná  se  o  plnostěnné kanalizační trubky DN 150 – DN 400, SN 12 kN/m2 , zvenčí  i  zevnitř  hladké. Jsou  opatřeny hrdlem,  v  němž  je  vložen vysoce  elastický  jazýčkový  kroužek.  konce  trubek  (dříků)  jsou opatřeny  zkosením  pod  úhlem  15°.  Způsob  použití  trubek  je  „U“  dle  normy  ČSN  EN  1401-1, tj. mimo budovy. Spolehlivá  funkce  těsnění  je  jištěna  výztužným  kroužkem  z  elastomeru.  Je  tak  zamezeno  vypad-nutí nebo vytlačení kroužku při manipulaci a montáži. Tento systém zaručuje při správné montáži ",null,null,null,null,null,null,null,null,"Jedná  se  o  plnostěnné kanalizační trubky DN 150 – DN 400, SN 12 kN/m2 , zvenčí  i  zevnitř  hladké. Jsou  opatřeny hrdlem,  v  němž  je  vložen vysoce  elastický  jazýčkový  kroužek.  konce  trubek  (dříků)  jsou opatřeny  zkosením  pod  úhlem  15°.  Způsob  použití  trubek  je  „U“  dle  normy  ČSN  EN  1401-1, tj. mimo budovy. Spolehlivá  funkce  těsnění  je  jištěna  výztužným  kroužkem  z  elastomeru.  Je  tak  zamezeno  vypad-nutí nebo vytlačení kroužku při manipulaci a montáži. Tento systém zaručuje při správné montáži ",null,null,3]
[null,null,"dokonalou  těsnost  do  výšky  vodního  sloupce  5  metrů.",null,null,null,null,null,null,null,null,"dokonalou  těsnost  do  výšky  vodního  sloupce  5  metrů.",null,null,3]
[null,null,"Teplota při pokládce: min. -10 °C, max. 50 °C",null,null,null,null,null,null,null,null,"Teplota při pokládce: min. -10 °C, max. 50 °C",null,null,3]
[null,null,"Max. teplota média: trvale do 40 °C, krátkodobě do 60 °C",null,null,null,null,null,null,null,null,"Max. teplota média: trvale do 40 °C, krátkodobě do 60 °C",null,null,3]
[null,null,"Orientační výška krytí: min. 0,5 m, max. 10 m",null,null,null,null,null,null,null,null,"Orientační výška krytí: min. 0,5 m, max. 10 m",null,null,3]
[null,null,"Max. rychlost média: 12 m/s",null,null,null,null,null,null,null,null,"Max. rychlost média: 12 m/s",null,null,3]
[null,null,"Stoka DK PVC DN300:65,20*1,03",null,67.156000000000006,null,null,null,null,null,null,null,"Stoka DK PVC DN300:65,20*1,03"]
[null,null,"Přípojka DK PVC DN300:16,20*1,03",null,16.686,null,null,null,null,null,null,null,"Přípojka DK PVC DN300:16,20*1,03"]
[47,"286506003.R","Koleno kanalizační PVC SDR 34 DN 150 Kolena s úhlem 15°, 30°, 45° a 90°","kus",4.0599999999999996,null,{"$f":"E270*F270","v":0},1.2700000000000001E-3,{"$f":"E270*H270","v":5.1561999999999997E-3},null,{"$f":"E270*J270","v":0},null,null,null,2,null,null,null,null,null,null,null,null,null,null,null,3,1,"286506003.R",null,null,null,null,null,null,null,null,null,null,null,null,null,null,null,null,null,null,null,null,null,null,1,{"$f":"IF(AZ270=1,G270,0)","v":0},{"$f":"IF(AZ270=2,G270,0)","v":0},{"$f":"IF(AZ270=3,G270,0)","v":0},{"$f":"IF(AZ270=4,G270,0)","v":0},{"$f":"IF(AZ270=5,G270,0)","v":0},null,null,null,null,null,null,null,null,null,null,null,null,null,null,null,null,null,null,null,null,null,3,1]
[null,null,"Tvarovky kanalizačního systému PVC SDR 34",null,null,null,null,null,null,null,null,"Tvarovky kanalizačního systému PVC SDR 34",null,null,3]
[null,null,"Teplota při pokládce: min. -10 °C, max. 50 °C",null,null,null,null,null,null,null,null,"Teplota při pokládce: min. -10 °C, max. 50 °C",null,null,3]
[null,null,"Max. teplota média: trvale do 40 °C, krátkodobě do 60 °C",null,null,null,null,null,null,null,null,"Max. teplota média: trvale do 40 °C, krátkodobě do 60 °C",null,null,3]
[null,null,"Orientační výška krytí: min. 0,5 m, max. 10 m",null,null,null,null,null,null,null,null,"Orientační výška krytí: min. 0,5 m, max. 10 m",null,null,3]
[null,null,"Max. rychlost média: 12 m/s",null,null,null,null,null,null,null,null,"Max. rychlost média: 12 m/s",null,null,3]
[null,null,"Stoka DK PVC DN300:",null,0,null,null,null,null,null,null,null,"Stoka DK PVC DN300:"]
[null,null,"Přípojky pro UV PVC DN150:",null,0,null,null,null,null,null,null,null,"Přípojky pro UV PVC DN150:"]
[null,null,"Koleno PVC DN150:2*2*1,015",null,4.0599999999999996,null,null,null,null,null,null,null,"Koleno PVC DN150:2*2*1,015"]
[48,"55244410.R","Poklop v litino-betonovém rámu dle PD","kus",2,null,{"$f":"E279*F279","v":0},0.16300000000000001,{"$f":"E279*H279","v":0.32600000000000001},null,{"$f":"E279*J279","v":0},null,null,null,2,null,null,null,null,null,null,null,null,null,null,null,3,1,"55244410.R",null,null,null,null,null,null,null,null,null,null,null,null,null,null,null,null,null,null,null,null,null,null,1,{"$f":"IF(AZ279=1,G279,0)","v":0},{"$f":"IF(AZ279=2,G279,0)","v":0},{"$f":"IF(AZ279=3,G279,0)","v":0},{"$f":"IF(AZ279=4,G279,0)","v":0},{"$f":"IF(AZ279=5,G279,0)","v":0},null,null,null,null,null,null,null,null,null,null,null,null,null,null,null,null,null,null,null,null,null,3,1]
[null,null,"Kanalizační kruhový poklop bez ventilace v litino-betonovém rámu, bez pantu, bez tlumící vložky, bez pružinového zajištění víka v rámu.",null,null,null,null,null,null,null,null,"Kanalizační kruhový poklop bez ventilace v litino-betonovém rámu, bez pantu, bez tlumící vložky, bez pružinového zajištění víka v rámu.",null,null,3]
[null,null,"Dle TS VHS Turnov",null,null,null,null,null,null,null,null,"Dle TS VHS Turnov",null,null,3]
[null,null,"Víko se znakem Lomnice nad Popelkou",null,null,null,null,null,null,null,null,"Víko se znakem Lomnice nad Popelkou",null,null,3]
[null,null,"Stoka DK PVC DN300 vč. přípojek a propojů DK:",null,0,null,null,null,null,null,null,null,"Stoka DK PVC DN300 vč. přípojek a propojů DK:"]
[null,null,"Poklopy D400 v panelové ploše parkoviště:2",null,2,null,null,null,null,null,null,null,"Poklopy D400 v panelové ploše parkoviště:2"]
[49,"592243583.R","Kónus šachetní TBR-Q.1 1000x625/600/120 SKP DEHA","kus",7.07,null,{"$f":"E285*F285","v":0},0.54900000000000004,{"$f":"E285*H285","v":3.8814300000000004},null,{"$f":"E285*J285","v":0},null,null,null,2,null,null,null,null,null,null,null,null,null,null,null,3,1,"592243583.R",null,null,null,null,null,null,null,null,null,null,null,null,null,null,null,null,null,null,null,null,null,null,1,{"$f":"IF(AZ285=1,G285,0)","v":0},{"$f":"IF(AZ285=2,G285,0)","v":0},{"$f":"IF(AZ285=3,G285,0)","v":0},{"$f":"IF(AZ285=4,G285,0)","v":0},{"$f":"IF(AZ285=5,G285,0)","v":0},null,null,null,null,null,null,null,null,null,null,null,null,null,null,null,null,null,null,null,null,null,3,1]
[null,null,"Stoka DK PVC DN300 vč. přípojek a propojů DK:",null,0,null,null,null,null,null,null,null,"Stoka DK PVC DN300 vč. přípojek a propojů DK:"]
[null,null,"Kónus H600:7*1,01",null,7.07,null,null,null,null,null,null,null,"Kónus H600:7*1,01"]
[50,"592243594.R","Skruž šachetní TBS-Q.1 1000/250/120 SP DEHA ATL","kus",5.05,null,{"$f":"E288*F288","v":0},0.254,{"$f":"E288*H288","v":1.2827},null,{"$f":"E288*J288","v":0},null,null,null,2,null,null,null,null,null,null,null,null,null,null,null,3,1,"592243594.R",null,null,null,null,null,null,null,null,null,null,null,null,null,null,null,null,null,null,null,null,null,null,1,{"$f":"IF(AZ288=1,G288,0)","v":0},{"$f":"IF(AZ288=2,G288,0)","v":0},{"$f":"IF(AZ288=3,G288,0)","v":0},{"$f":"IF(AZ288=4,G288,0)","v":0},{"$f":"IF(AZ288=5,G288,0)","v":0},null,null,null,null,null,null,null,null,null,null,null,null,null,null,null,null,null,null,null,null,null,3,1]
[null,null,"Stoka DK PVC DN300 vč. přípojek a propojů DK:",null,0,null,null,null,null,null,null,null,"Stoka DK PVC DN300 vč. přípojek a propojů DK:"]
[null,null,"Skruž H250:5*1,01",null,5.05,null,null,null,null,null,null,null,"Skruž H250:5*1,01"]
[51,"592243595.R","Skruž šachetní TBS-Q.1 1000/500/120 SP DEHA ATL","kus",1.01,null,{"$f":"E291*F291","v":0},0.50900000000000001,{"$f":"E291*H291","v":0.51409000000000005},null,{"$f":"E291*J291","v":0},null,null,null,2,null,null,null,null,null,null,null,null,null,null,null,3,1,"592243595.R",null,null,null,null,null,null,null,null,null,null,null,null,null,null,null,null,null,null,null,null,null,null,1,{"$f":"IF(AZ291=1,G291,0)","v":0},{"$f":"IF(AZ291=2,G291,0)","v":0},{"$f":"IF(AZ291=3,G291,0)","v":0},{"$f":"IF(AZ291=4,G291,0)","v":0},{"$f":"IF(AZ291=5,G291,0)","v":0},null,null,null,null,null,null,null,null,null,null,null,null,null,null,null,null,null,null,null,null,null,3,1]
[null,null,"Stoka DK PVC DN300 vč. přípojek a propojů DK:",null,0,null,null,null,null,null,null,null,"Stoka DK PVC DN300 vč. přípojek a propojů DK:"]
[null,null,"Skruž H500:1*1,01",null,1.01,null,null,null,null,null,null,null,"Skruž H500:1*1,01"]
[52,"592243696.R","Skruž šachetní TBS-Q.1 1000/1000/120 SP DEHA ATL","kus",7.07,null,{"$f":"E294*F294","v":0},1.0189999999999999,{"$f":"E294*H294","v":7.2043299999999997},null,{"$f":"E294*J294","v":0},null,null,null,2,null,null,null,null,null,null,null,null,null,null,null,3,1,"592243696.R",null,null,null,null,null,null,null,null,null,null,null,null,null,null,null,null,null,null,null,null,null,null,1,{"$f":"IF(AZ294=1,G294,0)","v":0},{"$f":"IF(AZ294=2,G294,0)","v":0},{"$f":"IF(AZ294=3,G294,0)","v":0},{"$f":"IF(AZ294=4,G294,0)","v":0},{"$f":"IF(AZ294=5,G294,0)","v":0},null,null,null,null,null,null,null,null,null,null,null,null,null,null,null,null,null,null,null,null,null,3,1]
[null,null,"Stoka DK PVC DN300 vč. přípojek a propojů DK:",null,0,null,null,null,null,null,null,null,"Stoka DK PVC DN300 vč. přípojek a propojů DK:"]
[null,null,"Skruž H1000:7*1,01",null,7.07,null,null,null,null,null,null,null,"Skruž H1000:7*1,01"]
[53,"592243707.R","Dno šachetní TBZ-Q.1 CAPITAN 250/600 Včetně kynety dle projektové dokumentace","kus",1.01,null,{"$f":"E297*F297","v":0},1.415,{"$f":"E297*H297","v":1.4291500000000001},null,{"$f":"E297*J297","v":0},null,null,null,2,null,null,null,null,null,null,null,null,null,null,null,3,1,"592243707.R",null,null,null,null,null,null,null,null,null,null,null,null,null,null,null,null,null,null,null,null,null,null,1,{"$f":"IF(AZ297=1,G297,0)","v":0},{"$f":"IF(AZ297=2,G297,0)","v":0},{"$f":"IF(AZ297=3,G297,0)","v":0},{"$f":"IF(AZ297=4,G297,0)","v":0},{"$f":"IF(AZ297=5,G297,0)","v":0},null,null,null,null,null,null,null,null,null,null,null,null,null,null,null,null,null,null,null,null,null,3,1]
[null,null,"Stoka DK PVC DN300 vč. přípojek a propojů DK:",null,0,null,null,null,null,null,null,null,"Stoka DK PVC DN300 vč. přípojek a propojů DK:"]
[null,null,"Šachtové dno 250/600:1*1,01",null,1.01,null,null,null,null,null,null,null,"Šachtové dno 250/600:1*1,01"]
[54,"592243708.R","Dno šachetní TBZ-Q.1 CAPITAN 300/600 Včetně kynety dle projektové dokumentace","kus",6.06,null,{"$f":"E300*F300","v":0},1.405,{"$f":"E300*H300","v":8.5143000000000004},null,{"$f":"E300*J300","v":0},null,null,null,2,null,null,null,null,null,null,null,null,null,null,null,3,1,"592243708.R",null,null,null,null,null,null,null,null,null,null,null,null,null,null,null,null,null,null,null,null,null,null,1,{"$f":"IF(AZ300=1,G300,0)","v":0},{"$f":"IF(AZ300=2,G300,0)","v":0},{"$f":"IF(AZ300=3,G300,0)","v":0},{"$f":"IF(AZ300=4,G300,0)","v":0},{"$f":"IF(AZ300=5,G300,0)","v":0},null,null,null,null,null,null,null,null,null,null,null,null,null,null,null,null,null,null,null,null,null,3,1]
[null,null,"Stoka DK PVC DN300 vč. přípojek a propojů DK:",null,0,null,null,null,null,null,null,null,"Stoka DK PVC DN300 vč. přípojek a propojů DK:"]
[null,null,"Šachtové dno 300/600:6*1,01",null,6.06,null,null,null,null,null,null,null,"Šachtové dno 300/600:6*1,01"]
[55,"59224373.R","Těsnění elastom pro šach díly EMT 100/1.7 - DN1000","kus",20.2,null,{"$f":"E303*F303","v":0},2E-3,{"$f":"E303*H303","v":4.0399999999999998E-2},null,{"$f":"E303*J303","v":0},null,null,null,2,null,null,null,null,null,null,null,null,null,null,null,3,1,"59224373.R",null,null,null,null,null,null,null,null,null,null,null,null,null,null,null,null,null,null,null,null,null,null,1,{"$f":"IF(AZ303=1,G303,0)","v":0},{"$f":"IF(AZ303=2,G303,0)","v":0},{"$f":"IF(AZ303=3,G303,0)","v":0},{"$f":"IF(AZ303=4,G303,0)","v":0},{"$f":"IF(AZ303=5,G303,0)","v":0},null,null,null,null,null,null,null,null,null,null,null,null,null,null,null,null,null,null,null,null,null,3,1]
[null,null,"Stoka DK PVC DN300 vč. přípojek a propojů DK:",null,0,null,null,null,null,null,null,null,"Stoka DK PVC DN300 vč. přípojek a propojů DK:"]
[null,null,"Těsnění DN1000:20*1,01",null,20.2,null,null,null,null,null,null,null,"Těsnění DN1000:20*1,01"]
[null,"Celkem za","8 Trubní vedení",null,null,null,{"$f":"SUM(G181:G305)","v":0},null,{"$f":"SUM(I181:I305)","v":23.48168824},null,{"$f":"SUM(K181:K305)","v":0},null,null,null,4,null,null,null,null,null,null,null,null,null,null,null,null,null,null,null,null,null,null,null,null,null,null,null,null,null,null,null,null,null,null,null,null,null,null,null,null,null,{"$f":"SUM(BA181:BA305)","v":0},{"$f":"SUM(BB181:BB305)","v":0},{"$f":"SUM(BC181:BC305)","v":0},{"$f":"SUM(BD181:BD305)","v":0},{"$f":"SUM(BE181:BE305)","v":0}]
["Díl:","93","Dokončovací práce inženýrských staveb",null,null,null,null,null,null,null,null,null,null,null,1]
[56,"939421111RT1","Osazení samonivelač.kanalizač.poklopu za finišerem bez dodávky poklopu","kus",5,null,{"$f":"E308*F308","v":0},0.15425,{"$f":"E308*H308","v":0.77124999999999999},0,{"$f":"E308*J308","v":0},null,null,null,2,null,null,null,null,null,null,null,null,null,null,null,1,0,0,null,null,null,null,null,null,null,null,null,null,null,null,null,null,null,null,null,null,null,null,null,null,1,{"$f":"IF(AZ308=1,G308,0)","v":0},{"$f":"IF(AZ308=2,G308,0)","v":0},{"$f":"IF(AZ308=3,G308,0)","v":0},{"$f":"IF(AZ308=4,G308,0)","v":0},{"$f":"IF(AZ308=5,G308,0)","v":0},null,null,null,null,null,null,null,null,null,null,null,null,null,null,null,null,null,null,null,null,null,1,0]
[null,null,"Položka obsahuje:",null,null,null,null,null,null,null,null,"Položka obsahuje:",null,null,3]
[null,null,"- osazení prefabrikovaného betonového prstence do rychletuhnoucí malty (s dodávkou hmot)",null,null,null,null,null,null,null,null,"- osazení prefabrikovaného betonového prstence do rychletuhnoucí malty (s dodávkou hmot)",null,null,3]
[null,null,"- zalití prstence rychletuhnoucí zálivkou do výše prstence (s dodávkou hmoty)",null,null,null,null,null,null,null,null,"- zalití prstence rychletuhnoucí zálivkou do výše prstence (s dodávkou hmoty)",null,null,3]
[null,null,"- vložení kruhového bednění",null,null,null,null,null,null,null,null,"- vložení kruhového bednění",null,null,3]
[null,null,"- doplnění mezikruží asfaltovou směsí do výšky současné podkladní vrstvy, zhutnění",null,null,null,null,null,null,null,null,"- doplnění mezikruží asfaltovou směsí do výšky současné podkladní vrstvy, zhutnění",null,null,3]
[null,null,"- vyjmutí kruhového bednění",null,null,null,null,null,null,null,null,"- vyjmutí kruhového bednění",null,null,3]
[null,null,"- osazení poklopu a zatlačení",null,null,null,null,null,null,null,null,"- osazení poklopu a zatlačení",null,null,3]
[null,null,"  (následuje pokládka finální vrstvy vozovky - není součástí položky)",null,null,null,null,null,null,null,null,"  (následuje pokládka finální vrstvy vozovky - není součástí položky)",null,null,3]
[null,null,"- povytažení poklopu",null,null,null,null,null,null,null,null,"- povytažení poklopu",null,null,3]
[null,null,"- podsyp asfaltovou směsí, spuštění poklopu a zhutnění směsi",null,null,null,null,null,null,null,null,"- podsyp asfaltovou směsí, spuštění poklopu a zhutnění směsi",null,null,3]
[null,null,"Stoka DK PVC DN300 vč. přípojek a propojů DK:",null,0,null,null,null,null,null,null,null,"Stoka DK PVC DN300 vč. přípojek a propojů DK:"]
[null,null,"Poklopy D400 v asfaltové ploše:5",null,5,null,null,null,null,null,null,null,"Poklopy D400 v asfaltové ploše:5"]
[57,"55244414.R","Poklop celolitinový v samonivelačním rámu KDM93B D400 SN600","kus",3,null,{"$f":"E321*F321","v":0},0.113,{"$f":"E321*H321","v":0.33900000000000002},null,{"$f":"E321*J321","v":0},null,null,null,2,null,null,null,null,null,null,null,null,null,null,null,3,1,"55244414.R",null,null,null,null,null,null,null,null,null,null,null,null,null,null,null,null,null,null,null,null,null,null,1,{"$f":"IF(AZ321=1,G321,0)","v":0},{"$f":"IF(AZ321=2,G321,0)","v":0},{"$f":"IF(AZ321=3,G321,0)","v":0},{"$f":"IF(AZ321=4,G321,0)","v":0},{"$f":"IF(AZ321=5,G321,0)","v":0},null,null,null,null,null,null,null,null,null,null,null,null,null,null,null,null,null,null,null,null,null,3,1]
[null,null,"Kanalizační kruhový celolitinový samonivelační poklop s pantem, horizontální PUR tlumící vložka na rámu, horizontální a vertikální  PUR tlumící vložka na víku, zajištění víka v rámu vícebodovými pružinami ",null,null,null,null,null,null,null,null,"Kanalizační kruhový celolitinový samonivelační poklop s pantem, horizontální PUR tlumící vložka na rámu, horizontální a vertikální  PUR tlumící vložka na víku, zajištění víka v rámu vícebodovými pružinami ",null,null,3]
[null,null,"KDM93B bez ventilace dle TS VHS Turnov",null,null,null,null,null,null,null,null,"KDM93B bez ventilace dle TS VHS Turnov",null,null,3]
[null,null,"Víko se znakem Města Lomnice nad Popelkou",null,null,null,null,null,null,null,null,"Víko se znakem Města Lomnice nad Popelkou",null,null,3]
[null,null,"Stoka DK PVC DN300 vč. přípojek a propojů DK:",null,0,null,null,null,null,null,null,null,"Stoka DK PVC DN300 vč. přípojek a propojů DK:"]
[null,null,"Poklopy D400 v asfaltové ploše:3",null,3,null,null,null,null,null,null,null,"Poklopy D400 v asfaltové ploše:3"]
[58,"55244415.R","Poklop celolitinový v samonivelačním rámu KDM94B D400 SN600","kus",2,null,{"$f":"E327*F327","v":0},0.113,{"$f":"E327*H327","v":0.22600000000000001},null,{"$f":"E327*J327","v":0},null,null,null,2,null,null,null,null,null,null,null,null,null,null,null,3,1,"55244415.R",null,null,null,null,null,null,null,null,null,null,null,null,null,null,null,null,null,null,null,null,null,null,1,{"$f":"IF(AZ327=1,G327,0)","v":0},{"$f":"IF(AZ327=2,G327,0)","v":0},{"$f":"IF(AZ327=3,G327,0)","v":0},{"$f":"IF(AZ327=4,G327,0)","v":0},{"$f":"IF(AZ327=5,G327,0)","v":0},null,null,null,null,null,null,null,null,null,null,null,null,null,null,null,null,null,null,null,null,null,3,1]
[null,null,"Kanalizační kruhový celolitinový samonivelační poklop s pantem, horizontální PUR tlumící vložka na rámu, horizontální a vertikální  PUR tlumící vložka na víku, zajištění víka v rámu vícebodovými pružinami ",null,null,null,null,null,null,null,null,"Kanalizační kruhový celolitinový samonivelační poklop s pantem, horizontální PUR tlumící vložka na rámu, horizontální a vertikální  PUR tlumící vložka na víku, zajištění víka v rámu vícebodovými pružinami ",null,null,3]
[null,null,"KDM94B s ventilací dle TS VHS Turnov",null,null,null,null,null,null,null,null,"KDM94B s ventilací dle TS VHS Turnov",null,null,3]
[null,null,"Víko se znakem Města Lomnice nad Popelkou",null,null,null,null,null,null,null,null,"Víko se znakem Města Lomnice nad Popelkou",null,null,3]
[null,null,"Stoka DK PVC DN300 vč. přípojek a propojů DK:",null,0,null,null,null,null,null,null,null,"Stoka DK PVC DN300 vč. přípojek a propojů DK:"]
[null,null,"Poklopy D400 v asfaltové ploše:2",null,2,null,null,null,null,null,null,null,"Poklopy D400 v asfaltové ploše:2"]
[null,"Celkem za","93 Dokončovací práce inženýrských staveb",null,null,null,{"$f":"SUM(G307:G332)","v":0},null,{"$f":"SUM(I307:I332)","v":1.3362499999999999},null,{"$f":"SUM(K307:K332)","v":0},null,null,null,4,null,null,null,null,null,null,null,null,null,null,null,null,null,null,null,null,null,null,null,null,null,null,null,null,null,null,null,null,null,null,null,null,null,null,null,null,null,{"$f":"SUM(BA307:BA332)","v":0},{"$f":"SUM(BB307:BB332)","v":0},{"$f":"SUM(BC307:BC332)","v":0},{"$f":"SUM(BD307:BD332)","v":0},{"$f":"SUM(BE307:BE332)","v":0}]
["Díl:","99","Staveništní přesun hmot",null,null,null,null,null,null,null,null,null,null,null,1]
[59,"998276101R00","Přesun hmot, trubní vedení plastová, otevř. výkop ","t",504.65899584599998,null,{"$f":"E335*F335","v":0},0,{"$f":"E335*H335","v":0},null,{"$f":"E335*J335","v":0},null,null,null,2,null,null,null,null,null,null,null,null,null,null,null,7,1,2,null,null,null,null,null,null,null,null,null,null,null,null,null,null,null,null,null,null,null,null,null,null,1,{"$f":"IF(AZ335=1,G335,0)","v":0},{"$f":"IF(AZ335=2,G335,0)","v":0},{"$f":"IF(AZ335=3,G335,0)","v":0},{"$f":"IF(AZ335=4,G335,0)","v":0},{"$f":"IF(AZ335=5,G335,0)","v":0},null,null,null,null,null,null,null,null,null,null,null,null,null,null,null,null,null,null,null,null,null,7,1]
[null,"Celkem za","99 Staveništní přesun hmot",null,null,null,{"$f":"SUM(G334:G335)","v":0},null,{"$f":"SUM(I334:I335)","v":0},null,{"$f":"SUM(K334:K335)","v":0},null,null,null,4,null,null,null,null,null,null,null,null,null,null,null,null,null,null,null,null,null,null,null,null,null,null,null,null,null,null,null,null,null,null,null,null,null,null,null,null,null,{"$f":"SUM(BA334:BA335)","v":0},{"$f":"SUM(BB334:BB335)","v":0},{"$f":"SUM(BC334:BC335)","v":0},{"$f":"SUM(BD334:BD335)","v":0},{"$f":"SUM(BE334:BE335)","v":0}]

{"sheet":"400 3380400 KL","index":10,"n_rows":45,"n_cols":8,"rows_kept":45,"cut":false,"hidden":false,"merged":[[50,1,50,6],[29,5,29,6],[30,5,30,6],[31,5,31,6],[32,5,32,6],[33,5,33,6],[36,1,44,6],[45,1,45,6],[46,1,46,6],[47,1,47,6],[48,1,48,6],[49,1,49,6],[22,0,22,1],[7,2,7,4],[8,2,8,4],[9,2,9,4],[10,2,10,4],[11,2,11,4]]}
["POLOŽKOVÝ ROZPOČET"]
["Rozpočet",null,"3380/400","Prodloužení plynovodního řadu",null,"JKSO ","827.52.A"]
[]
["Objekt",null,null,null,null,"SKP "]
["400",null,"Prodloužení plynovodního řadu",null,null,"Měrná jednotka","m"]
["Stavba",null,null,null,null,"Počet jednotek",0]
["3380",null,"Lomnice n/P. Prodloužení sítí technické infrastruk",null,null,"Náklady na m.j.",{"$f":"IF(G6=0,,ROUND((F30+F32)/G6,1))","v":0}]
["Projektant",null,"PVK Projekt s.r.o.",null,null,"Typ rozpočtu"]
["Zpracovatel projektu"]
["Objednatel",null,"Město Lomnice nad Popelkou"]
["Dodavatel",null,".",null,null,"Zakázkové číslo "]
["Rozpočtoval",null,null,null,null,"Počet listů"]
["ROZPOČTOVÉ NÁKLADY"]
["Základní rozpočtové náklady"]
[null,"HSV celkem",{"$f":"'400 3380400 Rek'!E9","v":0}]
["Z","PSV celkem",{"$f":"'400 3380400 Rek'!F9","v":0}]
["R","M práce celkem",{"$f":"'400 3380400 Rek'!H9","v":0}]
["N","M dodávky celkem",{"$f":"'400 3380400 Rek'!G9","v":0}]
["ZRN celkem",null,{"$f":"SUM(C15:C18)","v":0}]
[]
["HZS",null,{"$f":"'400 3380400 Rek'!I9","v":0}]
["ZRN+HZS",null,{"$f":"C19+C21","v":0}]
["ZRN+ost.náklady+HZS",null,{"$f":"C22+G23","v":0}]
["Vypracoval",null,null,"Za zhotovitele",null,"Za objednatele"]
["Jméno :",null,null,"Jméno :",null,"Jméno :"]
["Datum :",null,null,"Datum :",null,"Datum :"]
[]
["Podpis :",null,null,"Podpis:",null,"Podpis:"]
[]
["Základ pro DPH",null,21,"%  ",null,{"$f":"C23-F32","v":0}]
["DPH",null,{"$f":"C30","v":21},"% ",null,{"$f":"ROUND(PRODUCT(F30,C31/100),0)","v":0}]
["Základ pro DPH",null,0,"% ",null,0]
["DPH",null,{"$f":"C32","v":0},"% ",null,{"$f":"ROUND(PRODUCT(F32,C33/100),0)","v":0}]
["CENA ZA OBJEKT CELKEM",null,null,null,null,{"$f":"ROUND(SUM(F30:F33),0)","v":0}]
[]
["Poznámka :",null,null,null,null,null,null," "]
[null,null,null,null,null,null,null," "]
[null,null,null,null,null,null,null," "]
[null,null,null,null,null,null,null," "]
[null,null,null,null,null,null,null," "]
[null,null,null,null,null,null,null," "]
[null,null,null,null,null,null,null," "]
[null,null,null,null,null,null,null," "]
[null,null,null,null,null,null,null," "]
[null,null,null,null,null,null,null," "]

{"sheet":"400 3380400 Rek","index":11,"n_rows":9,"n_cols":9,"rows_kept":9,"cut":false,"hidden":false,"merged":[[0,0,0,1],[1,0,1,1],[1,6,1,8]]}
["Stavba :",null,"3380 Lomnice n/P. Prodloužení sítí technické infrastruk",null,null,null,"Rozpočet :","3380/400"]
["Objekt :",null,"400 Prodloužení plynovodního řadu",null,null,null,"Prodloužení plynovodního řadu"]
[]
["REKAPITULACE  STAVEBNÍCH  DÍLŮ"]
[]
[null,"Stavební díl",null,null,"HSV","PSV","Dodávka","Montáž","HZS"]
[{"$f":"'400 3380400 Pol'!B7","v":"8"},{"$f":"'400 3380400 Pol'!C7","v":"Trubní vedení"},null,null,{"$f":"'400 3380400 Pol'!BA15","v":0},{"$f":"'400 3380400 Pol'!BB15","v":0},{"$f":"'400 3380400 Pol'!BC15","v":0},{"$f":"'400 3380400 Pol'!BD15","v":0},{"$f":"'400 3380400 Pol'!BE15","v":0}]
[{"$f":"'400 3380400 Pol'!B16","v":"99"},{"$f":"'400 3380400 Pol'!C16","v":"Staveništní přesun hmot"},null,null,{"$f":"'400 3380400 Pol'!BA18","v":0},{"$f":"'400 3380400 Pol'!BB18","v":0},{"$f":"'400 3380400 Pol'!BC18","v":0},{"$f":"'400 3380400 Pol'!BD18","v":0},{"$f":"'400 3380400 Pol'!BE18","v":0}]
[null,"CELKEM  OBJEKT",null,null,{"$f":"SUM(E7:E8)","v":0},{"$f":"SUM(F7:F8)","v":0},{"$f":"SUM(G7:G8)","v":0},{"$f":"SUM(H7:H8)","v":0},{"$f":"SUM(I7:I8)","v":0}]

{"sheet":"400 3380400 Pol","index":12,"n_rows":18,"n_cols":80,"rows_kept":18,"cut":false,"hidden":false,"merged":[[9,2,9,3],[12,2,12,6],[13,2,13,6],[0,0,0,6],[2,0,2,1],[3,0,3,1],[3,4,3,6],[8,2,8,6]]}
["Položkový rozpočet "]
[]
["Stavba :",null,"3380 Lomnice n/P. Prodloužení sítí technické infrastruk",null,"Rozpočet:",{"$f":"'400 3380400 Rek'!H1","v":"3380/400"}]
["Objekt :",null,"400 Prodloužení plynovodního řadu",null,{"$f":"'400 3380400 Rek'!G2","v":"Prodloužení plynovodního řadu"}]
[]
["P.č.","Číslo položky","Název položky","MJ","množství","cena / MJ","celkem (Kč)","Jednotková hmotnost","Celková hmotnost","Jednotková dem.hmot.","Celková dem.hmot."]
["Díl:","8","Trubní vedení",null,null,null,null,null,null,null,null,null,null,null,1]
[1,"841230114RAX","Plynovod z trub PE, D 63 mm, hl. 1,2 m D 63 x 5,8 návin, SDR11, s podsypem štěrkopískem","m",57.2,null,{"$f":"E8*F8","v":0},1.61669,{"$f":"E8*H8","v":92.474668000000008},0,{"$f":"E8*J8","v":0},null,null,null,2,null,null,null,null,null,null,null,null,null,null,null,1,1,1,null,null,null,null,null,null,null,null,null,null,null,null,null,null,null,null,null,null,null,null,null,null,1,{"$f":"IF(AZ8=1,G8,0)","v":0},{"$f":"IF(AZ8=2,G8,0)","v":0},{"$f":"IF(AZ8=3,G8,0)","v":0},{"$f":"IF(AZ8=4,G8,0)","v":0},{"$f":"IF(AZ8=5,G8,0)","v":0},null,null,null,null,null,null,null,null,null,null,null,null,null,null,null,null,null,null,null,null,null,1,1]
[null,null,"V položce je zakalkulováno hloubení rýh nezapažených, šířky 80 cm a hloubky dle projektu v hornině 3 a 4 (včetně příplatku za lepivost -  50 %) v komunikaci, dodávka a montáž potrubí, s podsypem štěrkopískem, s obsypem pískem nebo štěrkopískem v tl. 30 cm nad potrubím, se zásypem hutněným ŠD až do nivetety stávajících povrchů komunikace a s odvozem přebytečné zeminy na skládku zhotovitele včetně poplatku za skládku. Součástí ceny je i hlavní tlaková zkouška vzduchem, signalizační vodič a výstražná fólie.",null,null,null,null,null,null,null,null,"V položce je zakalkulováno hloubení rýh nezapažených, šířky 80 cm a hloubky dle projektu v hornině 3 a 4 (včetně příplatku za lepivost -  50 %) v komunikaci, dodávka a montáž potrubí, s podsypem štěrkopískem, s obsypem pískem nebo štěrkopískem v tl. 30 cm nad potrubím, se zásypem hutněným ŠD až do nivetety stávajících povrchů komunikace a s odvozem přebytečné zeminy na skládku zhotovitele včetně poplatku za skládku. Součástí ceny je i hlavní tlaková zkouška vzduchem, signalizační vodič a výstražná fólie.",null,null,3]
[null,null,"STL plynovod PE D 63x5,8 mm:57,20",null,57.2,null,null,null,null,null,null,null,"STL plynovod PE D 63x5,8 mm:57,20"]
[2,"841230129RAB","Ukončení plynovodu ventilem DN25 dle PD včetně odfuku a příslušného poklopu","soubor",1,null,{"$f":"E11*F11","v":0},2.5901999999999998,{"$f":"E11*H11","v":2.5901999999999998},0,{"$f":"E11*J11","v":0},null,null,null,2,null,null,null,null,null,null,null,null,null,null,null,1,1,1,null,null,null,null,null,null,null,null,null,null,null,null,null,null,null,null,null,null,null,null,null,null,1,{"$f":"IF(AZ11=1,G11,0)","v":0},{"$f":"IF(AZ11=2,G11,0)","v":0},{"$f":"IF(AZ11=3,G11,0)","v":0},{"$f":"IF(AZ11=4,G11,0)","v":0},{"$f":"IF(AZ11=5,G11,0)","v":0},null,null,null,null,null,null,null,null,null,null,null,null,null,null,null,null,null,null,null,null,null,1,1]
[3,"841230285RRX","Propoj plynovodu dle PD na OC DN200 ","soubor",1,null,{"$f":"E12*F12","v":0},4.5895999999999999,{"$f":"E12*H12","v":4.5895999999999999},0,{"$f":"E12*J12","v":0},null,null,null,2,null,null,null,null,null,null,null,null,null,null,null,1,1,1,null,null,null,null,null,null,null,null,null,null,null,null,null,null,null,null,null,null,null,null,null,null,1,{"$f":"IF(AZ12=1,G12,0)","v":0},{"$f":"IF(AZ12=2,G12,0)","v":0},{"$f":"IF(AZ12=3,G12,0)","v":0},{"$f":"IF(AZ12=4,G12,0)","v":0},{"$f":"IF(AZ12=5,G12,0)","v":0},null,null,null,null,null,null,null,null,null,null,null,null,null,null,null,null,null,null,null,null,null,1,1]
[null,null,"Provedení propoje dle PD a TZ včetně zemních prací, zásypů a pod.",null,null,null,null,null,null,null,null,"Provedení propoje dle PD a TZ včetně zemních prací, zásypů a pod.",null,null,3]
[null,null,"Zajištění dokladové části a kolaudace stavby.",null,null,null,null,null,null,null,null,"Zajištění dokladové části a kolaudace stavby.",null,null,3]
[null,"Celkem za","8 Trubní vedení",null,null,null,{"$f":"SUM(G7:G14)","v":0},null,{"$f":"SUM(I7:I14)","v":99.654468000000008},null,{"$f":"SUM(K7:K14)","v":0},null,null,null,4,null,null,null,null,null,null,null,null,null,null,null,null,null,null,null,null,null,null,null,null,null,null,null,null,null,null,null,null,null,null,null,null,null,null,null,null,null,{"$f":"SUM(BA7:BA14)","v":0},{"$f":"SUM(BB7:BB14)","v":0},{"$f":"SUM(BC7:BC14)","v":0},{"$f":"SUM(BD7:BD14)","v":0},{"$f":"SUM(BE7:BE14)","v":0}]
["Díl:","99","Staveništní přesun hmot",null,null,null,null,null,null,null,null,null,null,null,1]
[4,"998276101R00","Přesun hmot, trubní vedení plastová, otevř. výkop ","t",99.654467999999994,null,{"$f":"E17*F17","v":0},0,{"$f":"E17*H17","v":0},null,{"$f":"E17*J17","v":0},null,null,null,2,null,null,null,null,null,null,null,null,null,null,null,7,1,2,null,null,null,null,null,null,null,null,null,null,null,null,null,null,null,null,null,null,null,null,null,null,1,{"$f":"IF(AZ17=1,G17,0)","v":0},{"$f":"IF(AZ17=2,G17,0)","v":0},{"$f":"IF(AZ17=3,G17,0)","v":0},{"$f":"IF(AZ17=4,G17,0)","v":0},{"$f":"IF(AZ17=5,G17,0)","v":0},null,null,null,null,null,null,null,null,null,null,null,null,null,null,null,null,null,null,null,null,null,7,1]
[null,"Celkem za","99 Staveništní přesun hmot",null,null,null,{"$f":"SUM(G16:G17)","v":0},null,{"$f":"SUM(I16:I17)","v":0},null,{"$f":"SUM(K16:K17)","v":0},null,null,null,4,null,null,null,null,null,null,null,null,null,null,null,null,null,null,null,null,null,null,null,null,null,null,null,null,null,null,null,null,null,null,null,null,null,null,null,null,null,{"$f":"SUM(BA16:BA17)","v":0},{"$f":"SUM(BB16:BB17)","v":0},{"$f":"SUM(BC16:BC17)","v":0},{"$f":"SUM(BD16:BD17)","v":0},{"$f":"SUM(BE16:BE17)","v":0}]

{"sheet":"OaVNS","index":13,"n_rows":30,"n_cols":67,"rows_kept":30,"cut":false,"hidden":false,"merged":[[0,0,0,6],[2,0,2,1],[3,0,3,1],[3,4,3,6],[6,2,6,6]]}
["Položkový rozpočet "]
[]
["Stavba :",null,"3380 Lomnice n/P. Prodloužení sítí technické infrastruk",null,"Rozpočet:","OaVNS"]
["Objekt :",null,"OaVNS - Ostatní a vedlejší náklady stavby "]
[]
["P.č.","Číslo položky","Název položky","MJ","množství","cena / MJ","celkem (Kč)","Jednotková hmotnost","Celková hmotnost","Jednotková dem.hmot.","Celková dem.hmot."]
["Díl:","950","Ostatní náklady stavby"]
[1,"950 99-0001.ONS","Zajištění prostoru a vybudování zařízení staveniště včetně potřebných staveništních komunikací","soubor",1,null,{"$f":"SUM(E8*F8)","v":0},8.6899999999999998E-3,{"$f":"E8*H8","v":8.6899999999999998E-3},0,{"$f":"E8*J8","v":0},null,null,null,null,null,null,null,null,null,null,null,null,null,null,null,null,null,null,null,null,null,null,null,null,null,null,null,null,null,null,null,null,null,null,null,null,null,null,null,null,null,null,null,null,null,null,null,null,null,null,null,null,null,null,1,1]
[2,"950 99-0003.ONS","Zajištění bezpečnosti při provádění stavby ve smyslu bezpečnosti práce i ochrany životního prostředí a zeleně","soubor",1,null,{"$f":"SUM(E9*F9)","v":0}]
[3,"950 99-0005.ONS","Vytýčení stavby a hranic pozemků při provádění stavby ","soubor",1,null,0]
[4,"950 99-0006.ONS","Zajištění včasného oznámení o zahájení prací majitelům pozemků a správců sítí dotčených stavbou","soubor",1,null,0]
[5,"950 99-0007.ONS","Spolupráce s vlastníky pozemků při případném uvolnění pozemků pro stavbu (např. skládky osobního materiálu vlastníků)","soubor",1,null,0,2.478E-2,{"$f":"E12*H12","v":2.478E-2},0,{"$f":"E12*J12","v":0},null,null,null,null,null,null,null,null,null,null,null,null,null,null,null,null,null,null,null,null,null,null,null,null,null,null,null,null,null,null,null,null,null,null,null,null,null,null,null,null,null,null,null,null,null,null,null,null,null,null,null,null,null,null,1,1]
[6,"950 99-0008.ONS","Zajištění vytýčení podzemních zařízení, a v případě jejich křížení či souběhu v otevřeném výkopu, jejich písemné předání zpět jejich správcům před zásypem","soubor",1,null,0]
[7,"950 99-0009.ONS","Vypracování a projednání návrhu dočasných dopravních opatření (případně i po etapách dle zvoleného postupu prací zhotovitelem)","soubor",1,null,0]
[8,"950 99-0010.ONS","Zajištění povolení zvláštního užívání komunikací v souladu s postupem výstavby,včetně správních poplatků a povolení k užívání dalších, stavbou dotčených pozemků   (skládky materiálu, mezideponie atd.)","soubor",1,null,0]
[9,"950 99-0011.ONS","Zřízení, údržba a likvidace dopravního opatření po dobu realizace stavby (případně i po etapách dle zvoleného postupu prací zhotovitelem)","soubor",1,null,0,0,{"$f":"E16*H16","v":0},0,{"$f":"E16*J16","v":0},null,null,null,null,null,null,null,null,null,null,null,null,null,null,null,null,null,null,null,null,null,null,null,null,null,null,null,null,null,null,null,null,null,null,null,null,null,null,null,null,null,null,null,null,null,null,null,null,null,null,null,null,null,null,1,1]
[10,"950 99-0013.ONS","Zajištění činnosti odpovědného geodeta zhotovitele","soubor",1,null,0]
[11,"950 99-0014.ONS","Zajištění činnosti odpovědného geologa zhotovitele","soubor",1,null,0]
[12,"950 99-0015.ONS","Zajištění čistoty na staveništi a v jeho okolí, zajištění každodenního čištění komunikací dotčených provozem zhotovitele","soubor",1,null,0]
[13,"950 99-0016.ONS","Fotodokumentace průběhu díla; zhotovitel zajistí a předá objednateli průběžnou fotodokumentaci realizace díla. Fotodokumentace bude dokladovat průběh díla a bude zejména dokumentovat části stavby a konstrukce před jejich zakrytím","soubor",1,null,0]
[14,"950 99-0017.ONS","Péče o nepředané objekty nebo jejich části a konstrukce stavby, jejich ošetřování a nutný rozsah pojištění","soubor",1,null,0,0,{"$f":"E21*H21","v":0},0,{"$f":"E21*J21","v":0},null,null,null,null,null,null,null,null,null,null,null,null,null,null,null,null,null,null,null,null,null,null,null,null,null,null,null,null,null,null,null,null,null,null,null,null,null,null,null,null,null,null,null,null,null,null,null,null,null,null,null,null,null,null,1,1]
[15,"950 99-0018.ONS","Zkoušky hutnění komunikací a rýh dle ČSN a EN","soubor",1,null,0]
[16,"950 99-0021.ONS","Inženýrská a kompletační činnost zhotovitele ","soubor",1,null,0]
[17,"950 99-0022.ONS","Zhotovení dokumentace skutečného provedení díla ","soubor",1,null,0]
[18,"950 99-0023.ONS","Geodetické zaměření stavby","soubor",1,null,0]
[19,"950 99-0024.ONS","Pasportizace objektů a komunikací před zahájením stavby včetně předání fotokokumentace investorovi stavby v digitální a tištěné podobě.","soubor",1,null,0]
[20,"950 99-0025.ONS","Provizorní zásobování vodou (cisterny)","soubor",1,null,0]
[20,"950 99-0027.ONS","Ostatní činnosti nutné ke zdárnému provedení díla, které jsou vymezeny zejména v technické specifikaci stavby","soubor",1,null,0]
[]
[null,"ONS Celkem",null,null,null,null,{"$f":"SUM(G8:G28)","v":0}]